Workbook

Sheet Enrg (hidden)
C1: Nom de la ferme: | D1: =IF('Formulaire de saisie'!D1="","",'Formulaire de saisie'!D1) ->  | F1: Date | G1: =IF('Formulaire de saisie'!G1="","",'Formulaire de saisie'!G1) -> 
B2: Indiquez | C2: 1 | D2: 2 | E2: 3 | F2: 4 | G2: 5 | M2: 1 | N2: 2 | O2: 3 | P2: 4 | Q2: 5
B3: Vos principales productions | C3: =IF('Formulaire de saisie'!C3="","",'Formulaire de saisie'!C3) ->  | D3: =IF('Formulaire de saisie'!D3="","",'Formulaire de saisie'!D3) ->  | E3: =IF('Formulaire de saisie'!E3="","",'Formulaire de saisie'!E3) ->  | F3: =IF('Formulaire de saisie'!F3="","",'Formulaire de saisie'!F3) ->  | G3: =IF('Formulaire de saisie'!G3="","",'Formulaire de saisie'!G3) -> 
B4: Superficie (ha) ou nbre d'animaux vendus | C4: =IF('Formulaire de saisie'!C4="","",'Formulaire de saisie'!C4) ->  | D4: =IF('Formulaire de saisie'!D4="","",'Formulaire de saisie'!D4) ->  | E4: =IF('Formulaire de saisie'!E4="","",'Formulaire de saisie'!E4) ->  | F4: =IF('Formulaire de saisie'!F4="","",'Formulaire de saisie'!F4) ->  | G4: =IF('Formulaire de saisie'!G4="","",'Formulaire de saisie'!G4) -> 
B5: Rendement (TM/ha) ou poids moyen animaux vendus (kg ou lb) | C5: =IF('Formulaire de saisie'!C5="","",'Formulaire de saisie'!C5) ->  | D5: =IF('Formulaire de saisie'!D5="","",'Formulaire de saisie'!D5) ->  | E5: =IF('Formulaire de saisie'!E5="","",'Formulaire de saisie'!E5) ->  | F5: =IF('Formulaire de saisie'!F5="","",'Formulaire de saisie'!F5) ->  | G5: =IF('Formulaire de saisie'!G5="","",'Formulaire de saisie'!G5) -> 
C6: =IF('Formulaire de saisie'!C6="","",'Formulaire de saisie'!C6) -> FALSE | D6: =IF('Formulaire de saisie'!D6="","",'Formulaire de saisie'!D6) -> FALSE | E6: =IF('Formulaire de saisie'!E6="","",'Formulaire de saisie'!E6) -> FALSE | F6: =IF('Formulaire de saisie'!F6="","",'Formulaire de saisie'!F6) -> FALSE | G6: =IF('Formulaire de saisie'!G6="","",'Formulaire de saisie'!G6) -> FALSE
C7: =IF('Formulaire de saisie'!C7="","",'Formulaire de saisie'!C7) ->  | D7: =IF('Formulaire de saisie'!D7="","",'Formulaire de saisie'!D7) ->  | E7: =IF('Formulaire de saisie'!E7="","",'Formulaire de saisie'!E7) ->  | F7: =IF('Formulaire de saisie'!F7="","",'Formulaire de saisie'!F7) ->  | G7: =IF('Formulaire de saisie'!G7="","",'Formulaire de saisie'!G7) -> 
B8: Les ventes totales de cultures ou d'animaux | C8: =IF('Formulaire de saisie'!C8="","",'Formulaire de saisie'!C8) ->  | D8: =IF('Formulaire de saisie'!D8="","",'Formulaire de saisie'!D8) ->  | E8: =IF('Formulaire de saisie'!E8="","",'Formulaire de saisie'!E8) ->  | F8: =IF('Formulaire de saisie'!F8="","",'Formulaire de saisie'!F8) ->  | G8: =IF('Formulaire de saisie'!G8="","",'Formulaire de saisie'!G8) -> 
B9: Var. inv. animaux ou récolte à vendre | C9: =IF('Formulaire de saisie'!C9="","",'Formulaire de saisie'!C9) ->  | D9: =IF('Formulaire de saisie'!D9="","",'Formulaire de saisie'!D9) ->  | E9: =IF('Formulaire de saisie'!E9="","",'Formulaire de saisie'!E9) ->  | F9: =IF('Formulaire de saisie'!F9="","",'Formulaire de saisie'!F9) ->  | G9: =IF('Formulaire de saisie'!G9="","",'Formulaire de saisie'!G9) -> 
B10: Var. inv. troupeau et/ou cultures (intrants) | C10: =IF('Formulaire de saisie'!C10="","",'Formulaire de saisie'!C10) ->  | D10: =IF('Formulaire de saisie'!D10="","",'Formulaire de saisie'!D10) ->  | E10: =IF('Formulaire de saisie'!E10="","",'Formulaire de saisie'!E10) ->  | F10: =IF('Formulaire de saisie'!F10="","",'Formulaire de saisie'!F10) ->  | G10: =IF('Formulaire de saisie'!G10="","",'Formulaire de saisie'!G10) -> 
B11: Revenu des AGRI & ASRA | C11: =IF('Formulaire de saisie'!C11="","",'Formulaire de saisie'!C11) ->  | D11: =IF('Formulaire de saisie'!D11="","",'Formulaire de saisie'!D11) ->  | E11: =IF('Formulaire de saisie'!E11="","",'Formulaire de saisie'!E11) ->  | F11: =IF('Formulaire de saisie'!F11="","",'Formulaire de saisie'!F11) ->  | G11: =IF('Formulaire de saisie'!G11="","",'Formulaire de saisie'!G11) ->  | M11: ='Coûts de production'!AG5 -> TRUE
B12: Revenu d'assurance récolte ($) | C12: =IF('Formulaire de saisie'!C12="","",'Formulaire de saisie'!C12) ->  | D12: =IF('Formulaire de saisie'!D12="","",'Formulaire de saisie'!D12) ->  | E12: =IF('Formulaire de saisie'!E12="","",'Formulaire de saisie'!E12) ->  | F12: =IF('Formulaire de saisie'!F12="","",'Formulaire de saisie'!F12) ->  | G12: =IF('Formulaire de saisie'!G12="","",'Formulaire de saisie'!G12) ->  | M12: ='Coûts de production'!H18 -> 0 | N12: ='Coûts de production'!M18 -> 0 | O12: ='Coûts de production'!R18 -> 0 | P12: ='Coûts de production'!W18 -> 0 | Q12: ='Coûts de production'!AA18 -> 0
B13: Autres revenus ($) | C13: =IF('Formulaire de saisie'!C13="","",'Formulaire de saisie'!C13) ->  | D13: =IF('Formulaire de saisie'!D13="","",'Formulaire de saisie'!D13) ->  | E13: =IF('Formulaire de saisie'!E13="","",'Formulaire de saisie'!E13) ->  | F13: =IF('Formulaire de saisie'!F13="","",'Formulaire de saisie'!F13) ->  | G13: =IF('Formulaire de saisie'!G13="","",'Formulaire de saisie'!G13) -> 
B14: Autres revenus ($) | C14: =IF('Formulaire de saisie'!C14="","",'Formulaire de saisie'!C14) ->  | D14: =IF('Formulaire de saisie'!D14="","",'Formulaire de saisie'!D14) ->  | E14: =IF('Formulaire de saisie'!E14="","",'Formulaire de saisie'!E14) ->  | F14: =IF('Formulaire de saisie'!F14="","",'Formulaire de saisie'!F14) ->  | G14: =IF('Formulaire de saisie'!G14="","",'Formulaire de saisie'!G14) -> 
B15: Autres revenus | C15: =IF('Formulaire de saisie'!C15="","",'Formulaire de saisie'!C15) ->  | D15: =IF('Formulaire de saisie'!D15="","",'Formulaire de saisie'!D15) ->  | E15: =IF('Formulaire de saisie'!E15="","",'Formulaire de saisie'!E15) ->  | F15: =IF('Formulaire de saisie'!F15="","",'Formulaire de saisie'!F15) ->  | G15: =IF('Formulaire de saisie'!G15="","",'Formulaire de saisie'!G15) ->  | M15: ='Coûts de production'!H24 -> 0 | N15: ='Coûts de production'!M24 -> 0 | O15: ='Coûts de production'!R24 -> 0 | P15: ='Coûts de production'!W24 -> 0 | Q15: ='Coûts de production'!AA24 -> 0
M16: ='Coûts de production'!H25 -> 0 | N16: ='Coûts de production'!M25 -> 0 | O16: ='Coûts de production'!R25 -> 0 | P16: ='Coûts de production'!W25 -> 0 | Q16: ='Coûts de production'!AA25 -> 0
B17: Indiquez le total des frais variables | C17: Total | E17: Indiquez le total des frais fixes | G17: Total | M17: ='Coûts de production'!H26 -> 0 | N17: ='Coûts de production'!M26 -> 0 | O17: ='Coûts de production'!R26 -> 0 | P17: ='Coûts de production'!W26 -> 0 | Q17: ='Coûts de production'!AA26 -> 0
B18: Semences | C18: =IF('Formulaire de saisie'!C18="","",'Formulaire de saisie'!C18) ->  | E18: Entretien bâtiments et fonds de terre | G18: =IF('Formulaire de saisie'!G18="","",'Formulaire de saisie'!G18) ->  | M18: ='Coûts de production'!H27 -> 0 | N18: ='Coûts de production'!M27 -> 0 | O18: ='Coûts de production'!R27 -> 0 | P18: ='Coûts de production'!W27 -> 0 | Q18: ='Coûts de production'!AA27 -> 0
B19: Fertilisants | C19: =IF('Formulaire de saisie'!C19="","",'Formulaire de saisie'!C19) ->  | E19: Assurances diverses | G19: =IF('Formulaire de saisie'!G19="","",'Formulaire de saisie'!G19) ->  | M19: ='Coûts de production'!H28 -> 0 | N19: ='Coûts de production'!M28 -> 0 | O19: ='Coûts de production'!R28 -> 0 | P19: ='Coûts de production'!W28 -> 0 | Q19: ='Coûts de production'!AA28 -> 0
B20: Chaulage (pierre à chaux) | C20: =IF('Formulaire de saisie'!C20="","",'Formulaire de saisie'!C20) ->  | E20: Taxes foncières | G20: =IF('Formulaire de saisie'!G20="","",'Formulaire de saisie'!G20) ->  | M20: ='Coûts de production'!H29 -> 0 | N20: ='Coûts de production'!M29 -> 0 | O20: ='Coûts de production'!R29 -> 0 | P20: ='Coûts de production'!W29 -> 0 | Q20: ='Coûts de production'!AA29 -> 0
B21: Pesticides | C21: =IF('Formulaire de saisie'!C21="","",'Formulaire de saisie'!C21) ->  | E21: Intérêt sur emprunt MLT | G21: =IF('Formulaire de saisie'!G21="","",'Formulaire de saisie'!G21) ->  | M21: ='Coûts de production'!H30 -> 0 | N21: ='Coûts de production'!M30 -> 0 | O21: ='Coûts de production'!R30 -> 0 | P21: ='Coûts de production'!W30 -> 0 | Q21: ='Coûts de production'!AA30 -> 0
B22: Location de machinerie, de bâtiments, de fonds de terre | C22: =IF('Formulaire de saisie'!C22="","",'Formulaire de saisie'!C22) ->  | E22: Autres frais fixes | G22: =IF('Formulaire de saisie'!G22="","",'Formulaire de saisie'!G22) ->  | M22: ='Coûts de production'!H31 -> 0 | N22: ='Coûts de production'!M31 -> 0 | O22: ='Coûts de production'!R31 -> 0 | P22: ='Coûts de production'!W31 -> 0 | Q22: ='Coûts de production'!AA31 -> 0
B23: Travaux à forfait | C23: =IF('Formulaire de saisie'!C23="","",'Formulaire de saisie'!C23) ->  | M23: ='Coûts de production'!H32 -> 0 | N23: ='Coûts de production'!M32 -> 0 | O23: ='Coûts de production'!R32 -> 0 | P23: ='Coûts de production'!W32 -> 0 | Q23: ='Coûts de production'!AA32 -> 0
B24: Main d'œuvre salariée | C24: =IF('Formulaire de saisie'!C24="","",'Formulaire de saisie'!C24) ->  | E24: Informations pour connaître son prix minimum | G24: Total | M24: ='Coûts de production'!H33 -> 0 | N24: ='Coûts de production'!M33 -> 0 | O24: ='Coûts de production'!R33 -> 0 | P24: ='Coûts de production'!W33 -> 0 | Q24: ='Coûts de production'!AA33 -> 0
B25: Entretien et réparation (tracteurs, batteuse, séchoir, camion, mach.) | C25: =IF('Formulaire de saisie'!C25="","",'Formulaire de saisie'!C25) ->  | M25: ='Coûts de production'!H34 -> 0 | N25: ='Coûts de production'!M34 -> 0 | O25: ='Coûts de production'!R34 -> 0 | P25: ='Coûts de production'!W34 -> 0 | Q25: ='Coûts de production'!AA34 -> 0
B26: Carburants (diesel, essence, gaz propane ou autre combustible) | C26: =IF('Formulaire de saisie'!C26="","",'Formulaire de saisie'!C26) ->  | E26: Retrait des propriétaires | G26: =IF('Formulaire de saisie'!G26="","",'Formulaire de saisie'!G26) ->  | M26: ='Coûts de production'!H35 -> 0 | N26: ='Coûts de production'!M35 -> 0 | O26: ='Coûts de production'!R35 -> 0 | P26: ='Coûts de production'!W35 -> 0 | Q26: ='Coûts de production'!AA35 -> 0
B27: Électricité | C27: =IF('Formulaire de saisie'!C27="","",'Formulaire de saisie'!C27) ->  | E27: Versement capital emprunts MLT | G27: =IF('Formulaire de saisie'!G27="","",'Formulaire de saisie'!G27) ->  | M27: ='Coûts de production'!H36 -> 0 | N27: ='Coûts de production'!M36 -> 0 | O27: ='Coûts de production'!R36 -> 0 | P27: ='Coûts de production'!W36 -> 0 | Q27: ='Coûts de production'!AA36 -> 0
B28: Frais de mise en marché (plan conjoint, transport, encan) | C28: =IF('Formulaire de saisie'!C28="","",'Formulaire de saisie'!C28) ->  | M28: ='Coûts de production'!H37 -> 0 | N28: ='Coûts de production'!M37 -> 0 | O28: ='Coûts de production'!R37 -> 0 | P28: ='Coûts de production'!W37 -> 0 | Q28: ='Coûts de production'!AA37 -> 0
B29: Contribution ASRA | C29: =IF('Formulaire de saisie'!C29="","",'Formulaire de saisie'!C29) ->  | E29: Informations pour connaître son prix cible | G29: Total | M29: ='Coûts de production'!H38 -> 0 | N29: ='Coûts de production'!M38 -> 0 | O29: ='Coûts de production'!R38 -> 0 | P29: ='Coûts de production'!W38 -> 0 | Q29: ='Coûts de production'!AA38 -> 0
B30: Contribution autres programmes (AGRI, ASREC, …) | C30: =IF('Formulaire de saisie'!C30="","",'Formulaire de saisie'!C30) ->  | M30: ='Coûts de production'!H39 -> 0 | N30: ='Coûts de production'!M39 -> 0 | O30: ='Coûts de production'!R39 -> 0 | P30: ='Coûts de production'!W39 -> 0 | Q30: ='Coûts de production'!AA39 -> 0
B31: Achat d'animaux | C31: =IF('Formulaire de saisie'!C31="","",'Formulaire de saisie'!C31) ->  | E31: Amortissements | G31: =IF('Formulaire de saisie'!G31="","",'Formulaire de saisie'!G31) ->  | M31: ='Coûts de production'!H40 -> 0 | N31: ='Coûts de production'!M40 -> 0 | O31: ='Coûts de production'!R40 -> 0 | P31: ='Coûts de production'!W40 -> 0 | Q31: ='Coûts de production'!AA40 -> 0
B32: Achat aliments (foin, moulée, etc.) | C32: =IF('Formulaire de saisie'!C32="","",'Formulaire de saisie'!C32) ->  | E32: Nombre d'exploitants-propriétaires | G32: =IF('Formulaire de saisie'!G32="","",'Formulaire de saisie'!G32) ->  | M32: ='Coûts de production'!H41 -> 0 | N32: ='Coûts de production'!M41 -> 0 | O32: ='Coûts de production'!R41 -> 0 | P32: ='Coûts de production'!W41 -> 0 | Q32: ='Coûts de production'!AA41 -> 0
B33: Médicament, vétérinaire, insémination | C33: =IF('Formulaire de saisie'!C33="","",'Formulaire de saisie'!C33) ->  | E33: Avoir des propriétaires | G33: =IF('Formulaire de saisie'!G33="","",'Formulaire de saisie'!G33) ->  | M33: ='Coûts de production'!H42 -> 0 | N33: ='Coûts de production'!M42 -> 0 | O33: ='Coûts de production'!R42 -> 0 | P33: ='Coûts de production'!W42 -> 0 | Q33: ='Coûts de production'!AA42 -> 0
B34: Litière | C34: =IF('Formulaire de saisie'!C34="","",'Formulaire de saisie'!C34) -> 
B35: Intérêt sur emprunt à court terme | C35: =IF('Formulaire de saisie'!C35="","",'Formulaire de saisie'!C35) ->  | E35: Autres informations
B36: Autres frais variables | C36: =IF('Formulaire de saisie'!C36="","",'Formulaire de saisie'!C36) ->  | E36: Municipalité
E37: =IF('Formulaire de saisie'!E37="","",'Formulaire de saisie'!E37) ->  | F37: =IF('Formulaire de saisie'!F37="","",'Formulaire de saisie'!F37) ->  | G37: =IF('Formulaire de saisie'!G37="","",'Formulaire de saisie'!G37) -> 
E38: Station météo: | F38: =IF('Formulaire de saisie'!F38="","",'Formulaire de saisie'!F38) ->  | M38: ='Coûts de production'!H46 -> 0 | N38: ='Coûts de production'!M46 -> 0 | O38: ='Coûts de production'!R46 -> 0 | P38: ='Coûts de production'!W46 -> 0 | Q38: ='Coûts de production'!AA46 -> 0
M39: ='Coûts de production'!H47 -> 0 | N39: ='Coûts de production'!M47 -> 0 | O39: ='Coûts de production'!R47 -> 0 | P39: ='Coûts de production'!W47 -> 0 | Q39: ='Coûts de production'!AA47 -> 0
M40: ='Coûts de production'!H48 -> 0 | N40: ='Coûts de production'!M48 -> 0 | O40: ='Coûts de production'!R48 -> 0 | P40: ='Coûts de production'!W48 -> 0 | Q40: ='Coûts de production'!AA48 -> 0
M41: ='Coûts de production'!H49 -> 0 | N41: ='Coûts de production'!M49 -> 0 | O41: ='Coûts de production'!R49 -> 0 | P41: ='Coûts de production'!W49 -> 0 | Q41: ='Coûts de production'!AA49 -> 0
M42: ='Coûts de production'!H50 -> 0 | N42: ='Coûts de production'!M50 -> 0 | O42: ='Coûts de production'!R50 -> 0 | P42: ='Coûts de production'!W50 -> 0 | Q42: ='Coûts de production'!AA50 -> 0
M44: ='Coûts de production'!H55 -> 0 | N44: ='Coûts de production'!M55 -> 0 | O44: ='Coûts de production'!R55 -> 0 | P44: ='Coûts de production'!W55 -> 0 | Q44: ='Coûts de production'!AA55 -> 0
M47: ='Coûts de production'!H62 -> 0 | N47: ='Coûts de production'!M62 -> 0 | O47: ='Coûts de production'!R62 -> 0 | P47: ='Coûts de production'!W62 -> 0 | Q47: ='Coûts de production'!AA62 -> 0
M48: ='Coûts de production'!H63 -> 0 | N48: ='Coûts de production'!M63 -> 0 | O48: ='Coûts de production'!R63 -> 0 | P48: ='Coûts de production'!W63 -> 0 | Q48: ='Coûts de production'!AA63 -> 0
M49: ='Coûts de production'!H64 -> 0 | N49: ='Coûts de production'!M64 -> 0 | O49: ='Coûts de production'!R64 -> 0 | P49: ='Coûts de production'!W64 -> 0 | Q49: ='Coûts de production'!AA64 -> 0
M51: ='Coûts de production'!H73 -> 0 | N51: ='Coûts de production'!M73 -> 0 | O51: ='Coûts de production'!R73 -> 0 | P51: ='Coûts de production'!W73 -> 0 | Q51: ='Coûts de production'!AA73 -> 0
M53: Var. inv. animaux à vendre
M54: ='Coûts de production'!K12 -> 0 | N54: ='Coûts de production'!L12 -> 0
M55: ='Coûts de production'!P12 -> 0 | N55: ='Coûts de production'!Q12 -> 0
M56: ='Coûts de production'!U12 -> 0 | N56: ='Coûts de production'!V12 -> 0
M57: ='Coûts de production'!Y12 -> 0 | N57: ='Coûts de production'!Z12 -> 0
M58: ='Coûts de production'!AC12 -> 0 | N58: ='Coûts de production'!AD12 -> 0

Sheet Instructions
A5: 1
A6: 1
A7: 1 | C7: Bienvenue dans l'outil de calcul des coûts de production préparé par les conseillers régionaux en économie et gestion du ministère de l'Agriculture, des Pêcheries et de l'Alimentation du Québec (MAPAQ), en collaboration avec les Producteurs de grains du Québec et le Centre d'études sur les coûts de production en agriculture (CECPA).
A8: 1
A9: 1
A10: 1
A11: 1
A12: 1 | C12: Objectif
A13: 1
A14: 1 | C14: Permettre aux producteurs de s'initier au calcul du coût de production des différentes productions animales et/ou végétales.
A15: 1
A16: 1
A17: 1
A18: 1 | C18: Fonctionnement de l'outil
A19: 1
A20: 1 | C20: Lire attentivement les trois points suivants afin de comprendre le fonctionnement général de l'outil.
A21: 1
A22: 1 | D22: FORMULAIRE DE SAISIE
A23: 1 | D23: Il faut remplir le « Formulaire de saisie » à l'aide des données propres à l'entreprise. Si, à une ligne suggérée, l'entreprise n'a enregistré aucune dépense pendant l'année à l'étude, inscrire « 0 » dans la case concernée. Si, pour un poste particulier, l'entreprise a connu des dépenses dont on ignore le montant exact actuellement, il est possible de laisser la case vide. Le chiffrier utilisera automatiquement les données des plus récentes études sur les coûts de production du CECPA pour ce poste.
A24: 1
A25: 1
A26: 1
A27: 1
A28: 1
A29: 1 | D29: COÛTS DE PRODUCTION
A30: 1 | D30: Tous les renseignements saisis dans l'onglet « Formulaire de saisie » sont automatiquement reportés dans l'onglet « Coûts de production ». Les données de l'entreprise sont automatiquement réparties entre les différentes productions (ou entre les différents secteurs d'activité) en fonction des taux de répartition (%) du CECPA. Les taux de répartition automatiques du CECPA représentent « la réalité moyenne des entreprises qui ont participé aux études du CECPA ». Avec ces taux de répartition (%), on obtient un premier coût de production.
A31: 1
A32: 1
A33: 1
A34: 1
A35: 1 | D35: DEGRÉ DE PRÉCISION
A36: 1 | D36: Pour obtenir un coût de production qui soit le plus précis possible, on doit saisir un maximum de données propres à l’entreprise à l’onglet « Formulaire de saisie » et inscrire les taux de répartition (%) qui lui sont propres, manuellement à l’onglet « Coût de production » (cocher « Répartion manuelle » ). Lorsqu’on connaît les montants exacts des dépenses par production, il est aussi possible de les inscrire directement dans le fichier, afin qu’ils apparaissent tels quels à l’onglet « Coût de production ». Pour ce faire, on clique sur le bouton vert « Indiquer les montants par production » à l’onglet « Formulaire de saisie », puis on inscrit manuellement les montants concernés dans le tableau qui apparaît. Finalement, on coche « Répartion manuelle » à l’onglet « Coût de production » afin que les ajustements se fassent. Cette démarche permet d’utiliser, lorsqu’on les a, les données qui reflètent exactement la réalité de l’entreprise.
A37: 1
A38: 1
A39: 1
A40: 1
A41: 1 | C41: Voir plus de consignes | S41: FALSE
A42: =IF(($S$41),1,) -> 0
A43: =IF(($S$41),1,) -> 0 | C43: Dans tous les cas, cliquer sur les points d'interrogations (?) pour obtenir des explications lorsque c'est possible.
A44: 0
A45: 0 | C45: Onglet « Formulaire de saisie »
A46: 0 | C46: • Le chiffrier permet de calculer le coût de production d'au plus cinq productions à la fois.
A47: 0 | C47: • Remplir seulement les cases blanches.
A48: 0 | C48: • S'il s'agit de productions végétales, indiquer les cultures, les superficies et les rendements. S'il s'agit de productions animales, indiquer le nombre d'animaux vendus et le poids moyen à la vente. Ces renseignements sont obligatoires.
A49: 0
A50: 0 | C50: • À l'aide de la section « États des résultats » des derniers états financiers ou à l'aide de la comptabilité, indiquer les revenus et les dépenses dans les cellules correspondantes. Lorsque vous les connaissez, utiliser le bouton « Indiquer les montants par production » pour afficher un tableau permettant d'inscrire le montant exact correspondant à chacune des productions. D'autres renseignements demandés, comme l'avoir des propriétaires, se trouvent dans le bilan.
A51: 0 | C51: • Le tableau au bas de la page présente des suggestions de répartition des dépenses entre les différentes productions de l'entreprise (aussi appelés « taux » ou « clés » de répartition).
A52: 0 | C52: • Les données saisies dans cet onglet sont automatiquement reportées dans l'onglet « Coûts de production ».
C53: • Utiliser le bouton « Indiquer les montants par production » pour inscrire les dépenses par production lorsque vous les connaissez.
C54: • Utiliser les boutons « Enregistrer les données » et « Importer les données » pour respectivement enregistrer uniquement les données et les importer par la suite dans le calculateur.
A55: 0 | C55: • Utiliser le bouton « Affichez vos notes » pour afficher une nouvelle feuille Excel permettant d'inscrire des notes.
C56: • Utilisez le bouton « Enregistrez les données » pour enregistrer seulement vos données sans avoir besoin d'enregistrer plusieurs copies de l'outil. Utilisez ensuite le bouton « Importez les données » pour importer vos données dans l'outil. Vous pouvez donc réaliser et enregistrez plusieurs différents scénarios en ayant seulement un seul chiffrier sur votre ordinateur.
A57: 0
A58: 0
A59: 0 | C59: Onglet « Coûts de production »
A60: 0 | C60: • Utiliser le bouton « Effacer tout » pour effacer toutes les données présentées dans le chiffrier.
A61: 0 | C61: • Pour simplifier la présentation visuelle, il est possible d'afficher ou de masquer des colonnes ou des lignes en cochant les cases prévues à cette fin.
C62: • Avant d'imprimer votre travail, sélectionnez d'abord les colonnes à afficher à l'aide des cases à cocher prévues dans l'onglet « Coûts de production ». Utilisez ensuite le bouton « Imprimer » pour imprimer vos résultats.
A63: 0 | C63: • Si seules les trois données obligatoires de l'onglet « Formulaire de saisie » ont été saisies, les coûts de production apparaissant à l'onglet « Coûts de production » sont ceux de la plus récente étude sur les coûts de production du CECPA.
A64: 0
A65: 0
C66: • Notez que les postes de dépenses « Autres frais variables » et « Versement capital emprunts MLT» sont répartis selon la proportion des superficies. Si cette répartition ne convient pas à la situation de votre ferme, il faudrait opter pour une répartition manuelle de ces dépenses.
A67: 0 | C67: • Tout au bas de la page, on obtient le coût de production appelé « Prix cible » et « Prix minimum ». Le coût de production est exprimé en :
A68: 0 | C68: ‒ Dollars (montant total)
A69: 0 | C69: – Dollars par hectare ($/ha) ou dollars par tête ($/tête)
A70: 0 | C70: ‒ Dollars par tonne ($/t) ou dollars par livre ($/lb)
A71: 0 | C71: • Tout au bas de la page, on obtient également un pourcentage qui indique la proportion du coût de production calculé qui reflète le coût de production réel de l'entreprise. Pour obtenir un pourcentage le plus près possible de 100%, il faut saisir les données propres à l'entreprise et répartir manuellement les dépenses entre les activités.
A72: 0 | C72: • Faire attention aux paiements des programmes lorsqu'ils ne sont pas faits dans la même année. Les états financiers ne sont pas toujours bien détaillés. Il faut parfois utiliser la comptabilité.
A73: 0
A74: 0
A75: 0
A76: 0 | C76: Onglet « Synthèse »
A77: 0 | C77: • Le coût de production par production (culture ou autre) se trouve dans la colonne « Producteur ». Ce coût peut être comparé aux coûts de production de la plus récente étude du CECPA.
A78: 0 | C78: • Il est également possible de personnaliser le choix de la municipalité et de comparer le rendement de l'entreprise au rendement de la zone de La Financière agricole du Québec.
A79: 0
A80: 0
A81: 0
A82: 1
A83: 1 | C83: Mise en garde
A84: 1
A85: 1 | C85: L'utilisateur demeure le seul responsable des résultats obtenus et de l'interprétation qui peut en découler.
A86: 1
A87: 1 | C87: Personnes à contacter
A88: 1
A89: 1 | C89: • Marie-Hélène Parent | F89: Les Producteurs de grains du Québec (PGQ)
A90: 1 | F90: Téléphone : 450 679-0540, poste 8468
A91: 1 | F91: Courriel : mhparent@pgq.ca
A92: 1
A93: 1 | C93: • Les conseillers régionaux en économie et gestion du MAPAQ
A94: 1
A95: 1
A96: 1
A97: 1 | C97: • Outil réalisé par Franck Djea, agr., M. Sc. (MAPAQ)
A98: 1 | C98: Avec la collaboration de :
A99: 1
A100: 1 | C100: - Julie Plamondon (CECPA)
A101: 1 | C101: - Laurence Gendron, agr., M. Sc. (MAPAQ)
A102: 1 | C102: - Marie-Hélène Parent, agroéconomiste (PGQ)
A103: 1 | C103: - Patrice Blais, B. Sc. A, Ph. D.
A104: 1 | C104: - Robert Lapalme, agr.
A105: 1 | C105: - Producteurs de grains volontaires
A106: 1 | C106: - La Direction des communicartions du MAPAQ | D106: La Direction des communications du MAPAQ
A107: 1
A108: 1
A109: 1
A110: 1
A111: 1
A112: 1
C117: Sources des données de références utilisées dans l’outil
C119: Centre d’études sur les coûts de production en agriculture (CECPA). 2017.
C120: Indexation 2019 – Secteur avoine, 2 p.
C121: Indexation 2019 – Secteur blé d’alimentation humaine et animale, 2 p.
C122: Indexation 2019 – Secteur orge, 2 p.
C123: Indexation 2019 – Secteur canola, 2 p
C124: Indexation 2019 – Secteur canola, 2 p
C125: Cultures émergentes au Québec, mai 2021
C126: Centre d’études sur les coûts de production en agriculture (CECPA). 2019.
C127: Indexation 2020 – Secteur agneaux, 2 p.
C128: Indexation 2020 – Secteur bouvillons d’abattage, 2 p.
C129: Indexation 2020 – Secteur veaux d’embouche, 2 p.
C130: Indexation 2020 – Secteur veaux de grain, 2 p.
C131: Indexation 2020 – Secteur porcelets et porcs, 2 p.
C132: Indexation 2017 – Secteur pommes tardives, 2 p.
C134: Centre d’études sur les coûts de production en agriculture et Producteurs de grains du Québec (PGQ). 2019. « Référentiel annuel de coût – Maïs-grain et soya », Résultats finaux – 2017 et 2018, 8 p.
C136: La Financière agricole du Québec (FADQ), 2019. Rendements de référence 2019 en assurance-récolte. P 11-14.
C138: Groupe Multiconseil Agricole (GMA) Saguenay-Lac-Saint-Jean. Analyse de groupe vache-veau 2016.

Sheet Formulaire de saisie
C1: Nom de la ferme: | F1: Date:
B2: Indiquez les informations suivantes | C2: 1 | D2: 2 | E2: 3 | F2: 4 | G2: 5 | I2: Notes sommaires ici / « Afficher les notes » pour ajouter plus de détails. | P2: 1 | Q2: 2 | R2: 3 | S2: 4 | T2: 5
B3: Principales productions* | P3: =IF(C3="","",C3) -> 
B4: Superficie (ha) ou nombre d'animaux vendus*
B5: Rendement (Tm/ha) ou poids moyen des animaux vendus (kg ou lb)* | P5: =IF(C5="","",C5) ->  | Q5: =IF(D5="","",D5) ->  | R5: =IF(E5="","",E5) ->  | S5: =IF(F5="","",F5) ->  | T5: =IF(G5="","",G5) -> 
B6: =IF(OR(C6=TRUE,D6=TRUE,E6=TRUE,F6=TRUE,G6=TRUE),TRUE,FALSE) -> FALSE | C6: FALSE | D6: FALSE | E6: FALSE | F6: FALSE | G6: FALSE | P6: FALSE | Q6: FALSE | R6: FALSE | S6: FALSE | T6: FALSE
B8: Ventes totales de cultures ou d'animaux ($)
B9: Var. inv. animaux ou récolte à vendre ($)
B10: Var. inv. troupeau et/ou cultures (intrants) ($)
B11: Compensation ASRA ($)
B12: Revenu d'assurance récolte ($)
B13: Autres revenus ($) | T13: =IF(G13="","",G13) -> 
B14: Autres revenus ($) | P14: =IF(C14="","",C14) ->  | Q14: =IF(D14="","",D14) ->  | T14: =IF(G14="","",G14) -> 
B15: Autres revenus ($)
B16: *Données obligatoires | P16: Indiquez les frais variables associés à chacune des productions (Assurez vous que la somme de la ligne est égale au montant indiqué dans la colonne U)
B17: Indiquez le total des frais variables (Indiquez « 0 » si vous n’avez pas de dépense à une ligne) | C17: Total ($) | E17: Indiquez le total des frais fixes (Indiquez « 0 » si vous n’avez pas de dépense à une ligne) | G17: Total ($) | P17: =IF(P3="","",P3) ->  | Q17: =IF(Q3="","",Q3) ->  | R17: =IF(R3="","",R3) ->  | S17: =IF(S3="","",S3) ->  | T17: =IF(T3="","",T3) ->  | U17: Total ($)
B18: Semences | E18: Entretien bâtiments et fonds de terre | U18: =IF(C18="","",C18) -> 
B19: Fertilisants | E19: Assurances diverses | U19: =IF(C19="","",C19) -> 
B20: Chaulage (pierre à chaux) | E20: Taxes foncières | U20: =IF(C20="","",C20) -> 
B21: Pesticides | E21: Intérêt sur emprunt MLT
B22: Location de machinerie, de bâtiments, de fonds de terre | E22: Autres frais fixes
B23: Travaux à forfait
B24: Main d'œuvre salariée | E24: Informations pour connaître le prix minimum | G24: Total ($)
B25: Entretien et réparation (tracteur, batteuse, séchoir, camion, mach.)
B26: Carburants (diésel, essence, gaz propane ou autre combustible) | E26: Retrait des propriétaires
B27: Électricité | E27: Versement capital emprunts MLT
B28: Frais de mise en marché (plan conjoint, transport, encan)
B29: Contribution d'assurance stabilisation (ASRA) | E29: Informations pour connaître le prix cible | G29: Total ($)
B30: Contribution d'autres programmes (AGRI, ASREC, etc.)
B31: Achat d'animaux | E31: Amortissements
B32: Achat d'aliments (foin, moulée, etc.) | E32: Nombre d'exploitants-propriétaires
B33: Médicaments, vétérinaire, insémination | E33: Avoir des propriétaires
B34: Litière
B35: Intérêt sur emprunt à court terme | E35: Autres informations En cas d'erreur, effacez et choisissez une autre municipalité. | U35: =IF(C35="","",C35) -> 
B36: Autres frais variables | E36: Municipalité | U36: =IF(C36="","",C36) -> 
E38: Station météo: | P38: Indiquez les frais fixes associés à chacune des productions
U39: Total ($)
B40: Exemples de clés de répartition | C40: =C3 -> 0 | D40: =D3 -> 0 | E40: =E3 -> 0 | F40: =F3 -> 0 | G40: =G3 -> 0 | U40: =IF(G18="","",G18) ->  | V40: Entretien bâtiments et fonds de terre
B41: Répartition basée sur la superficie | C41: =IF(IFERROR(IF('Coûts de production'!K2="Superficie (ha)",C4,0)/(IF('Coûts de production'!K2="Superficie (ha)",C4,0)+IF('Coûts de production'!P2="Superficie (ha)",D4,0)+IF('Coûts de production'!U2="Superficie (ha)",E4,0)+IF('Coûts de production'!Y2="Superficie (ha)",F4,0)+IF('Coûts de production'!AC2="Superficie (ha)",G4,0)),"")=0,"",IFERROR(IF('Coûts de production'!K2="Superficie (ha)",C4,0)/(IF('Coûts de production'!K2="Superficie (ha)",C4,0)+IF('Coûts de production'!P2="Superficie (ha)",D4,0)+IF('Coûts de production'!U2="Superficie (ha)",E4,0)+IF('Coûts de production'!Y2="Superficie (ha)",F4,0)+IF('Coûts de production'!AC2="Superficie (ha)",G4,0)),"")) ->  | D41: =IF(IFERROR(IF('Coûts de production'!P2="Superficie (ha)",D4,0)/(IF('Coûts de production'!K2="Superficie (ha)",C4,0)+IF('Coûts de production'!P2="Superficie (ha)",D4,0)+IF('Coûts de production'!U2="Superficie (ha)",E4,0)+IF('Coûts de production'!Y2="Superficie (ha)",F4,0)+IF('Coûts de production'!AC2="Superficie (ha)",G4,0)),"")=0%,"",IFERROR(IF('Coûts de production'!P2="Superficie (ha)",D4,0)/(IF('Coûts de production'!K2="Superficie (ha)",C4,0)+IF('Coûts de production'!P2="Superficie (ha)",D4,0)+IF('Coûts de production'!U2="Superficie (ha)",E4,0)+IF('Coûts de production'!Y2="Superficie (ha)",F4,0)+IF('Coûts de production'!AC2="Superficie (ha)",G4,0)),"")) ->  | E41: =IF(IFERROR(IF('Coûts de production'!U2="Superficie (ha)",E4,0)/(IF('Coûts de production'!K2="Superficie (ha)",C4,0)+IF('Coûts de production'!P2="Superficie (ha)",D4,0)+IF('Coûts de production'!U2="Superficie (ha)",E4,0)+IF('Coûts de production'!Y2="Superficie (ha)",F4,0)+IF('Coûts de production'!AC2="Superficie (ha)",G4,0)),"")=0,"",IFERROR(IF('Coûts de production'!U2="Superficie (ha)",E4,0)/(IF('Coûts de production'!K2="Superficie (ha)",C4,0)+IF('Coûts de production'!P2="Superficie (ha)",D4,0)+IF('Coûts de production'!U2="Superficie (ha)",E4,0)+IF('Coûts de production'!Y2="Superficie (ha)",F4,0)+IF('Coûts de production'!AC2="Superficie (ha)",G4,0)),"")) ->  | F41: =IF(IFERROR(IF('Coûts de production'!Y2="Superficie (ha)",F4,0)/(IF('Coûts de production'!K2="Superficie (ha)",C4,0)+IF('Coûts de production'!P2="Superficie (ha)",D4,0)+IF('Coûts de production'!U2="Superficie (ha)",E4,0)+IF('Coûts de production'!Y2="Superficie (ha)",F4,0)+IF('Coûts de production'!AC2="Superficie (ha)",G4,0)),"")=0,"",IFERROR(IF('Coûts de production'!Y2="Superficie (ha)",F4,0)/(IF('Coûts de production'!K2="Superficie (ha)",C4,0)+IF('Coûts de production'!P2="Superficie (ha)",D4,0)+IF('Coûts de production'!U2="Superficie (ha)",E4,0)+IF('Coûts de production'!Y2="Superficie (ha)",F4,0)+IF('Coûts de production'!AC2="Superficie (ha)",G4,0)),"")) ->  | G41: =IF(IFERROR(IF('Coûts de production'!AC2="Superficie (ha)",G4,0)/(IF('Coûts de production'!K2="Superficie (ha)",C4,0)+IF('Coûts de production'!P2="Superficie (ha)",D4,0)+IF('Coûts de production'!U2="Superficie (ha)",E4,0)+IF('Coûts de production'!Y2="Superficie (ha)",F4,0)+IF('Coûts de production'!AC2="Superficie (ha)",G4,0)),"")=0,"",IFERROR(IF('Coûts de production'!AC2="Superficie (ha)",G4,0)/(IF('Coûts de production'!K2="Superficie (ha)",C4,0)+IF('Coûts de production'!P2="Superficie (ha)",D4,0)+IF('Coûts de production'!U2="Superficie (ha)",E4,0)+IF('Coûts de production'!Y2="Superficie (ha)",F4,0)+IF('Coûts de production'!AC2="Superficie (ha)",G4,0)),"")) ->  | U41: =IF(G19="","",G19) ->  | V41: Assurances diverses
B42: Répartition basée sur le nombre de têtes | C42: =IF(IFERROR(IF('Coûts de production'!K2="Nbre. vendu",C4,0)/(IF('Coûts de production'!K2="Nbre. vendu",C4,0)+IF('Coûts de production'!P2="Nbre. vendu",D4,0)+IF('Coûts de production'!U2="Nbre. vendu",E4,0)+IF('Coûts de production'!Y2="Nbre. vendu",F4,0)+IF('Coûts de production'!AC2="Nbre. vendu",G4,0)),"")=0,"",IFERROR(IF('Coûts de production'!K2="Nbre. vendu",C4,0)/(IF('Coûts de production'!K2="Nbre. vendu",C4,0)+IF('Coûts de production'!P2="Nbre. vendu",D4,0)+IF('Coûts de production'!U2="Nbre. vendu",E4,0)+IF('Coûts de production'!Y2="Nbre. vendu",F4,0)+IF('Coûts de production'!AC2="Nbre. vendu",G4,0)),"")) ->  | D42: =IF(IFERROR(IF('Coûts de production'!P2="Nbre. vendu",D4,0)/(IF('Coûts de production'!K2="Nbre. vendu",C4,0)+IF('Coûts de production'!P2="Nbre. vendu",D4,0)+IF('Coûts de production'!U2="Nbre. vendu",E4,0)+IF('Coûts de production'!Y2="Nbre. vendu",F4,0)+IF('Coûts de production'!AC2="Nbre. vendu",G4,0)),"")=0,"",IFERROR(IF('Coûts de production'!P2="Nbre. vendu",D4,0)/(IF('Coûts de production'!K2="Nbre. vendu",C4,0)+IF('Coûts de production'!P2="Nbre. vendu",D4,0)+IF('Coûts de production'!U2="Nbre. vendu",E4,0)+IF('Coûts de production'!Y2="Nbre. vendu",F4,0)+IF('Coûts de production'!AC2="Nbre. vendu",G4,0)),"")) ->  | E42: =IF(IFERROR(IF('Coûts de production'!U2="Nbre. vendu",E4,0)/(IF('Coûts de production'!K2="Nbre. vendu",C4,0)+IF('Coûts de production'!P2="Nbre. vendu",D4,0)+IF('Coûts de production'!U2="Nbre. vendu",E4,0)+IF('Coûts de production'!Y2="Nbre. vendu",F4,0)+IF('Coûts de production'!AC2="Nbre. vendu",G4,0)),"")=0,"",IFERROR(IF('Coûts de production'!U2="Nbre. vendu",E4,0)/(IF('Coûts de production'!K2="Nbre. vendu",C4,0)+IF('Coûts de production'!P2="Nbre. vendu",D4,0)+IF('Coûts de production'!U2="Nbre. vendu",E4,0)+IF('Coûts de production'!Y2="Nbre. vendu",F4,0)+IF('Coûts de production'!AC2="Nbre. vendu",G4,0)),"")) ->  | F42: =IF(IFERROR(IF('Coûts de production'!Y2="Nbre. vendu",F4,0)/(IF('Coûts de production'!K2="Nbre. vendu",C4,0)+IF('Coûts de production'!P2="Nbre. vendu",D4,0)+IF('Coûts de production'!U2="Nbre. vendu",E4,0)+IF('Coûts de production'!Y2="Nbre. vendu",F4,0)+IF('Coûts de production'!AC2="Nbre. vendu",G4,0)),"")=0,"",IFERROR(IF('Coûts de production'!Y2="Nbre. vendu",F4,0)/(IF('Coûts de production'!K2="Nbre. vendu",C4,0)+IF('Coûts de production'!P2="Nbre. vendu",D4,0)+IF('Coûts de production'!U2="Nbre. vendu",E4,0)+IF('Coûts de production'!Y2="Nbre. vendu",F4,0)+IF('Coûts de production'!AC2="Nbre. vendu",G4,0)),"")) ->  | G42: =IF(IFERROR(IF('Coûts de production'!AC2="Nbre. vendu",G4,0)/(IF('Coûts de production'!K2="Nbre. vendu",C4,0)+IF('Coûts de production'!P2="Nbre. vendu",D4,0)+IF('Coûts de production'!U2="Nbre. vendu",E4,0)+IF('Coûts de production'!Y2="Nbre. vendu",F4,0)+IF('Coûts de production'!AC2="Nbre. vendu",G4,0)),"")=0,"",IFERROR(IF('Coûts de production'!AC2="Nbre. vendu",G4,0)/(IF('Coûts de production'!K2="Nbre. vendu",C4,0)+IF('Coûts de production'!P2="Nbre. vendu",D4,0)+IF('Coûts de production'!U2="Nbre. vendu",E4,0)+IF('Coûts de production'!Y2="Nbre. vendu",F4,0)+IF('Coûts de production'!AC2="Nbre. vendu",G4,0)),"")) ->  | U42: =IF(G20="","",G20) ->  | V42: Taxes foncières
B43: Répartition basée sur le temps de travail | C43: =IFERROR(C46/SUM($C$46:$G$46),"") ->  | D43: =IFERROR(D46/SUM($C$46:$G$46),"") ->  | E43: =IFERROR(E46/SUM($C$46:$G$46),"") ->  | F43: =IFERROR(F46/SUM($C$46:$G$46),"") ->  | G43: =IFERROR(G46/SUM($C$46:$G$46),"") ->  | U43: =IF(G21="","",G21) ->  | V43: Intérêt sur emprunt MLT
U44: =IF(G22="","",G22) ->  | V44: Autres frais fixes
C46: =IFERROR(C4*HLOOKUP(C40,CECPA!$B$1:$T$53,48,FALSE),0) -> 0 | D46: =IFERROR(D4*HLOOKUP(D40,CECPA!$B$1:$T$53,48,FALSE),0) -> 0 | E46: =IFERROR(E4*HLOOKUP(E40,CECPA!$B$1:$T$53,48,FALSE),0) -> 0 | F46: =IFERROR(F4*HLOOKUP(F40,CECPA!$B$1:$T$53,48,FALSE),0) -> 0 | G46: =IFERROR(G4*HLOOKUP(G40,CECPA!$B$1:$T$53,48,FALSE),0) -> 0

Sheet Coûts de production
C1: Coûts de production | AI1: nbre colonnes | AS1: Données de la sélection | AX1: Données retenues
A2: 1 | C2: Affichage des colonnes : % Total | G2: Nbre de productions affichées | K2: =IF(H1=0," ",HLOOKUP($H$1,CECPA!$B$1:$T$53,51,FALSE)) ->  | L2: Qté. vendue | P2: =IF(M1=0," ",HLOOKUP($M$1,CECPA!$B$1:$T$53,51,FALSE)) ->  | Q2: Qté. vendue | U2: =IF(R1=0," ",HLOOKUP($R$1,CECPA!$B$1:$T$53,51,FALSE)) ->  | V2: Qté. vendue | Y2: =IF(W1=0," ",HLOOKUP($W$1,CECPA!$B$1:$T$53,51,FALSE)) ->  | Z2: Qté. vendue | AC2: =IF(AA1=0," ",HLOOKUP($AA$1,CECPA!$B$1:$T$53,51,FALSE)) ->  | AD2: Qté. vendue | AG2: TRUE | AH2: TRUE | AI2: 1 | AS2: 1 | AT2: 2 | AU2: 3 | AV2: 4 | AW2: 5 | AX2: 1 | AY2: 2 | AZ2: 3 | BA2: 4 | BB2: 5
A3: 1 | C3: / Unité | L3: =K3*K5 -> 0 | Q3: =P3*P5 -> 0 | V3: =U3*U5 -> 0 | Z3: =Y3*Y5 -> 0 | AD3: =AC3*AC5 -> 0 | AG3: TRUE | AI3: 2 | AS3: =IF(ISBLANK(H1),"",H1) ->  | AT3: =IF(ISBLANK(M1),"",M1) ->  | AU3: =IF(ISBLANK(R1),"",R1) ->  | AV3: =IF(ISBLANK(W1),"",W1) ->  | AW3: =IF(ISBLANK(AA1),"",AA1) -> 
A4: 1 | C4: / Qté vendue | D4: Unité | E4: Quantité | G4: 3 | H4: Animaux | K4: =IF(H1=0," ",HLOOKUP($H$1,CECPA!$B$1:$T$53,IF('Coûts de production'!$H$5="Kg",52,53),FALSE)) ->  | P4: =IF(H1=0," ",HLOOKUP($M$1,CECPA!$B$1:$T$53,IF('Coûts de production'!$H$5="Kg",52,53),FALSE)) ->  | U4: =IF(R1=0," ",HLOOKUP($R$1,CECPA!$B$1:$T$53,IF('Coûts de production'!$H$5="Kg",52,53),FALSE)) ->  | Y4: =IF(W1=0," ",HLOOKUP($W$1,CECPA!$B$1:$T$53,IF('Coûts de production'!$H$5="Kg",52,53),FALSE)) ->  | AC4: =IF(AA1=0," ",HLOOKUP($AA$1,CECPA!$B$1:$T$53,IF('Coûts de production'!$H$5="Kg",52,53),FALSE)) ->  | AG4: TRUE | AI4: 3
A5: 1 | C5: Répartition manuelle : | N5: PRODUITS | S5: PRODUITS | AG5: TRUE | AI5: 4
A6: 1 | C6: PRODUITS | F6: ($) | H6: % | J6: Total ($) | K6: =IF(K2="","",IF(K2="Superficie (ha)","$/ha","$/tête")) -> $/tête | L6: =IF(K2="","",IF(K2="Superficie (ha)","$/tonne",IF(H5="kg","$/kg","$/lb"))) -> $/lb | M6: % | O6: Total ($) | P6: =IF(P2="","",IF(P2="Superficie (ha)","$/ha","$/tête")) -> $/tête | Q6: =IF(P2="","",IF(P2="Superficie (ha)","$/tonne",IF(M5="kg","$/kg","$/lb"))) -> $/lb | R6: % | T6: Total ($) | U6: =IF(U2="","",IF(U2="Superficie (ha)","$/ha","$/tête")) -> $/tête | V6: =IF(U2="","",IF(U2="Superficie (ha)","$/tonne",IF(R5="kg","$/kg","$/lb"))) -> $/lb | W6: % | X6: Total ($) | Y6: =IF(Y2="","",IF(Y2="Superficie (ha)","$/ha","$/tête")) -> $/tête | Z6: =IF(Y2="","",IF(Y2="Superficie (ha)","$/tonne",IF(V5="kg","$/kg","$/lb"))) -> $/lb | AA6: % | AB6: Total ($) | AC6: =IF(AC2="","",IF(AC2="Superficie (ha)","$/ha","$/tête")) -> $/tête | AD6: =IF(AC2="","",IF(AC2="Superficie (ha)","$/tonne",IF(Z5="kg","$/kg","$/lb"))) -> $/lb | AG6: TRUE | AI6: 5
A7: =IF(($AG$6),1,) -> 1 | C7: =H1 -> 0 | D7: tm | E7: 1000 | J7: =F7 -> 0 | K7: =IF($K$3=0," ",J7/$K$3) ->  | L7: =IF($L$3=0," ",J7/$L$3) -> 
A8: =IF(($AG$6),1,) -> 1 | C8: =M1 -> 0 | D8: tm | O8: =F8 -> 0 | P8: =IF($P$3=0," ",O8/$P$3) ->  | Q8: =IF($Q$3=0," ",O8/$Q$3) -> 
A9: 1 | C9: =R1 -> 0 | D9: tm | T9: =F9 -> 0 | U9: =IF($U$3=0," ",T9/$U$3) ->  | V9: =IF($V$3=0," ",T9/$V$3) -> 
A10: 1 | C10: =W1 -> 0 | X10: =F10 -> 0 | Y10: =IF($Y$3=0," ",X10/$Y$3) ->  | Z10: =IF($Z$3=0," ",X10/$Z$3) -> 
A11: 1 | C11: =AA1 -> 0 | AB11: =F11 -> 0 | AC11: =IF($AC$3=0," ",AB11/$AC$3) ->  | AD11: =IF($AD$3=0," ",AB11/$AD$3) -> 
A12: 1 | C12: Var. inv. animaux ou récolte à vendre | F12: =J12+O12+T12+X12+AB12 -> 0
A13: 1 | C13: Var. inv. troupeau et/ou cultures (intrants) | F13: 0 | K13: =IF($K$3=0,0,J13/($K$3+$K$12)) -> 0 | L13: =IF($L$3=0,0,J13/($L$3+$L$12)) -> 0 | P13: =IF($P$3=0,0,O13/($P$3+$P$12)) -> 0 | Q13: =IF($Q$3=0,0,O13/($Q$3+$Q$12)) -> 0 | U13: =IF($U$3=0,0,T13/($U$3+$U$12)) -> 0 | V13: =IF($V$3=0,0,T13/($V$3+$V$12)) -> 0 | Y13: =IF($Y$3=0,0,X13/($Y$3+$Y$12)) -> 0 | Z13: =IF($Z$3=0,0,X13/($Z$3+$Z$12)) -> 0 | AC13: =IF($AC$3=0,0,AB13/($AC$3+$AC$12)) -> 0 | AD13: =IF($AD$3=0,0,AB13/($AD$3+$AD$12)) -> 0
A14: 1 | C14: Compensation ASRA | F14: 0 | K14: 0 | L14: 0 | P14: 0 | Q14: 0 | U14: 0 | V14: 0 | Y14: 0 | Z14: 0 | AC14: 0 | AD14: 0
A15: 1 | C15: Revenu d'assurance récolte | F15: 0 | K15: 0 | L15: 0 | P15: 0 | Q15: 0 | U15: 0 | V15: 0 | Y15: 0 | Z15: 0 | AC15: 0 | AD15: 0
A16: 1 | C16: Autres revenus | F16: 0 | K16: 0 | L16: 0 | P16: 0 | Q16: 0 | U16: 0 | V16: 0 | Y16: 0 | Z16: 0 | AC16: 0 | AD16: 0 | AH16: % de la clé de répartition | AM16: Volume total pour la clé sélectionnée | BE16: Pourcentages obtenus avec les données inscrites manuellement
A17: 1 | C17: Autres revenus | F17: 0 | K17: 0 | L17: 0 | P17: 0 | Q17: 0 | U17: 0 | V17: 0 | Y17: 0 | Z17: 0 | AC17: 0 | AD17: 0 | AH17: 1 | AI17: 2 | AJ17: 3 | AK17: 4 | AL17: 5 | AM17: Tot | AN17: 1 | AO17: 2 | AP17: 3 | AQ17: 4 | AR17: 5
A18: =IF(($AG$6),1,) -> 1 | C18: Autres revenus | G18: =IF(OR(H18+M18+R18+W18+AA18=0,H18+M18+R18+W18+AA18=100%),"",H18+M18+R18+W18+AA18) ->  | H18: 0 | J18: =IF($F18<>"",$F18*H18,IF(H$1="",,HLOOKUP(H$1,CECPA!$B$1:$T$53,40,FALSE))*K$3) -> 0 | K18: 0 | L18: 0 | M18: 0 | O18: =IF($F18<>"",$F18*M18,IF(M$1="",,HLOOKUP(M$1,CECPA!$B$1:$T$53,40,FALSE))*P$3) -> 0 | P18: 0 | Q18: 0 | R18: 0 | T18: =IF($F18<>"",$F18*R18,IF(R$1="",,HLOOKUP(R$1,CECPA!$B$1:$T$53,40,FALSE))*U$3) -> 0 | U18: 0 | V18: 0 | W18: 0 | X18: =IF($F18<>"",$F18*W18,IF(W$1="",,HLOOKUP(W$1,CECPA!$B$1:$T$53,40,FALSE))*Y$3) -> 0 | Y18: 0 | Z18: 0 | AA18: 0 | AB18: =IF($F18<>"",$F18*AA18,IF(AA$1="",,HLOOKUP(AA$1,CECPA!$B$1:$T$53,40,FALSE))*AC$3) -> 0 | AC18: 0 | AD18: 0 | AH18: =IF(AM18<>0,AN18/$AM18,0) -> 0 | AI18: =IF(AM18<>0,AO18/$AM18,0) -> 0 | AJ18: =IF(AO18<>0,AP18/$AM18,0) -> 0 | AK18: =IF(AP18<>0,AQ18/$AM18,0) -> 0 | AL18: =IF(AQ18<>0,AR18/$AM18,0) -> 0 | AM18: =SUM(AN18:AR18) -> 0 | AN18: =IF(OR(ISBLANK($H$1),ISBLANK($K$3),ISBLANK($K$5)),0,HLOOKUP($H$1,CECPA!$B$1:$T$53,40,FALSE))*($K$3+$K$12) -> 0 | AO18: =IF(OR(ISBLANK($M$1),ISBLANK($P$3),ISBLANK($P$5)),0,HLOOKUP($M$1,CECPA!$B$1:$T$53,40,FALSE))*($P$3+$P$12) -> 0 | AP18: =IF(OR(ISBLANK($R$1),ISBLANK($U$3),ISBLANK($U$5)),0,HLOOKUP($R$1,CECPA!$B$1:$T$53,40,FALSE))*($U$3+$U$12) -> 0 | AQ18: =IF(OR(ISBLANK($W$1),ISBLANK($Y$3),ISBLANK($Y$5)),0,HLOOKUP($W$1,CECPA!$B$1:$T$53,40,FALSE))*($Y$3+$Y$12) -> 0 | AR18: =IF(OR(ISBLANK($AA$1),ISBLANK($AC$3),ISBLANK($AC$5)),0,HLOOKUP($AA$1,CECPA!$B$1:$T$53,40,FALSE))*($AC$3+$AC$12) -> 0 | AS18: =AH18 -> 0 | AT18: =AI18 -> 0 | AU18: =AJ18 -> 0 | AV18: =AK18 -> 0 | AW18: =AL18 -> 0 | AX18: =IF($AG$5,$H18,AS18) -> 0 | AY18: =IF($AG$5,$M18,AT18) -> 0 | AZ18: =IF($AG$5,$R18,AU18) -> 0 | BA18: =IF($AG$5,$W18,AV18) -> 0 | BB18: =IF($AG$5,$AA18,AW18) -> 0
C19: Location, ristournes et revenus divers | BE19: 0 | BF19: 0 | BG19: 0 | BH19: 0 | BI19: 0
C20: Travaux extérieurs avec machineries | BE20: 0 | BF20: 0 | BG20: 0 | BH20: 0 | BI20: 0
BE21: 0 | BF21: 0 | BG21: 0 | BH21: 0 | BI21: 0
A22: 1 | C22: Total des produits | F22: =J22+O22+T22+X22+AB22 -> 0 | J22: =SUM(J7:J18) -> 0 | K22: =IF($K$3=0,0,J22/($K$3+$K$12)) -> 0 | L22: =IF($L$3=0,0,J22/($L$3+$L$12)) -> 0 | N22: Produits bruts activité | O22: =SUM(O7:O18) -> 0 | P22: =IF($P$3=0,0,O22/($P$3+$P$12)) -> 0 | Q22: =IF($Q$3=0,0,O22/($Q$3+$Q$12)) -> 0 | S22: Produits bruts activité | T22: =SUM(T7:T18) -> 0 | U22: =IF($U$3=0,0,T22/($U$3+$U$12)) -> 0 | V22: =IF($V$3=0,0,T22/($V$3+$V$12)) -> 0 | X22: =SUM(X7:X18) -> 0 | Y22: =IF($Y$3=0,0,X22/($Y$3+$Y$12)) -> 0 | Z22: =IF($Z$3=0,0,X22/($Z$3+$Z$12)) -> 0 | AB22: =SUM(AB7:AB18) -> 0 | AC22: =IF($AC$3=0,0,AB22/($AC$3+$AC$12)) -> 0 | AD22: =IF($AD$3=0,0,AB22/($AD$3+$AD$12)) -> 0
A23: 1 | C23: CHARGES VARIABLES | N23: CHARGES VARIABLES | S23: CHARGES VARIABLES | AG23: FALSE | BC23: validation
A24: =IF(($AG$23),1,) -> 0 | C24: Semences | D24: $ | E24: xpoches | G24: =IF(OR(H24+M24+R24+W24+AA24=0,H24+M24+R24+W24+AA24=100%),"",H24+M24+R24+W24+AA24) ->  | H24: 0 | I24: 15583.65 | J24: =IF($F24<>"",$F24*H24,IF(H$1="",,HLOOKUP(H$1,CECPA!$B$1:$T$53,14,FALSE))*K$3) -> 0 | K24: =IF($K$3=0,0,J24/($K$3+$K$12)) -> 0 | L24: =IF($L$3=0,0,J24/($L$3+$L$12)) -> 0 | M24: 0 | N24: Semences | O24: =IF($F24<>"",$F24*M24,IF(M$1="",,HLOOKUP(M$1,CECPA!$B$1:$T$53,14,FALSE))*P$3) -> 0 | P24: =IF($P$3=0,0,O24/($P$3+$P$12)) -> 0 | Q24: =IF($Q$3=0,0,O24/($Q$3+$Q$12)) -> 0 | R24: 0 | S24: Semences | T24: =IF($F24<>"",$F24*R24,IF(R$1="",,HLOOKUP(R$1,CECPA!$B$1:$T$53,14,FALSE))*U$3) -> 0 | U24: =IF($U$3=0,0,T24/($U$3+$U$12)) -> 0 | V24: =IF($V$3=0,0,T24/($V$3+$V$12)) -> 0 | W24: 0 | X24: =IF($F24<>"",$F24*W24,IF(W$1="",,HLOOKUP(W$1,CECPA!$B$1:$T$53,14,FALSE))*Y$3) -> 0 | Y24: =IF($Y$3=0,0,X24/($Y$3+$Y$12)) -> 0 | Z24: =IF($Z$3=0,0,X24/($Z$3+$Z$12)) -> 0 | AA24: 0 | AB24: =IF($F24<>"",$F24*AA24,IF(AA$1="",,HLOOKUP(AA$1,CECPA!$B$1:$T$53,14,FALSE))*AC$3) -> 0 | AC24: =IF($AC$3=0,0,AB24/($AC$3+$AC$12)) -> 0 | AD24: =IF($AD$3=0,0,AB24/($AD$3+$AD$12)) -> 0 | AG24: =IF(F24<>0,1,0) -> 0 | AH24: =IF($AM24>0,AN24/$AM24,0) -> 0 | AI24: 0 | AJ24: 0 | AK24: 0 | AL24: 0 | AM24: =SUM(AN24:AR24) -> 0 | AN24: =IF(OR(ISBLANK($H$1),ISBLANK($K$3),ISBLANK($K$5)),0,HLOOKUP($H$1,CECPA!$B$1:$T$53,14,FALSE))*($K$3+$K$12) -> 0 | AO24: =IF(OR(ISBLANK($M$1),ISBLANK($P$3),ISBLANK($P$5)),0,HLOOKUP($M$1,CECPA!$B$1:$T$53,14,FALSE))*($P$3+$P$12) -> 0 | AP24: =IF(OR(ISBLANK($R$1),ISBLANK($U$3),ISBLANK($U$5)),0,HLOOKUP($R$1,CECPA!$B$1:$T$53,14,FALSE))*($U$3+$U$12) -> 0 | AQ24: =IF(OR(ISBLANK($W$1),ISBLANK($Y$3),ISBLANK($Y$5)),0,HLOOKUP($W$1,CECPA!$B$1:$T$53,14,FALSE))*($Y$3+$Y$12) -> 0 | AR24: =IF(OR(ISBLANK($AA$1),ISBLANK($AC$3),ISBLANK($AC$5)),0,HLOOKUP($AA$1,CECPA!$B$1:$T$53,14,FALSE))*($AC$3+$AC$12) -> 0 | AS24: =AH24 -> 0 | AT24: =AI24 -> 0 | AU24: =AJ24 -> 0 | AV24: =AK24 -> 0 | AW24: =AL24 -> 0 | AX24: =IF($AG$5,IF(SUM('Formulaire de saisie'!P18:T18)>0,BE24,$H24),AS24) -> 0 | AY24: =IF($AG$5,IF(SUM('Formulaire de saisie'!P18:T18)>0,BF24,$M24),AT24) -> 0 | AZ24: =IF($AG$5,IF(SUM('Formulaire de saisie'!P18:T18)>0,BG24,$R24),AU24) -> 0 | BA24: =IF($AG$5,IF(SUM('Formulaire de saisie'!P18:T18)>0,BH24,$W24),AV24) -> 0 | BB24: =IF($AG$5,IF(SUM('Formulaire de saisie'!P18:T18)>0,BI24,$AA24),AW24) -> 0 | BE24: =IF('Formulaire de saisie'!P18>0,'Formulaire de saisie'!P18/SUM('Formulaire de saisie'!P18:T18),0) -> 0 | BF24: =IF('Formulaire de saisie'!Q18>0,'Formulaire de saisie'!Q18/SUM('Formulaire de saisie'!P18:T18),0) -> 0 | BG24: =IF('Formulaire de saisie'!R18>0,'Formulaire de saisie'!R18/SUM('Formulaire de saisie'!P18:T18),0) -> 0 | BH24: =IF('Formulaire de saisie'!S18>0,'Formulaire de saisie'!S18/SUM('Formulaire de saisie'!P18:T18),0) -> 0 | BI24: =IF('Formulaire de saisie'!T18>0,'Formulaire de saisie'!T18/SUM('Formulaire de saisie'!P18:T18),0) -> 0
A25: =IF(($AG$23),1,) -> 0 | C25: Fertilisants | H25: 0 | I25: 15152.4 | J25: =IF($F25<>"",$F25*H25,IF(H1="",,HLOOKUP(H$1,CECPA!$B$1:$T$53,15,FALSE))*K$3) -> 0 | K25: 0 | L25: =IF($L$3=0,0,J25/($L$3+$L$12)) -> 0 | M25: 0 | N25: Fertilisants | O25: =IF($F25<>"",$F25*M25,IF(M1="",,HLOOKUP(M$1,CECPA!$B$1:$T$53,15,FALSE))*P$3) -> 0 | P25: 0 | Q25: 0 | R25: 0 | S25: Fertilisants | T25: =IF($F25<>"",$F25*R25,IF(R1="",,HLOOKUP(R$1,CECPA!$B$1:$T$53,15,FALSE))*U$3) -> 0 | U25: 0 | V25: 0 | W25: 0 | X25: =IF($F25<>"",$F25*W25,IF(W1="",,HLOOKUP(W$1,CECPA!$B$1:$T$53,15,FALSE))*Y$3) -> 0 | Y25: 0 | Z25: 0 | AA25: 0 | AB25: =IF($F25<>"",$F25*AA25,IF(AA1="",,HLOOKUP(AA$1,CECPA!$B$1:$T$53,15,FALSE))*AC$3) -> 0 | AC25: 0 | AD25: 0 | AG25: =IF(F25<>0,1,0) -> 0 | AH25: 0 | AI25: 0 | AJ25: 0 | AK25: 0 | AL25: 0 | AM25: =SUM(AN25:AR25) -> 0 | AN25: =IF(OR(ISBLANK($H$1),ISBLANK($K$3),ISBLANK($K$5)),0,HLOOKUP($H$1,CECPA!$B$1:$T$53,15,FALSE))*($K$3+$K$12) -> 0 | AO25: =IF(OR(ISBLANK($M$1),ISBLANK($P$3),ISBLANK($P$5)),0,HLOOKUP($M$1,CECPA!$B$1:$T$53,15,FALSE))*($P$3+$P$12) -> 0 | AP25: =IF(OR(ISBLANK($R$1),ISBLANK($U$3),ISBLANK($U$5)),0,HLOOKUP($R$1,CECPA!$B$1:$T$53,15,FALSE))*($U$3+$U$12) -> 0 | AQ25: =IF(OR(ISBLANK($W$1),ISBLANK($Y$3),ISBLANK($Y$5)),0,HLOOKUP($W$1,CECPA!$B$1:$T$53,15,FALSE))*($Y$3+$Y$12) -> 0 | AR25: =IF(OR(ISBLANK($AA$1),ISBLANK($AC$3),ISBLANK($AC$5)),0,HLOOKUP($AA$1,CECPA!$B$1:$T$53,15,FALSE))*($AC$3+$AC$12) -> 0 | AS25: =AH25 -> 0 | AT25: =AI25 -> 0 | AU25: =AJ25 -> 0 | AV25: =AK25 -> 0 | AW25: =AL25 -> 0 | AX25: =IF($AG$5,IF(SUM('Formulaire de saisie'!P19:T19)>0,BE25,$H25),AS25) -> 0 | AY25: =IF($AG$5,IF(SUM('Formulaire de saisie'!P19:T19)>0,BF25,$M25),AT25) -> 0 | AZ25: =IF($AG$5,IF(SUM('Formulaire de saisie'!P19:T19)>0,BG25,$R25),AU25) -> 0 | BA25: =IF($AG$5,IF(SUM('Formulaire de saisie'!P19:T19)>0,BH25,$W25),AV25) -> 0 | BB25: =IF($AG$5,IF(SUM('Formulaire de saisie'!P19:T19)>0,BI25,$AA25),AW25) -> 0 | BE25: =IF('Formulaire de saisie'!P19>0,'Formulaire de saisie'!P19/SUM('Formulaire de saisie'!P19:T19),0) -> 0 | BF25: =IF('Formulaire de saisie'!Q19>0,'Formulaire de saisie'!Q19/SUM('Formulaire de saisie'!P19:T19),0) -> 0 | BG25: =IF('Formulaire de saisie'!R19>0,'Formulaire de saisie'!R19/SUM('Formulaire de saisie'!P19:T19),0) -> 0 | BH25: =IF('Formulaire de saisie'!S19>0,'Formulaire de saisie'!S19/SUM('Formulaire de saisie'!P19:T19),0) -> 0 | BI25: =IF('Formulaire de saisie'!T19>0,'Formulaire de saisie'!T19/SUM('Formulaire de saisie'!P19:T19),0) -> 0
A26: 0 | C26: Chaulage (pierre à chaux) | H26: 0 | I26: 270.825 | J26: =IF($F26<>"",$F26*H26,IF(H1="",,HLOOKUP(H$1,CECPA!$B$1:$T$53,16,FALSE))*K$3) -> 0 | K26: 0 | L26: =IF($L$3=0,0,J26/($L$3+$L$12)) -> 0 | M26: 0 | N26: Chaulage | O26: =IF($F26<>"",$F26*M26,IF(M1="",,HLOOKUP(M$1,CECPA!$B$1:$T$53,16,FALSE))*P$3) -> 0 | P26: 0 | Q26: 0 | R26: 0 | S26: Chaulage | T26: =IF($F26<>"",$F26*R26,IF(R1="",,HLOOKUP(R$1,CECPA!$B$1:$T$53,16,FALSE))*U$3) -> 0 | U26: 0 | V26: 0 | W26: 0 | X26: =IF($F26<>"",$F26*W26,IF(W1="",,HLOOKUP(W$1,CECPA!$B$1:$T$53,16,FALSE))*Y$3) -> 0 | Y26: 0 | Z26: 0 | AA26: 0 | AB26: =IF($F26<>"",$F26*AA26,IF(AA1="",,HLOOKUP(AA$1,CECPA!$B$1:$T$53,16,FALSE))*AC$3) -> 0 | AC26: 0 | AD26: 0 | AG26: 0 | AH26: 0 | AI26: 0 | AJ26: 0 | AK26: 0 | AL26: 0 | AM26: 0 | AN26: =IF(OR(ISBLANK($H$1),ISBLANK($K$3),ISBLANK($K$5)),0,HLOOKUP($H$1,CECPA!$B$1:$T$53,16,FALSE))*($K$3+$K$12) -> 0 | AO26: =IF(OR(ISBLANK($M$1),ISBLANK($P$3),ISBLANK($P$5)),0,HLOOKUP($M$1,CECPA!$B$1:$T$53,16,FALSE))*($P$3+$P$12) -> 0 | AP26: =IF(OR(ISBLANK($R$1),ISBLANK($U$3),ISBLANK($U$5)),0,HLOOKUP($R$1,CECPA!$B$1:$T$53,16,FALSE))*($U$3+$U$12) -> 0 | AQ26: =IF(OR(ISBLANK($W$1),ISBLANK($Y$3),ISBLANK($Y$5)),0,HLOOKUP($W$1,CECPA!$B$1:$T$53,16,FALSE))*($Y$3+$Y$12) -> 0 | AR26: =IF(OR(ISBLANK($AA$1),ISBLANK($AC$3),ISBLANK($AC$5)),0,HLOOKUP($AA$1,CECPA!$B$1:$T$53,16,FALSE))*($AC$3+$AC$12) -> 0 | AS26: 0 | AT26: 0 | AU26: 0 | AV26: 0 | AW26: 0 | AX26: =IF($AG$5,IF(SUM('Formulaire de saisie'!P20:T20)>0,BE26,$H26),AS26) -> 0 | AY26: =IF($AG$5,IF(SUM('Formulaire de saisie'!P20:T20)>0,BF26,$M26),AT26) -> 0 | AZ26: =IF($AG$5,IF(SUM('Formulaire de saisie'!P20:T20)>0,BG26,$R26),AU26) -> 0 | BA26: =IF($AG$5,IF(SUM('Formulaire de saisie'!P20:T20)>0,BH26,$W26),AV26) -> 0 | BB26: =IF($AG$5,IF(SUM('Formulaire de saisie'!P20:T20)>0,BI26,$AA26),AW26) -> 0 | BE26: =IF('Formulaire de saisie'!P20>0,'Formulaire de saisie'!P20/SUM('Formulaire de saisie'!P20:T20),0) -> 0 | BF26: =IF('Formulaire de saisie'!Q20>0,'Formulaire de saisie'!Q20/SUM('Formulaire de saisie'!P20:T20),0) -> 0 | BG26: =IF('Formulaire de saisie'!R20>0,'Formulaire de saisie'!R20/SUM('Formulaire de saisie'!P20:T20),0) -> 0 | BH26: =IF('Formulaire de saisie'!S20>0,'Formulaire de saisie'!S20/SUM('Formulaire de saisie'!P20:T20),0) -> 0 | BI26: =IF('Formulaire de saisie'!T20>0,'Formulaire de saisie'!T20/SUM('Formulaire de saisie'!P20:T20),0) -> 0
A27: 0 | C27: Pesticides | H27: 0 | I27: 4422.9 | J27: =IF($F27<>"",$F27*H27,IF(H1="",,HLOOKUP(H$1,CECPA!$B$1:$T$53,17,FALSE))*K$3) -> 0 | K27: 0 | L27: 0 | M27: 0 | N27: Pesticides | O27: =IF($F27<>"",$F27*M27,IF(M1="",,HLOOKUP(M$1,CECPA!$B$1:$T$53,17,FALSE))*P$3) -> 0 | P27: 0 | Q27: 0 | R27: 0 | S27: Pesticides | T27: =IF($F27<>"",$F27*R27,IF(R1="",,HLOOKUP(R$1,CECPA!$B$1:$T$53,17,FALSE))*U$3) -> 0 | U27: 0 | V27: 0 | W27: 0 | X27: =IF($F27<>"",$F27*W27,IF(W1="",,HLOOKUP(W$1,CECPA!$B$1:$T$53,17,FALSE))*Y$3) -> 0 | Y27: 0 | Z27: 0 | AA27: 0 | AB27: =IF($F27<>"",$F27*AA27,IF(AA1="",,HLOOKUP(AA$1,CECPA!$B$1:$T$53,17,FALSE))*AC$3) -> 0 | AC27: 0 | AD27: 0 | AG27: 0 | AH27: 0 | AI27: 0 | AJ27: 0 | AK27: 0 | AL27: 0 | AM27: 0 | AN27: =IF(OR(ISBLANK($H$1),ISBLANK($K$3),ISBLANK($K$5)),0,HLOOKUP($H$1,CECPA!$B$1:$T$53,17,FALSE))*($K$3+$K$12) -> 0 | AO27: =IF(OR(ISBLANK($M$1),ISBLANK($P$3),ISBLANK($P$5)),0,HLOOKUP($M$1,CECPA!$B$1:$T$53,17,FALSE))*($P$3+$P$12) -> 0 | AP27: =IF(OR(ISBLANK($R$1),ISBLANK($U$3),ISBLANK($U$5)),0,HLOOKUP($R$1,CECPA!$B$1:$T$53,17,FALSE))*($U$3+$U$12) -> 0 | AQ27: =IF(OR(ISBLANK($W$1),ISBLANK($Y$3),ISBLANK($Y$5)),0,HLOOKUP($W$1,CECPA!$B$1:$T$53,17,FALSE))*($Y$3+$Y$12) -> 0 | AR27: =IF(OR(ISBLANK($AA$1),ISBLANK($AC$3),ISBLANK($AC$5)),0,HLOOKUP($AA$1,CECPA!$B$1:$T$53,17,FALSE))*($AC$3+$AC$12) -> 0 | AS27: 0 | AT27: 0 | AU27: 0 | AV27: 0 | AW27: 0 | AX27: =IF($AG$5,IF(SUM('Formulaire de saisie'!P21:T21)>0,BE27,$H27),AS27) -> 0 | AY27: =IF($AG$5,IF(SUM('Formulaire de saisie'!P21:T21)>0,BF27,$M27),AT27) -> 0 | AZ27: =IF($AG$5,IF(SUM('Formulaire de saisie'!P21:T21)>0,BG27,$R27),AU27) -> 0 | BA27: =IF($AG$5,IF(SUM('Formulaire de saisie'!P21:T21)>0,BH27,$W27),AV27) -> 0 | BB27: =IF($AG$5,IF(SUM('Formulaire de saisie'!P21:T21)>0,BI27,$AA27),AW27) -> 0 | BE27: =IF('Formulaire de saisie'!P21>0,'Formulaire de saisie'!P21/SUM('Formulaire de saisie'!P21:T21),0) -> 0 | BF27: =IF('Formulaire de saisie'!Q21>0,'Formulaire de saisie'!Q21/SUM('Formulaire de saisie'!P21:T21),0) -> 0 | BG27: =IF('Formulaire de saisie'!R21>0,'Formulaire de saisie'!R21/SUM('Formulaire de saisie'!P21:T21),0) -> 0 | BH27: =IF('Formulaire de saisie'!S21>0,'Formulaire de saisie'!S21/SUM('Formulaire de saisie'!P21:T21),0) -> 0 | BI27: =IF('Formulaire de saisie'!T21>0,'Formulaire de saisie'!T21/SUM('Formulaire de saisie'!P21:T21),0) -> 0
A28: 0 | C28: Location | H28: 0 | I28: 1226.475 | J28: =IF($F28<>"",$F28*H28,IF(H1="",,HLOOKUP(H$1,CECPA!$B$1:$T$53,23,FALSE))*K$3) -> 0 | K28: 0 | L28: 0 | M28: 0 | N28: Location de machineries, bâtiments | O28: =IF($F28<>"",$F28*M28,IF(M1="",,HLOOKUP(M$1,CECPA!$B$1:$T$53,23,FALSE))*P$3) -> 0 | P28: 0 | Q28: 0 | R28: 0 | S28: Location de machineries, bâtiments | T28: =IF($F28<>"",$F28*R28,IF(R1="",,HLOOKUP(R$1,CECPA!$B$1:$T$53,23,FALSE))*U$3) -> 0 | U28: 0 | V28: 0 | W28: 0 | X28: =IF($F28<>"",$F28*W28,IF(W1="",,HLOOKUP(W$1,CECPA!$B$1:$T$53,23,FALSE))*Y$3) -> 0 | Y28: 0 | Z28: 0 | AA28: 0 | AB28: =IF($F28<>"",$F28*AA28,IF(AA1="",,HLOOKUP(AA$1,CECPA!$B$1:$T$53,23,FALSE))*AC$3) -> 0 | AC28: 0 | AD28: 0 | AG28: 0 | AH28: 0 | AI28: 0 | AJ28: 0 | AK28: 0 | AL28: 0 | AM28: 0 | AN28: =IF(OR(ISBLANK($H$1),ISBLANK($K$3),ISBLANK($K$5)),0,HLOOKUP($H$1,CECPA!$B$1:$T$53,23,FALSE))*($K$3+$K$12) -> 0 | AO28: =IF(OR(ISBLANK($M$1),ISBLANK($P$3),ISBLANK($P$5)),0,HLOOKUP($M$1,CECPA!$B$1:$T$53,23,FALSE))*($P$3+$P$12) -> 0 | AP28: =IF(OR(ISBLANK($R$1),ISBLANK($U$3),ISBLANK($U$5)),0,HLOOKUP($R$1,CECPA!$B$1:$T$53,23,FALSE))*($U$3+$U$12) -> 0 | AQ28: =IF(OR(ISBLANK($W$1),ISBLANK($Y$3),ISBLANK($Y$5)),0,HLOOKUP($W$1,CECPA!$B$1:$T$53,23,FALSE))*($Y$3+$Y$12) -> 0 | AR28: =IF(OR(ISBLANK($AA$1),ISBLANK($AC$3),ISBLANK($AC$5)),0,HLOOKUP($AA$1,CECPA!$B$1:$T$53,23,FALSE))*($AC$3+$AC$12) -> 0 | AS28: 0 | AT28: 0 | AU28: 0 | AV28: 0 | AW28: 0 | AX28: =IF($AG$5,IF(SUM('Formulaire de saisie'!P22:T22)>0,BE28,$H28),AS28) -> 0 | AY28: =IF($AG$5,IF(SUM('Formulaire de saisie'!P22:T22)>0,BF28,$M28),AT28) -> 0 | AZ28: =IF($AG$5,IF(SUM('Formulaire de saisie'!P22:T22)>0,BG28,$R28),AU28) -> 0 | BA28: =IF($AG$5,IF(SUM('Formulaire de saisie'!P22:T22)>0,BH28,$W28),AV28) -> 0 | BB28: =IF($AG$5,IF(SUM('Formulaire de saisie'!P22:T22)>0,BI28,$AA28),AW28) -> 0 | BE28: =IF('Formulaire de saisie'!P22>0,'Formulaire de saisie'!P22/SUM('Formulaire de saisie'!P22:T22),0) -> 0 | BF28: =IF('Formulaire de saisie'!Q22>0,'Formulaire de saisie'!Q22/SUM('Formulaire de saisie'!P22:T22),0) -> 0 | BG28: =IF('Formulaire de saisie'!R22>0,'Formulaire de saisie'!R22/SUM('Formulaire de saisie'!P22:T22),0) -> 0 | BH28: =IF('Formulaire de saisie'!S22>0,'Formulaire de saisie'!S22/SUM('Formulaire de saisie'!P22:T22),0) -> 0 | BI28: =IF('Formulaire de saisie'!T22>0,'Formulaire de saisie'!T22/SUM('Formulaire de saisie'!P22:T22),0) -> 0
A29: 0 | C29: Travaux à forfait | H29: 0 | I29: 3550.05 | J29: =IF($F29<>"",$F29*H29,IF(H1="",,HLOOKUP(H$1,CECPA!$B$1:$T$53,22,FALSE))*K$3) -> 0 | K29: 0 | L29: 0 | M29: 0 | N29: Travaux à forfait | O29: =IF($F29<>"",$F29*M29,IF(M1="",,HLOOKUP(M$1,CECPA!$B$1:$T$53,22,FALSE))*P$3) -> 0 | P29: 0 | Q29: 0 | R29: 0 | S29: Travaux à forfait | T29: =IF($F29<>"",$F29*R29,IF(R1="",,HLOOKUP(R$1,CECPA!$B$1:$T$53,22,FALSE))*U$3) -> 0 | U29: 0 | V29: 0 | W29: 0 | X29: =IF($F29<>"",$F29*W29,IF(W1="",,HLOOKUP(W$1,CECPA!$B$1:$T$53,22,FALSE))*Y$3) -> 0 | Y29: 0 | Z29: 0 | AA29: 0 | AB29: =IF($F29<>"",$F29*AA29,IF(AA1="",,HLOOKUP(AA$1,CECPA!$B$1:$T$53,22,FALSE))*AC$3) -> 0 | AC29: 0 | AD29: 0 | AG29: 0 | AH29: =IF($AM29>0,AN29/$AM29,0) -> 0 | AI29: 0 | AJ29: 0 | AK29: 0 | AL29: 0 | AM29: 0 | AN29: =IF(OR(ISBLANK($H$1),ISBLANK($K$3),ISBLANK($K$5)),0,HLOOKUP($H$1,CECPA!$B$1:$T$53,22,FALSE))*($K$3+$K$12) -> 0 | AO29: =IF(OR(ISBLANK($M$1),ISBLANK($P$3),ISBLANK($P$5)),0,HLOOKUP($M$1,CECPA!$B$1:$T$53,22,FALSE))*($P$3+$P$12) -> 0 | AP29: =IF(OR(ISBLANK($R$1),ISBLANK($U$3),ISBLANK($U$5)),0,HLOOKUP($R$1,CECPA!$B$1:$T$53,22,FALSE))*($U$3+$U$12) -> 0 | AQ29: =IF(OR(ISBLANK($W$1),ISBLANK($Y$3),ISBLANK($Y$5)),0,HLOOKUP($W$1,CECPA!$B$1:$T$53,22,FALSE))*($Y$3+$Y$12) -> 0 | AR29: =IF(OR(ISBLANK($AA$1),ISBLANK($AC$3),ISBLANK($AC$5)),0,HLOOKUP($AA$1,CECPA!$B$1:$T$53,22,FALSE))*($AC$3+$AC$12) -> 0 | AS29: 0 | AT29: 0 | AU29: 0 | AV29: 0 | AW29: 0 | AX29: =IF($AG$5,IF(SUM('Formulaire de saisie'!P23:T23)>0,BE29,$H29),AS29) -> 0 | AY29: =IF($AG$5,IF(SUM('Formulaire de saisie'!P23:T23)>0,BF29,$M29),AT29) -> 0 | AZ29: =IF($AG$5,IF(SUM('Formulaire de saisie'!P23:T23)>0,BG29,$R29),AU29) -> 0 | BA29: =IF($AG$5,IF(SUM('Formulaire de saisie'!P23:T23)>0,BH29,$W29),AV29) -> 0 | BB29: =IF($AG$5,IF(SUM('Formulaire de saisie'!P23:T23)>0,BI29,$AA29),AW29) -> 0 | BE29: =IF('Formulaire de saisie'!P23>0,'Formulaire de saisie'!P23/SUM('Formulaire de saisie'!P23:T23),0) -> 0 | BF29: =IF('Formulaire de saisie'!Q23>0,'Formulaire de saisie'!Q23/SUM('Formulaire de saisie'!P23:T23),0) -> 0 | BG29: =IF('Formulaire de saisie'!R23>0,'Formulaire de saisie'!R23/SUM('Formulaire de saisie'!P23:T23),0) -> 0 | BH29: =IF('Formulaire de saisie'!S23>0,'Formulaire de saisie'!S23/SUM('Formulaire de saisie'!P23:T23),0) -> 0 | BI29: =IF('Formulaire de saisie'!T23>0,'Formulaire de saisie'!T23/SUM('Formulaire de saisie'!P23:T23),0) -> 0
A30: 0 | C30: Main d'œuvre salariée | H30: 0 | I30: 6848.25 | J30: =IF($F30<>"",$F30*H30,IF(H1="",,HLOOKUP(H$1,CECPA!$B$1:$T$53,31,FALSE))*K$3) -> 0 | K30: 0 | L30: 0 | M30: 0 | N30: Main d'œuvre salariée | O30: =IF($F30<>"",$F30*M30,IF(M1="",,HLOOKUP(M$1,CECPA!$B$1:$T$53,31,FALSE))*P$3) -> 0 | P30: 0 | Q30: 0 | R30: 0 | S30: Main d'œuvre salariée | T30: =IF($F30<>"",$F30*R30,IF(R1="",,HLOOKUP(R$1,CECPA!$B$1:$T$53,31,FALSE))*U$3) -> 0 | U30: 0 | V30: 0 | W30: 0 | X30: =IF($F30<>"",$F30*W30,IF(W1="",,HLOOKUP(W$1,CECPA!$B$1:$T$53,31,FALSE))*Y$3) -> 0 | Y30: 0 | Z30: 0 | AA30: 0 | AB30: =IF($F30<>"",$F30*AA30,IF(AA1="",,HLOOKUP(AA$1,CECPA!$B$1:$T$53,31,FALSE))*AC$3) -> 0 | AC30: 0 | AD30: 0 | AG30: 0 | AH30: 0 | AI30: 0 | AJ30: 0 | AK30: 0 | AL30: 0 | AM30: 0 | AN30: =IF(OR(ISBLANK($H$1),ISBLANK($K$3),ISBLANK($K$5)),0,HLOOKUP($H$1,CECPA!$B$1:$T$53,31,FALSE))*($K$3+$K$12) -> 0 | AO30: =IF(OR(ISBLANK($M$1),ISBLANK($P$3),ISBLANK($P$5)),0,HLOOKUP($M$1,CECPA!$B$1:$T$53,31,FALSE))*($P$3+$P$12) -> 0 | AP30: =IF(OR(ISBLANK($R$1),ISBLANK($U$3),ISBLANK($U$5)),0,HLOOKUP($R$1,CECPA!$B$1:$T$53,31,FALSE))*($U$3+$U$12) -> 0 | AQ30: =IF(OR(ISBLANK($W$1),ISBLANK($Y$3),ISBLANK($Y$5)),0,HLOOKUP($W$1,CECPA!$B$1:$T$53,31,FALSE))*($Y$3+$Y$12) -> 0 | AR30: =IF(OR(ISBLANK($AA$1),ISBLANK($AC$3),ISBLANK($AC$5)),0,HLOOKUP($AA$1,CECPA!$B$1:$T$53,31,FALSE))*($AC$3+$AC$12) -> 0 | AS30: 0 | AT30: 0 | AU30: 0 | AV30: 0 | AW30: 0 | AX30: =IF($AG$5,IF(SUM('Formulaire de saisie'!P24:T24)>0,BE30,$H30),AS30) -> 0 | AY30: =IF($AG$5,IF(SUM('Formulaire de saisie'!P24:T24)>0,BF30,$M30),AT30) -> 0 | AZ30: =IF($AG$5,IF(SUM('Formulaire de saisie'!P24:T24)>0,BG30,$R30),AU30) -> 0 | BA30: =IF($AG$5,IF(SUM('Formulaire de saisie'!P24:T24)>0,BH30,$W30),AV30) -> 0 | BB30: =IF($AG$5,IF(SUM('Formulaire de saisie'!P24:T24)>0,BI30,$AA30),AW30) -> 0 | BE30: =IF('Formulaire de saisie'!P24>0,'Formulaire de saisie'!P24/SUM('Formulaire de saisie'!P24:T24),0) -> 0 | BF30: =IF('Formulaire de saisie'!Q24>0,'Formulaire de saisie'!Q24/SUM('Formulaire de saisie'!P24:T24),0) -> 0 | BG30: =IF('Formulaire de saisie'!R24>0,'Formulaire de saisie'!R24/SUM('Formulaire de saisie'!P24:T24),0) -> 0 | BH30: =IF('Formulaire de saisie'!S24>0,'Formulaire de saisie'!S24/SUM('Formulaire de saisie'!P24:T24),0) -> 0 | BI30: =IF('Formulaire de saisie'!T24>0,'Formulaire de saisie'!T24/SUM('Formulaire de saisie'!P24:T24),0) -> 0
A31: 0 | C31: Entretien et réparation (tracteur, batteuse, séchoir, camion, mach.) | H31: 0 | I31: 11129.7 | J31: =IF($F31<>"",$F31*H31,IF(H1="",,HLOOKUP(H$1,CECPA!$B$1:$T$53,20,FALSE))*K$3) -> 0 | K31: 0 | L31: 0 | M31: 0 | N31: Entretien et reparation machinerie | O31: =IF($F31<>"",$F31*M31,IF(M1="",,HLOOKUP(M$1,CECPA!$B$1:$T$53,20,FALSE))*P$3) -> 0 | P31: 0 | Q31: 0 | R31: 0 | S31: Entretien et reparation machinerie | T31: =IF($F31<>"",$F31*R31,IF(R1="",,HLOOKUP(R$1,CECPA!$B$1:$T$53,20,FALSE))*U$3) -> 0 | U31: 0 | V31: 0 | W31: 0 | X31: =IF($F31<>"",$F31*W31,IF(W1="",,HLOOKUP(W$1,CECPA!$B$1:$T$53,20,FALSE))*Y$3) -> 0 | Y31: 0 | Z31: 0 | AA31: 0 | AB31: =IF($F31<>"",$F31*AA31,IF(AA1="",,HLOOKUP(AA$1,CECPA!$B$1:$T$53,20,FALSE))*AC$3) -> 0 | AC31: 0 | AD31: 0 | AG31: 0 | AH31: 0 | AI31: 0 | AJ31: 0 | AK31: 0 | AL31: 0 | AM31: 0 | AN31: =IF(OR(ISBLANK($H$1),ISBLANK($K$3),ISBLANK($K$5)),0,HLOOKUP($H$1,CECPA!$B$1:$T$53,20,FALSE))*($K$3+$K$12) -> 0 | AO31: =IF(OR(ISBLANK($M$1),ISBLANK($P$3),ISBLANK($P$5)),0,HLOOKUP($M$1,CECPA!$B$1:$T$53,20,FALSE))*($P$3+$P$12) -> 0 | AP31: =IF(OR(ISBLANK($R$1),ISBLANK($U$3),ISBLANK($U$5)),0,HLOOKUP($R$1,CECPA!$B$1:$T$53,20,FALSE))*($U$3+$U$12) -> 0 | AQ31: =IF(OR(ISBLANK($W$1),ISBLANK($Y$3),ISBLANK($Y$5)),0,HLOOKUP($W$1,CECPA!$B$1:$T$53,20,FALSE))*($Y$3+$Y$12) -> 0 | AR31: =IF(OR(ISBLANK($AA$1),ISBLANK($AC$3),ISBLANK($AC$5)),0,HLOOKUP($AA$1,CECPA!$B$1:$T$53,20,FALSE))*($AC$3+$AC$12) -> 0 | AS31: 0 | AT31: 0 | AU31: 0 | AV31: 0 | AW31: 0 | AX31: =IF($AG$5,IF(SUM('Formulaire de saisie'!P25:T25)>0,BE31,$H31),AS31) -> 0 | AY31: =IF($AG$5,IF(SUM('Formulaire de saisie'!P25:T25)>0,BF31,$M31),AT31) -> 0 | AZ31: =IF($AG$5,IF(SUM('Formulaire de saisie'!P25:T25)>0,BG31,$R31),AU31) -> 0 | BA31: =IF($AG$5,IF(SUM('Formulaire de saisie'!P25:T25)>0,BH31,$W31),AV31) -> 0 | BB31: =IF($AG$5,IF(SUM('Formulaire de saisie'!P25:T25)>0,BI31,$AA31),AW31) -> 0 | BE31: =IF('Formulaire de saisie'!P25>0,'Formulaire de saisie'!P25/SUM('Formulaire de saisie'!P25:T25),0) -> 0 | BF31: =IF('Formulaire de saisie'!Q25>0,'Formulaire de saisie'!Q25/SUM('Formulaire de saisie'!P25:T25),0) -> 0 | BG31: =IF('Formulaire de saisie'!R25>0,'Formulaire de saisie'!R25/SUM('Formulaire de saisie'!P25:T25),0) -> 0 | BH31: =IF('Formulaire de saisie'!S25>0,'Formulaire de saisie'!S25/SUM('Formulaire de saisie'!P25:T25),0) -> 0 | BI31: =IF('Formulaire de saisie'!T25>0,'Formulaire de saisie'!T25/SUM('Formulaire de saisie'!P25:T25),0) -> 0
A32: 0 | C32: Carburants | H32: 0 | I32: 11524.725 | J32: =IF($F32<>"",$F32*H32,IF(H1="",,HLOOKUP(H$1,CECPA!$B$1:$T$53,19,FALSE))*K$3) -> 0 | K32: 0 | L32: 0 | M32: 0 | N32: Carburants | O32: =IF($F32<>"",$F32*M32,IF(M1="",,HLOOKUP(M$1,CECPA!$B$1:$T$53,19,FALSE))*P$3) -> 0 | P32: 0 | Q32: 0 | R32: 0 | S32: Carburants | T32: =IF($F32<>"",$F32*R32,IF(R1="",,HLOOKUP(R$1,CECPA!$B$1:$T$53,19,FALSE))*U$3) -> 0 | U32: 0 | V32: 0 | W32: 0 | X32: =IF($F32<>"",$F32*W32,IF(W1="",,HLOOKUP(W$1,CECPA!$B$1:$T$53,19,FALSE))*Y$3) -> 0 | Y32: 0 | Z32: 0 | AA32: 0 | AB32: =IF($F32<>"",$F32*AA32,IF(AA1="",,HLOOKUP(AA$1,CECPA!$B$1:$T$53,19,FALSE))*AC$3) -> 0 | AC32: 0 | AD32: 0 | AG32: 0 | AH32: 0 | AI32: 0 | AJ32: 0 | AK32: 0 | AL32: 0 | AM32: 0 | AN32: =IF(OR(ISBLANK($H$1),ISBLANK($K$3),ISBLANK($K$5)),0,HLOOKUP($H$1,CECPA!$B$1:$T$53,19,FALSE))*($K$3+$K$12) -> 0 | AO32: =IF(OR(ISBLANK($M$1),ISBLANK($P$3),ISBLANK($P$5)),0,HLOOKUP($M$1,CECPA!$B$1:$T$53,19,FALSE))*($P$3+$P$12) -> 0 | AP32: =IF(OR(ISBLANK($R$1),ISBLANK($U$3),ISBLANK($U$5)),0,HLOOKUP($R$1,CECPA!$B$1:$T$53,19,FALSE))*($U$3+$U$12) -> 0 | AQ32: =IF(OR(ISBLANK($W$1),ISBLANK($Y$3),ISBLANK($Y$5)),0,HLOOKUP($W$1,CECPA!$B$1:$T$53,19,FALSE))*($Y$3+$Y$12) -> 0 | AR32: =IF(OR(ISBLANK($AA$1),ISBLANK($AC$3),ISBLANK($AC$5)),0,HLOOKUP($AA$1,CECPA!$B$1:$T$53,19,FALSE))*($AC$3+$AC$12) -> 0 | AS32: 0 | AT32: 0 | AU32: 0 | AV32: 0 | AW32: 0 | AX32: =IF($AG$5,IF(SUM('Formulaire de saisie'!P26:T26)>0,BE32,$H32),AS32) -> 0 | AY32: =IF($AG$5,IF(SUM('Formulaire de saisie'!P26:T26)>0,BF32,$M32),AT32) -> 0 | AZ32: =IF($AG$5,IF(SUM('Formulaire de saisie'!P26:T26)>0,BG32,$R32),AU32) -> 0 | BA32: =IF($AG$5,IF(SUM('Formulaire de saisie'!P26:T26)>0,BH32,$W32),AV32) -> 0 | BB32: =IF($AG$5,IF(SUM('Formulaire de saisie'!P26:T26)>0,BI32,$AA32),AW32) -> 0 | BE32: =IF('Formulaire de saisie'!P26>0,'Formulaire de saisie'!P26/SUM('Formulaire de saisie'!P26:T26),0) -> 0 | BF32: =IF('Formulaire de saisie'!Q26>0,'Formulaire de saisie'!Q26/SUM('Formulaire de saisie'!P26:T26),0) -> 0 | BG32: =IF('Formulaire de saisie'!R26>0,'Formulaire de saisie'!R26/SUM('Formulaire de saisie'!P26:T26),0) -> 0 | BH32: =IF('Formulaire de saisie'!S26>0,'Formulaire de saisie'!S26/SUM('Formulaire de saisie'!P26:T26),0) -> 0 | BI32: =IF('Formulaire de saisie'!T26>0,'Formulaire de saisie'!T26/SUM('Formulaire de saisie'!P26:T26),0) -> 0
A33: 0 | C33: Électricité | H33: 0 | I33: 912.525 | J33: =IF($F33<>"",$F33*H33,IF(H1="",,HLOOKUP(H$1,CECPA!$B$1:$T$53,21,FALSE))*K$3) -> 0 | K33: 0 | L33: 0 | M33: 0 | N33: Électricité | O33: =IF($F33<>"",$F33*M33,IF(M1="",,HLOOKUP(M$1,CECPA!$B$1:$T$53,21,FALSE))*P$3) -> 0 | P33: 0 | Q33: 0 | R33: 0 | S33: Électricité | T33: =IF($F33<>"",$F33*R33,IF(R1="",,HLOOKUP(R$1,CECPA!$B$1:$T$53,21,FALSE))*U$3) -> 0 | U33: 0 | V33: 0 | W33: 0 | X33: =IF($F33<>"",$F33*W33,IF(W1="",,HLOOKUP(W$1,CECPA!$B$1:$T$53,21,FALSE))*Y$3) -> 0 | Y33: 0 | Z33: 0 | AA33: 0 | AB33: =IF($F33<>"",$F33*AA33,IF(AA1="",,HLOOKUP(AA$1,CECPA!$B$1:$T$53,21,FALSE))*AC$3) -> 0 | AC33: 0 | AD33: 0 | AG33: 0 | AH33: =IF($AM33>0,AN33/$AM33,0) -> 0 | AI33: 0 | AJ33: 0 | AK33: 0 | AL33: 0 | AM33: 0 | AN33: =IF(OR(ISBLANK($H$1),ISBLANK($K$3),ISBLANK($K$5)),0,HLOOKUP($H$1,CECPA!$B$1:$T$53,21,FALSE))*($K$3+$K$12) -> 0 | AO33: =IF(OR(ISBLANK($M$1),ISBLANK($P$3),ISBLANK($P$5)),0,HLOOKUP($M$1,CECPA!$B$1:$T$53,21,FALSE))*($P$3+$P$12) -> 0 | AP33: =IF(OR(ISBLANK($R$1),ISBLANK($U$3),ISBLANK($U$5)),0,HLOOKUP($R$1,CECPA!$B$1:$T$53,21,FALSE))*($U$3+$U$12) -> 0 | AQ33: =IF(OR(ISBLANK($W$1),ISBLANK($Y$3),ISBLANK($Y$5)),0,HLOOKUP($W$1,CECPA!$B$1:$T$53,21,FALSE))*($Y$3+$Y$12) -> 0 | AR33: =IF(OR(ISBLANK($AA$1),ISBLANK($AC$3),ISBLANK($AC$5)),0,HLOOKUP($AA$1,CECPA!$B$1:$T$53,21,FALSE))*($AC$3+$AC$12) -> 0 | AS33: 0 | AT33: 0 | AU33: 0 | AV33: 0 | AW33: 0 | AX33: =IF($AG$5,IF(SUM('Formulaire de saisie'!P27:T27)>0,BE33,$H33),AS33) -> 0 | AY33: =IF($AG$5,IF(SUM('Formulaire de saisie'!P27:T27)>0,BF33,$M33),AT33) -> 0 | AZ33: =IF($AG$5,IF(SUM('Formulaire de saisie'!P27:T27)>0,BG33,$R33),AU33) -> 0 | BA33: =IF($AG$5,IF(SUM('Formulaire de saisie'!P27:T27)>0,BH33,$W33),AV33) -> 0 | BB33: =IF($AG$5,IF(SUM('Formulaire de saisie'!P27:T27)>0,BI33,$AA33),AW33) -> 0 | BE33: =IF('Formulaire de saisie'!P27>0,'Formulaire de saisie'!P27/SUM('Formulaire de saisie'!P27:T27),0) -> 0 | BF33: =IF('Formulaire de saisie'!Q27>0,'Formulaire de saisie'!Q27/SUM('Formulaire de saisie'!P27:T27),0) -> 0 | BG33: =IF('Formulaire de saisie'!R27>0,'Formulaire de saisie'!R27/SUM('Formulaire de saisie'!P27:T27),0) -> 0 | BH33: =IF('Formulaire de saisie'!S27>0,'Formulaire de saisie'!S27/SUM('Formulaire de saisie'!P27:T27),0) -> 0 | BI33: =IF('Formulaire de saisie'!T27>0,'Formulaire de saisie'!T27/SUM('Formulaire de saisie'!P27:T27),0) -> 0
A34: 0 | C34: Frais de mise en marché (plan conjoint, transport, encan) | H34: 0 | I34: 2699.625 | J34: =IF($F34<>"",$F34*H34,IF(H1="",,HLOOKUP(H$1,CECPA!$B$1:$T$53,18,FALSE))*K$3) -> 0 | K34: 0 | L34: 0 | M34: 0 | N34: Frais de mise en marché | O34: =IF($F34<>"",$F34*M34,IF(M1="",,HLOOKUP(M$1,CECPA!$B$1:$T$53,18,FALSE))*P$3) -> 0 | P34: 0 | Q34: 0 | R34: 0 | S34: Frais de mise en marché | T34: =IF($F34<>"",$F34*R34,IF(R1="",,HLOOKUP(R$1,CECPA!$B$1:$T$53,18,FALSE))*U$3) -> 0 | U34: 0 | V34: 0 | W34: 0 | X34: =IF($F34<>"",$F34*W34,IF(W1="",,HLOOKUP(W$1,CECPA!$B$1:$T$53,18,FALSE))*Y$3) -> 0 | Y34: 0 | Z34: 0 | AA34: 0 | AB34: =IF($F34<>"",$F34*AA34,IF(AA1="",,HLOOKUP(AA$1,CECPA!$B$1:$T$53,18,FALSE))*AC$3) -> 0 | AC34: 0 | AD34: 0 | AG34: 0 | AH34: 0 | AI34: 0 | AJ34: 0 | AK34: 0 | AL34: 0 | AM34: 0 | AN34: =IF(OR(ISBLANK($H$1),ISBLANK($K$3),ISBLANK($K$5)),0,HLOOKUP($H$1,CECPA!$B$1:$T$53,18,FALSE))*($K$3+$K$12) -> 0 | AO34: =IF(OR(ISBLANK($M$1),ISBLANK($P$3),ISBLANK($P$5)),0,HLOOKUP($M$1,CECPA!$B$1:$T$53,18,FALSE))*($P$3+$P$12) -> 0 | AP34: =IF(OR(ISBLANK($R$1),ISBLANK($U$3),ISBLANK($U$5)),0,HLOOKUP($R$1,CECPA!$B$1:$T$53,18,FALSE))*($U$3+$U$12) -> 0 | AQ34: =IF(OR(ISBLANK($W$1),ISBLANK($Y$3),ISBLANK($Y$5)),0,HLOOKUP($W$1,CECPA!$B$1:$T$53,18,FALSE))*($Y$3+$Y$12) -> 0 | AR34: =IF(OR(ISBLANK($AA$1),ISBLANK($AC$3),ISBLANK($AC$5)),0,HLOOKUP($AA$1,CECPA!$B$1:$T$53,18,FALSE))*($AC$3+$AC$12) -> 0 | AS34: 0 | AT34: 0 | AU34: 0 | AV34: 0 | AW34: 0 | AX34: =IF($AG$5,IF(SUM('Formulaire de saisie'!P28:T28)>0,BE34,$H34),AS34) -> 0 | AY34: =IF($AG$5,IF(SUM('Formulaire de saisie'!P28:T28)>0,BF34,$M34),AT34) -> 0 | AZ34: =IF($AG$5,IF(SUM('Formulaire de saisie'!P28:T28)>0,BG34,$R34),AU34) -> 0 | BA34: =IF($AG$5,IF(SUM('Formulaire de saisie'!P28:T28)>0,BH34,$W34),AV34) -> 0 | BB34: =IF($AG$5,IF(SUM('Formulaire de saisie'!P28:T28)>0,BI34,$AA34),AW34) -> 0 | BE34: =IF('Formulaire de saisie'!P28>0,'Formulaire de saisie'!P28/SUM('Formulaire de saisie'!P28:T28),0) -> 0 | BF34: =IF('Formulaire de saisie'!Q28>0,'Formulaire de saisie'!Q28/SUM('Formulaire de saisie'!P28:T28),0) -> 0 | BG34: =IF('Formulaire de saisie'!R28>0,'Formulaire de saisie'!R28/SUM('Formulaire de saisie'!P28:T28),0) -> 0 | BH34: =IF('Formulaire de saisie'!S28>0,'Formulaire de saisie'!S28/SUM('Formulaire de saisie'!P28:T28),0) -> 0 | BI34: =IF('Formulaire de saisie'!T28>0,'Formulaire de saisie'!T28/SUM('Formulaire de saisie'!P28:T28),0) -> 0
A35: 0 | C35: Contribution des AGRI et ASRA | H35: 0 | J35: =IF($F35<>"",$F35*H35,IF(H1="",,HLOOKUP(H$1,CECPA!$B$1:$T$53,29,FALSE))*K$3) -> 0 | K35: 0 | L35: 0 | M35: 0 | O35: =IF($F35<>"",$F35*M35,IF(M1="",,HLOOKUP(M$1,CECPA!$B$1:$T$53,29,FALSE))*P$3) -> 0 | P35: 0 | Q35: 0 | R35: 0 | T35: =IF($F35<>"",$F35*R35,IF(R1="",,HLOOKUP(R$1,CECPA!$B$1:$T$53,29,FALSE))*U$3) -> 0 | U35: 0 | V35: 0 | W35: 0 | X35: =IF($F35<>"",$F35*W35,IF(W1="",,HLOOKUP(W$1,CECPA!$B$1:$T$53,29,FALSE))*Y$3) -> 0 | Y35: 0 | Z35: 0 | AA35: 0 | AB35: =IF($F35<>"",$F35*AA35,IF(AA1="",,HLOOKUP(AA$1,CECPA!$B$1:$T$53,29,FALSE))*AC$3) -> 0 | AC35: 0 | AD35: 0 | AG35: 0 | AH35: 0 | AI35: 0 | AJ35: 0 | AK35: 0 | AL35: 0 | AM35: 0 | AN35: =IF(OR(ISBLANK($H$1),ISBLANK($K$3),ISBLANK($K$5)),0,HLOOKUP($H$1,CECPA!$B$1:$T$53,29,FALSE))*($K$3+$K$12) -> 0 | AO35: =IF(OR(ISBLANK($M$1),ISBLANK($P$3),ISBLANK($P$5)),0,HLOOKUP($M$1,CECPA!$B$1:$T$53,29,FALSE))*($P$3+$P$12) -> 0 | AP35: =IF(OR(ISBLANK($R$1),ISBLANK($U$3),ISBLANK($U$5)),0,HLOOKUP($R$1,CECPA!$B$1:$T$53,29,FALSE))*($U$3+$U$12) -> 0 | AQ35: =IF(OR(ISBLANK($W$1),ISBLANK($Y$3),ISBLANK($Y$5)),0,HLOOKUP($W$1,CECPA!$B$1:$T$53,29,FALSE))*($Y$3+$Y$12) -> 0 | AR35: =IF(OR(ISBLANK($AA$1),ISBLANK($AC$3),ISBLANK($AC$5)),0,HLOOKUP($AA$1,CECPA!$B$1:$T$53,29,FALSE))*($AC$3+$AC$12) -> 0 | AS35: 0 | AT35: 0 | AU35: 0 | AV35: 0 | AW35: 0 | AX35: =IF($AG$5,IF(SUM('Formulaire de saisie'!P29:T29)>0,BE35,$H35),AS35) -> 0 | AY35: =IF($AG$5,IF(SUM('Formulaire de saisie'!P29:T29)>0,BF35,$M35),AT35) -> 0 | AZ35: =IF($AG$5,IF(SUM('Formulaire de saisie'!P29:T29)>0,BG35,$R35),AU35) -> 0 | BA35: =IF($AG$5,IF(SUM('Formulaire de saisie'!P29:T29)>0,BH35,$W35),AV35) -> 0 | BB35: =IF($AG$5,IF(SUM('Formulaire de saisie'!P29:T29)>0,BI35,$AA35),AW35) -> 0 | BE35: =IF('Formulaire de saisie'!P29>0,'Formulaire de saisie'!P29/SUM('Formulaire de saisie'!P29:T29),0) -> 0 | BF35: =IF('Formulaire de saisie'!Q29>0,'Formulaire de saisie'!Q29/SUM('Formulaire de saisie'!P29:T29),0) -> 0 | BG35: =IF('Formulaire de saisie'!R29>0,'Formulaire de saisie'!R29/SUM('Formulaire de saisie'!P29:T29),0) -> 0 | BH35: =IF('Formulaire de saisie'!S29>0,'Formulaire de saisie'!S29/SUM('Formulaire de saisie'!P29:T29),0) -> 0 | BI35: =IF('Formulaire de saisie'!T29>0,'Formulaire de saisie'!T29/SUM('Formulaire de saisie'!P29:T29),0) -> 0
A36: 0 | C36: Contribution d'autres programmes | H36: 0 | I36: 14120.85 | J36: =IF($F36<>"",$F36*H36,IF(H1="",,HLOOKUP(H$1,CECPA!$B$1:$T$53,30,FALSE))*K$3) -> 0 | K36: 0 | L36: 0 | M36: 0 | N36: Contribution ASRA | O36: =IF($F36<>"",$F36*M36,IF(M1="",,HLOOKUP(M$1,CECPA!$B$1:$T$53,30,FALSE))*P$3) -> 0 | P36: 0 | Q36: 0 | R36: 0 | S36: Contribution ASRA | T36: =IF($F36<>"",$F36*R36,IF(R1="",,HLOOKUP(R$1,CECPA!$B$1:$T$53,30,FALSE))*U$3) -> 0 | U36: 0 | V36: 0 | W36: 0 | X36: =IF($F36<>"",$F36*W36,IF(W1="",,HLOOKUP(W$1,CECPA!$B$1:$T$53,30,FALSE))*Y$3) -> 0 | Y36: 0 | Z36: 0 | AA36: 0 | AB36: =IF($F36<>"",$F36*AA36,IF(AA1="",,HLOOKUP(AA$1,CECPA!$B$1:$T$53,30,FALSE))*AC$3) -> 0 | AC36: 0 | AD36: 0 | AG36: 0 | AH36: 0 | AI36: 0 | AJ36: 0 | AK36: 0 | AL36: 0 | AM36: 0 | AN36: =IF(OR(ISBLANK($H$1),ISBLANK($K$3),ISBLANK($K$5)),0,HLOOKUP($H$1,CECPA!$B$1:$T$53,30,FALSE))*($K$3+$K$12) -> 0 | AO36: =IF(OR(ISBLANK($M$1),ISBLANK($P$3),ISBLANK($P$5)),0,HLOOKUP($M$1,CECPA!$B$1:$T$53,30,FALSE))*($P$3+$P$12) -> 0 | AP36: =IF(OR(ISBLANK($R$1),ISBLANK($U$3),ISBLANK($U$5)),0,HLOOKUP($R$1,CECPA!$B$1:$T$53,30,FALSE))*($U$3+$U$12) -> 0 | AQ36: =IF(OR(ISBLANK($W$1),ISBLANK($Y$3),ISBLANK($Y$5)),0,HLOOKUP($W$1,CECPA!$B$1:$T$53,30,FALSE))*($Y$3+$Y$12) -> 0 | AR36: =IF(OR(ISBLANK($AA$1),ISBLANK($AC$3),ISBLANK($AC$5)),0,HLOOKUP($AA$1,CECPA!$B$1:$T$53,30,FALSE))*($AC$3+$AC$12) -> 0 | AS36: 0 | AT36: 0 | AU36: 0 | AV36: 0 | AW36: 0 | AX36: =IF($AG$5,IF(SUM('Formulaire de saisie'!P30:T30)>0,BE36,$H36),AS36) -> 0 | AY36: =IF($AG$5,IF(SUM('Formulaire de saisie'!P30:T30)>0,BF36,$M36),AT36) -> 0 | AZ36: =IF($AG$5,IF(SUM('Formulaire de saisie'!P30:T30)>0,BG36,$R36),AU36) -> 0 | BA36: =IF($AG$5,IF(SUM('Formulaire de saisie'!P30:T30)>0,BH36,$W36),AV36) -> 0 | BB36: =IF($AG$5,IF(SUM('Formulaire de saisie'!P30:T30)>0,BI36,$AA36),AW36) -> 0 | BE36: =IF('Formulaire de saisie'!P30>0,'Formulaire de saisie'!P30/SUM('Formulaire de saisie'!P30:T30),0) -> 0 | BF36: =IF('Formulaire de saisie'!Q30>0,'Formulaire de saisie'!Q30/SUM('Formulaire de saisie'!P30:T30),0) -> 0 | BG36: =IF('Formulaire de saisie'!R30>0,'Formulaire de saisie'!R30/SUM('Formulaire de saisie'!P30:T30),0) -> 0 | BH36: =IF('Formulaire de saisie'!S30>0,'Formulaire de saisie'!S30/SUM('Formulaire de saisie'!P30:T30),0) -> 0 | BI36: =IF('Formulaire de saisie'!T30>0,'Formulaire de saisie'!T30/SUM('Formulaire de saisie'!P30:T30),0) -> 0
A37: 0 | C37: Achat d'animaux | H37: 0 | I37: 2245.95 | J37: =IF($F37<>"",$F37*H37,IF(H1="",,HLOOKUP(H$1,CECPA!$B$1:$T$53,25,FALSE))*K$3) -> 0 | K37: 0 | L37: 0 | M37: 0 | N37: Contribution autres programmes | O37: =IF($F37<>"",$F37*M37,IF(M1="",,HLOOKUP(M$1,CECPA!$B$1:$T$53,25,FALSE))*P$3) -> 0 | P37: 0 | Q37: 0 | R37: 0 | S37: Contribution autres programmes | T37: =IF($F37<>"",$F37*R37,IF(R1="",,HLOOKUP(R$1,CECPA!$B$1:$T$53,25,FALSE))*U$3) -> 0 | U37: 0 | V37: 0 | W37: 0 | X37: =IF($F37<>"",$F37*W37,IF(W1="",,HLOOKUP(W$1,CECPA!$B$1:$T$53,25,FALSE))*Y$3) -> 0 | Y37: 0 | Z37: 0 | AA37: 0 | AB37: =IF($F37<>"",$F37*AA37,IF(AA1="",,HLOOKUP(AA$1,CECPA!$B$1:$T$53,25,FALSE))*AC$3) -> 0 | AC37: 0 | AD37: 0 | AG37: 0 | AH37: 0 | AI37: 0 | AJ37: 0 | AK37: 0 | AL37: 0 | AM37: 0 | AN37: =IF(OR(ISBLANK($H$1),ISBLANK($K$3),ISBLANK($K$5)),0,HLOOKUP($H$1,CECPA!$B$1:$T$53,25,FALSE))*($K$3+$K$12) -> 0 | AO37: =IF(OR(ISBLANK($M$1),ISBLANK($P$3),ISBLANK($P$5)),0,HLOOKUP($M$1,CECPA!$B$1:$T$53,25,FALSE))*($P$3+$P$12) -> 0 | AP37: =IF(OR(ISBLANK($R$1),ISBLANK($U$3),ISBLANK($U$5)),0,HLOOKUP($R$1,CECPA!$B$1:$T$53,25,FALSE))*($U$3+$U$12) -> 0 | AQ37: =IF(OR(ISBLANK($W$1),ISBLANK($Y$3),ISBLANK($Y$5)),0,HLOOKUP($W$1,CECPA!$B$1:$T$53,25,FALSE))*($Y$3+$Y$12) -> 0 | AR37: =IF(OR(ISBLANK($AA$1),ISBLANK($AC$3),ISBLANK($AC$5)),0,HLOOKUP($AA$1,CECPA!$B$1:$T$53,25,FALSE))*($AC$3+$AC$12) -> 0 | AS37: 0 | AT37: 0 | AU37: 0 | AV37: 0 | AW37: 0 | AX37: =IF($AG$5,IF(SUM('Formulaire de saisie'!P31:T31)>0,BE37,$H37),AS37) -> 0 | AY37: =IF($AG$5,IF(SUM('Formulaire de saisie'!P31:T31)>0,BF37,$M37),AT37) -> 0 | AZ37: =IF($AG$5,IF(SUM('Formulaire de saisie'!P31:T31)>0,BG37,$R37),AU37) -> 0 | BA37: =IF($AG$5,IF(SUM('Formulaire de saisie'!P31:T31)>0,BH37,$W37),AV37) -> 0 | BB37: =IF($AG$5,IF(SUM('Formulaire de saisie'!P31:T31)>0,BI37,$AA37),AW37) -> 0 | BE37: =IF('Formulaire de saisie'!P31>0,'Formulaire de saisie'!P31/SUM('Formulaire de saisie'!P31:T31),0) -> 0 | BF37: =IF('Formulaire de saisie'!Q31>0,'Formulaire de saisie'!Q31/SUM('Formulaire de saisie'!P31:T31),0) -> 0 | BG37: =IF('Formulaire de saisie'!R31>0,'Formulaire de saisie'!R31/SUM('Formulaire de saisie'!P31:T31),0) -> 0 | BH37: =IF('Formulaire de saisie'!S31>0,'Formulaire de saisie'!S31/SUM('Formulaire de saisie'!P31:T31),0) -> 0 | BI37: =IF('Formulaire de saisie'!T31>0,'Formulaire de saisie'!T31/SUM('Formulaire de saisie'!P31:T31),0) -> 0
A38: 0 | C38: Achat d'aliments | H38: 0 | J38: =IF($F38<>"",$F38*H38,IF(H1="",,HLOOKUP(H$1,CECPA!$B$1:$T$53,26,FALSE))*K$3) -> 0 | K38: 0 | L38: 0 | M38: 0 | O38: =IF($F38<>"",$F38*M38,IF(M1="",,HLOOKUP(M$1,CECPA!$B$1:$T$53,26,FALSE))*P$3) -> 0 | P38: 0 | Q38: 0 | R38: 0 | T38: =IF($F38<>"",$F38*R38,IF(R1="",,HLOOKUP(R$1,CECPA!$B$1:$T$53,26,FALSE))*U$3) -> 0 | U38: 0 | V38: 0 | W38: 0 | X38: =IF($F38<>"",$F38*W38,IF(W1="",,HLOOKUP(W$1,CECPA!$B$1:$T$53,26,FALSE))*Y$3) -> 0 | Y38: 0 | Z38: 0 | AA38: 0 | AB38: =IF($F38<>"",$F38*AA38,IF(AA1="",,HLOOKUP(AA$1,CECPA!$B$1:$T$53,26,FALSE))*AC$3) -> 0 | AC38: 0 | AD38: 0 | AG38: 0 | AH38: =IF($AM38>0,AN38/$AM38,0) -> 0 | AI38: 0 | AJ38: 0 | AK38: 0 | AL38: 0 | AM38: 0 | AN38: =IF(OR(ISBLANK($H$1),ISBLANK($K$3),ISBLANK($K$5)),0,HLOOKUP($H$1,CECPA!$B$1:$T$53,26,FALSE))*($K$3+$K$12) -> 0 | AO38: =IF(OR(ISBLANK($M$1),ISBLANK($P$3),ISBLANK($P$5)),0,HLOOKUP($M$1,CECPA!$B$1:$T$53,26,FALSE))*($P$3+$P$12) -> 0 | AP38: =IF(OR(ISBLANK($R$1),ISBLANK($U$3),ISBLANK($U$5)),0,HLOOKUP($R$1,CECPA!$B$1:$T$53,26,FALSE))*($U$3+$U$12) -> 0 | AQ38: =IF(OR(ISBLANK($W$1),ISBLANK($Y$3),ISBLANK($Y$5)),0,HLOOKUP($W$1,CECPA!$B$1:$T$53,26,FALSE))*($Y$3+$Y$12) -> 0 | AR38: =IF(OR(ISBLANK($AA$1),ISBLANK($AC$3),ISBLANK($AC$5)),0,HLOOKUP($AA$1,CECPA!$B$1:$T$53,26,FALSE))*($AC$3+$AC$12) -> 0 | AS38: 0 | AT38: 0 | AU38: 0 | AV38: 0 | AW38: 0 | AX38: =IF($AG$5,IF(SUM('Formulaire de saisie'!P32:T32)>0,BE38,$H38),AS38) -> 0 | AY38: =IF($AG$5,IF(SUM('Formulaire de saisie'!P32:T32)>0,BF38,$M38),AT38) -> 0 | AZ38: =IF($AG$5,IF(SUM('Formulaire de saisie'!P32:T32)>0,BG38,$R38),AU38) -> 0 | BA38: =IF($AG$5,IF(SUM('Formulaire de saisie'!P32:T32)>0,BH38,$W38),AV38) -> 0 | BB38: =IF($AG$5,IF(SUM('Formulaire de saisie'!P32:T32)>0,BI38,$AA38),AW38) -> 0 | BE38: =IF('Formulaire de saisie'!P32>0,'Formulaire de saisie'!P32/SUM('Formulaire de saisie'!P32:T32),0) -> 0 | BF38: =IF('Formulaire de saisie'!Q32>0,'Formulaire de saisie'!Q32/SUM('Formulaire de saisie'!P32:T32),0) -> 0 | BG38: =IF('Formulaire de saisie'!R32>0,'Formulaire de saisie'!R32/SUM('Formulaire de saisie'!P32:T32),0) -> 0 | BH38: =IF('Formulaire de saisie'!S32>0,'Formulaire de saisie'!S32/SUM('Formulaire de saisie'!P32:T32),0) -> 0 | BI38: =IF('Formulaire de saisie'!T32>0,'Formulaire de saisie'!T32/SUM('Formulaire de saisie'!P32:T32),0) -> 0
A39: 0 | C39: Médicaments, vétérinaire, insémination | H39: 0 | J39: =IF($F39<>"",$F39*H39,IF(H1="",,HLOOKUP(H$1,CECPA!$B$1:$T$53,27,FALSE))*K$3) -> 0 | K39: 0 | L39: 0 | M39: 0 | O39: =IF($F39<>"",$F39*M39,IF(M1="",,HLOOKUP(M$1,CECPA!$B$1:$T$53,27,FALSE))*P$3) -> 0 | P39: 0 | Q39: 0 | R39: 0 | T39: =IF($F39<>"",$F39*R39,IF(R1="",,HLOOKUP(R$1,CECPA!$B$1:$T$53,27,FALSE))*U$3) -> 0 | U39: 0 | V39: 0 | W39: 0 | X39: =IF($F39<>"",$F39*W39,IF(W1="",,HLOOKUP(W$1,CECPA!$B$1:$T$53,27,FALSE))*Y$3) -> 0 | Y39: 0 | Z39: 0 | AA39: 0 | AB39: =IF($F39<>"",$F39*AA39,IF(AA1="",,HLOOKUP(AA$1,CECPA!$B$1:$T$53,27,FALSE))*AC$3) -> 0 | AC39: 0 | AD39: 0 | AG39: 0 | AH39: 0 | AI39: 0 | AJ39: 0 | AK39: 0 | AL39: 0 | AM39: 0 | AN39: =IF(OR(ISBLANK($H$1),ISBLANK($K$3),ISBLANK($K$5)),0,HLOOKUP($H$1,CECPA!$B$1:$T$53,27,FALSE))*($K$3+$K$12) -> 0 | AO39: =IF(OR(ISBLANK($M$1),ISBLANK($P$3),ISBLANK($P$5)),0,HLOOKUP($M$1,CECPA!$B$1:$T$53,27,FALSE))*($P$3+$P$12) -> 0 | AP39: =IF(OR(ISBLANK($R$1),ISBLANK($U$3),ISBLANK($U$5)),0,HLOOKUP($R$1,CECPA!$B$1:$T$53,27,FALSE))*($U$3+$U$12) -> 0 | AQ39: =IF(OR(ISBLANK($W$1),ISBLANK($Y$3),ISBLANK($Y$5)),0,HLOOKUP($W$1,CECPA!$B$1:$T$53,27,FALSE))*($Y$3+$Y$12) -> 0 | AR39: =IF(OR(ISBLANK($AA$1),ISBLANK($AC$3),ISBLANK($AC$5)),0,HLOOKUP($AA$1,CECPA!$B$1:$T$53,27,FALSE))*($AC$3+$AC$12) -> 0 | AS39: 0 | AT39: 0 | AU39: 0 | AV39: 0 | AW39: 0 | AX39: =IF($AG$5,IF(SUM('Formulaire de saisie'!P33:T33)>0,BE39,$H39),AS39) -> 0 | AY39: =IF($AG$5,IF(SUM('Formulaire de saisie'!P33:T33)>0,BF39,$M39),AT39) -> 0 | AZ39: =IF($AG$5,IF(SUM('Formulaire de saisie'!P33:T33)>0,BG39,$R39),AU39) -> 0 | BA39: =IF($AG$5,IF(SUM('Formulaire de saisie'!P33:T33)>0,BH39,$W39),AV39) -> 0 | BB39: =IF($AG$5,IF(SUM('Formulaire de saisie'!P33:T33)>0,BI39,$AA39),AW39) -> 0 | BE39: =IF('Formulaire de saisie'!P33>0,'Formulaire de saisie'!P33/SUM('Formulaire de saisie'!P33:T33),0) -> 0 | BF39: =IF('Formulaire de saisie'!Q33>0,'Formulaire de saisie'!Q33/SUM('Formulaire de saisie'!P33:T33),0) -> 0 | BG39: =IF('Formulaire de saisie'!R33>0,'Formulaire de saisie'!R33/SUM('Formulaire de saisie'!P33:T33),0) -> 0 | BH39: =IF('Formulaire de saisie'!S33>0,'Formulaire de saisie'!S33/SUM('Formulaire de saisie'!P33:T33),0) -> 0 | BI39: =IF('Formulaire de saisie'!T33>0,'Formulaire de saisie'!T33/SUM('Formulaire de saisie'!P33:T33),0) -> 0
A40: 0 | C40: Litière | H40: 0 | J40: =IF($F40<>"",$F40*H40,IF(H1="",,HLOOKUP(H$1,CECPA!$B$1:$T$53,28,FALSE))*K$3) -> 0 | K40: =IF($K$3=0,0,J40/($K$3+$K$12)) -> 0 | L40: 0 | M40: 0 | O40: =IF($F40<>"",$F40*M40,IF(M1="",,HLOOKUP(M$1,CECPA!$B$1:$T$53,28,FALSE))*P$3) -> 0 | P40: 0 | Q40: 0 | R40: 0 | T40: =IF($F40<>"",$F40*R40,IF(R1="",,HLOOKUP(R$1,CECPA!$B$1:$T$53,28,FALSE))*U$3) -> 0 | U40: 0 | V40: 0 | W40: 0 | X40: =IF($F40<>"",$F40*W40,IF(W1="",,HLOOKUP(W$1,CECPA!$B$1:$T$53,28,FALSE))*Y$3) -> 0 | Y40: 0 | Z40: 0 | AA40: 0 | AB40: =IF($F40<>"",$F40*AA40,IF(AA1="",,HLOOKUP(AA$1,CECPA!$B$1:$T$53,28,FALSE))*AC$3) -> 0 | AC40: 0 | AD40: 0 | AG40: 0 | AH40: 0 | AI40: 0 | AJ40: 0 | AK40: 0 | AL40: 0 | AM40: 0 | AN40: =IF(OR(ISBLANK($H$1),ISBLANK($K$3),ISBLANK($K$5)),0,HLOOKUP($H$1,CECPA!$B$1:$T$53,28,FALSE))*($K$3+$K$12) -> 0 | AO40: =IF(OR(ISBLANK($M$1),ISBLANK($P$3),ISBLANK($P$5)),0,HLOOKUP($M$1,CECPA!$B$1:$T$53,28,FALSE))*($P$3+$P$12) -> 0 | AP40: =IF(OR(ISBLANK($R$1),ISBLANK($U$3),ISBLANK($U$5)),0,HLOOKUP($R$1,CECPA!$B$1:$T$53,28,FALSE))*($U$3+$U$12) -> 0 | AQ40: =IF(OR(ISBLANK($W$1),ISBLANK($Y$3),ISBLANK($Y$5)),0,HLOOKUP($W$1,CECPA!$B$1:$T$53,28,FALSE))*($Y$3+$Y$12) -> 0 | AR40: =IF(OR(ISBLANK($AA$1),ISBLANK($AC$3),ISBLANK($AC$5)),0,HLOOKUP($AA$1,CECPA!$B$1:$T$53,28,FALSE))*($AC$3+$AC$12) -> 0 | AS40: 0 | AT40: 0 | AU40: 0 | AV40: 0 | AW40: 0 | AX40: =IF($AG$5,IF(SUM('Formulaire de saisie'!P34:T34)>0,BE40,$H40),AS40) -> 0 | AY40: =IF($AG$5,IF(SUM('Formulaire de saisie'!P34:T34)>0,BF40,$M40),AT40) -> 0 | AZ40: =IF($AG$5,IF(SUM('Formulaire de saisie'!P34:T34)>0,BG40,$R40),AU40) -> 0 | BA40: =IF($AG$5,IF(SUM('Formulaire de saisie'!P34:T34)>0,BH40,$W40),AV40) -> 0 | BB40: =IF($AG$5,IF(SUM('Formulaire de saisie'!P34:T34)>0,BI40,$AA40),AW40) -> 0 | BE40: =IF('Formulaire de saisie'!P34>0,'Formulaire de saisie'!P34/SUM('Formulaire de saisie'!P34:T34),0) -> 0 | BF40: =IF('Formulaire de saisie'!Q34>0,'Formulaire de saisie'!Q34/SUM('Formulaire de saisie'!P34:T34),0) -> 0 | BG40: =IF('Formulaire de saisie'!R34>0,'Formulaire de saisie'!R34/SUM('Formulaire de saisie'!P34:T34),0) -> 0 | BH40: =IF('Formulaire de saisie'!S34>0,'Formulaire de saisie'!S34/SUM('Formulaire de saisie'!P34:T34),0) -> 0 | BI40: =IF('Formulaire de saisie'!T34>0,'Formulaire de saisie'!T34/SUM('Formulaire de saisie'!P34:T34),0) -> 0
A41: 0 | C41: Intérêt sur emprunt à court terme | G41: =IF(OR(H41+M41+R41+W41+AA41=0,H41+M41+R41+W41+AA41=100%),"",H41+M41+R41+W41+AA41) ->  | H41: 0 | J41: =IF($F41<>"",$F41*H41,IF(H1="",,HLOOKUP(H$1,CECPA!$B$1:$T$53,24,FALSE))*K$3) -> 0 | K41: =IF($K$3=0,0,J41/($K$3+$K$12)) -> 0 | L41: 0 | M41: 0 | O41: =IF($F41<>"",$F41*M41,IF(M1="",,HLOOKUP(M$1,CECPA!$B$1:$T$53,24,FALSE))*P$3) -> 0 | P41: 0 | Q41: 0 | R41: 0 | T41: =IF($F41<>"",$F41*R41,IF(R1="",,HLOOKUP(R$1,CECPA!$B$1:$T$53,24,FALSE))*U$3) -> 0 | U41: 0 | V41: 0 | W41: 0 | X41: =IF($F41<>"",$F41*W41,IF(W1="",,HLOOKUP(W$1,CECPA!$B$1:$T$53,24,FALSE))*Y$3) -> 0 | Y41: 0 | Z41: 0 | AA41: 0 | AB41: =IF($F41<>"",$F41*AA41,IF(AA1="",,HLOOKUP(AA$1,CECPA!$B$1:$T$53,24,FALSE))*AC$3) -> 0 | AC41: 0 | AD41: 0 | AG41: 0 | AH41: 0 | AI41: 0 | AJ41: 0 | AK41: 0 | AL41: 0 | AM41: 0 | AN41: =IF(OR(ISBLANK($H$1),ISBLANK($K$3),ISBLANK($K$5)),0,HLOOKUP($H$1,CECPA!$B$1:$T$53,24,FALSE))*($K$3+$K$12) -> 0 | AO41: =IF(OR(ISBLANK($M$1),ISBLANK($P$3),ISBLANK($P$5)),0,HLOOKUP($M$1,CECPA!$B$1:$T$53,24,FALSE))*($P$3+$P$12) -> 0 | AP41: =IF(OR(ISBLANK($R$1),ISBLANK($U$3),ISBLANK($U$5)),0,HLOOKUP($R$1,CECPA!$B$1:$T$53,24,FALSE))*($U$3+$U$12) -> 0 | AQ41: =IF(OR(ISBLANK($W$1),ISBLANK($Y$3),ISBLANK($Y$5)),0,HLOOKUP($W$1,CECPA!$B$1:$T$53,24,FALSE))*($Y$3+$Y$12) -> 0 | AR41: =IF(OR(ISBLANK($AA$1),ISBLANK($AC$3),ISBLANK($AC$5)),0,HLOOKUP($AA$1,CECPA!$B$1:$T$53,24,FALSE))*($AC$3+$AC$12) -> 0 | AS41: 0 | AT41: 0 | AU41: 0 | AV41: 0 | AW41: 0 | AX41: =IF($AG$5,IF(SUM('Formulaire de saisie'!P35:T35)>0,BE41,$H41),AS41) -> 0 | AY41: =IF($AG$5,IF(SUM('Formulaire de saisie'!P35:T35)>0,BF41,$M41),AT41) -> 0 | AZ41: =IF($AG$5,IF(SUM('Formulaire de saisie'!P35:T35)>0,BG41,$R41),AU41) -> 0 | BA41: =IF($AG$5,IF(SUM('Formulaire de saisie'!P35:T35)>0,BH41,$W41),AV41) -> 0 | BB41: =IF($AG$5,IF(SUM('Formulaire de saisie'!P35:T35)>0,BI41,$AA41),AW41) -> 0 | BE41: =IF('Formulaire de saisie'!P35>0,'Formulaire de saisie'!P35/SUM('Formulaire de saisie'!P35:T35),0) -> 0 | BF41: =IF('Formulaire de saisie'!Q35>0,'Formulaire de saisie'!Q35/SUM('Formulaire de saisie'!P35:T35),0) -> 0 | BG41: =IF('Formulaire de saisie'!R35>0,'Formulaire de saisie'!R35/SUM('Formulaire de saisie'!P35:T35),0) -> 0 | BH41: =IF('Formulaire de saisie'!S35>0,'Formulaire de saisie'!S35/SUM('Formulaire de saisie'!P35:T35),0) -> 0 | BI41: =IF('Formulaire de saisie'!T35>0,'Formulaire de saisie'!T35/SUM('Formulaire de saisie'!P35:T35),0) -> 0
A42: 0 | C42: Autres frais variables | G42: =IF(OR(H42+M42+R42+W42+AA42=0,H42+M42+R42+W42+AA42=100%),"",H42+M42+R42+W42+AA42) ->  | H42: 0 | J42: =IF($F42<>"",$F42*H42,IF(H1="",,HLOOKUP(H$1,CECPA!$B$1:$T$53,32,FALSE))*K$3) -> 0 | K42: =IF($P$3=0,0,J42/($K$3+$K$12)) -> 0 | L42: =IF($L$3=0,0,J42/($L$3+$L$12)) -> 0 | M42: 0 | O42: =IF($F42<>"",$F42*M42,IF(M1="",,HLOOKUP(M$1,CECPA!$B$1:$T$53,32,FALSE))*P$3) -> 0 | P42: =IF($P$3=0,0,O42/($P$3+$P$12)) -> 0 | Q42: =IF($Q$3=0,0,O42/($Q$3+$Q$12)) -> 0 | R42: 0 | T42: =IF($F42<>"",$F42*R42,IF(R1="",,HLOOKUP(R$1,CECPA!$B$1:$T$53,32,FALSE))*U$3) -> 0 | U42: =IF($U$3=0,0,T42/($U$3+$U$12)) -> 0 | V42: =IF($V$3=0,0,T42/($V$3+$V$12)) -> 0 | W42: 0 | X42: =IF($F42<>"",$F42*W42,IF(W1="",,HLOOKUP(W$1,CECPA!$B$1:$T$53,32,FALSE))*Y$3) -> 0 | Y42: =IF($Y$3=0,0,X42/($Y$3+$Y$12)) -> 0 | Z42: =IF($Z$3=0,0,X42/($Z$3+$Z$12)) -> 0 | AA42: 0 | AB42: =IF($F42<>"",$F42*AA42,IF(AA1="",,HLOOKUP(AA$1,CECPA!$B$1:$T$53,32,FALSE))*AC$3) -> 0 | AC42: =IF($AC$3=0,0,AB42/($AC$3+$AC$12)) -> 0 | AD42: =IF($AD$3=0,0,AB42/($AD$3+$AD$12)) -> 0 | AG42: =IF(F42<>0,1,0) -> 0 | AH42: ='Formulaire de saisie'!C41 ->  | AI42: ='Formulaire de saisie'!D41 ->  | AJ42: ='Formulaire de saisie'!E41 ->  | AK42: ='Formulaire de saisie'!F41 ->  | AL42: ='Formulaire de saisie'!G41 ->  | AS42: =AH42 ->  | AT42: =AI42 ->  | AU42: =AJ42 ->  | AV42: =AK42 ->  | AW42: =AL42 ->  | AX42: =IF($AG$5,IF(SUM('Formulaire de saisie'!P36:T36)>0,BE42,$H42),AS42) -> 0 | AY42: =IF($AG$5,IF(SUM('Formulaire de saisie'!P36:T36)>0,BF42,$M42),AT42) -> 0 | AZ42: =IF($AG$5,IF(SUM('Formulaire de saisie'!P36:T36)>0,BG42,$R42),AU42) -> 0 | BA42: =IF($AG$5,IF(SUM('Formulaire de saisie'!P36:T36)>0,BH42,$W42),AV42) -> 0 | BB42: =IF($AG$5,IF(SUM('Formulaire de saisie'!P36:T36)>0,BI42,$AA42),AW42) -> 0 | BE42: =IF('Formulaire de saisie'!P36>0,'Formulaire de saisie'!P36/SUM('Formulaire de saisie'!P36:T36),0) -> 0 | BF42: =IF('Formulaire de saisie'!Q36>0,'Formulaire de saisie'!Q36/SUM('Formulaire de saisie'!P36:T36),0) -> 0 | BG42: =IF('Formulaire de saisie'!R36>0,'Formulaire de saisie'!R36/SUM('Formulaire de saisie'!P36:T36),0) -> 0 | BH42: =IF('Formulaire de saisie'!S36>0,'Formulaire de saisie'!S36/SUM('Formulaire de saisie'!P36:T36),0) -> 0 | BI42: =IF('Formulaire de saisie'!T36>0,'Formulaire de saisie'!T36/SUM('Formulaire de saisie'!P36:T36),0) -> 0
A43: 1 | C43: Total des charges variables | F43: =J43+O43+T43+X43+AB43 -> 0 | G43: =J43+O43+T43+X43+AB43 -> 0 | J43: =SUM(J24:J42) -> 0 | K43: =SUM(K24:K42) -> 0 | L43: =SUM(L24:L42) -> 0 | N43: Charges variables activité | O43: =SUM(O24:O42) -> 0 | P43: =SUM(P24:P42) -> 0 | Q43: =SUM(Q24:Q42) -> 0 | S43: Charges variables activité | T43: =SUM(T24:T42) -> 0 | U43: =SUM(U24:U42) -> 0 | V43: =SUM(V24:V42) -> 0 | X43: =SUM(X24:X42) -> 0 | Y43: =SUM(Y24:Y42) -> 0 | Z43: =SUM(Z24:Z42) -> 0 | AB43: =SUM(AB24:AB42) -> 0 | AC43: =SUM(AC24:AC42) -> 0 | AD43: =SUM(AD24:AD42) -> 0
A44: 0 | C44: Marge avant ch. Fixes | F44: =F22-F43 -> 0 | G44: 0 | J44: =J22-J43 -> 0 | K44: =K22-K43 -> 0 | L44: =L22-L43 -> 0 | N44: MARGE AVANT CH. FIXES | O44: =O22-O43 -> 0 | P44: =P22-P43 -> 0 | Q44: =Q22-Q43 -> 0 | S44: MARGE AVANT CH. FIXES | T44: =T22-T43 -> 0 | U44: =U22-U43 -> 0 | V44: =V22-V43 -> 0 | X44: =X22-X43 -> 0 | Y44: =Y22-Y43 -> 0 | Z44: =Z22-Z43 -> 0 | AB44: =AB22-AB43 -> 0 | AC44: =AC22-AC43 -> 0 | AD44: =AD22-AD43 -> 0 | BE44: 0 | BF44: 0 | BG44: 0 | BH44: 0 | BI44: 0
A45: 1 | C45: CHARGES FIXES | G45: 0 | N45: CHARGES FIXES | S45: CHARGES FIXES | AG45: FALSE
A46: =IF(($AG$45),1,) -> 0 | C46: Entretien des bâtiments et fonds de terre | G46: =IF(OR(H46+M46+R46+W46+AA46=0,H46+M46+R46+W46+AA46=100%),"",H46+M46+R46+W46+AA46) ->  | H46: 0 | J46: =IF($F46<>"",$F46*H46,IF(H$1="",,HLOOKUP(H$1,CECPA!$B$1:$T$53,34,FALSE))*K$3) -> 0 | K46: =IF($K$3=0,0,J46/($K$3+$K$12)) -> 0 | L46: =IF($L$3=0,0,J46/($L$3+$L$12)) -> 0 | M46: 0 | N46: Entretien bâtiments et fonds de terre | O46: =IF($F46<>"",$F46*M46,IF(M$1="",,HLOOKUP(M$1,CECPA!$B$1:$T$53,34,FALSE))*P$3) -> 0 | P46: =IF($P$3=0,0,O46/($P$3+$P$12)) -> 0 | Q46: =IF($Q$3=0,0,O46/($Q$3+$Q$12)) -> 0 | R46: 0 | S46: Entretien bâtiments et fonds de terre | T46: =IF($F46<>"",$F46*R46,IF(R$1="",,HLOOKUP(R$1,CECPA!$B$1:$T$53,34,FALSE))*U$3) -> 0 | U46: =IF($U$3=0,0,T46/($U$3+$U$12)) -> 0 | V46: =IF($V$3=0,0,T46/($V$3+$V$12)) -> 0 | W46: 0 | X46: =IF($F46<>"",$F46*W46,IF(W$1="",,HLOOKUP(W$1,CECPA!$B$1:$T$53,34,FALSE))*Y$3) -> 0 | Y46: =IF($Y$3=0,0,X46/($Y$3+$Y$12)) -> 0 | Z46: =IF($Z$3=0,0,X46/($Z$3+$Z$12)) -> 0 | AA46: 0 | AB46: =IF($F46<>"",$F46*AA46,IF(AA$1="",,HLOOKUP(AA$1,CECPA!$B$1:$T$53,34,FALSE))*AC$3) -> 0 | AC46: =IF($AC$3=0,0,AB46/($AC$3+$AC$12)) -> 0 | AD46: =IF($AD$3=0,0,AB46/($AD$3+$AD$12)) -> 0 | AG46: =IF(F46<>0,1,0) -> 0 | AH46: =IF($AM46>0,AN46/$AM46,0) -> 0 | AI46: 0 | AJ46: 0 | AK46: 0 | AL46: 0 | AM46: =SUM(AN46:AR46) -> 0 | AN46: =IF(OR(ISBLANK($H$1),ISBLANK($K$3),ISBLANK($K$5)),0,HLOOKUP($H$1,CECPA!$B$1:$T$53,34,FALSE))*($K$3+$K$12) -> 0 | AO46: =IF(OR(ISBLANK($M$1),ISBLANK($P$3),ISBLANK($P$5)),0,HLOOKUP($M$1,CECPA!$B$1:$T$53,34,FALSE))*($P$3+$P$12) -> 0 | AP46: =IF(OR(ISBLANK($R$1),ISBLANK($U$3),ISBLANK($U$5)),0,HLOOKUP($R$1,CECPA!$B$1:$T$53,34,FALSE))*($U$3+$U$12) -> 0 | AQ46: =IF(OR(ISBLANK($W$1),ISBLANK($Y$3),ISBLANK($Y$5)),0,HLOOKUP($W$1,CECPA!$B$1:$T$53,34,FALSE))*($Y$3+$Y$12) -> 0 | AR46: =IF(OR(ISBLANK($AA$1),ISBLANK($AC$3),ISBLANK($AC$5)),0,HLOOKUP($AA$1,CECPA!$B$1:$T$53,34,FALSE))*($AC$3+$AC$12) -> 0 | AS46: =AH46 -> 0 | AT46: 0 | AU46: 0 | AV46: 0 | AW46: 0 | AX46: =IF($AG$5,IF(SUM('Formulaire de saisie'!P40:T40)>0,BE46,$H46),AS46) -> 0 | AY46: =IF($AG$5,IF(SUM('Formulaire de saisie'!P40:T40)>0,BF46,$M46),AT46) -> 0 | AZ46: =IF($AG$5,IF(SUM('Formulaire de saisie'!P40:T40)>0,BG46,$R46),AU46) -> 0 | BA46: =IF($AG$5,IF(SUM('Formulaire de saisie'!P40:T40)>0,BH46,$W46),AV46) -> 0 | BB46: =IF($AG$5,IF(SUM('Formulaire de saisie'!P40:T40)>0,BI46,$AA46),AW46) -> 0 | BE46: =IF('Formulaire de saisie'!P40>0,'Formulaire de saisie'!P40/SUM('Formulaire de saisie'!P40:T40),0) -> 0 | BF46: =IF('Formulaire de saisie'!Q40>0,'Formulaire de saisie'!Q40/SUM('Formulaire de saisie'!P40:T40),0) -> 0 | BG46: =IF('Formulaire de saisie'!R40>0,'Formulaire de saisie'!R40/SUM('Formulaire de saisie'!P40:T40),0) -> 0 | BH46: =IF('Formulaire de saisie'!S40>0,'Formulaire de saisie'!S40/SUM('Formulaire de saisie'!P40:T40),0) -> 0 | BI46: =IF('Formulaire de saisie'!T40>0,'Formulaire de saisie'!T40/SUM('Formulaire de saisie'!P40:T40),0) -> 0
A47: =IF(($AG$45),1,) -> 0 | C47: Assurances diverses | G47: =IF(OR(H47+M47+R47+W47+AA47=0,H47+M47+R47+W47+AA47=100%),"",H47+M47+R47+W47+AA47) ->  | H47: 0 | J47: =IF($F47<>"",$F47*H47,IF(H$1="",,HLOOKUP(H$1,CECPA!$B$1:$T$53,35,FALSE))*K$3) -> 0 | K47: =IF($K$3=0,0,J47/($K$3+$K$12)) -> 0 | L47: =IF($L$3=0,0,J47/($L$3+$L$12)) -> 0 | M47: 0 | N47: Assurances diverses | O47: =IF($F47<>"",$F47*M47,IF(M$1="",,HLOOKUP(M$1,CECPA!$B$1:$T$53,35,FALSE))*P$3) -> 0 | P47: =IF($P$3=0,0,O47/($P$3+$P$12)) -> 0 | Q47: =IF($Q$3=0,0,O47/($Q$3+$Q$12)) -> 0 | R47: 0 | S47: Assurances diverses | T47: =IF($F47<>"",$F47*R47,IF(R$1="",,HLOOKUP(R$1,CECPA!$B$1:$T$53,35,FALSE))*U$3) -> 0 | U47: =IF($U$3=0,0,T47/($U$3+$U$12)) -> 0 | V47: =IF($V$3=0,0,T47/($V$3+$V$12)) -> 0 | W47: 0 | X47: =IF($F47<>"",$F47*W47,IF(W$1="",,HLOOKUP(W$1,CECPA!$B$1:$T$53,35,FALSE))*Y$3) -> 0 | Y47: =IF($Y$3=0,0,X47/($Y$3+$Y$12)) -> 0 | Z47: =IF($Z$3=0,0,X47/($Z$3+$Z$12)) -> 0 | AA47: 0 | AB47: =IF($F47<>"",$F47*AA47,IF(AA$1="",,HLOOKUP(AA$1,CECPA!$B$1:$T$53,35,FALSE))*AC$3) -> 0 | AC47: =IF($AC$3=0,0,AB47/($AC$3+$AC$12)) -> 0 | AD47: =IF($AD$3=0,0,AB47/($AD$3+$AD$12)) -> 0 | AG47: =IF(F47<>0,1,0) -> 0 | AH47: 0 | AI47: 0 | AJ47: 0 | AK47: 0 | AL47: 0 | AM47: =SUM(AN47:AR47) -> 0 | AN47: =IF(OR(ISBLANK($H$1),ISBLANK($K$3),ISBLANK($K$5)),0,HLOOKUP($H$1,CECPA!$B$1:$T$53,35,FALSE))*($K$3+$K$12) -> 0 | AO47: =IF(OR(ISBLANK($M$1),ISBLANK($P$3),ISBLANK($P$5)),0,HLOOKUP($M$1,CECPA!$B$1:$T$53,35,FALSE))*($P$3+$P$12) -> 0 | AP47: =IF(OR(ISBLANK($R$1),ISBLANK($U$3),ISBLANK($U$5)),0,HLOOKUP($R$1,CECPA!$B$1:$T$53,35,FALSE))*($U$3+$U$12) -> 0 | AQ47: =IF(OR(ISBLANK($W$1),ISBLANK($Y$3),ISBLANK($Y$5)),0,HLOOKUP($W$1,CECPA!$B$1:$T$53,35,FALSE))*($Y$3+$Y$12) -> 0 | AR47: =IF(OR(ISBLANK($AA$1),ISBLANK($AC$3),ISBLANK($AC$5)),0,HLOOKUP($AA$1,CECPA!$B$1:$T$53,35,FALSE))*($AC$3+$AC$12) -> 0 | AS47: 0 | AT47: 0 | AU47: 0 | AV47: 0 | AW47: 0 | AX47: =IF($AG$5,IF(SUM('Formulaire de saisie'!P41:T41)>0,BE47,$H47),AS47) -> 0 | AY47: =IF($AG$5,IF(SUM('Formulaire de saisie'!P41:T41)>0,BF47,$M47),AT47) -> 0 | AZ47: =IF($AG$5,IF(SUM('Formulaire de saisie'!P41:T41)>0,BG47,$R47),AU47) -> 0 | BA47: =IF($AG$5,IF(SUM('Formulaire de saisie'!P41:T41)>0,BH47,$W47),AV47) -> 0 | BB47: =IF($AG$5,IF(SUM('Formulaire de saisie'!P41:T41)>0,BI47,$AA47),AW47) -> 0 | BE47: =IF('Formulaire de saisie'!P41>0,'Formulaire de saisie'!P41/SUM('Formulaire de saisie'!P41:T41),0) -> 0 | BF47: =IF('Formulaire de saisie'!Q41>0,'Formulaire de saisie'!Q41/SUM('Formulaire de saisie'!P41:T41),0) -> 0 | BG47: =IF('Formulaire de saisie'!R41>0,'Formulaire de saisie'!R41/SUM('Formulaire de saisie'!P41:T41),0) -> 0 | BH47: =IF('Formulaire de saisie'!S41>0,'Formulaire de saisie'!S41/SUM('Formulaire de saisie'!P41:T41),0) -> 0 | BI47: =IF('Formulaire de saisie'!T41>0,'Formulaire de saisie'!T41/SUM('Formulaire de saisie'!P41:T41),0) -> 0
A48: =IF(($AG$45),1,) -> 0 | C48: Taxes foncières | G48: =IF(OR(H48+M48+R48+W48+AA48=0,H48+M48+R48+W48+AA48=100%),"",H48+M48+R48+W48+AA48) ->  | H48: 0 | J48: =IF($F48<>"",$F48*H48,IF(H$1="",,HLOOKUP(H$1,CECPA!$B$1:$T$53,36,FALSE))*K$3) -> 0 | K48: =IF($K$3=0,0,J48/($K$3+$K$12)) -> 0 | L48: =IF($L$3=0,0,J48/($L$3+$L$12)) -> 0 | M48: 0 | N48: Taxes foncières | O48: =IF($F48<>"",$F48*M48,IF(M$1="",,HLOOKUP(M$1,CECPA!$B$1:$T$53,36,FALSE))*P$3) -> 0 | P48: =IF($P$3=0,0,O48/($P$3+$P$12)) -> 0 | Q48: =IF($Q$3=0,0,O48/($Q$3+$Q$12)) -> 0 | R48: 0 | S48: Taxes foncières | T48: =IF($F48<>"",$F48*R48,IF(R$1="",,HLOOKUP(R$1,CECPA!$B$1:$T$53,36,FALSE))*U$3) -> 0 | U48: =IF($U$3=0,0,T48/($U$3+$U$12)) -> 0 | V48: =IF($V$3=0,0,T48/($V$3+$V$12)) -> 0 | W48: 0 | X48: =IF($F48<>"",$F48*W48,IF(W$1="",,HLOOKUP(W$1,CECPA!$B$1:$T$53,36,FALSE))*Y$3) -> 0 | Y48: =IF($Y$3=0,0,X48/($Y$3+$Y$12)) -> 0 | Z48: =IF($Z$3=0,0,X48/($Z$3+$Z$12)) -> 0 | AA48: 0 | AB48: =IF($F48<>"",$F48*AA48,IF(AA$1="",,HLOOKUP(AA$1,CECPA!$B$1:$T$53,36,FALSE))*AC$3) -> 0 | AC48: =IF($AC$3=0,0,AB48/($AC$3+$AC$12)) -> 0 | AD48: =IF($AD$3=0,0,AB48/($AD$3+$AD$12)) -> 0 | AG48: =IF(F48<>0,1,0) -> 0 | AH48: 0 | AI48: 0 | AJ48: 0 | AK48: 0 | AL48: 0 | AM48: =SUM(AN48:AR48) -> 0 | AN48: =IF(OR(ISBLANK($H$1),ISBLANK($K$3),ISBLANK($K$5)),0,HLOOKUP($H$1,CECPA!$B$1:$T$53,36,FALSE))*($K$3+$K$12) -> 0 | AO48: =IF(OR(ISBLANK($M$1),ISBLANK($P$3),ISBLANK($P$5)),0,HLOOKUP($M$1,CECPA!$B$1:$T$53,36,FALSE))*($P$3+$P$12) -> 0 | AP48: =IF(OR(ISBLANK($R$1),ISBLANK($U$3),ISBLANK($U$5)),0,HLOOKUP($R$1,CECPA!$B$1:$T$53,36,FALSE))*($U$3+$U$12) -> 0 | AQ48: =IF(OR(ISBLANK($W$1),ISBLANK($Y$3),ISBLANK($Y$5)),0,HLOOKUP($W$1,CECPA!$B$1:$T$53,36,FALSE))*($Y$3+$Y$12) -> 0 | AR48: =IF(OR(ISBLANK($AA$1),ISBLANK($AC$3),ISBLANK($AC$5)),0,HLOOKUP($AA$1,CECPA!$B$1:$T$53,36,FALSE))*($AC$3+$AC$12) -> 0 | AS48: 0 | AT48: 0 | AU48: 0 | AV48: 0 | AW48: 0 | AX48: =IF($AG$5,IF(SUM('Formulaire de saisie'!P42:T42)>0,BE48,$H48),AS48) -> 0 | AY48: =IF($AG$5,IF(SUM('Formulaire de saisie'!P42:T42)>0,BF48,$M48),AT48) -> 0 | AZ48: =IF($AG$5,IF(SUM('Formulaire de saisie'!P42:T42)>0,BG48,$R48),AU48) -> 0 | BA48: =IF($AG$5,IF(SUM('Formulaire de saisie'!P42:T42)>0,BH48,$W48),AV48) -> 0 | BB48: =IF($AG$5,IF(SUM('Formulaire de saisie'!P42:T42)>0,BI48,$AA48),AW48) -> 0 | BE48: =IF('Formulaire de saisie'!P42>0,'Formulaire de saisie'!P42/SUM('Formulaire de saisie'!P42:T42),0) -> 0 | BF48: =IF('Formulaire de saisie'!Q42>0,'Formulaire de saisie'!Q42/SUM('Formulaire de saisie'!P42:T42),0) -> 0 | BG48: =IF('Formulaire de saisie'!R42>0,'Formulaire de saisie'!R42/SUM('Formulaire de saisie'!P42:T42),0) -> 0 | BH48: =IF('Formulaire de saisie'!S42>0,'Formulaire de saisie'!S42/SUM('Formulaire de saisie'!P42:T42),0) -> 0 | BI48: =IF('Formulaire de saisie'!T42>0,'Formulaire de saisie'!T42/SUM('Formulaire de saisie'!P42:T42),0) -> 0
A49: =IF(($AG$45),1,) -> 0 | C49: Intérêt sur emprunt MLT | G49: =IF(OR(H49+M49+R49+W49+AA49=0,H49+M49+R49+W49+AA49=100%),"",H49+M49+R49+W49+AA49) ->  | H49: 0 | J49: =IF($F49<>"",$F49*H49,IF(H$1="",,HLOOKUP(H$1,CECPA!$B$1:$T$53,37,FALSE))*K$3) -> 0 | K49: =IF($K$3=0,0,J49/($K$3+$K$12)) -> 0 | L49: =IF($L$3=0,0,J49/($L$3+$L$12)) -> 0 | M49: 0 | N49: Intérêt sur emprunt MLT | O49: =IF($F49<>"",$F49*M49,IF(M$1="",,HLOOKUP(M$1,CECPA!$B$1:$T$53,37,FALSE))*P$3) -> 0 | P49: =IF($P$3=0,0,O49/($P$3+$P$12)) -> 0 | Q49: =IF($Q$3=0,0,O49/($Q$3+$Q$12)) -> 0 | R49: 0 | S49: Intérêt sur emprunt MLT | T49: =IF($F49<>"",$F49*R49,IF(R$1="",,HLOOKUP(R$1,CECPA!$B$1:$T$53,37,FALSE))*U$3) -> 0 | U49: =IF($U$3=0,0,T49/($U$3+$U$12)) -> 0 | V49: =IF($V$3=0,0,T49/($V$3+$V$12)) -> 0 | W49: 0 | X49: =IF($F49<>"",$F49*W49,IF(W$1="",,HLOOKUP(W$1,CECPA!$B$1:$T$53,37,FALSE))*Y$3) -> 0 | Y49: =IF($Y$3=0,0,X49/($Y$3+$Y$12)) -> 0 | Z49: =IF($Z$3=0,0,X49/($Z$3+$Z$12)) -> 0 | AA49: 0 | AB49: =IF($F49<>"",$F49*AA49,IF(AA$1="",,HLOOKUP(AA$1,CECPA!$B$1:$T$53,37,FALSE))*AC$3) -> 0 | AC49: =IF($AC$3=0,0,AB49/($AC$3+$AC$12)) -> 0 | AD49: =IF($AD$3=0,0,AB49/($AD$3+$AD$12)) -> 0 | AG49: =IF(F49<>0,1,0) -> 0 | AH49: 0 | AI49: 0 | AJ49: 0 | AK49: 0 | AL49: 0 | AM49: =SUM(AN49:AR49) -> 0 | AN49: =IF(OR(ISBLANK($H$1),ISBLANK($K$3),ISBLANK($K$5)),0,HLOOKUP($H$1,CECPA!$B$1:$T$53,37,FALSE))*($K$3+$K$12) -> 0 | AO49: =IF(OR(ISBLANK($M$1),ISBLANK($P$3),ISBLANK($P$5)),0,HLOOKUP($M$1,CECPA!$B$1:$T$53,37,FALSE))*($P$3+$P$12) -> 0 | AP49: =IF(OR(ISBLANK($R$1),ISBLANK($U$3),ISBLANK($U$5)),0,HLOOKUP($R$1,CECPA!$B$1:$T$53,37,FALSE))*($U$3+$U$12) -> 0 | AQ49: =IF(OR(ISBLANK($W$1),ISBLANK($Y$3),ISBLANK($Y$5)),0,HLOOKUP($W$1,CECPA!$B$1:$T$53,37,FALSE))*($Y$3+$Y$12) -> 0 | AR49: =IF(OR(ISBLANK($AA$1),ISBLANK($AC$3),ISBLANK($AC$5)),0,HLOOKUP($AA$1,CECPA!$B$1:$T$53,37,FALSE))*($AC$3+$AC$12) -> 0 | AS49: 0 | AT49: 0 | AU49: 0 | AV49: 0 | AW49: 0 | AX49: =IF($AG$5,IF(SUM('Formulaire de saisie'!P43:T43)>0,BE49,$H49),AS49) -> 0 | AY49: =IF($AG$5,IF(SUM('Formulaire de saisie'!P43:T43)>0,BF49,$M49),AT49) -> 0 | AZ49: =IF($AG$5,IF(SUM('Formulaire de saisie'!P43:T43)>0,BG49,$R49),AU49) -> 0 | BA49: =IF($AG$5,IF(SUM('Formulaire de saisie'!P43:T43)>0,BH49,$W49),AV49) -> 0 | BB49: =IF($AG$5,IF(SUM('Formulaire de saisie'!P43:T43)>0,BI49,$AA49),AW49) -> 0 | BE49: =IF('Formulaire de saisie'!P43>0,'Formulaire de saisie'!P43/SUM('Formulaire de saisie'!P43:T43),0) -> 0 | BF49: =IF('Formulaire de saisie'!Q43>0,'Formulaire de saisie'!Q43/SUM('Formulaire de saisie'!P43:T43),0) -> 0 | BG49: =IF('Formulaire de saisie'!R43>0,'Formulaire de saisie'!R43/SUM('Formulaire de saisie'!P43:T43),0) -> 0 | BH49: =IF('Formulaire de saisie'!S43>0,'Formulaire de saisie'!S43/SUM('Formulaire de saisie'!P43:T43),0) -> 0 | BI49: =IF('Formulaire de saisie'!T43>0,'Formulaire de saisie'!T43/SUM('Formulaire de saisie'!P43:T43),0) -> 0
A50: =IF(($AG$45),1,) -> 0 | C50: Autres frais fixes | G50: =IF(OR(H50+M50+R50+W50+AA50=0,H50+M50+R50+W50+AA50=100%),"",H50+M50+R50+W50+AA50) ->  | H50: 0 | J50: =IF($F50<>"",$F50*H50,IF(H$1="",,HLOOKUP(H$1,CECPA!$B$1:$T$53,38,FALSE))*K$3) -> 0 | K50: =IF($K$3=0,0,J50/($K$3+$K$12)) -> 0 | L50: =IF($L$3=0,0,J50/($L$3+$L$12)) -> 0 | M50: 0 | N50: Autres frais fixes | O50: =IF($F50<>"",$F50*M50,IF(M$1="",,HLOOKUP(M$1,CECPA!$B$1:$T$53,38,FALSE))*P$3) -> 0 | P50: =IF($P$3=0,0,O50/($P$3+$P$12)) -> 0 | Q50: =IF($Q$3=0,0,O50/($Q$3+$Q$12)) -> 0 | R50: 0 | S50: Autres frais fixes | T50: =IF($F50<>"",$F50*R50,IF(R$1="",,HLOOKUP(R$1,CECPA!$B$1:$T$53,38,FALSE))*U$3) -> 0 | U50: =IF($U$3=0,0,T50/($U$3+$U$12)) -> 0 | V50: =IF($V$3=0,0,T50/($V$3+$V$12)) -> 0 | W50: 0 | X50: =IF($F50<>"",$F50*W50,IF(W$1="",,HLOOKUP(W$1,CECPA!$B$1:$T$53,38,FALSE))*Y$3) -> 0 | Y50: =IF($Y$3=0,0,X50/($Y$3+$Y$12)) -> 0 | Z50: =IF($Z$3=0,0,X50/($Z$3+$Z$12)) -> 0 | AA50: 0 | AB50: =IF($F50<>"",$F50*AA50,IF(AA$1="",,HLOOKUP(AA$1,CECPA!$B$1:$T$53,38,FALSE))*AC$3) -> 0 | AC50: =IF($AC$3=0,0,AB50/($AC$3+$AC$12)) -> 0 | AD50: =IF($AD$3=0,0,AB50/($AD$3+$AD$12)) -> 0 | AG50: =IF(F50<>0,1,0) -> 0 | AH50: 0 | AI50: 0 | AJ50: 0 | AK50: 0 | AL50: 0 | AM50: =SUM(AN50:AR50) -> 0 | AN50: =IF(OR(ISBLANK($H$1),ISBLANK($K$3),ISBLANK($K$5)),0,HLOOKUP($H$1,CECPA!$B$1:$T$53,38,FALSE))*($K$3+$K$12) -> 0 | AO50: =IF(OR(ISBLANK($M$1),ISBLANK($P$3),ISBLANK($P$5)),0,HLOOKUP($M$1,CECPA!$B$1:$T$53,38,FALSE))*($P$3+$P$12) -> 0 | AP50: =IF(OR(ISBLANK($R$1),ISBLANK($U$3),ISBLANK($U$5)),0,HLOOKUP($R$1,CECPA!$B$1:$T$53,38,FALSE))*($U$3+$U$12) -> 0 | AQ50: =IF(OR(ISBLANK($W$1),ISBLANK($Y$3),ISBLANK($Y$5)),0,HLOOKUP($W$1,CECPA!$B$1:$T$53,38,FALSE))*($Y$3+$Y$12) -> 0 | AR50: =IF(OR(ISBLANK($AA$1),ISBLANK($AC$3),ISBLANK($AC$5)),0,HLOOKUP($AA$1,CECPA!$B$1:$T$53,38,FALSE))*($AC$3+$AC$12) -> 0 | AS50: 0 | AT50: 0 | AU50: 0 | AV50: 0 | AW50: 0 | AX50: =IF($AG$5,IF(SUM('Formulaire de saisie'!P44:T44)>0,BE50,$H50),AS50) -> 0 | AY50: =IF($AG$5,IF(SUM('Formulaire de saisie'!P44:T44)>0,BF50,$M50),AT50) -> 0 | AZ50: =IF($AG$5,IF(SUM('Formulaire de saisie'!P44:T44)>0,BG50,$R50),AU50) -> 0 | BA50: =IF($AG$5,IF(SUM('Formulaire de saisie'!P44:T44)>0,BH50,$W50),AV50) -> 0 | BB50: =IF($AG$5,IF(SUM('Formulaire de saisie'!P44:T44)>0,BI50,$AA50),AW50) -> 0 | BE50: =IF('Formulaire de saisie'!P44>0,'Formulaire de saisie'!P44/SUM('Formulaire de saisie'!P44:T44),0) -> 0 | BF50: =IF('Formulaire de saisie'!Q44>0,'Formulaire de saisie'!Q44/SUM('Formulaire de saisie'!P44:T44),0) -> 0 | BG50: =IF('Formulaire de saisie'!R44>0,'Formulaire de saisie'!R44/SUM('Formulaire de saisie'!P44:T44),0) -> 0 | BH50: =IF('Formulaire de saisie'!S44>0,'Formulaire de saisie'!S44/SUM('Formulaire de saisie'!P44:T44),0) -> 0 | BI50: =IF('Formulaire de saisie'!T44>0,'Formulaire de saisie'!T44/SUM('Formulaire de saisie'!P44:T44),0) -> 0
A51: 1 | C51: Total des charges fixes | F51: =J51+O51+T51+X51+AB51 -> 0 | G51: 0 | J51: =SUM(J46:J50) -> 0 | K51: =SUM(K46:K50) -> 0 | L51: =SUM(L46:L50) -> 0 | N51: Charges fixes activité | O51: =SUM(O46:O50) -> 0 | P51: =SUM(P46:P50) -> 0 | Q51: =SUM(Q46:Q50) -> 0 | S51: Charges fixes activité | T51: =SUM(T46:T50) -> 0 | U51: =SUM(U46:U50) -> 0 | V51: =SUM(V46:V50) -> 0 | X51: =SUM(X46:X50) -> 0 | Y51: =SUM(Y46:Y50) -> 0 | Z51: =SUM(Z46:Z50) -> 0 | AB51: =SUM(AB46:AB50) -> 0 | AC51: =SUM(AC46:AC50) -> 0 | AD51: =SUM(AD46:AD50) -> 0
A52: 1 | C52: CHARGES TOTALES | F52: =F43+F51 -> 0 | G52: 0 | J52: =J43+J51 -> 0 | K52: =K43+K51 -> 0 | L52: =L43+L51 -> 0 | N52: Total des charges activité | O52: =O43+O51 -> 0 | P52: =P43+P51 -> 0 | Q52: =Q43+Q51 -> 0 | S52: Total des charges activité | T52: =T43+T51 -> 0 | U52: =U43+U51 -> 0 | V52: =V43+V51 -> 0 | X52: =X43+X51 -> 0 | Y52: =Y43+Y51 -> 0 | Z52: =Z43+Z51 -> 0 | AB52: =AB43+AB51 -> 0 | AC52: =AC43+AC51 -> 0 | AD52: =AD43+AD51 -> 0 | AG52: TRUE
A53: 1
A54: 1 | C54: BÉNÉFICE D'EXPLOITATION | F54: =F22-F52-F62 -> 0 | G54: 0 | J54: =J22-J52-J62 -> 0 | K54: =K22-K52 -> 0 | L54: =L22-L52 -> 0 | N54: Bénéfice exploitation réparti | O54: =O22-O52-O62 -> 0 | P54: =P22-P52 -> 0 | Q54: =Q22-Q52 -> 0 | S54: Bénéfice exploitation réparti | T54: =T22-T52-T62 -> 0 | U54: =U22-U52 -> 0 | V54: =V22-V52 -> 0 | X54: =X22-X52-X62 -> 0 | Y54: =Y22-Y52 -> 0 | Z54: =Z22-Z52 -> 0 | AB54: =AB22-AB52-AB62 -> 0 | AC54: =AC22-AC52 -> 0 | AD54: =AD22-AD52 -> 0
A55: =IF(($AG$52),1,) -> 1 | C55: Retrait des propriétaires | G55: =IF(OR(H55+M55+R55+W55+AA55=0,H55+M55+R55+W55+AA55=100%),"",H55+M55+R55+W55+AA55) ->  | H55: 0 | J55: =H55*F55 -> 0 | K55: =IF($K$3=0,0,J55/($K$3+$K$12)) -> 0 | L55: =IF($L$3=0,0,J55/($L$3+$L$12)) -> 0 | M55: 0 | N55: Retrait des propriétaires | O55: =F55*M55 -> 0 | P55: =IF($P$3=0,0,O55/($P$3+$P$12)) -> 0 | Q55: =IF($Q$3=0,0,O55/($Q$3+$Q$12)) -> 0 | R55: 0 | S55: Retrait des propriétaires | T55: =F55*R55 -> 0 | U55: =IF($U$3=0,0,T55/($U$3+$U$12)) -> 0 | V55: =IF($V$3=0,0,T55/($V$3+$V$12)) -> 0 | W55: 0 | X55: =F55*W55 -> 0 | Y55: =IF($Y$3=0,0,X55/($Y$3+$Y$12)) -> 0 | Z55: =IF($Z$3=0,0,X55/($Z$3+$Z$12)) -> 0 | AA55: 0 | AB55: =F55*AA55 -> 0 | AC55: =IF($AC$3=0,0,AB55/($AC$3+$AC$12)) -> 0 | AD55: =IF($AD$3=0,0,AB55/($AD$3+$AD$12)) -> 0 | AG55: =IF(F55<>0,1,0) -> 0 | AH55: =AH63 -> 0 | AI55: =AI63 -> 0 | AJ55: =AJ63 -> 0 | AK55: =AK63 -> 0 | AL55: =AL63 -> 0 | AS55: =AH55 -> 0 | AT55: =AI55 -> 0 | AU55: =AJ55 -> 0 | AV55: =AK55 -> 0 | AW55: =AL55 -> 0 | AX55: =IF($AG$5,$H55,AS55) -> 0 | AY55: =IF($AG$5,$M55,AT55) -> 0 | AZ55: =IF($AG$5,$R55,AU55) -> 0 | BA55: =IF($AG$5,$W55,AV55) -> 0 | BB55: =IF($AG$5,$AA55,AW55) -> 0
A56: 1 | C56: BÉNÉFICE NET | F56: =F54-F55 -> 0 | J56: =J54-J55 -> 0 | K56: =K54-K55 -> 0 | L56: =L54-L55 -> 0 | N56: Bénéfice net réparti | O56: =O54-O55 -> 0 | P56: =P54-P55 -> 0 | Q56: =Q54-Q55 -> 0 | S56: Bénéfice net réparti | T56: =T54-T55 -> 0 | U56: =U54-U55 -> 0 | V56: =V54-V55 -> 0 | X56: =X54-X55 -> 0 | Y56: =Y54-Y55 -> 0 | Z56: =Z54-Z55 -> 0 | AB56: =AB54-AB55 -> 0 | AC56: =AC54-AC55 -> 0 | AD56: =AD54-AD55 -> 0
A57: =IF(($AG$52),1,) -> 1 | C57: Nbre. d'exploitants-propriétaires
A58: 1 | AG58: TRUE
A59: 0 | C59: Prix cible sans les programmes | AC59: =IF($AC$3=0," ",AB59/$AC$3) ->  | AD59: =IF($AD$3=0," ",AB59/$AD$3) ->  | AG59: TRUE
A60: =IF(($AG$59),1,) -> 1 | C60: Charges variables | F60: =F43 -> 0 | G60: =J60+O60+T60+X60+AB60 -> 0 | J60: =J43 -> 0 | K60: =IF($K$3=0,0,J60/($K$3+$K$12)) -> 0 | L60: =IF($L$3=0,0,J60/($L$3+$L$12)) -> 0 | O60: =O43 -> 0 | P60: =IF($P$3=0,0,O60/($P$3+$P$12)) -> 0 | Q60: =IF($Q$3=0,0,O60/($Q$3+$Q$12)) -> 0 | T60: =T43 -> 0 | U60: =IF($U$3=0,0,T60/($U$3+$U$12)) -> 0 | V60: =IF($V$3=0,0,T60/($V$3+$V$12)) -> 0 | X60: =X43 -> 0 | Y60: =IF($Y$3=0,0,X60/($Y$3+$Y$12)) -> 0 | Z60: =IF($Z$3=0,0,X60/($Z$3+$Z$12)) -> 0 | AB60: =AB43 -> 0 | AC60: =IF($AC$3=0,0,AB60/($AC$3+$AC$12)) -> 0 | AD60: =IF($AD$3=0,0,AB60/($AD$3+$AD$12)) -> 0
A61: 1 | C61: (+)Charges fixes | F61: =F51 -> 0 | G61: =J61+O61+T61+X61+AB61 -> 0 | J61: =J51 -> 0 | K61: 0 | L61: 0 | O61: =O51 -> 0 | P61: 0 | Q61: 0 | T61: =T51 -> 0 | U61: 0 | V61: 0 | X61: =X51 -> 0 | Y61: 0 | Z61: 0 | AB61: =AB51 -> 0 | AC61: 0 | AD61: 0
A62: 1 | C62: (+) Amortissement bâtiment et machinerie | G62: =IF(OR(H62+M62+R62+W62+AA62=0,H62+M62+R62+W62+AA62=100%),"",H62+M62+R62+W62+AA62) ->  | H62: 0 | J62: =IF($F62<>"",$F62*H62,IF(H$1="",,HLOOKUP(H$1,CECPA!$B$1:$T$53,42,FALSE))*K$3) -> 0 | K62: 0 | L62: 0 | M62: 0 | O62: =IF($F62<>"",$F62*M62,IF(M$1="",,HLOOKUP(M$1,CECPA!$B$1:$T$53,42,FALSE))*P$3) -> 0 | P62: 0 | Q62: 0 | R62: 0 | T62: =IF($F62<>"",$F62*R62,IF(R$1="",,HLOOKUP(R$1,CECPA!$B$1:$T$53,42,FALSE))*U$3) -> 0 | U62: 0 | V62: 0 | W62: 0 | X62: =IF($F62<>"",$F62*W62,IF(W$1="",,HLOOKUP(W$1,CECPA!$B$1:$T$53,42,FALSE))*Y$3) -> 0 | Y62: 0 | Z62: 0 | AA62: 0 | AB62: =IF($F62<>"",$F62*AA62,IF(AA$1="",,HLOOKUP(AA$1,CECPA!$B$1:$T$53,42,FALSE))*AC$3) -> 0 | AC62: 0 | AD62: 0 | AG62: =IF(F62<>0,1,0) -> 0 | AH62: =IF($AM62>0,AN62/$AM62,0) -> 0 | AI62: 0 | AJ62: 0 | AK62: 0 | AL62: 0 | AM62: =SUM(AN62:AR62) -> 0 | AN62: =IF(OR(ISBLANK($H$1),ISBLANK($K$3),ISBLANK($K$5)),0,HLOOKUP($H$1,CECPA!$B$1:$T$53,42,FALSE))*($K$3+$K$12) -> 0 | AO62: =IF(OR(ISBLANK($M$1),ISBLANK($P$3),ISBLANK($P$5)),0,HLOOKUP($M$1,CECPA!$B$1:$T$53,42,FALSE))*($P$3+$P$12) -> 0 | AP62: =IF(OR(ISBLANK($R$1),ISBLANK($U$3),ISBLANK($U$5)),0,HLOOKUP($R$1,CECPA!$B$1:$T$53,42,FALSE))*($U$3+$U$12) -> 0 | AQ62: =IF(OR(ISBLANK($W$1),ISBLANK($Y$3),ISBLANK($Y$5)),0,HLOOKUP($W$1,CECPA!$B$1:$T$53,42,FALSE))*($Y$3+$Y$12) -> 0 | AR62: =IF(OR(ISBLANK($AA$1),ISBLANK($AC$3),ISBLANK($AC$5)),0,HLOOKUP($AA$1,CECPA!$B$1:$T$53,42,FALSE))*($AC$3+$AC$12) -> 0 | AS62: =AH62 -> 0 | AT62: 0 | AU62: 0 | AV62: 0 | AW62: 0 | AX62: =IF($AG$5,$H62,AS62) -> 0 | AY62: =IF($AG$5,$M62,AT62) -> 0 | AZ62: =IF($AG$5,$R62,AU62) -> 0 | BA62: =IF($AG$5,$W62,AV62) -> 0 | BB62: =IF($AG$5,$AA62,AW62) -> 0
A63: 1 | C63: (+) Rémunération de l'exploitant-propriétaire | D63: SOS | F63: =F57*61510 -> 0 | G63: =IF(OR(H63+M63+R63+W63+AA63=0,H63+M63+R63+W63+AA63=100%),"",H63+M63+R63+W63+AA63) ->  | H63: 0 | J63: =IF($F63>0,$F63*H63,IF(H$1="",,HLOOKUP(H$1,CECPA!$B$1:$T$53,43,FALSE))*K$3) -> 0 | K63: =IF($K$3=0,0,J63/($K$3+$K$12)) -> 0 | L63: =IF($L$3=0,0,J63/($L$3+$L$12)) -> 0 | M63: 0 | O63: =IF($F63>0,$F63*M63,IF(M$1="",,HLOOKUP(M$1,CECPA!$B$1:$T$53,43,FALSE))*P$3) -> 0 | P63: =IF($P$3=0,0,O63/($P$3+$P$12)) -> 0 | Q63: =IF($Q$3=0,0,O63/($Q$3+$Q$12)) -> 0 | R63: 0 | T63: =IF($F63>0,$F63*R63,IF(R$1="",,HLOOKUP(R$1,CECPA!$B$1:$T$53,43,FALSE))*U$3) -> 0 | U63: =IF($U$3=0,0,T63/($U$3+$U$12)) -> 0 | V63: =IF($V$3=0,0,T63/($V$3+$V$12)) -> 0 | W63: 0 | X63: =IF($F63>0,$F63*W63,IF(W$1="",,HLOOKUP(W$1,CECPA!$B$1:$T$53,43,FALSE))*Y$3) -> 0 | Y63: =IF($Y$3=0,0,X63/($Y$3+$Y$12)) -> 0 | Z63: =IF($Z$3=0,0,X63/($Z$3+$Z$12)) -> 0 | AA63: 0 | AB63: =IF($F63>0,$F63*AA63,IF(AA$1="",,HLOOKUP(AA$1,CECPA!$B$1:$T$53,43,FALSE))*AC$3) -> 0 | AC63: =IF($AC$3=0,0,AB63/($AC$3+$AC$12)) -> 0 | AD63: =IF($AD$3=0,0,AB63/($AD$3+$AD$12)) -> 0 | AH63: 0 | AI63: 0 | AJ63: 0 | AK63: 0 | AL63: 0 | AM63: =SUM(AN63:AR63) -> 0 | AN63: =IF(OR(ISBLANK($H$1),ISBLANK($K$3),ISBLANK($K$5)),0,HLOOKUP($H$1,CECPA!$B$1:$T$53,43,FALSE)*HLOOKUP($H$1,CECPA!$B$1:$T$53,48,FALSE)) -> 0 | AO63: =IF(OR(ISBLANK($M$1),ISBLANK($P$3),ISBLANK($P$5)),0,HLOOKUP($M$1,CECPA!$B$1:$T$53,43,FALSE)*HLOOKUP($M$1,CECPA!$B$1:$T$53,48,FALSE)) -> 0 | AP63: =IF(OR(ISBLANK($R$1),ISBLANK($U$3),ISBLANK($U$5)),0,HLOOKUP($R$1,CECPA!$B$1:$T$53,43,FALSE)*HLOOKUP($R$1,CECPA!$B$1:$T$53,48,FALSE)) -> 0 | AQ63: =IF(OR(ISBLANK($W$1),ISBLANK($Y$3),ISBLANK($Y$5)),0,HLOOKUP($W$1,CECPA!$B$1:$T$53,43,FALSE)*HLOOKUP($W$1,CECPA!$B$1:$T$53,48,FALSE)) -> 0 | AR63: =IF(OR(ISBLANK($AA$1),ISBLANK($AC$3),ISBLANK($AC$5)),0,HLOOKUP($AA$1,CECPA!$B$1:$T$53,43,FALSE)*HLOOKUP($AA$1,CECPA!$B$1:$T$53,48,FALSE)) -> 0 | AS63: 0 | AT63: 0 | AU63: 0 | AV63: 0 | AW63: 0 | AX63: =IF($AG$5,$H63,AS63) -> 0 | AY63: =IF($AG$5,$M63,AT63) -> 0 | AZ63: =IF($AG$5,$R63,AU63) -> 0 | BA63: =IF($AG$5,$W63,AV63) -> 0 | BB63: =IF($AG$5,$AA63,AW63) -> 0
A64: 1 | C64: (+) Rémunération de l'ADP | F64: =IF('Avoir Proprio'!$D$5>0,'Avoir Proprio'!$D$5,J64+O64+T64+X64+AB64) -> 0 | G64: =IF(OR(H64+M64+R64+W64+AA64=0,H64+M64+R64+W64+AA64=100%),"",H64+M64+R64+W64+AA64) ->  | H64: 0 | J64: =IF('Avoir Proprio'!$D$5>0,$F64*H64,IF(H$1="",,HLOOKUP(H$1,CECPA!$B$1:$T$53,44,FALSE))*K$3) -> 0 | K64: =IF($K$3=0,0,J64/($K$3+$K$12)) -> 0 | L64: =IF($L$3=0,0,J64/($L$3+$L$12)) -> 0 | M64: 0 | O64: =IF('Avoir Proprio'!$D$5>0,$F64*M64,IF(M$1="",,HLOOKUP(M$1,CECPA!$B$1:$T$53,44,FALSE))*P$3) -> 0 | P64: =IF($P$3=0,0,O64/($P$3+$P$12)) -> 0 | Q64: =IF($Q$3=0,0,O64/($Q$3+$Q$12)) -> 0 | R64: 0 | T64: =IF('Avoir Proprio'!$D$5>0,$F64*R64,IF(R$1="",,HLOOKUP(R$1,CECPA!$B$1:$T$53,44,FALSE))*U$3) -> 0 | U64: =IF($U$3=0,0,T64/($U$3+$U$12)) -> 0 | V64: =IF($V$3=0,0,T64/($V$3+$V$12)) -> 0 | W64: 0 | X64: =IF('Avoir Proprio'!$D$5>0,$F64*W64,IF(W$1="",,HLOOKUP(W$1,CECPA!$B$1:$T$53,44,FALSE))*Y$3) -> 0 | Y64: =IF($Y$3=0,0,X64/($Y$3+$Y$12)) -> 0 | Z64: =IF($Z$3=0,0,X64/($Z$3+$Z$12)) -> 0 | AA64: 0 | AB64: =IF('Avoir Proprio'!$D$5>0,$F64*AA64,IF(AA$1="",,HLOOKUP(AA$1,CECPA!$B$1:$T$53,44,FALSE))*AC$3) -> 0 | AC64: =IF($AC$3=0,0,AB64/($AC$3+$AC$12)) -> 0 | AD64: =IF($AD$3=0,0,AB64/($AD$3+$AD$12)) -> 0 | AG64: =IF(F64<>0,1,0) -> 0 | AH64: 0 | AI64: 0 | AJ64: 0 | AK64: 0 | AL64: 0 | AM64: =SUM(AN64:AR64) -> 0 | AN64: =IF(OR(ISBLANK($H$1),ISBLANK($K$3),ISBLANK($K$5)),0,HLOOKUP($H$1,CECPA!$B$1:$T$53,44,FALSE))*($K$3+$K$12) -> 0 | AO64: =IF(OR(ISBLANK($M$1),ISBLANK($P$3),ISBLANK($P$5)),0,HLOOKUP($M$1,CECPA!$B$1:$T$53,44,FALSE))*($P$3+$P$12) -> 0 | AP64: =IF(OR(ISBLANK($R$1),ISBLANK($U$3),ISBLANK($U$5)),0,HLOOKUP($R$1,CECPA!$B$1:$T$53,44,FALSE))*($U$3+$U$12) -> 0 | AQ64: =IF(OR(ISBLANK($W$1),ISBLANK($Y$3),ISBLANK($Y$5)),0,HLOOKUP($W$1,CECPA!$B$1:$T$53,44,FALSE))*($Y$3+$Y$12) -> 0 | AR64: =IF(OR(ISBLANK($AA$1),ISBLANK($AC$3),ISBLANK($AC$5)),0,HLOOKUP($AA$1,CECPA!$B$1:$T$53,44,FALSE))*($AC$3+$AC$12) -> 0 | AS64: 0 | AT64: 0 | AU64: 0 | AV64: 0 | AW64: 0 | AX64: =IF($AG$5,$H64,AS64) -> 0 | AY64: =IF($AG$5,$M64,AT64) -> 0 | AZ64: =IF($AG$5,$R64,AU64) -> 0 | BA64: =IF($AG$5,$W64,AV64) -> 0 | BB64: =IF($AG$5,$AA64,AW64) -> 0
A65: 1 | C65: (-) Revenus à déduire | F65: =-(F13+F14+F15+F16+F17+F18) -> 0 | J65: =-(J13+J14+J15+J16+J17+J18) -> 0 | K65: 0 | L65: 0 | O65: =-(O13+O14+O15+O16+O17+O18) -> 0 | P65: 0 | Q65: 0 | T65: =-(T13+T14+T15+T16+T17+T18) -> 0 | U65: 0 | V65: 0 | X65: =-(X13+X14+X15+X16+X17+X18) -> 0 | Y65: 0 | Z65: 0 | AB65: =-(AB13+AB14+AB15+AB16+AB17+AB18) -> 0 | AC65: 0 | AD65: 0
A66: 1 | C66: PRIX CIBLE | F66: =SUM(F60:F64)-F65 -> 0 | J66: =SUM(J60:J65) -> 0 | K66: 0 | L66: =IF($L$3=0,0,J66/($L$3+$L$12)) -> 0 | O66: =SUM(O60:O65) -> 0 | P66: 0 | Q66: 0 | T66: =SUM(T60:T65) -> 0 | U66: 0 | V66: 0 | X66: =SUM(X60:X65) -> 0 | Y66: 0 | Z66: 0 | AB66: =SUM(AB60:AB65) -> 0 | AC66: 0 | AD66: 0 | AG66: TRUE
A67: 0
A68: 0 | C68: Prix minimum
A69: =IF(($AG$66),1,) -> 1 | C69: Prix cible total | F69: =F66 -> 0 | J69: =J66 -> 0 | K69: =IF($K$3=0,0,J69/($K$3+$K$12)) -> 0 | L69: =IF($L$3=0,0,J69/($L$3+$L$12)) -> 0 | O69: =O66 -> 0 | P69: =IF($P$3=0,0,O69/($P$3+$P$12)) -> 0 | Q69: =IF($Q$3=0,0,O69/($Q$3+$Q$12)) -> 0 | T69: =T66 -> 0 | U69: =IF($U$3=0,0,T69/($U$3+$U$12)) -> 0 | V69: =IF($V$3=0,0,T69/($V$3+$V$12)) -> 0 | X69: =X66 -> 0 | Y69: =IF($Y$3=0,0,X69/($Y$3+$Y$12)) -> 0 | Z69: =IF($Z$3=0,0,X69/($Z$3+$Z$12)) -> 0 | AB69: =AB66 -> 0 | AC69: =IF($AC$3=0,0,AB69/($AC$3+$AC$12)) -> 0 | AD69: =IF($AD$3=0,0,AB69/($AD$3+$AD$12)) -> 0
A70: 1 | C70: (-) Amortissement bâtiment et machinerie | F70: =F62 -> 0 | J70: =J62 -> 0 | K70: 0 | L70: 0 | O70: =O62 -> 0 | P70: 0 | Q70: 0 | T70: =T62 -> 0 | U70: 0 | V70: 0 | X70: =X62 -> 0 | Y70: 0 | Z70: 0 | AB70: =AB62 -> 0 | AC70: 0 | AD70: 0
A71: 1 | C71: (-)Rémunération de l'exploitant-propriétaire | F71: =F63 -> 0 | J71: =J63 -> 0 | K71: 0 | L71: 0 | O71: =O63 -> 0 | P71: 0 | Q71: 0 | T71: =T63 -> 0 | U71: 0 | V71: 0 | X71: =X63 -> 0 | Y71: 0 | Z71: 0 | AB71: =AB63 -> 0 | AC71: 0 | AD71: 0
A72: 1 | C72: (-) Rémunération de l'ADP | F72: =F64 -> 0 | J72: =J64 -> 0 | K72: 0 | L72: 0 | O72: =O64 -> 0 | P72: 0 | Q72: 0 | T72: =T64 -> 0 | U72: 0 | V72: 0 | X72: =X64 -> 0 | Y72: 0 | Z72: 0 | AB72: =AB64 -> 0 | AC72: 0 | AD72: 0
A73: 1 | C73: (+) Versement capital emprunts MLT | G73: =IF(OR(H73+M73+R73+W73+AA73=0,H73+M73+R73+W73+AA73=100%),"",H73+M73+R73+W73+AA73) ->  | H73: 0 | J73: =$F73*H73 -> 0 | K73: =IF($K$3=0,0,J73/($K$3+$K$12)) -> 0 | L73: =IF($L$3=0,0,J73/($L$3+$L$12)) -> 0 | M73: 0 | O73: =$F73*M73 -> 0 | P73: =IF($P$3=0,0,O73/($P$3+$P$12)) -> 0 | Q73: =IF($Q$3=0,0,O73/($Q$3+$Q$12)) -> 0 | R73: 0 | T73: =$F73*R73 -> 0 | U73: =IF($U$3=0,0,T73/($U$3+$U$12)) -> 0 | V73: =IF($V$3=0,0,T73/($V$3+$V$12)) -> 0 | W73: 0 | X73: =$F73*W73 -> 0 | Y73: =IF($Y$3=0,0,X73/($Y$3+$Y$12)) -> 0 | Z73: =IF($Z$3=0,0,X73/($Z$3+$Z$12)) -> 0 | AA73: 0 | AB73: =$F73*AA73 -> 0 | AC73: =IF($AC$3=0,0,AB73/($AC$3+$AC$12)) -> 0 | AD73: =IF($AD$3=0,0,AB73/($AD$3+$AD$12)) -> 0 | AG73: =IF(F73<>0,1,0) -> 0 | AH73: ='Formulaire de saisie'!C41 ->  | AI73: ='Formulaire de saisie'!D41 ->  | AJ73: ='Formulaire de saisie'!E41 ->  | AK73: ='Formulaire de saisie'!F41 ->  | AL73: ='Formulaire de saisie'!G41 ->  | AS73: =AH73 ->  | AT73: =AI73 ->  | AU73: =AJ73 ->  | AV73: =AK73 ->  | AW73: =AL73 ->  | AX73: =IF($AG$5,$H73,AS73) -> 0 | AY73: =IF($AG$5,$M73,AT73) -> 0 | AZ73: =IF($AG$5,$R73,AU73) -> 0 | BA73: =IF($AG$5,$W73,AV73) -> 0 | BB73: =IF($AG$5,$AA73,AW73) -> 0
A74: 1 | C74: (+) Retrait du propriétaire | F74: =F55 -> 0 | J74: =J55 -> 0 | K74: 0 | L74: 0 | O74: =O55 -> 0 | P74: 0 | Q74: 0 | T74: =T55 -> 0 | U74: 0 | V74: 0 | X74: =X55 -> 0 | Y74: 0 | Z74: 0 | AB74: =AB55 -> 0 | AC74: 0 | AD74: 0
A75: 1 | C75: PRIX MINIMUM | F75: =F69-F70-F71-F72+F73+F74 -> 0 | J75: =J69-J70-J71-J72+J73+J74 -> 0 | K75: 0 | L75: =IF($L$3=0,0,J75/($L$3+$L$12)) -> 0 | O75: =O69-O70-O71-O72+O73+O74 -> 0 | P75: 0 | Q75: 0 | T75: =T69-T70-T71-T72+T73+T74 -> 0 | U75: 0 | V75: 0 | X75: =X69-X70-X71-X72+X73+X74 -> 0 | Y75: 0 | Z75: 0 | AB75: =AB69-AB70-AB71-AB72+AB73+AB74 -> 0 | AC75: 0 | AD75: 0
A76: 0 | C76: =C66 -> PRIX CIBLE | F76: =F66 -> 0 | J76: =J66 -> 0 | K76: =K66 -> 0 | L76: =L66 -> 0 | O76: =O66 -> 0 | P76: =P66 -> 0 | Q76: =Q66 -> 0 | T76: =T66 -> 0 | U76: =U66 -> 0 | V76: =V66 -> 0 | X76: =X66 -> 0 | Y76: =Y66 -> 0 | Z76: =Z66 -> 0 | AB76: =AB66 -> 0 | AC76: =AC66 -> 0 | AD76: =AD66 -> 0
A77: 0
A78: 0 | C78: Prix cible avec les programmes | F78: =F66-F14+F35 -> 0 | I78: =I66-I14 -> 0 | J78: =J66-J14 -> 0 | K78: =K66-K14 -> 0 | L78: =L66-L14 -> 0 | N78: =N66-N14 -> 0 | O78: =O66-O14 -> 0 | P78: =P66-P14 -> 0 | Q78: =Q66-Q14 -> 0 | S78: =S66-S14 -> 0 | T78: =T66-T14 -> 0 | U78: =U66-U14 -> 0 | V78: =V66-V14 -> 0 | X78: =X66-X14 -> 0 | Y78: =Y66-Y14 -> 0 | Z78: =Z66-Z14 -> 0 | AB78: =AB66-AB14 -> 0 | AC78: =AC66-AC14 -> 0 | AD78: =AD66-AD14 -> 0
A79: 0 | C79: Prix minimum avec les programmes | F79: =F75-F14+F35 -> 0 | I79: =I75-I14 -> 0 | J79: =J75-J14 -> 0 | K79: =K75-K14 -> 0 | L79: =L75-L14 -> 0 | N79: =N75-N14 -> 0 | O79: =O75-O14 -> 0 | P79: =P75-P14 -> 0 | Q79: =Q75-Q14 -> 0 | S79: =S75-S14 -> 0 | T79: =T75-T14 -> 0 | U79: =U75-U14 -> 0 | V79: =V75-V14 -> 0 | X79: =X75-X14 -> 0 | Y79: =Y75-Y14 -> 0 | Z79: =Z75-Z14 -> 0 | AB79: =AB75-AB14 -> 0 | AC79: =AC75-AC14 -> 0 | AD79: =AD75-AD14 -> 0
A80: 1
A81: 1 | C81: Coûts de production | F81: =(COUNTA('Formulaire de saisie'!C18:'Formulaire de saisie'!C36)+COUNTA('Formulaire de saisie'!G18:'Formulaire de saisie'!G22)+COUNTA('Formulaire de saisie'!G31:'Formulaire de saisie'!G33))/(22+IF(F37<>"",1,0)+IF(F38<>"",1,0)+IF(F39<>"",1,0)+IF(F40<>"",1,0)+IF(F42="",0,1)) -> 0
A82: 1 | C82: Mes charges variables | F82: =(COUNTA('Formulaire de saisie'!C18:'Formulaire de saisie'!C36))/(14+IF(F37<>"",1,0)+IF(F38<>"",1,0)+IF(F39<>"",1,0)+IF(F40<>"",1,0)+IF(F42="",0,1)) -> 0
A83: 1 | C83: Mes charges fixes | F83: =COUNTA('Formulaire de saisie'!G18:'Formulaire de saisie'!G22)/5 -> 0
C86: =IF('Formulaire de saisie'!D1=0,"",'Formulaire de saisie'!D1) ->  | F86: =IF('Formulaire de saisie'!G1=0,"",'Formulaire de saisie'!G1) -> 

Sheet Prévisions (hidden)
C1: Calcul prix cible et prix minimum | J1: Maïs-grain | N1: Blé humain | R1: Foin | V1: 0 | Z1: 0 | AJ1: Case à cocher | AK1: Données saisies (retenues) | AQ1: Formules (données de la sélection) | AW1: Données précédentes (vérif. Changement)
A2: 1 | C2: Prévisions | D2: =#REF! ->  | E2: =#REF! ->  | K2: ='Coûts de production'!K2 ->  | L2: ='Coûts de production'!L2 -> Qté. vendue | O2: ='Coûts de production'!P2 ->  | P2: ='Coûts de production'!Q2 -> Qté. vendue | S2: ='Coûts de production'!U2 ->  | T2: ='Coûts de production'!V2 -> Qté. vendue | W2: ='Coûts de production'!Y2 ->  | X2: ='Coûts de production'!Z2 -> Qté. vendue | AA2: ='Coûts de production'!AC2 ->  | AB2: ='Coûts de production'!AD2 -> Qté. vendue | AJ2: TRUE
A3: 1 | F3: ='Coûts de production'!F3 -> 0 | J3: =IF(J1=0," ",HLOOKUP($J$1,CECPA!$B$1:$T$53,51,FALSE)) -> Superficie (ha) | K3: 1 | L3: =IF(K3=0,0,K5*K3) -> 10 | N3: =IF(N1=0," ",HLOOKUP($J$1,CECPA!$B$1:$T$53,51,FALSE)) -> Superficie (ha) | P3: =IF(O3=0,0,O5*O3) -> 0 | R3: =IF(R1=0," ",HLOOKUP($J$1,CECPA!$B$1:$T$53,51,FALSE)) -> Superficie (ha) | T3: =IF(S3=0,0,S5*S3) -> 0 | V3: =IF(V1=0," ",HLOOKUP($J$1,CECPA!$B$1:$T$53,51,FALSE)) ->  | W3: 0 | X3: =IF(W3=0,0,W5*W3) -> 0 | Z3: =IF(Z1=0," ",HLOOKUP($J$1,CECPA!$B$1:$T$53,51,FALSE)) ->  | AA3: 0 | AB3: =IF(AA3=0,0,AA5*AA3) -> 0 | AK3: =IF(AND(J1<>AQ3,J1<>AW3,J1<>0),J1,AQ3) -> 0 | AL3: =IF(AND(N1<>AR3,N1<>AX3,N1<>0),N1,AR3) -> Blé humain | AM3: =IF(AND(R1<>AS3,R1<>AY3,R1<>0),R1,AS3) -> Foin | AN3: =IF(AND(V1<>AT3,V1<>AZ3,V1<>0),V1,AT3) -> 0 | AO3: =IF(AND(Z1<>AU3,Z1<>BA3,Z1<>0),Z1,AU3) -> 0 | AQ3: ='Coûts de production'!H1 -> 0 | AR3: ='Coûts de production'!M1 -> 0 | AS3: ='Coûts de production'!R1 -> 0 | AT3: ='Coûts de production'!W1 -> 0 | AU3: ='Coûts de production'!AA1 -> 0 | AW3: Maïs-grain | AX3: Soya | AY3: 0 | AZ3: 0 | BA3: 0
A4: 1 | F4: ='Coûts de production'!F4 -> 0 | J4: Total | K4: ='Coûts de production'!K4 ->  | L4: ='Coûts de production'!L4 ->  | N4: Total | O4: ='Coûts de production'!P4 ->  | P4: ='Coûts de production'!Q4 ->  | R4: Total | S4: ='Coûts de production'!U4 ->  | T4: ='Coûts de production'!V4 ->  | V4: Total | W4: ='Coûts de production'!Y4 ->  | X4: ='Coûts de production'!Z4 ->  | Z4: Total | AA4: ='Coûts de production'!AC4 ->  | AB4: ='Coûts de production'!AD4 ->  | AK4: =IF($AK$3="VIDER","",IF(AND(K3<>AQ4,K3<>AW4,K3<>0),K3,AQ4)) -> 0 | AL4: =IF(AL3="VIDER","",IF(AND(O3<>AR4,O3<>AX4,O3<>0),O3,AR4)) ->  | AM4: =IF(AM3="VIDER","",IF(AND(S3<>AS4,S3<>AY4,S3<>0),S3,AS4)) ->  | AN4: =IF(AN3="VIDER","",IF(AND(W3<>AT4,W3<>AZ4,W3<>0),W3,AT4)) -> 0 | AO4: =IF(AO3="VIDER","",IF(AND(AA3<>AU4,AA3<>BA4,AA3<>0),AA3,AU4)) -> 0 | AQ4: =IF(AK3<>AQ3,"",'Coûts de production'!K3) -> 0 | AR4: =IF(AL3<>AR3,"",'Coûts de production'!P3) ->  | AS4: =IF(AM3<>AS3,"",'Coûts de production'!U3) ->  | AT4: =IF(AN3<>AT3,"",'Coûts de production'!Y3) -> 0 | AU4: =IF(AO3<>AU3,"",'Coûts de production'!AC3) -> 0 | AW4: 1 | AZ4: 0 | BA4: 0
A5: 1 | J5: =IF(J1=0," ",HLOOKUP($J$1,CECPA!$B$1:$T$53,IF('Coûts de production'!$H$5="Kg",52,53),FALSE)) -> Rdt. (tm/ha) | K5: 10 | N5: =IF(N1=0," ",HLOOKUP($J$1,CECPA!$B$1:$T$53,IF('Coûts de production'!$H$5="Kg",52,53),FALSE)) -> Rdt. (tm/ha) | R5: =IF(R1=0," ",HLOOKUP($J$1,CECPA!$B$1:$T$53,IF('Coûts de production'!$H$5="Kg",52,53),FALSE)) -> Rdt. (tm/ha) | V5: =IF(V1=0," ",HLOOKUP($J$1,CECPA!$B$1:$T$53,IF('Coûts de production'!$H$5="Kg",52,53),FALSE)) ->  | W5: 0 | Z5: =IF(Z1=0," ",HLOOKUP($J$1,CECPA!$B$1:$T$53,IF('Coûts de production'!$H$5="Kg",52,53),FALSE)) ->  | AA5: 0 | AK5: =IF($AK$3="VIDER","",IF(AND(K5<>AQ5,K5<>AW5,K5<>0),K5,AQ5)) -> 0 | AL5: =IF(AL3="VIDER","",IF(AND(O5<>AR5,O5<>AX5,O5<>0),O5,AR5)) ->  | AM5: =IF(AM3="VIDER","",IF(AND(S5<>AS5,S5<>AY5,S5<>0),S5,AS5)) ->  | AN5: =IF(AN3="VIDER","",IF(AND(W5<>AT5,W5<>AZ5,W5<>0),W5,AT5)) -> 0 | AO5: =IF(AO3="VIDER","",IF(AND(AA5<>AU5,AA5<>BA5,AA5<>0),AA5,AU5)) -> 0 | AQ5: =IF(AK3<>AQ3,"",'Coûts de production'!K5) -> 0 | AR5: =IF(AL3<>AR3,"",'Coûts de production'!P5) ->  | AS5: =IF(AM3<>AS3,"",'Coûts de production'!U5) ->  | AT5: =IF(AN3<>AT3,"",'Coûts de production'!Y5) -> 0 | AU5: =IF(AO3<>AU3,"",'Coûts de production'!AC5) -> 0 | AW5: 10 | AZ5: 0 | BA5: 0
A6: 1 | C6: ='Coûts de production'!C6 -> PRODUITS | AG6: TRUE
A7: =IF(($AG$6),1,) -> 1 | C7: =J1 -> Maïs-grain | F7: =J7 -> 3000 | J7: 3000 | K7: =IF($K$3=0,"",J7/($K$3+$K$12)) -> 3000 | L7: =IF($L$3=0,"",J7/($L$3+$L$12)) -> 300 | AK7: =IF($AK$3="VIDER","",IF(AND(J7=AQ7,$AK$4<>$AQ$4),($AK$4+$AK$12)*'Coûts de production'!K7,IF(AND(J7<>AQ7,J7<>AW7,J7<>""),J7,AQ7))) -> 3000 | AQ7: =IF(AK3<>AQ3,"",'Coûts de production'!J7) -> 0 | AW7: 0
A8: =IF(($AG$6),1,) -> 1 | C8: =N1 -> Blé humain | F8: =N8 -> 0 | O8: =IF($O$3=0,"",N8/($O$3+$O$12)) ->  | P8: =IF($P$3=0,"",N8/($P$3+$P$12)) ->  | AL8: =IF($AL$3="VIDER","",IF(AND(N8=AR8,$AL$4<>$AR$4),($AL$4+$AL$12)*'Coûts de production'!P8,IF(AND(N8<>AR8,N8<>AX8,N8<>""),N8,AR8))) ->  | AR8: =IF(AL3<>AR3,"",'Coûts de production'!O8) -> 
A9: 1 | C9: =R1 -> Foin | F9: =R9 -> 0 | S9: =IF($S$3=0,"",R9/($S$3+$S$12)) ->  | T9: =IF($T$3=0,"",R9/($T$3+$T$12)) ->  | AM9: =IF($AM$3="VIDER","",IF(AND(R9=AS9,$AM$4<>$AS$4),($AM$4+$AM$12)*'Coûts de production'!U9,IF(AND(R9<>AS9,R9<>AY9,R9<>""),R9,AS9))) ->  | AS9: =IF(AM3<>AS3,"",'Coûts de production'!T9) -> 
A10: 1 | C10: =V1 -> 0 | F10: =V10 -> 0 | V10: 0 | W10: =IF($W$3=0,"",V10/($W$3+$W$12)) ->  | X10: =IF($X$3=0,"",V10/($X$3+$X$12)) ->  | AN10: =IF($AN$3="VIDER","",IF(AND(V10=AT10,$AN$4<>$AT$4),($AN$4+$AN$12)*'Coûts de production'!Y10,IF(AND(V10<>AT10,V10<>AZ10,V10<>""),V10,AT10))) -> 0 | AT10: =IF(AN3<>AT3,"",'Coûts de production'!X10) -> 0 | AZ10: 0
A11: 1 | C11: =Z1 -> 0 | F11: =Z11 -> 0 | Z11: 0 | AA11: =IF($AA$3=0,"",Z11/($AA$3+$AA$12)) ->  | AB11: =IF($AB$3=0,"",Z11/($AB$3+$AB$12)) ->  | AO11: =IF($AO$3="VIDER","",IF(AND(Z11=AU11,$AO$4<>$AU$4),($AO$4+$AO$12)*'Coûts de production'!AC11,IF(AND(Z11<>AU11,Z11<>BA11,Z11<>""),Z11,AU11))) -> 0 | AU11: =IF(AO3<>AU3,"",'Coûts de production'!AB11) -> 0 | BA11: 0
A12: 1 | C12: ='Coûts de production'!C12 -> Var. inv. animaux ou récolte à vendre | J12: 0 | K12: 0 | L12: 0 | V12: 0 | W12: 0 | X12: 0 | Z12: 0 | AA12: 0 | AB12: 0 | AK12: =IF(AK3="VIDER","",IF(AND(K12<>AQ12,K12<>AW12,K12<>""),K12,AQ12)) -> 0 | AL12: =IF(AL3="VIDER","",IF(AND(O12<>AR12,O12<>AX12,O12<>""),O12,AR12)) ->  | AM12: =IF(AM3="VIDER","",IF(AND(S12<>AS12,S12<>AY12,S12<>""),S12,AS12)) ->  | AN12: =IF(AN3="VIDER","",IF(AND(W12<>AT12,W12<>AZ12,W12<>""),W12,AT12)) -> 0 | AO12: =IF(AO3="VIDER","",IF(AND(AA12<>AU12,AA12<>BA12,AA12<>""),AA12,AU12)) -> 0 | AQ12: =IF(AK3<>AQ3,"",'Coûts de production'!K12) -> 0 | AR12: =IF(AL3<>AR3,"",'Coûts de production'!P12) ->  | AS12: =IF(AM3<>AS3,"",'Coûts de production'!U12) ->  | AT12: =IF(AN3<>AT3,"",'Coûts de production'!Y12) -> 0 | AU12: =IF(AO3<>AU3,"",'Coûts de production'!AC12) -> 0 | AW12: 0 | AZ12: 0 | BA12: 0
A13: 1 | C13: ='Coûts de production'!C13 -> Var. inv. troupeau et/ou cultures (intrants) | J13: 0 | K13: =IF($K$3=0,"",IF(AND($K$3='Coûts de production'!$K$3,'Coûts de production'!J13=J13),'Coûts de production'!K13,J13/($K$3+$K$12))) -> 0 | L13: =IF($L$3=0,"",IF(AND($L$3='Coûts de production'!$L$3,'Coûts de production'!J13=J13),'Coûts de production'!L13,J13/($L$3+$L$12))) -> 0 | O13: =IF($O$3=0,"",IF(AND($O$3='Coûts de production'!$P$3,'Coûts de production'!O13=N13),'Coûts de production'!P13,N13/($O$3+$O$12))) ->  | P13: =IF($P$3=0,"",IF(AND($P$3='Coûts de production'!$Q$3,'Coûts de production'!O13=N13),'Coûts de production'!Q13,N13/($P$3+$P$12))) ->  | S13: =IF($S$3=0,"",IF(AND($S$3='Coûts de production'!$U$3,'Coûts de production'!T13=R13),'Coûts de production'!U13,R13/($S$3+$S$12))) ->  | T13: =IF($T$3=0,"",IF(AND($T$3='Coûts de production'!$V$3,'Coûts de production'!T13=R13),'Coûts de production'!V13,R13/($T$3+$T$12))) ->  | V13: 0 | W13: =IF($W$3=0,"",IF(AND($W$3='Coûts de production'!$Y$3,'Coûts de production'!X13=V13),'Coûts de production'!Y13,V13/($W$3+$W$12))) ->  | X13: =IF($X$3=0,"",IF(AND($T$3='Coûts de production'!$V$3,'Coûts de production'!X13=V13),'Coûts de production'!Z13,V13/($X$3+$X$12))) ->  | Z13: 0 | AA13: =IF($AA$3=0,"",IF(AND($AA$3='Coûts de production'!$AC$3,'Coûts de production'!AB13=Z13),'Coûts de production'!AC13,Z13/($AA$3+$AA$12))) ->  | AB13: =IF($AB$3=0,"",IF(AND($AB$3='Coûts de production'!$AD$3,'Coûts de production'!AB13=Z13),'Coûts de production'!AD13,Z13/($AB$3+$AB$12))) ->  | AK13: =IF($AK$3="VIDER","",IF(AND(J13<>AQ13,J13<>AW13,J13<>""),J13,AQ13)) -> 0 | AL13: =IF($AL$3="VIDER","",IF(AND(N13<>AR13,N13<>AX13,N13<>""),N13,AR13)) ->  | AM13: =IF($AM$3="VIDER","",IF(AND(R13<>AS13,R13<>AY13,R13<>""),R13,AS13)) ->  | AN13: =IF($AN$3="VIDER","",IF(AND(V13<>AT13,V13<>AZ13,V13<>""),V13,AT13)) -> 0 | AO13: =IF($AO$3="VIDER","",IF(AND(Z13<>AU13,Z13<>BA13,Z13<>""),Z13,AU13)) -> 0 | AQ13: =IF(AK3<>AQ3,"",IF(AND($J$5="Rdt. (tm/ha)",$K$3<>'Coûts de production'!K$3),IF($L$3=0,"",$L$3*'Coûts de production'!L13),'Coûts de production'!J13)) -> 0 | AR13: =IF(AL3<>AR3,"",IF(AND($N$5="Rdt. (tm/ha)",$O$3<>'Coûts de production'!P$3),IF($P$3=0,"",$P$3*'Coûts de production'!Q13),'Coûts de production'!O13)) ->  | AS13: =IF(AM3<>AS3,"",IF(AND($R$5="Rdt. (tm/ha)",$S$3<>'Coûts de production'!U$3),IF($T$3=0,"",$T$3*'Coûts de production'!V13),'Coûts de production'!T13)) ->  | AT13: =IF(AN3<>AT3,"",IF(AND($V$5="Rdt. (tm/ha)",$W$3<>'Coûts de production'!Y$3),IF($X$3=0,"",$X$3*'Coûts de production'!Z13),'Coûts de production'!X13)) -> 0 | AU13: =IF(AO3<>AU3,"",IF(AND($Z$5="Rdt. (tm/ha)",$AA$3<>'Coûts de production'!AC$3),IF($AB$3=0,"",$AB$3*'Coûts de production'!AD13),'Coûts de production'!AB13)) -> 0 | AW13: 0 | AZ13: 0 | BA13: 0
A14: 1 | C14: ='Coûts de production'!C14 -> Compensation ASRA | J14: 0 | K14: =IF($K$3=0,"",IF(AND($K$3='Coûts de production'!$K$3,'Coûts de production'!J14=J14),'Coûts de production'!K14,J14/($K$3+$K$12))) -> 0 | L14: =IF($L$3=0,"",IF(AND($L$3='Coûts de production'!$L$3,'Coûts de production'!J14=J14),'Coûts de production'!L14,J14/($L$3+$L$12))) -> 0 | O14: =IF($O$3=0,"",IF(AND($O$3='Coûts de production'!$P$3,'Coûts de production'!O14=N14),'Coûts de production'!P14,N14/($O$3+$O$12))) ->  | P14: =IF($P$3=0,"",IF(AND($P$3='Coûts de production'!$Q$3,'Coûts de production'!O14=N14),'Coûts de production'!Q14,N14/($P$3+$P$12))) ->  | S14: =IF($S$3=0,"",IF(AND($S$3='Coûts de production'!$U$3,'Coûts de production'!T14=R14),'Coûts de production'!U14,R14/($S$3+$S$12))) ->  | T14: =IF($T$3=0,"",IF(AND($T$3='Coûts de production'!$V$3,'Coûts de production'!T14=R14),'Coûts de production'!V14,R14/($T$3+$T$12))) ->  | V14: 0 | W14: =IF($W$3=0,"",IF(AND($W$3='Coûts de production'!$Y$3,'Coûts de production'!X14=V14),'Coûts de production'!Y14,V14/($W$3+$W$12))) ->  | X14: =IF($X$3=0,"",IF(AND($T$3='Coûts de production'!$V$3,'Coûts de production'!X14=V14),'Coûts de production'!Z14,V14/($X$3+$X$12))) ->  | Z14: 0 | AA14: =IF($AA$3=0,"",IF(AND($AA$3='Coûts de production'!$AC$3,'Coûts de production'!AB14=Z14),'Coûts de production'!AC14,Z14/($AA$3+$AA$12))) ->  | AB14: =IF($AB$3=0,"",IF(AND($AB$3='Coûts de production'!$AD$3,'Coûts de production'!AB14=Z14),'Coûts de production'!AD14,Z14/($AB$3+$AB$12))) ->  | AK14: =IF($AK$3="VIDER","",IF(AND(J14=AQ14,$AK$4<>$AQ$4),($AK$4+$AK$12)*'Coûts de production'!K14,IF(AND(J14<>AQ14,J14<>AW14,J14<>""),J14,AQ14))) -> 0 | AL14: =IF($AL$3="VIDER","",IF(AND(N14=AR14,$AL$4<>$AR$4),($AL$4+$AL$12)*'Coûts de production'!P14,IF(AND(N14<>AR14,N14<>AX14,N14<>""),N14,AR14))) ->  | AM14: =IF($AM$3="VIDER","",IF(AND(R14=AS14,$AM$4<>$AS$4),($AM$4+$AM$12)*'Coûts de production'!U14,IF(AND(R14<>AS14,R14<>AY14,R14<>""),R14,AS14))) ->  | AN14: =IF($AN$3="VIDER","",IF(AND(V14=AT14,$AN$4<>$AT$4),($AN$4+$AN$12)*'Coûts de production'!Y14,IF(AND(V14<>AT14,V14<>AZ14,V14<>""),V14,AT14))) -> 0 | AO14: =IF($AO$3="VIDER","",IF(AND(Z14=AU14,$AO$4<>$AU$4),($AO$4+$AO$12)*'Coûts de production'!AC14,IF(AND(Z14<>AU14,Z14<>BA14,Z14<>""),Z14,AU14))) -> 0 | AQ14: =IF(AK3<>AQ3,"",IF(AND($J$5="Rdt. (tm/ha)",$K$3<>'Coûts de production'!K$3),IF($L$3=0,"",$L$3*'Coûts de production'!L14),'Coûts de production'!J14)) -> 0 | AR14: =IF(AL3<>AR3,"",IF(AND($N$5="Rdt. (tm/ha)",$O$3<>'Coûts de production'!P$3),IF($P$3=0,"",$P$3*'Coûts de production'!Q14),'Coûts de production'!O14)) ->  | AS14: =IF(AM3<>AS3,"",IF(AND($R$5="Rdt. (tm/ha)",$S$3<>'Coûts de production'!U$3),IF($T$3=0,"",$T$3*'Coûts de production'!V14),'Coûts de production'!T14)) ->  | AT14: =IF(AN3<>AT3,"",IF(AND($V$5="Rdt. (tm/ha)",$W$3<>'Coûts de production'!Y$3),IF($X$3=0,"",$X$3*'Coûts de production'!Z14),'Coûts de production'!X14)) -> 0 | AU14: =IF(AO3<>AU3,"",IF(AND($Z$5="Rdt. (tm/ha)",$AA$3<>'Coûts de production'!AC$3),IF($AB$3=0,"",$AB$3*'Coûts de production'!AD14),'Coûts de production'!AB14)) -> 0 | AW14: 0 | AZ14: 0 | BA14: 0
A15: 1 | C15: ='Coûts de production'!C17 -> Autres revenus | AK15: =IF(AK3="VIDER","",IF(AND(L12<>AQ15,L12<>AW15,L12<>""),L12,AQ15)) -> 0 | AL15: =IF(AL3="VIDER","",IF(AND(P12<>AR15,P12<>AX15,P12<>""),P12,AR15)) ->  | AM15: =IF(AM3="VIDER","",IF(AND(T12<>AS15,T12<>AY15,T12<>""),T12,AS15)) ->  | AN15: =IF(AN3="VIDER","",IF(AND(X12<>AT15,X12<>AZ15,X12<>""),X12,AT15)) -> 0 | AO15: =IF(AO3="VIDER","",IF(AND(AB12<>AU15,AB12<>BA15,AB12<>""),AB12,AU15)) -> 0 | AQ15: =IF(AK3<>AQ3,"",'Coûts de production'!L12) -> 0 | AR15: =IF(AL3<>AR3,"",'Coûts de production'!Q12) ->  | AS15: =IF(AM3<>AS3,"",'Coûts de production'!V12) ->  | AT15: =IF(AN3<>AT3,"",'Coûts de production'!Z12) -> 0 | AU15: =IF(AO3<>AU3,"",'Coûts de production'!AD12) -> 0 | AW15: 0 | AZ15: 0 | BA15: 0
A16: 1 | C16: ='Coûts de production'!C18 -> Autres revenus | F16: =J16+N16+R16+V16+Z16 -> -98 | H16: =IF($F16=0,"",J16/$F16) -> 1 | J16: -98 | K16: =IF($K$3=0,"",J16/($K$3+$K$12)) -> -98 | L16: =IF($L$3=0,"",J16/($L$3+$L$12)) -> -9.8 | M16: =IF($F16=0,"",N16/$F16) -> 0 | O16: =IF($O$3=0,"",IF(AND($O$3='Coûts de production'!$P$3,'Coûts de production'!O18=N16),'Coûts de production'!P18,N16/($O$3+$O$12))) ->  | P16: =IF($P$3=0,"",IF(AND($P$3='Coûts de production'!$Q$3,'Coûts de production'!O18=N16),'Coûts de production'!Q18,N16/($P$3+$P$12))) ->  | Q16: =IF($F16=0,"",R16/$F16) -> 0 | S16: =IF($S$3=0,"",IF(AND($S$3='Coûts de production'!$U$3,'Coûts de production'!T18=R16),'Coûts de production'!U18,R16/($S$3+$S$12))) ->  | T16: =IF($T$3=0,"",IF(AND($T$3='Coûts de production'!$V$3,'Coûts de production'!T18=R16),'Coûts de production'!V18,R16/($T$3+$T$12))) ->  | U16: =IF($F16=0,"",V16/$F16) -> 0 | V16: 0 | W16: =IF($W$3=0,"",IF(AND($W$3='Coûts de production'!$Y$3,'Coûts de production'!X18=V16),'Coûts de production'!Y18,V16/($W$3+$W$12))) ->  | X16: =IF($X$3=0,"",IF(AND($T$3='Coûts de production'!$V$3,'Coûts de production'!X18=V16),'Coûts de production'!Z18,V16/($X$3+$X$12))) ->  | Y16: =IF($F16=0,"",Z16/$F16) -> 0 | Z16: 0 | AA16: =IF($AA$3=0,"",IF(AND($AA$3='Coûts de production'!$AC$3,'Coûts de production'!AB18=Z16),'Coûts de production'!AC18,Z16/($AA$3+$AA$12))) ->  | AB16: =IF($AB$3=0,"",IF(AND($AB$3='Coûts de production'!$AD$3,'Coûts de production'!AB18=Z16),'Coûts de production'!AD18,Z16/($AB$3+$AB$12))) ->  | AK16: =IF($AK$3="VIDER","",IF(AND(J16=AQ16,$AK$4<>$AQ$4),($AK$4+$AK$12)*'Coûts de production'!K18,IF(AND(J16<>AQ16,J16<>AW16,J16<>""),J16,AQ16))) -> 0 | AL16: =IF($AL$3="VIDER","",IF(AND(N16=AR16,$AL$4<>$AR$4),($AL$4+$AL$12)*'Coûts de production'!P18,IF(AND(N16<>AR16,N16<>AX16,N16<>""),N16,AR16))) ->  | AM16: =IF($AM$3="VIDER","",IF(AND(R16=AS16,$AM$4<>$AS$4),($AM$4+$AM$12)*'Coûts de production'!U18,IF(AND(R16<>AS16,R16<>AY16,R16<>""),R16,AS16))) ->  | AN16: =IF($AN$3="VIDER","",IF(AND(V16=AT16,$AN$4<>$AT$4),($AN$4+$AN$12)*'Coûts de production'!Y18,IF(AND(V16<>AT16,V16<>AZ16,V16<>""),V16,AT16))) -> 0 | AO16: =IF($AO$3="VIDER","",IF(AND(Z16=AU16,$AO$4<>$AU$4),($AO$4+$AO$12)*'Coûts de production'!AC18,IF(AND(Z16<>AU16,Z16<>BA16,Z16<>""),Z16,AU16))) -> 0 | AQ16: =IF(AK3<>AQ3,"",IF(AND($J$5="Rdt. (tm/ha)",$K$3<>'Coûts de production'!K$3),IF($L$3=0,"",$L$3*'Coûts de production'!L18),'Coûts de production'!J18)) -> 0 | AR16: =IF(AL3<>AR3,"",IF(AND($N$5="Rdt. (tm/ha)",$O$3<>'Coûts de production'!P$3),IF($P$3=0,"",$P$3*'Coûts de production'!Q18),'Coûts de production'!O18)) ->  | AS16: =IF(AM3<>AS3,"",IF(AND($R$5="Rdt. (tm/ha)",$S$3<>'Coûts de production'!U$3),IF($T$3=0,"",$T$3*'Coûts de production'!V18),'Coûts de production'!T18)) ->  | AT16: =IF(AN3<>AT3,"",IF(AND($V$5="Rdt. (tm/ha)",$W$3<>'Coûts de production'!Y$3),IF($X$3=0,"",$X$3*'Coûts de production'!Z18),'Coûts de production'!X18)) -> 0 | AU16: =IF(AO3<>AU3,"",IF(AND($Z$5="Rdt. (tm/ha)",$AA$3<>'Coûts de production'!AC$3),IF($AB$3=0,"",$AB$3*'Coûts de production'!AD18),'Coûts de production'!AB18)) -> 0 | AW16: -98 | AZ16: 0 | BA16: 0
AK17: =IF($AK$3="VIDER","",IF(AND(J17<>AQ17,J17<>AW17,J17<>""),J17,AQ17)) ->  | AL17: =IF($AL$3="VIDER","",IF(AND(N17<>AR17,N17<>AX17,N17<>""),N17,AR17)) ->  | AM17: =IF($AM$3="VIDER","",IF(AND(R17<>AS17,R17<>AY17,R17<>""),R17,AS17)) ->  | AN17: =IF($AN$3="VIDER","",IF(AND(V17<>AT17,V17<>AZ17,V17<>""),V17,AT17)) ->  | AO17: =IF($AO$3="VIDER","",IF(AND(Z17<>AU17,Z17<>BA17,Z17<>""),Z17,AU17)) ->  | AQ17: =IF(AK4<>AQ4,"",IF(AND($J$5="Rdt. (tm/ha)",$K$3<>#REF!),IF($L$3=0,"",$L$3*#REF!),#REF!)) ->  | AR17: =IF(AL4<>AR4,"",IF(AND($N$5="Rdt. (tm/ha)",$O$3<>#REF!),IF($P$3=0,"",$P$3*#REF!),#REF!)) ->  | AS17: =IF(AM4<>AS4,"",IF(AND($R$5="Rdt. (tm/ha)",$S$3<>#REF!),IF($T$3=0,"",$T$3*#REF!),#REF!)) ->  | AT17: =IF(AN4<>AT4,"",IF(AND($V$5="Rdt. (tm/ha)",$W$3<>#REF!),IF($X$3=0,"",$X$3*#REF!),#REF!)) ->  | AU17: =IF(AO4<>AU4,"",IF(AND($Z$5="Rdt. (tm/ha)",$AA$3<>#REF!),IF($AB$3=0,"",$AB$3*#REF!),#REF!)) -> 
AK18: =IF($AK$3="VIDER","",IF(AND(J18<>AQ18,J18<>AW18,J18<>""),J18,AQ18)) ->  | AL18: =IF($AL$3="VIDER","",IF(AND(N18<>AR18,N18<>AX18,N18<>""),N18,AR18)) ->  | AM18: =IF($AM$3="VIDER","",IF(AND(R18<>AS18,R18<>AY18,R18<>""),R18,AS18)) ->  | AN18: =IF($AN$3="VIDER","",IF(AND(V18<>AT18,V18<>AZ18,V18<>""),V18,AT18)) ->  | AO18: =IF($AO$3="VIDER","",IF(AND(Z18<>AU18,Z18<>BA18,Z18<>""),Z18,AU18)) ->  | AQ18: =IF(AK5<>AQ5,"",IF(AND($J$5="Rdt. (tm/ha)",$K$3<>#REF!),IF($L$3=0,"",$L$3*#REF!),#REF!)) ->  | AR18: =IF(AL5<>AR5,"",IF(AND($N$5="Rdt. (tm/ha)",$O$3<>#REF!),IF($P$3=0,"",$P$3*#REF!),#REF!)) ->  | AS18: =IF(AM5<>AS5,"",IF(AND($R$5="Rdt. (tm/ha)",$S$3<>#REF!),IF($T$3=0,"",$T$3*#REF!),#REF!)) ->  | AT18: =IF(AN5<>AT5,"",IF(AND($V$5="Rdt. (tm/ha)",$W$3<>#REF!),IF($X$3=0,"",$X$3*#REF!),#REF!)) ->  | AU18: =IF(AO5<>AU5,"",IF(AND($Z$5="Rdt. (tm/ha)",$AA$3<>#REF!),IF($AB$3=0,"",$AB$3*#REF!),#REF!)) -> 
AK19: =IF($AK$3="VIDER","",IF(AND(J19<>AQ19,J19<>AW19,J19<>""),J19,AQ19)) ->  | AL19: =IF($AL$3="VIDER","",IF(AND(N19<>AR19,N19<>AX19,N19<>""),N19,AR19)) ->  | AM19: =IF($AM$3="VIDER","",IF(AND(R19<>AS19,R19<>AY19,R19<>""),R19,AS19)) ->  | AN19: =IF($AN$3="VIDER","",IF(AND(V19<>AT19,V19<>AZ19,V19<>""),V19,AT19)) ->  | AO19: =IF($AO$3="VIDER","",IF(AND(Z19<>AU19,Z19<>BA19,Z19<>""),Z19,AU19)) ->  | AQ19: =IF(AK6<>AQ6,"",IF(AND($J$5="Rdt. (tm/ha)",$K$3<>#REF!),IF($L$3=0,"",$L$3*#REF!),#REF!)) ->  | AR19: =IF(AL6<>AR6,"",IF(AND($N$5="Rdt. (tm/ha)",$O$3<>#REF!),IF($P$3=0,"",$P$3*#REF!),#REF!)) ->  | AS19: =IF(AM6<>AS6,"",IF(AND($R$5="Rdt. (tm/ha)",$S$3<>#REF!),IF($T$3=0,"",$T$3*#REF!),#REF!)) ->  | AT19: =IF(AN6<>AT6,"",IF(AND($V$5="Rdt. (tm/ha)",$W$3<>#REF!),IF($X$3=0,"",$X$3*#REF!),#REF!)) ->  | AU19: =IF(AO6<>AU6,"",IF(AND($Z$5="Rdt. (tm/ha)",$AA$3<>#REF!),IF($AB$3=0,"",$AB$3*#REF!),#REF!)) -> 
A20: 1 | C20: ='Coûts de production'!C22 -> Total des produits | F20: =SUM(F7:F16) -> 2902 | J20: =SUM(J7:J16) -> 2902 | K20: =IF($K$3=0,"",J20/($K$3+$K$12)) -> 2902 | L20: =IF($L$3=0,"",J20/($L$3+$L$12)) -> 290.2 | N20: =SUM(N7:N16) -> 0 | O20: =IF($O$3=0,"",IF(AND($O$3='Coûts de production'!$P$3,'Coûts de production'!O22=N20),'Coûts de production'!P22,N20/($O$3+$O$12))) ->  | P20: =IF($P$3=0,"",IF(AND($P$3='Coûts de production'!$Q$3,'Coûts de production'!O22=N20),'Coûts de production'!Q22,N20/($P$3+$P$12))) ->  | R20: =SUM(R7:R16) -> 0 | S20: =IF($S$3=0,"",IF(AND($S$3='Coûts de production'!$U$3,'Coûts de production'!T22=R20),'Coûts de production'!U22,R20/($S$3+$S$12))) ->  | T20: =IF($T$3=0,"",IF(AND($T$3='Coûts de production'!$V$3,'Coûts de production'!T22=R20),'Coûts de production'!V22,R20/($T$3+$T$12))) ->  | V20: =SUM(V7:V16) -> 0 | W20: =IF($W$3=0,"",IF(AND($W$3='Coûts de production'!$Y$3,'Coûts de production'!X22=V20),'Coûts de production'!Y22,V20/($W$3+$W$12))) ->  | X20: =IF($X$3=0,"",IF(AND($T$3='Coûts de production'!$V$3,'Coûts de production'!X22=V20),'Coûts de production'!Z22,V20/($X$3+$X$12))) ->  | Z20: =SUM(Z7:Z16) -> 0 | AA20: =IF($AA$3=0,"",IF(AND($AA$3='Coûts de production'!$AC$3,'Coûts de production'!AB18=Z20),'Coûts de production'!AC18,Z20/($AA$3+$AA$12))) ->  | AB20: =IF($AB$3=0,"",IF(AND($AB$3='Coûts de production'!$AD$3,'Coûts de production'!AB18=Z20),'Coûts de production'!AD18,Z20/($AB$3+$AB$12))) ->  | AK20: =IF($AK$3="VIDER","",IF(AND(J12<>AQ20,J12<>AW20,J12<>""),J12,AQ20)) -> 0 | AL20: =IF($AL$3="VIDER","",IF(AND(N12<>AR20,N12<>AX20,N12<>""),N12,AR20)) ->  | AM20: =IF($AM$3="VIDER","",IF(AND(R12<>AS20,R12<>AY20,R12<>""),R12,AS20)) ->  | AN20: =IF($AN$3="VIDER","",IF(AND(V12<>AT20,V12<>AZ20,V12<>""),V12,AT20)) -> 0 | AO20: =IF($AO$3="VIDER","",IF(AND(Z12<>AU20,Z12<>BA20,Z12<>""),Z12,AU20)) -> 0 | AQ20: =IF(AK3<>AQ3,"",'Coûts de production'!J12) -> 0 | AR20: =IF(AL3<>AR3,"",'Coûts de production'!O12) ->  | AS20: =IF(AM3<>AS3,"",'Coûts de production'!T12) ->  | AT20: =IF(AN3<>AT3,"",'Coûts de production'!X12) -> 0 | AU20: =IF(AO3<>AU3,"",'Coûts de production'!AB12) -> 0 | AW20: 0 | AZ20: 0 | BA20: 0
A21: 1 | C21: ='Coûts de production'!C23 -> CHARGES VARIABLES | AG21: TRUE
A22: =IF(($AG$21),1,) -> 1 | C22: ='Coûts de production'!C24 -> Semences | F22: =J22+N22+R22+V22+Z22 -> 83.26 | H22: =IF($F22=0,"",J22/$F22) -> 1 | J22: 83.26 | K22: =IF($K$3=0,"",IF(AND($K$3='Coûts de production'!$K$3,'Coûts de production'!J24=J22),'Coûts de production'!K24,J22/($K$3+$K$12))) -> 83.26 | L22: =IF($L$3=0,"",IF(AND($L$3='Coûts de production'!$L$3,'Coûts de production'!J24=J22),'Coûts de production'!L24,J22/($L$3+$L$12))) -> 8.326 | M22: =IF($F22=0,"",N22/$F22) -> 0 | O22: =IF($O$3=0,"",IF(AND($O$3='Coûts de production'!$P$3,'Coûts de production'!O24=N22),'Coûts de production'!P24,N22/($O$3+$O$12))) ->  | P22: =IF($P$3=0,"",IF(AND($P$3='Coûts de production'!$Q$3,'Coûts de production'!O24=N22),'Coûts de production'!Q24,N22/($P$3+$P$12))) ->  | Q22: =IF($F22=0,"",R22/F$22) -> 0 | S22: =IF($S$3=0,"",IF(AND($S$3='Coûts de production'!$U$3,'Coûts de production'!T24=R22),'Coûts de production'!U24,R22/($S$3+$S$12))) ->  | T22: =IF($T$3=0,"",IF(AND($T$3='Coûts de production'!$V$3,'Coûts de production'!T24=R22),'Coûts de production'!V24,R22/($T$3+$T$12))) ->  | U22: =IF($F22=0,"",V22/F$22) -> 0 | V22: 0 | W22: =IF($W$3=0,"",IF(AND($W$3='Coûts de production'!$Y$3,'Coûts de production'!X24=V22),'Coûts de production'!Y24,V22/($W$3+$W$12))) ->  | X22: =IF($X$3=0,"",IF(AND($T$3='Coûts de production'!$V$3,'Coûts de production'!X24=V22),'Coûts de production'!Z24,V22/($X$3+$X$12))) ->  | Y22: =IF($F22=0,"",Z22/F$22) -> 0 | Z22: 0 | AA22: =IF($AA$3=0,"",IF(AND($AA$3='Coûts de production'!$AC$3,'Coûts de production'!AB24=Z22),'Coûts de production'!AC24,Z22/($AA$3+$AA$12))) ->  | AB22: =IF($AB$3=0,"",IF(AND($AB$3='Coûts de production'!$AD$3,'Coûts de production'!AB24=Z22),'Coûts de production'!AD24,Z22/($AB$3+$AB$12))) ->  | AK22: =IF($AK$3="VIDER","",IF(AND(J22=AQ22,$AK$4<>$AQ$4),($AK$4+$AK$12)*'Coûts de production'!K24,IF(AND(J22<>AQ22,J22<>AW22,J22<>""),J22,AQ22))) -> 83.26 | AL22: =IF($AL$3="VIDER","",IF(AND(N22=AR22,$AL$4<>$AR$4),($AL$4+$AL$12)*'Coûts de production'!P24,IF(AND(N22<>AR22,N22<>AX22,N22<>""),N22,AR22))) ->  | AM22: =IF($AM$3="VIDER","",IF(AND(R22=AS22,$AM$4<>$AS$4),($AM$4+$AM$12)*'Coûts de production'!U24,IF(AND(R22<>AS22,R22<>AY22,R22<>""),R22,AS22))) ->  | AN22: =IF($AN$3="VIDER","",IF(AND(V22=AT22,$AN$4<>$AT$4),($AN$4+$AN$12)*'Coûts de production'!Y24,IF(AND(V22<>AT22,V22<>AZ22,V22<>""),V22,AT22))) -> 0 | AO22: =IF($AO$3="VIDER","",IF(AND(Z22=AU22,$AO$4<>$AU$4),($AO$4+$AO$12)*'Coûts de production'!AC24,IF(AND(Z22<>AU22,Z22<>BA22,Z22<>""),Z22,AU22))) -> 0 | AQ22: =IF($AK$3<>$AQ$3,"",IF(AND($J$5="Rdt. (tm/ha)",$K$3<>'Coûts de production'!K$3),IF($L$3=0,"",$L$3* 'Coûts de production'!L24),'Coûts de production'!J24)) -> 0 | AR22: =IF($AL$3<>$AR$3,"",IF(AND($N$5="Rdt. (tm/ha)",$O$3<>'Coûts de production'!P$3),IF($P$3=0,"",$P$3*'Coûts de production'!Q24),'Coûts de production'!O24)) ->  | AS22: =IF($AM$3<>$AS$3,"",IF(AND($R$5="Rdt. (tm/ha)",$S$3<>'Coûts de production'!U$3),IF($T$3=0,"",$T$3*'Coûts de production'!V24),'Coûts de production'!T24)) ->  | AT22: =IF($AN$3<>$AT$3,"",IF(AND($V$5="Rdt. (tm/ha)",$W$3<>'Coûts de production'!Y$3),IF($X$3=0,"",$X$3*'Coûts de production'!Z24),'Coûts de production'!X24)) -> 0 | AU22: =IF($AO$3<>$AU$3,"",IF(AND($Z$5="Rdt. (tm/ha)",$AA$3<>'Coûts de production'!AC$3),IF($AB$3=0,"",$AB$3*'Coûts de production'!AD24),'Coûts de production'!AB24)) -> 0 | AW22: 291 | AZ22: 0 | BA22: 0
A23: =IF(($AG$21),1,) -> 1 | C23: ='Coûts de production'!C25 -> Fertilisants | F23: =J23+N23+R23+V23+Z23 -> 1.69 | H23: 1 | J23: 1.69 | K23: =IF($K$3=0,"",IF(AND($K$3='Coûts de production'!$K$3,'Coûts de production'!J25=J23),'Coûts de production'!K25,J23/($K$3+$K$12))) -> 1.69 | L23: =IF($L$3=0,"",IF(AND($L$3='Coûts de production'!$L$3,'Coûts de production'!J25=J23),'Coûts de production'!L25,J23/($L$3+$L$12))) -> 0.169 | M23: 0 | O23: =IF($O$3=0,"",IF(AND($O$3='Coûts de production'!$P$3,'Coûts de production'!O25=N23),'Coûts de production'!P25,N23/($O$3+$O$12))) ->  | P23: =IF($P$3=0,"",IF(AND($P$3='Coûts de production'!$Q$3,'Coûts de production'!O25=N23),'Coûts de production'!Q25,N23/($P$3+$P$12))) ->  | Q23: =IF($F23=0,"",R23/$F23) -> 0 | S23: =IF($S$3=0,"",IF(AND($S$3='Coûts de production'!$U$3,'Coûts de production'!T25=R23),'Coûts de production'!U25,R23/($S$3+$S$12))) ->  | T23: =IF($T$3=0,"",IF(AND($T$3='Coûts de production'!$V$3,'Coûts de production'!T25=R23),'Coûts de production'!V25,R23/($T$3+$T$12))) ->  | U23: =IF($F23=0,"",V23/$F23) -> 0 | V23: 0 | W23: =IF($W$3=0,"",IF(AND($W$3='Coûts de production'!$Y$3,'Coûts de production'!X25=V23),'Coûts de production'!Y25,V23/($W$3+$W$12))) ->  | X23: =IF($X$3=0,"",IF(AND($T$3='Coûts de production'!$V$3,'Coûts de production'!X25=V23),'Coûts de production'!Z25,V23/($X$3+$X$12))) ->  | Y23: =IF($F23=0,"",Z23/$F23) -> 0 | Z23: 0 | AA23: =IF($AA$3=0,"",IF(AND($AA$3='Coûts de production'!$AC$3,'Coûts de production'!AB25=Z23),'Coûts de production'!AC25,Z23/($AA$3+$AA$12))) ->  | AB23: =IF($AB$3=0,"",IF(AND($AB$3='Coûts de production'!$AD$3,'Coûts de production'!AB25=Z23),'Coûts de production'!AD25,Z23/($AB$3+$AB$12))) ->  | AK23: =IF($AK$3="VIDER","",IF(AND(J23=AQ23,$AK$4<>$AQ$4),($AK$4+$AK$12)*'Coûts de production'!K25,IF(AND(J23<>AQ23,J23<>AW23,J23<>""),J23,AQ23))) -> 1.69 | AL23: =IF($AL$3="VIDER","",IF(AND(N23=AR23,$AL$4<>$AR$4),($AL$4+$AL$12)*'Coûts de production'!P25,IF(AND(N23<>AR23,N23<>AX23,N23<>""),N23,AR23))) ->  | AM23: =IF($AM$3="VIDER","",IF(AND(R23=AS23,$AM$4<>$AS$4),($AM$4+$AM$12)*'Coûts de production'!U25,IF(AND(R23<>AS23,R23<>AY23,R23<>""),R23,AS23))) ->  | AN23: =IF($AN$3="VIDER","",IF(AND(V23=AT23,$AN$4<>$AT$4),($AN$4+$AN$12)*'Coûts de production'!Y25,IF(AND(V23<>AT23,V23<>AZ23,V23<>""),V23,AT23))) -> 0 | AO23: =IF($AO$3="VIDER","",IF(AND(Z23=AU23,$AO$4<>$AU$4),($AO$4+$AO$12)*'Coûts de production'!AC25,IF(AND(Z23<>AU23,Z23<>BA23,Z23<>""),Z23,AU23))) -> 0 | AQ23: =IF($AK$3<>$AQ$3,"",IF(AND($J$5="Rdt. (tm/ha)",$K$3<>'Coûts de production'!K$3),IF($L$3=0,"",$L$3* 'Coûts de production'!L25),'Coûts de production'!J25)) -> 0 | AR23: =IF($AL$3<>$AR$3,"",IF(AND($N$5="Rdt. (tm/ha)",$O$3<>'Coûts de production'!P$3),IF($P$3=0,"",$P$3*'Coûts de production'!Q25),'Coûts de production'!O25)) ->  | AS23: =IF($AM$3<>$AS$3,"",IF(AND($R$5="Rdt. (tm/ha)",$S$3<>'Coûts de production'!U$3),IF($T$3=0,"",$T$3*'Coûts de production'!V25),'Coûts de production'!T25)) ->  | AT23: =IF($AN$3<>$AT$3,"",IF(AND($V$5="Rdt. (tm/ha)",$W$3<>'Coûts de production'!Y$3),IF($X$3=0,"",$X$3*'Coûts de production'!Z25),'Coûts de production'!X25)) -> 0 | AU23: =IF($AO$3<>$AU$3,"",IF(AND($Z$5="Rdt. (tm/ha)",$AA$3<>'Coûts de production'!AC$3),IF($AB$3=0,"",$AB$3*'Coûts de production'!AD25),'Coûts de production'!AB25)) -> 0 | AW23: 368 | AZ23: 0 | BA23: 0
A24: 1 | C24: ='Coûts de production'!C26 -> Chaulage (pierre à chaux) | F24: =J24+N24+R24+V24+Z24 -> 3.37 | H24: 1 | J24: 3.37 | K24: =IF($K$3=0,"",IF(AND($K$3='Coûts de production'!$K$3,'Coûts de production'!J26=J24),'Coûts de production'!K26,J24/($K$3+$K$12))) -> 3.37 | L24: =IF($L$3=0,"",IF(AND($L$3='Coûts de production'!$L$3,'Coûts de production'!J26=J24),'Coûts de production'!L26,J24/($L$3+$L$12))) -> 0.337 | M24: 0 | O24: =IF($O$3=0,"",IF(AND($O$3='Coûts de production'!$P$3,'Coûts de production'!O26=N24),'Coûts de production'!P26,N24/($O$3+$O$12))) ->  | P24: =IF($P$3=0,"",IF(AND($P$3='Coûts de production'!$Q$3,'Coûts de production'!O26=N24),'Coûts de production'!Q26,N24/($P$3+$P$12))) ->  | Q24: 0 | S24: =IF($S$3=0,"",IF(AND($S$3='Coûts de production'!$U$3,'Coûts de production'!T26=R24),'Coûts de production'!U26,R24/($S$3+$S$12))) ->  | T24: =IF($T$3=0,"",IF(AND($T$3='Coûts de production'!$V$3,'Coûts de production'!T26=R24),'Coûts de production'!V26,R24/($T$3+$T$12))) ->  | U24: 0 | V24: 0 | W24: =IF($W$3=0,"",IF(AND($W$3='Coûts de production'!$Y$3,'Coûts de production'!X26=V24),'Coûts de production'!Y26,V24/($W$3+$W$12))) ->  | X24: =IF($X$3=0,"",IF(AND($T$3='Coûts de production'!$V$3,'Coûts de production'!X26=V24),'Coûts de production'!Z26,V24/($X$3+$X$12))) ->  | Y24: 0 | Z24: 0 | AA24: =IF($AA$3=0,"",IF(AND($AA$3='Coûts de production'!$AC$3,'Coûts de production'!AB26=Z24),'Coûts de production'!AC26,Z24/($AA$3+$AA$12))) ->  | AB24: =IF($AB$3=0,"",IF(AND($AB$3='Coûts de production'!$AD$3,'Coûts de production'!AB26=Z24),'Coûts de production'!AD26,Z24/($AB$3+$AB$12))) ->  | AK24: =IF($AK$3="VIDER","",IF(AND(J24=AQ24,$AK$4<>$AQ$4),($AK$4+$AK$12)*'Coûts de production'!K26,IF(AND(J24<>AQ24,J24<>AW24,J24<>""),J24,AQ24))) -> 3.37 | AL24: =IF($AL$3="VIDER","",IF(AND(N24=AR24,$AL$4<>$AR$4),($AL$4+$AL$12)*'Coûts de production'!P26,IF(AND(N24<>AR24,N24<>AX24,N24<>""),N24,AR24))) ->  | AM24: =IF($AM$3="VIDER","",IF(AND(R24=AS24,$AM$4<>$AS$4),($AM$4+$AM$12)*'Coûts de production'!U26,IF(AND(R24<>AS24,R24<>AY24,R24<>""),R24,AS24))) ->  | AN24: =IF($AN$3="VIDER","",IF(AND(V24=AT24,$AN$4<>$AT$4),($AN$4+$AN$12)*'Coûts de production'!Y26,IF(AND(V24<>AT24,V24<>AZ24,V24<>""),V24,AT24))) -> 0 | AO24: =IF($AO$3="VIDER","",IF(AND(Z24=AU24,$AO$4<>$AU$4),($AO$4+$AO$12)*'Coûts de production'!AC26,IF(AND(Z24<>AU24,Z24<>BA24,Z24<>""),Z24,AU24))) -> 0 | AQ24: =IF($AK$3<>$AQ$3,"",IF(AND($J$5="Rdt. (tm/ha)",$K$3<>'Coûts de production'!K$3),IF($L$3=0,"",$L$3* 'Coûts de production'!L26),'Coûts de production'!J26)) -> 0 | AR24: =IF($AL$3<>$AR$3,"",IF(AND($N$5="Rdt. (tm/ha)",$O$3<>'Coûts de production'!P$3),IF($P$3=0,"",$P$3*'Coûts de production'!Q26),'Coûts de production'!O26)) ->  | AS24: =IF($AM$3<>$AS$3,"",IF(AND($R$5="Rdt. (tm/ha)",$S$3<>'Coûts de production'!U$3),IF($T$3=0,"",$T$3*'Coûts de production'!V26),'Coûts de production'!T26)) ->  | AT24: =IF($AN$3<>$AT$3,"",IF(AND($V$5="Rdt. (tm/ha)",$W$3<>'Coûts de production'!Y$3),IF($X$3=0,"",$X$3*'Coûts de production'!Z26),'Coûts de production'!X26)) -> 0 | AU24: =IF($AO$3<>$AU$3,"",IF(AND($Z$5="Rdt. (tm/ha)",$AA$3<>'Coûts de production'!AC$3),IF($AB$3=0,"",$AB$3*'Coûts de production'!AD26),'Coûts de production'!AB26)) -> 0 | AW24: 14 | AZ24: 0 | BA24: 0
A25: 1 | C25: ='Coûts de production'!C27 -> Pesticides | F25: =J25+N25+R25+V25+Z25 -> 0.92 | H25: 1 | J25: 0.92 | K25: =IF($K$3=0,"",IF(AND($K$3='Coûts de production'!$K$3,'Coûts de production'!J27=J25),'Coûts de production'!K27,J25/($K$3+$K$12))) -> 0.92 | L25: =IF($L$3=0,"",IF(AND($L$3='Coûts de production'!$L$3,'Coûts de production'!J27=J25),'Coûts de production'!L27,J25/($L$3+$L$12))) -> 0.092 | M25: 0 | O25: =IF($O$3=0,"",IF(AND($O$3='Coûts de production'!$P$3,'Coûts de production'!O27=N25),'Coûts de production'!P27,N25/($O$3+$O$12))) ->  | P25: =IF($P$3=0,"",IF(AND($P$3='Coûts de production'!$Q$3,'Coûts de production'!O27=N25),'Coûts de production'!Q27,N25/($P$3+$P$12))) ->  | Q25: 0 | S25: =IF($S$3=0,"",IF(AND($S$3='Coûts de production'!$U$3,'Coûts de production'!T27=R25),'Coûts de production'!U27,R25/($S$3+$S$12))) ->  | T25: =IF($T$3=0,"",IF(AND($T$3='Coûts de production'!$V$3,'Coûts de production'!T27=R25),'Coûts de production'!V27,R25/($T$3+$T$12))) ->  | U25: 0 | V25: 0 | W25: =IF($W$3=0,"",IF(AND($W$3='Coûts de production'!$Y$3,'Coûts de production'!X27=V25),'Coûts de production'!Y27,V25/($W$3+$W$12))) ->  | X25: =IF($X$3=0,"",IF(AND($T$3='Coûts de production'!$V$3,'Coûts de production'!X27=V25),'Coûts de production'!Z27,V25/($X$3+$X$12))) ->  | Y25: 0 | Z25: 0 | AA25: =IF($AA$3=0,"",IF(AND($AA$3='Coûts de production'!$AC$3,'Coûts de production'!AB27=Z25),'Coûts de production'!AC27,Z25/($AA$3+$AA$12))) ->  | AB25: =IF($AB$3=0,"",IF(AND($AB$3='Coûts de production'!$AD$3,'Coûts de production'!AB27=Z25),'Coûts de production'!AD27,Z25/($AB$3+$AB$12))) ->  | AK25: =IF($AK$3="VIDER","",IF(AND(J25=AQ25,$AK$4<>$AQ$4),($AK$4+$AK$12)*'Coûts de production'!K27,IF(AND(J25<>AQ25,J25<>AW25,J25<>""),J25,AQ25))) -> 0.92 | AL25: =IF($AL$3="VIDER","",IF(AND(N25=AR25,$AL$4<>$AR$4),($AL$4+$AL$12)*'Coûts de production'!P27,IF(AND(N25<>AR25,N25<>AX25,N25<>""),N25,AR25))) ->  | AM25: =IF($AM$3="VIDER","",IF(AND(R25=AS25,$AM$4<>$AS$4),($AM$4+$AM$12)*'Coûts de production'!U27,IF(AND(R25<>AS25,R25<>AY25,R25<>""),R25,AS25))) ->  | AN25: =IF($AN$3="VIDER","",IF(AND(V25=AT25,$AN$4<>$AT$4),($AN$4+$AN$12)*'Coûts de production'!Y27,IF(AND(V25<>AT25,V25<>AZ25,V25<>""),V25,AT25))) -> 0 | AO25: =IF($AO$3="VIDER","",IF(AND(Z25=AU25,$AO$4<>$AU$4),($AO$4+$AO$12)*'Coûts de production'!AC27,IF(AND(Z25<>AU25,Z25<>BA25,Z25<>""),Z25,AU25))) -> 0 | AQ25: =IF($AK$3<>$AQ$3,"",IF(AND($J$5="Rdt. (tm/ha)",$K$3<>'Coûts de production'!K$3),IF($L$3=0,"",$L$3* 'Coûts de production'!L27),'Coûts de production'!J27)) -> 0 | AR25: =IF($AL$3<>$AR$3,"",IF(AND($N$5="Rdt. (tm/ha)",$O$3<>'Coûts de production'!P$3),IF($P$3=0,"",$P$3*'Coûts de production'!Q27),'Coûts de production'!O27)) ->  | AS25: =IF($AM$3<>$AS$3,"",IF(AND($R$5="Rdt. (tm/ha)",$S$3<>'Coûts de production'!U$3),IF($T$3=0,"",$T$3*'Coûts de production'!V27),'Coûts de production'!T27)) ->  | AT25: =IF($AN$3<>$AT$3,"",IF(AND($V$5="Rdt. (tm/ha)",$W$3<>'Coûts de production'!Y$3),IF($X$3=0,"",$X$3*'Coûts de production'!Z27),'Coûts de production'!X27)) -> 0 | AU25: =IF($AO$3<>$AU$3,"",IF(AND($Z$5="Rdt. (tm/ha)",$AA$3<>'Coûts de production'!AC$3),IF($AB$3=0,"",$AB$3*'Coûts de production'!AD27),'Coûts de production'!AB27)) -> 0 | AW25: 51 | AZ25: 0 | BA25: 0
A26: 1 | C26: ='Coûts de production'!C28 -> Location | F26: 120 | H26: 1 | J26: 120 | K26: =IF($K$3=0,"",IF(AND($K$3='Coûts de production'!$K$3,'Coûts de production'!J28=J26),'Coûts de production'!K28,J26/($K$3+$K$12))) -> 120 | L26: =IF($L$3=0,"",IF(AND($L$3='Coûts de production'!$L$3,'Coûts de production'!J28=J26),'Coûts de production'!L28,J26/($L$3+$L$12))) -> 12 | M26: 0 | O26: =IF($O$3=0,"",IF(AND($O$3='Coûts de production'!$P$3,'Coûts de production'!O28=N26),'Coûts de production'!P28,N26/($O$3+$O$12))) ->  | P26: =IF($P$3=0,"",IF(AND($P$3='Coûts de production'!$Q$3,'Coûts de production'!O28=N26),'Coûts de production'!Q28,N26/($P$3+$P$12))) ->  | Q26: 0 | S26: =IF($S$3=0,"",IF(AND($S$3='Coûts de production'!$U$3,'Coûts de production'!T28=R26),'Coûts de production'!U28,R26/($S$3+$S$12))) ->  | T26: =IF($T$3=0,"",IF(AND($T$3='Coûts de production'!$V$3,'Coûts de production'!T28=R26),'Coûts de production'!V28,R26/($T$3+$T$12))) ->  | U26: 0 | V26: 0 | W26: =IF($W$3=0,"",IF(AND($W$3='Coûts de production'!$Y$3,'Coûts de production'!X28=V26),'Coûts de production'!Y28,V26/($W$3+$W$12))) ->  | X26: =IF($X$3=0,"",IF(AND($T$3='Coûts de production'!$V$3,'Coûts de production'!X28=V26),'Coûts de production'!Z28,V26/($X$3+$X$12))) ->  | Y26: 0 | Z26: 0 | AA26: =IF($AA$3=0,"",IF(AND($AA$3='Coûts de production'!$AC$3,'Coûts de production'!AB28=Z26),'Coûts de production'!AC28,Z26/($AA$3+$AA$12))) ->  | AB26: =IF($AB$3=0,"",IF(AND($AB$3='Coûts de production'!$AD$3,'Coûts de production'!AB28=Z26),'Coûts de production'!AD28,Z26/($AB$3+$AB$12))) ->  | AK26: =IF($AK$3="VIDER","",IF(AND(J26=AQ26,$AK$4<>$AQ$4),($AK$4+$AK$12)*'Coûts de production'!K28,IF(AND(J26<>AQ26,J26<>AW26,J26<>""),J26,AQ26))) -> 0 | AL26: =IF($AL$3="VIDER","",IF(AND(N26=AR26,$AL$4<>$AR$4),($AL$4+$AL$12)*'Coûts de production'!P28,IF(AND(N26<>AR26,N26<>AX26,N26<>""),N26,AR26))) ->  | AM26: =IF($AM$3="VIDER","",IF(AND(R26=AS26,$AM$4<>$AS$4),($AM$4+$AM$12)*'Coûts de production'!U28,IF(AND(R26<>AS26,R26<>AY26,R26<>""),R26,AS26))) ->  | AN26: =IF($AN$3="VIDER","",IF(AND(V26=AT26,$AN$4<>$AT$4),($AN$4+$AN$12)*'Coûts de production'!Y28,IF(AND(V26<>AT26,V26<>AZ26,V26<>""),V26,AT26))) -> 0 | AO26: =IF($AO$3="VIDER","",IF(AND(Z26=AU26,$AO$4<>$AU$4),($AO$4+$AO$12)*'Coûts de production'!AC28,IF(AND(Z26<>AU26,Z26<>BA26,Z26<>""),Z26,AU26))) -> 0 | AQ26: =IF($AK$3<>$AQ$3,"",IF(AND($J$5="Rdt. (tm/ha)",$K$3<>'Coûts de production'!K$3),IF($L$3=0,"",$L$3* 'Coûts de production'!L28),'Coûts de production'!J28)) -> 0 | AR26: =IF($AL$3<>$AR$3,"",IF(AND($N$5="Rdt. (tm/ha)",$O$3<>'Coûts de production'!P$3),IF($P$3=0,"",$P$3*'Coûts de production'!Q28),'Coûts de production'!O28)) ->  | AS26: =IF($AM$3<>$AS$3,"",IF(AND($R$5="Rdt. (tm/ha)",$S$3<>'Coûts de production'!U$3),IF($T$3=0,"",$T$3*'Coûts de production'!V28),'Coûts de production'!T28)) ->  | AT26: =IF($AN$3<>$AT$3,"",IF(AND($V$5="Rdt. (tm/ha)",$W$3<>'Coûts de production'!Y$3),IF($X$3=0,"",$X$3*'Coûts de production'!Z28),'Coûts de production'!X28)) -> 0 | AU26: =IF($AO$3<>$AU$3,"",IF(AND($Z$5="Rdt. (tm/ha)",$AA$3<>'Coûts de production'!AC$3),IF($AB$3=0,"",$AB$3*'Coûts de production'!AD28),'Coûts de production'!AB28)) -> 0 | AW26: 120 | AZ26: 0 | BA26: 0
C27: ='Coûts de production'!#REF! ->  | F27: 0 | J27: 0 | K27: =IF($K$3=0,"",IF(AND($K$3='Coûts de production'!$K$3,'Coûts de production'!#REF!=J27),'Coûts de production'!#REF!,J27/($K$3+$K$12))) ->  | L27: =IF($L$3=0,"",IF(AND($L$3='Coûts de production'!$L$3,'Coûts de production'!#REF!=J27),'Coûts de production'!#REF!,J27/($L$3+$L$12))) ->  | O27: =IF($O$3=0,"",IF(AND($O$3='Coûts de production'!$P$3,'Coûts de production'!#REF!=N27),'Coûts de production'!#REF!,N27/($O$3+$O$12))) ->  | P27: =IF($P$3=0,"",IF(AND($P$3='Coûts de production'!$Q$3,'Coûts de production'!#REF!=N27),'Coûts de production'!#REF!,N27/($P$3+$P$12))) ->  | S27: =IF($S$3=0,"",IF(AND($S$3='Coûts de production'!$U$3,'Coûts de production'!#REF!=R27),'Coûts de production'!#REF!,R27/($S$3+$S$12))) ->  | T27: =IF($T$3=0,"",IF(AND($T$3='Coûts de production'!$V$3,'Coûts de production'!#REF!=R27),'Coûts de production'!#REF!,R27/($T$3+$T$12))) ->  | V27: 0 | W27: =IF($W$3=0,"",IF(AND($W$3='Coûts de production'!$Y$3,'Coûts de production'!#REF!=V27),'Coûts de production'!#REF!,V27/($W$3+$W$12))) ->  | X27: =IF($X$3=0,"",IF(AND($T$3='Coûts de production'!$V$3,'Coûts de production'!#REF!=V27),'Coûts de production'!#REF!,V27/($X$3+$X$12))) ->  | Z27: 0 | AA27: =IF($AA$3=0,"",IF(AND($AA$3='Coûts de production'!$AC$3,'Coûts de production'!#REF!=Z27),'Coûts de production'!#REF!,Z27/($AA$3+$AA$12))) ->  | AB27: =IF($AB$3=0,"",IF(AND($AB$3='Coûts de production'!$AD$3,'Coûts de production'!#REF!=Z27),'Coûts de production'!#REF!,Z27/($AB$3+$AB$12))) ->  | AK27: =IF($AK$3="VIDER","",IF(AND(J27=AQ27,$AK$4<>$AQ$4),($AK$4+$AK$12)*'Coûts de production'!#REF!,IF(AND(J27<>AQ27,J27<>AW27,J27<>""),J27,AQ27))) ->  | AL27: =IF($AL$3="VIDER","",IF(AND(N27=AR27,$AL$4<>$AR$4),($AL$4+$AL$12)*'Coûts de production'!#REF!,IF(AND(N27<>AR27,N27<>AX27,N27<>""),N27,AR27))) ->  | AM27: =IF($AM$3="VIDER","",IF(AND(R27=AS27,$AM$4<>$AS$4),($AM$4+$AM$12)*'Coûts de production'!#REF!,IF(AND(R27<>AS27,R27<>AY27,R27<>""),R27,AS27))) ->  | AN27: =IF($AN$3="VIDER","",IF(AND(V27=AT27,$AN$4<>$AT$4),($AN$4+$AN$12)*'Coûts de production'!#REF!,IF(AND(V27<>AT27,V27<>AZ27,V27<>""),V27,AT27))) ->  | AO27: =IF($AO$3="VIDER","",IF(AND(Z27=AU27,$AO$4<>$AU$4),($AO$4+$AO$12)*'Coûts de production'!#REF!,IF(AND(Z27<>AU27,Z27<>BA27,Z27<>""),Z27,AU27))) ->  | AQ27: =IF($AK$3<>$AQ$3,"",IF(AND($J$5="Rdt. (tm/ha)",$K$3<>'Coûts de production'!K$3),IF($L$3=0,"",$L$3* 'Coûts de production'!#REF!),'Coûts de production'!#REF!)) ->  | AR27: =IF($AL$3<>$AR$3,"",IF(AND($N$5="Rdt. (tm/ha)",$O$3<>'Coûts de production'!P$3),IF($P$3=0,"",$P$3*'Coûts de production'!#REF!),'Coûts de production'!#REF!)) ->  | AS27: =IF($AM$3<>$AS$3,"",IF(AND($R$5="Rdt. (tm/ha)",$S$3<>'Coûts de production'!U$3),IF($T$3=0,"",$T$3*'Coûts de production'!#REF!),'Coûts de production'!#REF!)) ->  | AT27: =IF($AN$3<>$AT$3,"",IF(AND($V$5="Rdt. (tm/ha)",$W$3<>'Coûts de production'!Y$3),IF($X$3=0,"",$X$3*'Coûts de production'!#REF!),'Coûts de production'!#REF!)) ->  | AU27: =IF($AO$3<>$AU$3,"",IF(AND($Z$5="Rdt. (tm/ha)",$AA$3<>'Coûts de production'!AC$3),IF($AB$3=0,"",$AB$3*'Coûts de production'!#REF!),'Coûts de production'!#REF!)) ->  | AW27: 0 | AZ27: 0 | BA27: 0
A28: 1 | C28: ='Coûts de production'!C29 -> Travaux à forfait | F28: 60 | H28: 1 | J28: 60 | K28: =IF($K$3=0,"",IF(AND($K$3='Coûts de production'!$K$3,'Coûts de production'!J29=J28),'Coûts de production'!K29,J28/($K$3+$K$12))) -> 60 | L28: =IF($L$3=0,"",IF(AND($L$3='Coûts de production'!$L$3,'Coûts de production'!J29=J28),'Coûts de production'!L29,J28/($L$3+$L$12))) -> 6 | M28: 0 | O28: =IF($O$3=0,"",IF(AND($O$3='Coûts de production'!$P$3,'Coûts de production'!O29=N28),'Coûts de production'!P29,N28/($O$3+$O$12))) ->  | P28: =IF($P$3=0,"",IF(AND($P$3='Coûts de production'!$Q$3,'Coûts de production'!O29=N28),'Coûts de production'!Q29,N28/($P$3+$P$12))) ->  | Q28: 0 | S28: =IF($S$3=0,"",IF(AND($S$3='Coûts de production'!$U$3,'Coûts de production'!T29=R28),'Coûts de production'!U29,R28/($S$3+$S$12))) ->  | T28: =IF($T$3=0,"",IF(AND($T$3='Coûts de production'!$V$3,'Coûts de production'!T29=R28),'Coûts de production'!V29,R28/($T$3+$T$12))) ->  | U28: 0 | V28: 0 | W28: =IF($W$3=0,"",IF(AND($W$3='Coûts de production'!$Y$3,'Coûts de production'!X29=V28),'Coûts de production'!Y29,V28/($W$3+$W$12))) ->  | X28: =IF($X$3=0,"",IF(AND($T$3='Coûts de production'!$V$3,'Coûts de production'!X29=V28),'Coûts de production'!Z29,V28/($X$3+$X$12))) ->  | Y28: 0 | Z28: 0 | AA28: =IF($AA$3=0,"",IF(AND($AA$3='Coûts de production'!$AC$3,'Coûts de production'!AB29=Z28),'Coûts de production'!AC29,Z28/($AA$3+$AA$12))) ->  | AB28: =IF($AB$3=0,"",IF(AND($AB$3='Coûts de production'!$AD$3,'Coûts de production'!AB29=Z28),'Coûts de production'!AD29,Z28/($AB$3+$AB$12))) ->  | AK28: =IF($AK$3="VIDER","",IF(AND(J28=AQ28,$AK$4<>$AQ$4),($AK$4+$AK$12)*'Coûts de production'!K29,IF(AND(J28<>AQ28,J28<>AW28,J28<>""),J28,AQ28))) -> 0 | AL28: =IF($AL$3="VIDER","",IF(AND(N28=AR28,$AL$4<>$AR$4),($AL$4+$AL$12)*'Coûts de production'!P29,IF(AND(N28<>AR28,N28<>AX28,N28<>""),N28,AR28))) ->  | AM28: =IF($AM$3="VIDER","",IF(AND(R28=AS28,$AM$4<>$AS$4),($AM$4+$AM$12)*'Coûts de production'!U29,IF(AND(R28<>AS28,R28<>AY28,R28<>""),R28,AS28))) ->  | AN28: =IF($AN$3="VIDER","",IF(AND(V28=AT28,$AN$4<>$AT$4),($AN$4+$AN$12)*'Coûts de production'!Y29,IF(AND(V28<>AT28,V28<>AZ28,V28<>""),V28,AT28))) -> 0 | AO28: =IF($AO$3="VIDER","",IF(AND(Z28=AU28,$AO$4<>$AU$4),($AO$4+$AO$12)*'Coûts de production'!AC29,IF(AND(Z28<>AU28,Z28<>BA28,Z28<>""),Z28,AU28))) -> 0 | AQ28: =IF($AK$3<>$AQ$3,"",IF(AND($J$5="Rdt. (tm/ha)",$K$3<>'Coûts de production'!K$3),IF($L$3=0,"",$L$3* 'Coûts de production'!L29),'Coûts de production'!J29)) -> 0 | AR28: =IF($AL$3<>$AR$3,"",IF(AND($N$5="Rdt. (tm/ha)",$O$3<>'Coûts de production'!P$3),IF($P$3=0,"",$P$3*'Coûts de production'!Q29),'Coûts de production'!O29)) ->  | AS28: =IF($AM$3<>$AS$3,"",IF(AND($R$5="Rdt. (tm/ha)",$S$3<>'Coûts de production'!U$3),IF($T$3=0,"",$T$3*'Coûts de production'!V29),'Coûts de production'!T29)) ->  | AT28: =IF($AN$3<>$AT$3,"",IF(AND($V$5="Rdt. (tm/ha)",$W$3<>'Coûts de production'!Y$3),IF($X$3=0,"",$X$3*'Coûts de production'!Z29),'Coûts de production'!X29)) -> 0 | AU28: =IF($AO$3<>$AU$3,"",IF(AND($Z$5="Rdt. (tm/ha)",$AA$3<>'Coûts de production'!AC$3),IF($AB$3=0,"",$AB$3*'Coûts de production'!AD29),'Coûts de production'!AB29)) -> 0 | AW28: 60 | AZ28: 0 | BA28: 0
A29: 1 | C29: ='Coûts de production'!C30 -> Main d'œuvre salariée | F29: 81 | H29: 1 | J29: 81 | K29: =IF($K$3=0,"",IF(AND($K$3='Coûts de production'!$K$3,'Coûts de production'!J30=J29),'Coûts de production'!K30,J29/($K$3+$K$12))) -> 81 | L29: =IF($L$3=0,"",IF(AND($L$3='Coûts de production'!$L$3,'Coûts de production'!J30=J29),'Coûts de production'!L30,J29/($L$3+$L$12))) -> 8.1 | M29: 0 | O29: =IF($O$3=0,"",IF(AND($O$3='Coûts de production'!$P$3,'Coûts de production'!O30=N29),'Coûts de production'!P30,N29/($O$3+$O$12))) ->  | P29: =IF($P$3=0,"",IF(AND($P$3='Coûts de production'!$Q$3,'Coûts de production'!O30=N29),'Coûts de production'!Q30,N29/($P$3+$P$12))) ->  | Q29: 0 | S29: =IF($S$3=0,"",IF(AND($S$3='Coûts de production'!$U$3,'Coûts de production'!T30=R29),'Coûts de production'!U30,R29/($S$3+$S$12))) ->  | T29: =IF($T$3=0,"",IF(AND($T$3='Coûts de production'!$V$3,'Coûts de production'!T30=R29),'Coûts de production'!V30,R29/($T$3+$T$12))) ->  | U29: 0 | V29: 0 | W29: =IF($W$3=0,"",IF(AND($W$3='Coûts de production'!$Y$3,'Coûts de production'!X30=V29),'Coûts de production'!Y30,V29/($W$3+$W$12))) ->  | X29: =IF($X$3=0,"",IF(AND($T$3='Coûts de production'!$V$3,'Coûts de production'!X30=V29),'Coûts de production'!Z30,V29/($X$3+$X$12))) ->  | Y29: 0 | Z29: 0 | AA29: =IF($AA$3=0,"",IF(AND($AA$3='Coûts de production'!$AC$3,'Coûts de production'!AB30=Z29),'Coûts de production'!AC30,Z29/($AA$3+$AA$12))) ->  | AB29: =IF($AB$3=0,"",IF(AND($AB$3='Coûts de production'!$AD$3,'Coûts de production'!AB30=Z29),'Coûts de production'!AD30,Z29/($AB$3+$AB$12))) ->  | AK29: =IF($AK$3="VIDER","",IF(AND(J29=AQ29,$AK$4<>$AQ$4),($AK$4+$AK$12)*'Coûts de production'!K30,IF(AND(J29<>AQ29,J29<>AW29,J29<>""),J29,AQ29))) -> 0 | AL29: =IF($AL$3="VIDER","",IF(AND(N29=AR29,$AL$4<>$AR$4),($AL$4+$AL$12)*'Coûts de production'!P30,IF(AND(N29<>AR29,N29<>AX29,N29<>""),N29,AR29))) ->  | AM29: =IF($AM$3="VIDER","",IF(AND(R29=AS29,$AM$4<>$AS$4),($AM$4+$AM$12)*'Coûts de production'!U30,IF(AND(R29<>AS29,R29<>AY29,R29<>""),R29,AS29))) ->  | AN29: =IF($AN$3="VIDER","",IF(AND(V29=AT29,$AN$4<>$AT$4),($AN$4+$AN$12)*'Coûts de production'!Y30,IF(AND(V29<>AT29,V29<>AZ29,V29<>""),V29,AT29))) -> 0 | AO29: =IF($AO$3="VIDER","",IF(AND(Z29=AU29,$AO$4<>$AU$4),($AO$4+$AO$12)*'Coûts de production'!AC30,IF(AND(Z29<>AU29,Z29<>BA29,Z29<>""),Z29,AU29))) -> 0 | AQ29: =IF($AK$3<>$AQ$3,"",IF(AND($J$5="Rdt. (tm/ha)",$K$3<>'Coûts de production'!K$3),IF($L$3=0,"",$L$3* 'Coûts de production'!L30),'Coûts de production'!J30)) -> 0 | AR29: =IF($AL$3<>$AR$3,"",IF(AND($N$5="Rdt. (tm/ha)",$O$3<>'Coûts de production'!P$3),IF($P$3=0,"",$P$3*'Coûts de production'!Q30),'Coûts de production'!O30)) ->  | AS29: =IF($AM$3<>$AS$3,"",IF(AND($R$5="Rdt. (tm/ha)",$S$3<>'Coûts de production'!U$3),IF($T$3=0,"",$T$3*'Coûts de production'!V30),'Coûts de production'!T30)) ->  | AT29: =IF($AN$3<>$AT$3,"",IF(AND($V$5="Rdt. (tm/ha)",$W$3<>'Coûts de production'!Y$3),IF($X$3=0,"",$X$3*'Coûts de production'!Z30),'Coûts de production'!X30)) -> 0 | AU29: =IF($AO$3<>$AU$3,"",IF(AND($Z$5="Rdt. (tm/ha)",$AA$3<>'Coûts de production'!AC$3),IF($AB$3=0,"",$AB$3*'Coûts de production'!AD30),'Coûts de production'!AB30)) -> 0 | AW29: 81 | AZ29: 0 | BA29: 0
A30: 1 | C30: ='Coûts de production'!C31 -> Entretien et réparation (tracteur, batteuse, séchoir, camion, mach.) | F30: 122 | H30: 1 | J30: 122 | K30: =IF($K$3=0,"",IF(AND($K$3='Coûts de production'!$K$3,'Coûts de production'!J31=J30),'Coûts de production'!K31,J30/($K$3+$K$12))) -> 122 | L30: =IF($L$3=0,"",IF(AND($L$3='Coûts de production'!$L$3,'Coûts de production'!J31=J30),'Coûts de production'!L31,J30/($L$3+$L$12))) -> 12.2 | M30: 0 | O30: =IF($O$3=0,"",IF(AND($O$3='Coûts de production'!$P$3,'Coûts de production'!O31=N30),'Coûts de production'!P31,N30/($O$3+$O$12))) ->  | P30: =IF($P$3=0,"",IF(AND($P$3='Coûts de production'!$Q$3,'Coûts de production'!O31=N30),'Coûts de production'!Q31,N30/($P$3+$P$12))) ->  | Q30: 0 | S30: =IF($S$3=0,"",IF(AND($S$3='Coûts de production'!$U$3,'Coûts de production'!T31=R30),'Coûts de production'!U31,R30/($S$3+$S$12))) ->  | T30: =IF($T$3=0,"",IF(AND($T$3='Coûts de production'!$V$3,'Coûts de production'!T31=R30),'Coûts de production'!V31,R30/($T$3+$T$12))) ->  | U30: 0 | V30: 0 | W30: =IF($W$3=0,"",IF(AND($W$3='Coûts de production'!$Y$3,'Coûts de production'!X31=V30),'Coûts de production'!Y31,V30/($W$3+$W$12))) ->  | X30: =IF($X$3=0,"",IF(AND($T$3='Coûts de production'!$V$3,'Coûts de production'!X31=V30),'Coûts de production'!Z31,V30/($X$3+$X$12))) ->  | Y30: 0 | Z30: 0 | AA30: =IF($AA$3=0,"",IF(AND($AA$3='Coûts de production'!$AC$3,'Coûts de production'!AB31=Z30),'Coûts de production'!AC31,Z30/($AA$3+$AA$12))) ->  | AB30: =IF($AB$3=0,"",IF(AND($AB$3='Coûts de production'!$AD$3,'Coûts de production'!AB31=Z30),'Coûts de production'!AD31,Z30/($AB$3+$AB$12))) ->  | AK30: =IF($AK$3="VIDER","",IF(AND(J30=AQ30,$AK$4<>$AQ$4),($AK$4+$AK$12)*'Coûts de production'!K31,IF(AND(J30<>AQ30,J30<>AW30,J30<>""),J30,AQ30))) -> 0 | AL30: =IF($AL$3="VIDER","",IF(AND(N30=AR30,$AL$4<>$AR$4),($AL$4+$AL$12)*'Coûts de production'!P31,IF(AND(N30<>AR30,N30<>AX30,N30<>""),N30,AR30))) ->  | AM30: =IF($AM$3="VIDER","",IF(AND(R30=AS30,$AM$4<>$AS$4),($AM$4+$AM$12)*'Coûts de production'!U31,IF(AND(R30<>AS30,R30<>AY30,R30<>""),R30,AS30))) ->  | AN30: =IF($AN$3="VIDER","",IF(AND(V30=AT30,$AN$4<>$AT$4),($AN$4+$AN$12)*'Coûts de production'!Y31,IF(AND(V30<>AT30,V30<>AZ30,V30<>""),V30,AT30))) -> 0 | AO30: =IF($AO$3="VIDER","",IF(AND(Z30=AU30,$AO$4<>$AU$4),($AO$4+$AO$12)*'Coûts de production'!AC31,IF(AND(Z30<>AU30,Z30<>BA30,Z30<>""),Z30,AU30))) -> 0 | AQ30: =IF($AK$3<>$AQ$3,"",IF(AND($J$5="Rdt. (tm/ha)",$K$3<>'Coûts de production'!K$3),IF($L$3=0,"",$L$3* 'Coûts de production'!L31),'Coûts de production'!J31)) -> 0 | AR30: =IF($AL$3<>$AR$3,"",IF(AND($N$5="Rdt. (tm/ha)",$O$3<>'Coûts de production'!P$3),IF($P$3=0,"",$P$3*'Coûts de production'!Q31),'Coûts de production'!O31)) ->  | AS30: =IF($AM$3<>$AS$3,"",IF(AND($R$5="Rdt. (tm/ha)",$S$3<>'Coûts de production'!U$3),IF($T$3=0,"",$T$3*'Coûts de production'!V31),'Coûts de production'!T31)) ->  | AT30: =IF($AN$3<>$AT$3,"",IF(AND($V$5="Rdt. (tm/ha)",$W$3<>'Coûts de production'!Y$3),IF($X$3=0,"",$X$3*'Coûts de production'!Z31),'Coûts de production'!X31)) -> 0 | AU30: =IF($AO$3<>$AU$3,"",IF(AND($Z$5="Rdt. (tm/ha)",$AA$3<>'Coûts de production'!AC$3),IF($AB$3=0,"",$AB$3*'Coûts de production'!AD31),'Coûts de production'!AB31)) -> 0 | AW30: 122 | AZ30: 0 | BA30: 0
A31: 1 | C31: ='Coûts de production'!C32 -> Carburants | F31: 103 | H31: 1 | J31: 103 | K31: =IF($K$3=0,"",IF(AND($K$3='Coûts de production'!$K$3,'Coûts de production'!J32=J31),'Coûts de production'!K32,J31/($K$3+$K$12))) -> 103 | L31: =IF($L$3=0,"",IF(AND($L$3='Coûts de production'!$L$3,'Coûts de production'!J32=J31),'Coûts de production'!L32,J31/($L$3+$L$12))) -> 10.3 | M31: 0 | O31: =IF($O$3=0,"",IF(AND($O$3='Coûts de production'!$P$3,'Coûts de production'!O32=N31),'Coûts de production'!P32,N31/($O$3+$O$12))) ->  | P31: =IF($P$3=0,"",IF(AND($P$3='Coûts de production'!$Q$3,'Coûts de production'!O32=N31),'Coûts de production'!Q32,N31/($P$3+$P$12))) ->  | Q31: 0 | S31: =IF($S$3=0,"",IF(AND($S$3='Coûts de production'!$U$3,'Coûts de production'!T32=R31),'Coûts de production'!U32,R31/($S$3+$S$12))) ->  | T31: =IF($T$3=0,"",IF(AND($T$3='Coûts de production'!$V$3,'Coûts de production'!T32=R31),'Coûts de production'!V32,R31/($T$3+$T$12))) ->  | U31: 0 | V31: 0 | W31: =IF($W$3=0,"",IF(AND($W$3='Coûts de production'!$Y$3,'Coûts de production'!X32=V31),'Coûts de production'!Y32,V31/($W$3+$W$12))) ->  | X31: =IF($X$3=0,"",IF(AND($T$3='Coûts de production'!$V$3,'Coûts de production'!X32=V31),'Coûts de production'!Z32,V31/($X$3+$X$12))) ->  | Y31: 0 | Z31: 0 | AA31: =IF($AA$3=0,"",IF(AND($AA$3='Coûts de production'!$AC$3,'Coûts de production'!AB32=Z31),'Coûts de production'!AC32,Z31/($AA$3+$AA$12))) ->  | AB31: =IF($AB$3=0,"",IF(AND($AB$3='Coûts de production'!$AD$3,'Coûts de production'!AB32=Z31),'Coûts de production'!AD32,Z31/($AB$3+$AB$12))) ->  | AK31: =IF($AK$3="VIDER","",IF(AND(J31=AQ31,$AK$4<>$AQ$4),($AK$4+$AK$12)*'Coûts de production'!K32,IF(AND(J31<>AQ31,J31<>AW31,J31<>""),J31,AQ31))) -> 0 | AL31: =IF($AL$3="VIDER","",IF(AND(N31=AR31,$AL$4<>$AR$4),($AL$4+$AL$12)*'Coûts de production'!P32,IF(AND(N31<>AR31,N31<>AX31,N31<>""),N31,AR31))) ->  | AM31: =IF($AM$3="VIDER","",IF(AND(R31=AS31,$AM$4<>$AS$4),($AM$4+$AM$12)*'Coûts de production'!U32,IF(AND(R31<>AS31,R31<>AY31,R31<>""),R31,AS31))) ->  | AN31: =IF($AN$3="VIDER","",IF(AND(V31=AT31,$AN$4<>$AT$4),($AN$4+$AN$12)*'Coûts de production'!Y32,IF(AND(V31<>AT31,V31<>AZ31,V31<>""),V31,AT31))) -> 0 | AO31: =IF($AO$3="VIDER","",IF(AND(Z31=AU31,$AO$4<>$AU$4),($AO$4+$AO$12)*'Coûts de production'!AC32,IF(AND(Z31<>AU31,Z31<>BA31,Z31<>""),Z31,AU31))) -> 0 | AQ31: =IF($AK$3<>$AQ$3,"",IF(AND($J$5="Rdt. (tm/ha)",$K$3<>'Coûts de production'!K$3),IF($L$3=0,"",$L$3* 'Coûts de production'!L32),'Coûts de production'!J32)) -> 0 | AR31: =IF($AL$3<>$AR$3,"",IF(AND($N$5="Rdt. (tm/ha)",$O$3<>'Coûts de production'!P$3),IF($P$3=0,"",$P$3*'Coûts de production'!Q32),'Coûts de production'!O32)) ->  | AS31: =IF($AM$3<>$AS$3,"",IF(AND($R$5="Rdt. (tm/ha)",$S$3<>'Coûts de production'!U$3),IF($T$3=0,"",$T$3*'Coûts de production'!V32),'Coûts de production'!T32)) ->  | AT31: =IF($AN$3<>$AT$3,"",IF(AND($V$5="Rdt. (tm/ha)",$W$3<>'Coûts de production'!Y$3),IF($X$3=0,"",$X$3*'Coûts de production'!Z32),'Coûts de production'!X32)) -> 0 | AU31: =IF($AO$3<>$AU$3,"",IF(AND($Z$5="Rdt. (tm/ha)",$AA$3<>'Coûts de production'!AC$3),IF($AB$3=0,"",$AB$3*'Coûts de production'!AD32),'Coûts de production'!AB32)) -> 0 | AW31: 103 | AZ31: 0 | BA31: 0
C32: ='Coûts de production'!#REF! ->  | F32: 0 | J32: 0 | K32: =IF($K$3=0,"",IF(AND($K$3='Coûts de production'!$K$3,'Coûts de production'!#REF!=J32),'Coûts de production'!#REF!,J32/($K$3+$K$12))) ->  | L32: =IF($L$3=0,"",IF(AND($L$3='Coûts de production'!$L$3,'Coûts de production'!#REF!=J32),'Coûts de production'!#REF!,J32/($L$3+$L$12))) ->  | O32: =IF($O$3=0,"",IF(AND($O$3='Coûts de production'!$P$3,'Coûts de production'!#REF!=N32),'Coûts de production'!#REF!,N32/($O$3+$O$12))) ->  | P32: =IF($P$3=0,"",IF(AND($P$3='Coûts de production'!$Q$3,'Coûts de production'!#REF!=N32),'Coûts de production'!#REF!,N32/($P$3+$P$12))) ->  | S32: =IF($S$3=0,"",IF(AND($S$3='Coûts de production'!$U$3,'Coûts de production'!#REF!=R32),'Coûts de production'!#REF!,R32/($S$3+$S$12))) ->  | T32: =IF($T$3=0,"",IF(AND($T$3='Coûts de production'!$V$3,'Coûts de production'!#REF!=R32),'Coûts de production'!#REF!,R32/($T$3+$T$12))) ->  | V32: 0 | W32: =IF($W$3=0,"",IF(AND($W$3='Coûts de production'!$Y$3,'Coûts de production'!#REF!=V32),'Coûts de production'!#REF!,V32/($W$3+$W$12))) ->  | X32: =IF($X$3=0,"",IF(AND($T$3='Coûts de production'!$V$3,'Coûts de production'!#REF!=V32),'Coûts de production'!#REF!,V32/($X$3+$X$12))) ->  | Z32: 0 | AA32: =IF($AA$3=0,"",IF(AND($AA$3='Coûts de production'!$AC$3,'Coûts de production'!#REF!=Z32),'Coûts de production'!#REF!,Z32/($AA$3+$AA$12))) ->  | AB32: =IF($AB$3=0,"",IF(AND($AB$3='Coûts de production'!$AD$3,'Coûts de production'!#REF!=Z32),'Coûts de production'!#REF!,Z32/($AB$3+$AB$12))) ->  | AK32: =IF($AK$3="VIDER","",IF(AND(J32=AQ32,$AK$4<>$AQ$4),($AK$4+$AK$12)*'Coûts de production'!#REF!,IF(AND(J32<>AQ32,J32<>AW32,J32<>""),J32,AQ32))) ->  | AL32: =IF($AL$3="VIDER","",IF(AND(N32=AR32,$AL$4<>$AR$4),($AL$4+$AL$12)*'Coûts de production'!#REF!,IF(AND(N32<>AR32,N32<>AX32,N32<>""),N32,AR32))) ->  | AM32: =IF($AM$3="VIDER","",IF(AND(R32=AS32,$AM$4<>$AS$4),($AM$4+$AM$12)*'Coûts de production'!#REF!,IF(AND(R32<>AS32,R32<>AY32,R32<>""),R32,AS32))) ->  | AN32: =IF($AN$3="VIDER","",IF(AND(V32=AT32,$AN$4<>$AT$4),($AN$4+$AN$12)*'Coûts de production'!#REF!,IF(AND(V32<>AT32,V32<>AZ32,V32<>""),V32,AT32))) ->  | AO32: =IF($AO$3="VIDER","",IF(AND(Z32=AU32,$AO$4<>$AU$4),($AO$4+$AO$12)*'Coûts de production'!#REF!,IF(AND(Z32<>AU32,Z32<>BA32,Z32<>""),Z32,AU32))) ->  | AQ32: =IF($AK$3<>$AQ$3,"",IF(AND($J$5="Rdt. (tm/ha)",$K$3<>'Coûts de production'!K$3),IF($L$3=0,"",$L$3* 'Coûts de production'!#REF!),'Coûts de production'!#REF!)) ->  | AR32: =IF($AL$3<>$AR$3,"",IF(AND($N$5="Rdt. (tm/ha)",$O$3<>'Coûts de production'!P$3),IF($P$3=0,"",$P$3*'Coûts de production'!#REF!),'Coûts de production'!#REF!)) ->  | AS32: =IF($AM$3<>$AS$3,"",IF(AND($R$5="Rdt. (tm/ha)",$S$3<>'Coûts de production'!U$3),IF($T$3=0,"",$T$3*'Coûts de production'!#REF!),'Coûts de production'!#REF!)) ->  | AT32: =IF($AN$3<>$AT$3,"",IF(AND($V$5="Rdt. (tm/ha)",$W$3<>'Coûts de production'!Y$3),IF($X$3=0,"",$X$3*'Coûts de production'!#REF!),'Coûts de production'!#REF!)) ->  | AU32: =IF($AO$3<>$AU$3,"",IF(AND($Z$5="Rdt. (tm/ha)",$AA$3<>'Coûts de production'!AC$3),IF($AB$3=0,"",$AB$3*'Coûts de production'!#REF!),'Coûts de production'!#REF!)) ->  | AW32: 0 | AZ32: 0 | BA32: 0
A33: 1 | C33: ='Coûts de production'!C33 -> Électricité | F33: =J33+N33+R33+V33+Z33 -> 150 | H33: 1 | J33: 150 | K33: =IF($K$3=0,"",IF(AND($K$3='Coûts de production'!$K$3,'Coûts de production'!J33=J33),'Coûts de production'!K33,J33/($K$3+$K$12))) -> 150 | L33: =IF($L$3=0,"",IF(AND($L$3='Coûts de production'!$L$3,'Coûts de production'!J33=J33),'Coûts de production'!L33,J33/($L$3+$L$12))) -> 15 | M33: 0 | O33: =IF($O$3=0,"",IF(AND($O$3='Coûts de production'!$P$3,'Coûts de production'!O33=N33),'Coûts de production'!P33,N33/($O$3+$O$12))) ->  | P33: =IF($P$3=0,"",IF(AND($P$3='Coûts de production'!$Q$3,'Coûts de production'!O33=N33),'Coûts de production'!Q33,N33/($P$3+$P$12))) ->  | Q33: 0 | S33: =IF($S$3=0,"",IF(AND($S$3='Coûts de production'!$U$3,'Coûts de production'!T33=R33),'Coûts de production'!U33,R33/($S$3+$S$12))) ->  | T33: =IF($T$3=0,"",IF(AND($T$3='Coûts de production'!$V$3,'Coûts de production'!T33=R33),'Coûts de production'!V33,R33/($T$3+$T$12))) ->  | U33: 0 | V33: 0 | W33: =IF($W$3=0,"",IF(AND($W$3='Coûts de production'!$Y$3,'Coûts de production'!X33=V33),'Coûts de production'!Y33,V33/($W$3+$W$12))) ->  | X33: =IF($X$3=0,"",IF(AND($T$3='Coûts de production'!$V$3,'Coûts de production'!X33=V33),'Coûts de production'!Z33,V33/($X$3+$X$12))) ->  | Y33: 0 | Z33: 0 | AA33: =IF($AA$3=0,"",IF(AND($AA$3='Coûts de production'!$AC$3,'Coûts de production'!AB33=Z33),'Coûts de production'!AC33,Z33/($AA$3+$AA$12))) ->  | AB33: =IF($AB$3=0,"",IF(AND($AB$3='Coûts de production'!$AD$3,'Coûts de production'!AB33=Z33),'Coûts de production'!AD33,Z33/($AB$3+$AB$12))) ->  | AK33: =IF($AK$3="VIDER","",IF(AND(J33=AQ33,$AK$4<>$AQ$4),($AK$4+$AK$12)*'Coûts de production'!K33,IF(AND(J33<>AQ33,J33<>AW33,J33<>""),J33,AQ33))) -> 0 | AL33: =IF($AL$3="VIDER","",IF(AND(N33=AR33,$AL$4<>$AR$4),($AL$4+$AL$12)*'Coûts de production'!P33,IF(AND(N33<>AR33,N33<>AX33,N33<>""),N33,AR33))) ->  | AM33: =IF($AM$3="VIDER","",IF(AND(R33=AS33,$AM$4<>$AS$4),($AM$4+$AM$12)*'Coûts de production'!U33,IF(AND(R33<>AS33,R33<>AY33,R33<>""),R33,AS33))) ->  | AN33: =IF($AN$3="VIDER","",IF(AND(V33=AT33,$AN$4<>$AT$4),($AN$4+$AN$12)*'Coûts de production'!Y33,IF(AND(V33<>AT33,V33<>AZ33,V33<>""),V33,AT33))) -> 0 | AO33: =IF($AO$3="VIDER","",IF(AND(Z33=AU33,$AO$4<>$AU$4),($AO$4+$AO$12)*'Coûts de production'!AC33,IF(AND(Z33<>AU33,Z33<>BA33,Z33<>""),Z33,AU33))) -> 0 | AQ33: =IF($AK$3<>$AQ$3,"",IF(AND($J$5="Rdt. (tm/ha)",$K$3<>'Coûts de production'!K$3),IF($L$3=0,"",$L$3* 'Coûts de production'!L33),'Coûts de production'!J33)) -> 0 | AR33: =IF($AL$3<>$AR$3,"",IF(AND($N$5="Rdt. (tm/ha)",$O$3<>'Coûts de production'!P$3),IF($P$3=0,"",$P$3*'Coûts de production'!Q33),'Coûts de production'!O33)) ->  | AS33: =IF($AM$3<>$AS$3,"",IF(AND($R$5="Rdt. (tm/ha)",$S$3<>'Coûts de production'!U$3),IF($T$3=0,"",$T$3*'Coûts de production'!V33),'Coûts de production'!T33)) ->  | AT33: =IF($AN$3<>$AT$3,"",IF(AND($V$5="Rdt. (tm/ha)",$W$3<>'Coûts de production'!Y$3),IF($X$3=0,"",$X$3*'Coûts de production'!Z33),'Coûts de production'!X33)) -> 0 | AU33: =IF($AO$3<>$AU$3,"",IF(AND($Z$5="Rdt. (tm/ha)",$AA$3<>'Coûts de production'!AC$3),IF($AB$3=0,"",$AB$3*'Coûts de production'!AD33),'Coûts de production'!AB33)) -> 0 | AW33: 150 | AZ33: 0 | BA33: 0
A34: 1 | C34: ='Coûts de production'!C34 -> Frais de mise en marché (plan conjoint, transport, encan) | F34: 36 | H34: 1 | J34: 36 | K34: =IF($K$3=0,"",IF(AND($K$3='Coûts de production'!$K$3,'Coûts de production'!J34=J34),'Coûts de production'!K34,J34/($K$3+$K$12))) -> 36 | L34: =IF($L$3=0,"",IF(AND($L$3='Coûts de production'!$L$3,'Coûts de production'!J34=J34),'Coûts de production'!L34,J34/($L$3+$L$12))) -> 3.6 | M34: 0 | O34: =IF($O$3=0,"",IF(AND($O$3='Coûts de production'!$P$3,'Coûts de production'!O34=N34),'Coûts de production'!P34,N34/($O$3+$O$12))) ->  | P34: =IF($P$3=0,"",IF(AND($P$3='Coûts de production'!$Q$3,'Coûts de production'!O34=N34),'Coûts de production'!Q34,N34/($P$3+$P$12))) ->  | Q34: 0 | S34: =IF($S$3=0,"",IF(AND($S$3='Coûts de production'!$U$3,'Coûts de production'!T34=R34),'Coûts de production'!U34,R34/($S$3+$S$12))) ->  | T34: =IF($T$3=0,"",IF(AND($T$3='Coûts de production'!$V$3,'Coûts de production'!T34=R34),'Coûts de production'!V34,R34/($T$3+$T$12))) ->  | U34: 0 | V34: 0 | W34: =IF($W$3=0,"",IF(AND($W$3='Coûts de production'!$Y$3,'Coûts de production'!X34=V34),'Coûts de production'!Y34,V34/($W$3+$W$12))) ->  | X34: =IF($X$3=0,"",IF(AND($T$3='Coûts de production'!$V$3,'Coûts de production'!X34=V34),'Coûts de production'!Z34,V34/($X$3+$X$12))) ->  | Y34: 0 | Z34: 0 | AA34: =IF($AA$3=0,"",IF(AND($AA$3='Coûts de production'!$AC$3,'Coûts de production'!AB34=Z34),'Coûts de production'!AC34,Z34/($AA$3+$AA$12))) ->  | AB34: =IF($AB$3=0,"",IF(AND($AB$3='Coûts de production'!$AD$3,'Coûts de production'!AB34=Z34),'Coûts de production'!AD34,Z34/($AB$3+$AB$12))) ->  | AK34: =IF($AK$3="VIDER","",IF(AND(J34=AQ34,$AK$4<>$AQ$4),($AK$4+$AK$12)*'Coûts de production'!K34,IF(AND(J34<>AQ34,J34<>AW34,J34<>""),J34,AQ34))) -> 0 | AL34: =IF($AL$3="VIDER","",IF(AND(N34=AR34,$AL$4<>$AR$4),($AL$4+$AL$12)*'Coûts de production'!P34,IF(AND(N34<>AR34,N34<>AX34,N34<>""),N34,AR34))) ->  | AM34: =IF($AM$3="VIDER","",IF(AND(R34=AS34,$AM$4<>$AS$4),($AM$4+$AM$12)*'Coûts de production'!U34,IF(AND(R34<>AS34,R34<>AY34,R34<>""),R34,AS34))) ->  | AN34: =IF($AN$3="VIDER","",IF(AND(V34=AT34,$AN$4<>$AT$4),($AN$4+$AN$12)*'Coûts de production'!Y34,IF(AND(V34<>AT34,V34<>AZ34,V34<>""),V34,AT34))) -> 0 | AO34: =IF($AO$3="VIDER","",IF(AND(Z34=AU34,$AO$4<>$AU$4),($AO$4+$AO$12)*'Coûts de production'!AC34,IF(AND(Z34<>AU34,Z34<>BA34,Z34<>""),Z34,AU34))) -> 0 | AQ34: =IF($AK$3<>$AQ$3,"",IF(AND($J$5="Rdt. (tm/ha)",$K$3<>'Coûts de production'!K$3),IF($L$3=0,"",$L$3* 'Coûts de production'!L34),'Coûts de production'!J34)) -> 0 | AR34: =IF($AL$3<>$AR$3,"",IF(AND($N$5="Rdt. (tm/ha)",$O$3<>'Coûts de production'!P$3),IF($P$3=0,"",$P$3*'Coûts de production'!Q34),'Coûts de production'!O34)) ->  | AS34: =IF($AM$3<>$AS$3,"",IF(AND($R$5="Rdt. (tm/ha)",$S$3<>'Coûts de production'!U$3),IF($T$3=0,"",$T$3*'Coûts de production'!V34),'Coûts de production'!T34)) ->  | AT34: =IF($AN$3<>$AT$3,"",IF(AND($V$5="Rdt. (tm/ha)",$W$3<>'Coûts de production'!Y$3),IF($X$3=0,"",$X$3*'Coûts de production'!Z34),'Coûts de production'!X34)) -> 0 | AU34: =IF($AO$3<>$AU$3,"",IF(AND($Z$5="Rdt. (tm/ha)",$AA$3<>'Coûts de production'!AC$3),IF($AB$3=0,"",$AB$3*'Coûts de production'!AD34),'Coûts de production'!AB34)) -> 0 | AW34: 36 | AZ34: 0 | BA34: 0
A35: 1 | C35: ='Coûts de production'!C35 -> Contribution des AGRI et ASRA | F35: 4 | H35: 1 | J35: 4 | K35: =IF($K$3=0,"",IF(AND($K$3='Coûts de production'!$K$3,'Coûts de production'!J35=J35),'Coûts de production'!K35,J35/($K$3+$K$12))) -> 4 | L35: =IF($L$3=0,"",IF(AND($L$3='Coûts de production'!$L$3,'Coûts de production'!J35=J35),'Coûts de production'!L35,J35/($L$3+$L$12))) -> 0.4 | M35: 0 | O35: =IF($O$3=0,"",IF(AND($O$3='Coûts de production'!$P$3,'Coûts de production'!O35=N35),'Coûts de production'!P35,N35/($O$3+$O$12))) ->  | P35: =IF($P$3=0,"",IF(AND($P$3='Coûts de production'!$Q$3,'Coûts de production'!O35=N35),'Coûts de production'!Q35,N35/($P$3+$P$12))) ->  | Q35: 0 | S35: =IF($S$3=0,"",IF(AND($S$3='Coûts de production'!$U$3,'Coûts de production'!T35=R35),'Coûts de production'!U35,R35/($S$3+$S$12))) ->  | T35: =IF($T$3=0,"",IF(AND($T$3='Coûts de production'!$V$3,'Coûts de production'!T35=R35),'Coûts de production'!V35,R35/($T$3+$T$12))) ->  | U35: 0 | V35: 0 | W35: =IF($W$3=0,"",IF(AND($W$3='Coûts de production'!$Y$3,'Coûts de production'!X35=V35),'Coûts de production'!Y35,V35/($W$3+$W$12))) ->  | X35: =IF($X$3=0,"",IF(AND($T$3='Coûts de production'!$V$3,'Coûts de production'!X35=V35),'Coûts de production'!Z35,V35/($X$3+$X$12))) ->  | Y35: 0 | Z35: 0 | AA35: =IF($AA$3=0,"",IF(AND($AA$3='Coûts de production'!$AC$3,'Coûts de production'!AB35=Z35),'Coûts de production'!AC35,Z35/($AA$3+$AA$12))) ->  | AB35: =IF($AB$3=0,"",IF(AND($AB$3='Coûts de production'!$AD$3,'Coûts de production'!AB35=Z35),'Coûts de production'!AD35,Z35/($AB$3+$AB$12))) ->  | AK35: =IF($AK$3="VIDER","",IF(AND(J35=AQ35,$AK$4<>$AQ$4),($AK$4+$AK$12)*'Coûts de production'!K35,IF(AND(J35<>AQ35,J35<>AW35,J35<>""),J35,AQ35))) -> 0 | AL35: =IF($AL$3="VIDER","",IF(AND(N35=AR35,$AL$4<>$AR$4),($AL$4+$AL$12)*'Coûts de production'!P35,IF(AND(N35<>AR35,N35<>AX35,N35<>""),N35,AR35))) ->  | AM35: =IF($AM$3="VIDER","",IF(AND(R35=AS35,$AM$4<>$AS$4),($AM$4+$AM$12)*'Coûts de production'!U35,IF(AND(R35<>AS35,R35<>AY35,R35<>""),R35,AS35))) ->  | AN35: =IF($AN$3="VIDER","",IF(AND(V35=AT35,$AN$4<>$AT$4),($AN$4+$AN$12)*'Coûts de production'!Y35,IF(AND(V35<>AT35,V35<>AZ35,V35<>""),V35,AT35))) -> 0 | AO35: =IF($AO$3="VIDER","",IF(AND(Z35=AU35,$AO$4<>$AU$4),($AO$4+$AO$12)*'Coûts de production'!AC35,IF(AND(Z35<>AU35,Z35<>BA35,Z35<>""),Z35,AU35))) -> 0 | AQ35: =IF($AK$3<>$AQ$3,"",IF(AND($J$5="Rdt. (tm/ha)",$K$3<>'Coûts de production'!K$3),IF($L$3=0,"",$L$3* 'Coûts de production'!L35),'Coûts de production'!J35)) -> 0 | AR35: =IF($AL$3<>$AR$3,"",IF(AND($N$5="Rdt. (tm/ha)",$O$3<>'Coûts de production'!P$3),IF($P$3=0,"",$P$3*'Coûts de production'!Q35),'Coûts de production'!O35)) ->  | AS35: =IF($AM$3<>$AS$3,"",IF(AND($R$5="Rdt. (tm/ha)",$S$3<>'Coûts de production'!U$3),IF($T$3=0,"",$T$3*'Coûts de production'!V35),'Coûts de production'!T35)) ->  | AT35: =IF($AN$3<>$AT$3,"",IF(AND($V$5="Rdt. (tm/ha)",$W$3<>'Coûts de production'!Y$3),IF($X$3=0,"",$X$3*'Coûts de production'!Z35),'Coûts de production'!X35)) -> 0 | AU35: =IF($AO$3<>$AU$3,"",IF(AND($Z$5="Rdt. (tm/ha)",$AA$3<>'Coûts de production'!AC$3),IF($AB$3=0,"",$AB$3*'Coûts de production'!AD35),'Coûts de production'!AB35)) -> 0 | AW35: 4 | AZ35: 0 | BA35: 0
A36: 1 | C36: ='Coûts de production'!C36 -> Contribution d'autres programmes | F36: 22 | H36: 1 | J36: 22 | K36: =IF($K$3=0,"",IF(AND($K$3='Coûts de production'!$K$3,'Coûts de production'!J36=J36),'Coûts de production'!K36,J36/($K$3+$K$12))) -> 22 | L36: =IF($L$3=0,"",IF(AND($L$3='Coûts de production'!$L$3,'Coûts de production'!J36=J36),'Coûts de production'!L36,J36/($L$3+$L$12))) -> 2.2 | M36: 0 | O36: =IF($O$3=0,"",IF(AND($O$3='Coûts de production'!$P$3,'Coûts de production'!O36=N36),'Coûts de production'!P36,N36/($O$3+$O$12))) ->  | P36: =IF($P$3=0,"",IF(AND($P$3='Coûts de production'!$Q$3,'Coûts de production'!O36=N36),'Coûts de production'!Q36,N36/($P$3+$P$12))) ->  | Q36: 0 | S36: =IF($S$3=0,"",IF(AND($S$3='Coûts de production'!$U$3,'Coûts de production'!T36=R36),'Coûts de production'!U36,R36/($S$3+$S$12))) ->  | T36: =IF($T$3=0,"",IF(AND($T$3='Coûts de production'!$V$3,'Coûts de production'!T36=R36),'Coûts de production'!V36,R36/($T$3+$T$12))) ->  | U36: 0 | V36: 0 | W36: =IF($W$3=0,"",IF(AND($W$3='Coûts de production'!$Y$3,'Coûts de production'!X36=V36),'Coûts de production'!Y36,V36/($W$3+$W$12))) ->  | X36: =IF($X$3=0,"",IF(AND($T$3='Coûts de production'!$V$3,'Coûts de production'!X36=V36),'Coûts de production'!Z36,V36/($X$3+$X$12))) ->  | Y36: 0 | Z36: 0 | AA36: =IF($AA$3=0,"",IF(AND($AA$3='Coûts de production'!$AC$3,'Coûts de production'!AB36=Z36),'Coûts de production'!AC36,Z36/($AA$3+$AA$12))) ->  | AB36: =IF($AB$3=0,"",IF(AND($AB$3='Coûts de production'!$AD$3,'Coûts de production'!AB36=Z36),'Coûts de production'!AD36,Z36/($AB$3+$AB$12))) ->  | AK36: =IF($AK$3="VIDER","",IF(AND(J36=AQ36,$AK$4<>$AQ$4),($AK$4+$AK$12)*'Coûts de production'!K36,IF(AND(J36<>AQ36,J36<>AW36,J36<>""),J36,AQ36))) -> 0 | AL36: =IF($AL$3="VIDER","",IF(AND(N36=AR36,$AL$4<>$AR$4),($AL$4+$AL$12)*'Coûts de production'!P36,IF(AND(N36<>AR36,N36<>AX36,N36<>""),N36,AR36))) ->  | AM36: =IF($AM$3="VIDER","",IF(AND(R36=AS36,$AM$4<>$AS$4),($AM$4+$AM$12)*'Coûts de production'!U36,IF(AND(R36<>AS36,R36<>AY36,R36<>""),R36,AS36))) ->  | AN36: =IF($AN$3="VIDER","",IF(AND(V36=AT36,$AN$4<>$AT$4),($AN$4+$AN$12)*'Coûts de production'!Y36,IF(AND(V36<>AT36,V36<>AZ36,V36<>""),V36,AT36))) -> 0 | AO36: =IF($AO$3="VIDER","",IF(AND(Z36=AU36,$AO$4<>$AU$4),($AO$4+$AO$12)*'Coûts de production'!AC36,IF(AND(Z36<>AU36,Z36<>BA36,Z36<>""),Z36,AU36))) -> 0 | AQ36: =IF($AK$3<>$AQ$3,"",IF(AND($J$5="Rdt. (tm/ha)",$K$3<>'Coûts de production'!K$3),IF($L$3=0,"",$L$3* 'Coûts de production'!L36),'Coûts de production'!J36)) -> 0 | AR36: =IF($AL$3<>$AR$3,"",IF(AND($N$5="Rdt. (tm/ha)",$O$3<>'Coûts de production'!P$3),IF($P$3=0,"",$P$3*'Coûts de production'!Q36),'Coûts de production'!O36)) ->  | AS36: =IF($AM$3<>$AS$3,"",IF(AND($R$5="Rdt. (tm/ha)",$S$3<>'Coûts de production'!U$3),IF($T$3=0,"",$T$3*'Coûts de production'!V36),'Coûts de production'!T36)) ->  | AT36: =IF($AN$3<>$AT$3,"",IF(AND($V$5="Rdt. (tm/ha)",$W$3<>'Coûts de production'!Y$3),IF($X$3=0,"",$X$3*'Coûts de production'!Z36),'Coûts de production'!X36)) -> 0 | AU36: =IF($AO$3<>$AU$3,"",IF(AND($Z$5="Rdt. (tm/ha)",$AA$3<>'Coûts de production'!AC$3),IF($AB$3=0,"",$AB$3*'Coûts de production'!AD36),'Coûts de production'!AB36)) -> 0 | AW36: 22 | AZ36: 0 | BA36: 0
A37: 1 | C37: ='Coûts de production'!C37 -> Achat d'animaux | F37: 0 | J37: 0 | K37: =IF($K$3=0,"",IF(AND($K$3='Coûts de production'!$K$3,'Coûts de production'!J37=J37),'Coûts de production'!K37,J37/($K$3+$K$12))) -> 0 | L37: =IF($L$3=0,"",IF(AND($L$3='Coûts de production'!$L$3,'Coûts de production'!J37=J37),'Coûts de production'!L37,J37/($L$3+$L$12))) -> 0 | O37: =IF($O$3=0,"",IF(AND($O$3='Coûts de production'!$P$3,'Coûts de production'!O37=N37),'Coûts de production'!P37,N37/($O$3+$O$12))) ->  | P37: =IF($P$3=0,"",IF(AND($P$3='Coûts de production'!$Q$3,'Coûts de production'!O37=N37),'Coûts de production'!Q37,N37/($P$3+$P$12))) ->  | S37: =IF($S$3=0,"",IF(AND($S$3='Coûts de production'!$U$3,'Coûts de production'!T37=R37),'Coûts de production'!U37,R37/($S$3+$S$12))) ->  | T37: =IF($T$3=0,"",IF(AND($T$3='Coûts de production'!$V$3,'Coûts de production'!T37=R37),'Coûts de production'!V37,R37/($T$3+$T$12))) ->  | V37: 0 | W37: =IF($W$3=0,"",IF(AND($W$3='Coûts de production'!$Y$3,'Coûts de production'!X37=V37),'Coûts de production'!Y37,V37/($W$3+$W$12))) ->  | X37: =IF($X$3=0,"",IF(AND($T$3='Coûts de production'!$V$3,'Coûts de production'!X37=V37),'Coûts de production'!Z37,V37/($X$3+$X$12))) ->  | Z37: 0 | AA37: =IF($AA$3=0,"",IF(AND($AA$3='Coûts de production'!$AC$3,'Coûts de production'!AB37=Z37),'Coûts de production'!AC37,Z37/($AA$3+$AA$12))) ->  | AB37: =IF($AB$3=0,"",IF(AND($AB$3='Coûts de production'!$AD$3,'Coûts de production'!AB37=Z37),'Coûts de production'!AD37,Z37/($AB$3+$AB$12))) ->  | AK37: =IF($AK$3="VIDER","",IF(AND(J37=AQ37,$AK$4<>$AQ$4),($AK$4+$AK$12)*'Coûts de production'!K37,IF(AND(J37<>AQ37,J37<>AW37,J37<>""),J37,AQ37))) -> 0 | AL37: =IF($AL$3="VIDER","",IF(AND(N37=AR37,$AL$4<>$AR$4),($AL$4+$AL$12)*'Coûts de production'!P37,IF(AND(N37<>AR37,N37<>AX37,N37<>""),N37,AR37))) ->  | AM37: =IF($AM$3="VIDER","",IF(AND(R37=AS37,$AM$4<>$AS$4),($AM$4+$AM$12)*'Coûts de production'!U37,IF(AND(R37<>AS37,R37<>AY37,R37<>""),R37,AS37))) ->  | AN37: =IF($AN$3="VIDER","",IF(AND(V37=AT37,$AN$4<>$AT$4),($AN$4+$AN$12)*'Coûts de production'!Y37,IF(AND(V37<>AT37,V37<>AZ37,V37<>""),V37,AT37))) -> 0 | AO37: =IF($AO$3="VIDER","",IF(AND(Z37=AU37,$AO$4<>$AU$4),($AO$4+$AO$12)*'Coûts de production'!AC37,IF(AND(Z37<>AU37,Z37<>BA37,Z37<>""),Z37,AU37))) -> 0 | AQ37: =IF($AK$3<>$AQ$3,"",IF(AND($J$5="Rdt. (tm/ha)",$K$3<>'Coûts de production'!K$3),IF($L$3=0,"",$L$3* 'Coûts de production'!L37),'Coûts de production'!J37)) -> 0 | AR37: =IF($AL$3<>$AR$3,"",IF(AND($N$5="Rdt. (tm/ha)",$O$3<>'Coûts de production'!P$3),IF($P$3=0,"",$P$3*'Coûts de production'!Q37),'Coûts de production'!O37)) ->  | AS37: =IF($AM$3<>$AS$3,"",IF(AND($R$5="Rdt. (tm/ha)",$S$3<>'Coûts de production'!U$3),IF($T$3=0,"",$T$3*'Coûts de production'!V37),'Coûts de production'!T37)) ->  | AT37: =IF($AN$3<>$AT$3,"",IF(AND($V$5="Rdt. (tm/ha)",$W$3<>'Coûts de production'!Y$3),IF($X$3=0,"",$X$3*'Coûts de production'!Z37),'Coûts de production'!X37)) -> 0 | AU37: =IF($AO$3<>$AU$3,"",IF(AND($Z$5="Rdt. (tm/ha)",$AA$3<>'Coûts de production'!AC$3),IF($AB$3=0,"",$AB$3*'Coûts de production'!AD37),'Coûts de production'!AB37)) -> 0 | AW37: 0 | AZ37: 0 | BA37: 0
C38: ='Coûts de production'!#REF! ->  | F38: 0 | J38: 0 | K38: =IF($K$3=0,"",IF(AND($K$3='Coûts de production'!$K$3,'Coûts de production'!#REF!=J38),'Coûts de production'!#REF!,J38/($K$3+$K$12))) ->  | L38: =IF($L$3=0,"",IF(AND($L$3='Coûts de production'!$L$3,'Coûts de production'!#REF!=J38),'Coûts de production'!#REF!,J38/($L$3+$L$12))) ->  | O38: =IF($O$3=0,"",IF(AND($O$3='Coûts de production'!$P$3,'Coûts de production'!#REF!=N38),'Coûts de production'!#REF!,N38/($O$3+$O$12))) ->  | P38: =IF($P$3=0,"",IF(AND($P$3='Coûts de production'!$Q$3,'Coûts de production'!#REF!=N38),'Coûts de production'!#REF!,N38/($P$3+$P$12))) ->  | S38: =IF($S$3=0,"",IF(AND($S$3='Coûts de production'!$U$3,'Coûts de production'!#REF!=R38),'Coûts de production'!#REF!,R38/($S$3+$S$12))) ->  | T38: =IF($T$3=0,"",IF(AND($T$3='Coûts de production'!$V$3,'Coûts de production'!#REF!=R38),'Coûts de production'!#REF!,R38/($T$3+$T$12))) ->  | V38: 0 | W38: =IF($W$3=0,"",IF(AND($W$3='Coûts de production'!$Y$3,'Coûts de production'!#REF!=V38),'Coûts de production'!#REF!,V38/($W$3+$W$12))) ->  | X38: =IF($X$3=0,"",IF(AND($T$3='Coûts de production'!$V$3,'Coûts de production'!#REF!=V38),'Coûts de production'!#REF!,V38/($X$3+$X$12))) ->  | Z38: 0 | AA38: =IF($AA$3=0,"",IF(AND($AA$3='Coûts de production'!$AC$3,'Coûts de production'!#REF!=Z38),'Coûts de production'!#REF!,Z38/($AA$3+$AA$12))) ->  | AB38: =IF($AB$3=0,"",IF(AND($AB$3='Coûts de production'!$AD$3,'Coûts de production'!#REF!=Z38),'Coûts de production'!#REF!,Z38/($AB$3+$AB$12))) ->  | AK38: =IF($AK$3="VIDER","",IF(AND(J38=AQ38,$AK$4<>$AQ$4),($AK$4+$AK$12)*'Coûts de production'!#REF!,IF(AND(J38<>AQ38,J38<>AW38,J38<>""),J38,AQ38))) ->  | AL38: =IF($AL$3="VIDER","",IF(AND(N38=AR38,$AL$4<>$AR$4),($AL$4+$AL$12)*'Coûts de production'!#REF!,IF(AND(N38<>AR38,N38<>AX38,N38<>""),N38,AR38))) ->  | AM38: =IF($AM$3="VIDER","",IF(AND(R38=AS38,$AM$4<>$AS$4),($AM$4+$AM$12)*'Coûts de production'!#REF!,IF(AND(R38<>AS38,R38<>AY38,R38<>""),R38,AS38))) ->  | AN38: =IF($AN$3="VIDER","",IF(AND(V38=AT38,$AN$4<>$AT$4),($AN$4+$AN$12)*'Coûts de production'!#REF!,IF(AND(V38<>AT38,V38<>AZ38,V38<>""),V38,AT38))) ->  | AO38: =IF($AO$3="VIDER","",IF(AND(Z38=AU38,$AO$4<>$AU$4),($AO$4+$AO$12)*'Coûts de production'!#REF!,IF(AND(Z38<>AU38,Z38<>BA38,Z38<>""),Z38,AU38))) ->  | AQ38: =IF($AK$3<>$AQ$3,"",IF(AND($J$5="Rdt. (tm/ha)",$K$3<>'Coûts de production'!K$3),IF($L$3=0,"",$L$3* 'Coûts de production'!#REF!),'Coûts de production'!#REF!)) ->  | AR38: =IF($AL$3<>$AR$3,"",IF(AND($N$5="Rdt. (tm/ha)",$O$3<>'Coûts de production'!P$3),IF($P$3=0,"",$P$3*'Coûts de production'!#REF!),'Coûts de production'!#REF!)) ->  | AS38: =IF($AM$3<>$AS$3,"",IF(AND($R$5="Rdt. (tm/ha)",$S$3<>'Coûts de production'!U$3),IF($T$3=0,"",$T$3*'Coûts de production'!#REF!),'Coûts de production'!#REF!)) ->  | AT38: =IF($AN$3<>$AT$3,"",IF(AND($V$5="Rdt. (tm/ha)",$W$3<>'Coûts de production'!Y$3),IF($X$3=0,"",$X$3*'Coûts de production'!#REF!),'Coûts de production'!#REF!)) ->  | AU38: =IF($AO$3<>$AU$3,"",IF(AND($Z$5="Rdt. (tm/ha)",$AA$3<>'Coûts de production'!AC$3),IF($AB$3=0,"",$AB$3*'Coûts de production'!#REF!),'Coûts de production'!#REF!)) ->  | AW38: 0 | AZ38: 0 | BA38: 0
A39: 1 | C39: ='Coûts de production'!C38 -> Achat d'aliments | F39: 0 | J39: 0 | K39: =IF($K$3=0,"",IF(AND($K$3='Coûts de production'!$K$3,'Coûts de production'!J38=J39),'Coûts de production'!K38,J39/($K$3+$K$12))) -> 0 | L39: =IF($L$3=0,"",IF(AND($L$3='Coûts de production'!$L$3,'Coûts de production'!J38=J39),'Coûts de production'!L38,J39/($L$3+$L$12))) -> 0 | O39: =IF($O$3=0,"",IF(AND($O$3='Coûts de production'!$P$3,'Coûts de production'!O38=N39),'Coûts de production'!P38,N39/($O$3+$O$12))) ->  | P39: =IF($P$3=0,"",IF(AND($P$3='Coûts de production'!$Q$3,'Coûts de production'!O38=N39),'Coûts de production'!Q38,N39/($P$3+$P$12))) ->  | S39: =IF($S$3=0,"",IF(AND($S$3='Coûts de production'!$U$3,'Coûts de production'!T38=R39),'Coûts de production'!U38,R39/($S$3+$S$12))) ->  | T39: =IF($T$3=0,"",IF(AND($T$3='Coûts de production'!$V$3,'Coûts de production'!T38=R39),'Coûts de production'!V38,R39/($T$3+$T$12))) ->  | V39: 0 | W39: =IF($W$3=0,"",IF(AND($W$3='Coûts de production'!$Y$3,'Coûts de production'!X38=V39),'Coûts de production'!Y38,V39/($W$3+$W$12))) ->  | X39: =IF($X$3=0,"",IF(AND($T$3='Coûts de production'!$V$3,'Coûts de production'!X38=V39),'Coûts de production'!Z38,V39/($X$3+$X$12))) ->  | Z39: 0 | AA39: =IF($AA$3=0,"",IF(AND($AA$3='Coûts de production'!$AC$3,'Coûts de production'!AB38=Z39),'Coûts de production'!AC38,Z39/($AA$3+$AA$12))) ->  | AB39: =IF($AB$3=0,"",IF(AND($AB$3='Coûts de production'!$AD$3,'Coûts de production'!AB38=Z39),'Coûts de production'!AD38,Z39/($AB$3+$AB$12))) ->  | AK39: =IF($AK$3="VIDER","",IF(AND(J39=AQ39,$AK$4<>$AQ$4),($AK$4+$AK$12)*'Coûts de production'!K38,IF(AND(J39<>AQ39,J39<>AW39,J39<>""),J39,AQ39))) -> 0 | AL39: =IF($AL$3="VIDER","",IF(AND(N39=AR39,$AL$4<>$AR$4),($AL$4+$AL$12)*'Coûts de production'!P38,IF(AND(N39<>AR39,N39<>AX39,N39<>""),N39,AR39))) ->  | AM39: =IF($AM$3="VIDER","",IF(AND(R39=AS39,$AM$4<>$AS$4),($AM$4+$AM$12)*'Coûts de production'!U38,IF(AND(R39<>AS39,R39<>AY39,R39<>""),R39,AS39))) ->  | AN39: =IF($AN$3="VIDER","",IF(AND(V39=AT39,$AN$4<>$AT$4),($AN$4+$AN$12)*'Coûts de production'!Y38,IF(AND(V39<>AT39,V39<>AZ39,V39<>""),V39,AT39))) -> 0 | AO39: =IF($AO$3="VIDER","",IF(AND(Z39=AU39,$AO$4<>$AU$4),($AO$4+$AO$12)*'Coûts de production'!AC38,IF(AND(Z39<>AU39,Z39<>BA39,Z39<>""),Z39,AU39))) -> 0 | AQ39: =IF($AK$3<>$AQ$3,"",IF(AND($J$5="Rdt. (tm/ha)",$K$3<>'Coûts de production'!K$3),IF($L$3=0,"",$L$3* 'Coûts de production'!L38),'Coûts de production'!J38)) -> 0 | AR39: =IF($AL$3<>$AR$3,"",IF(AND($N$5="Rdt. (tm/ha)",$O$3<>'Coûts de production'!P$3),IF($P$3=0,"",$P$3*'Coûts de production'!Q38),'Coûts de production'!O38)) ->  | AS39: =IF($AM$3<>$AS$3,"",IF(AND($R$5="Rdt. (tm/ha)",$S$3<>'Coûts de production'!U$3),IF($T$3=0,"",$T$3*'Coûts de production'!V38),'Coûts de production'!T38)) ->  | AT39: =IF($AN$3<>$AT$3,"",IF(AND($V$5="Rdt. (tm/ha)",$W$3<>'Coûts de production'!Y$3),IF($X$3=0,"",$X$3*'Coûts de production'!Z38),'Coûts de production'!X38)) -> 0 | AU39: =IF($AO$3<>$AU$3,"",IF(AND($Z$5="Rdt. (tm/ha)",$AA$3<>'Coûts de production'!AC$3),IF($AB$3=0,"",$AB$3*'Coûts de production'!AD38),'Coûts de production'!AB38)) -> 0 | AW39: 0 | AZ39: 0 | BA39: 0
A40: 1 | C40: ='Coûts de production'!C39 -> Médicaments, vétérinaire, insémination | F40: 0 | J40: 0 | K40: =IF($K$3=0,"",IF(AND($K$3='Coûts de production'!$K$3,'Coûts de production'!J39=J40),'Coûts de production'!K39,J40/($K$3+$K$12))) -> 0 | L40: =IF($L$3=0,"",IF(AND($L$3='Coûts de production'!$L$3,'Coûts de production'!J39=J40),'Coûts de production'!L39,J40/($L$3+$L$12))) -> 0 | O40: =IF($O$3=0,"",IF(AND($O$3='Coûts de production'!$P$3,'Coûts de production'!O39=N40),'Coûts de production'!P39,N40/($O$3+$O$12))) ->  | P40: =IF($P$3=0,"",IF(AND($P$3='Coûts de production'!$Q$3,'Coûts de production'!O39=N40),'Coûts de production'!Q39,N40/($P$3+$P$12))) ->  | S40: =IF($S$3=0,"",IF(AND($S$3='Coûts de production'!$U$3,'Coûts de production'!T39=R40),'Coûts de production'!U39,R40/($S$3+$S$12))) ->  | T40: =IF($T$3=0,"",IF(AND($T$3='Coûts de production'!$V$3,'Coûts de production'!T39=R40),'Coûts de production'!V39,R40/($T$3+$T$12))) ->  | V40: 0 | W40: =IF($W$3=0,"",IF(AND($W$3='Coûts de production'!$Y$3,'Coûts de production'!X39=V40),'Coûts de production'!Y39,V40/($W$3+$W$12))) ->  | X40: =IF($X$3=0,"",IF(AND($T$3='Coûts de production'!$V$3,'Coûts de production'!X39=V40),'Coûts de production'!Z39,V40/($X$3+$X$12))) ->  | Z40: 0 | AA40: =IF($AA$3=0,"",IF(AND($AA$3='Coûts de production'!$AC$3,'Coûts de production'!AB39=Z40),'Coûts de production'!AC39,Z40/($AA$3+$AA$12))) ->  | AB40: =IF($AB$3=0,"",IF(AND($AB$3='Coûts de production'!$AD$3,'Coûts de production'!AB39=Z40),'Coûts de production'!AD39,Z40/($AB$3+$AB$12))) ->  | AK40: =IF($AK$3="VIDER","",IF(AND(J40=AQ40,$AK$4<>$AQ$4),($AK$4+$AK$12)*'Coûts de production'!K39,IF(AND(J40<>AQ40,J40<>AW40,J40<>""),J40,AQ40))) -> 0 | AL40: =IF($AL$3="VIDER","",IF(AND(N40=AR40,$AL$4<>$AR$4),($AL$4+$AL$12)*'Coûts de production'!P39,IF(AND(N40<>AR40,N40<>AX40,N40<>""),N40,AR40))) ->  | AM40: =IF($AM$3="VIDER","",IF(AND(R40=AS40,$AM$4<>$AS$4),($AM$4+$AM$12)*'Coûts de production'!U39,IF(AND(R40<>AS40,R40<>AY40,R40<>""),R40,AS40))) ->  | AN40: =IF($AN$3="VIDER","",IF(AND(V40=AT40,$AN$4<>$AT$4),($AN$4+$AN$12)*'Coûts de production'!Y39,IF(AND(V40<>AT40,V40<>AZ40,V40<>""),V40,AT40))) -> 0 | AO40: =IF($AO$3="VIDER","",IF(AND(Z40=AU40,$AO$4<>$AU$4),($AO$4+$AO$12)*'Coûts de production'!AC39,IF(AND(Z40<>AU40,Z40<>BA40,Z40<>""),Z40,AU40))) -> 0 | AQ40: =IF($AK$3<>$AQ$3,"",IF(AND($J$5="Rdt. (tm/ha)",$K$3<>'Coûts de production'!K$3),IF($L$3=0,"",$L$3* 'Coûts de production'!L39),'Coûts de production'!J39)) -> 0 | AR40: =IF($AL$3<>$AR$3,"",IF(AND($N$5="Rdt. (tm/ha)",$O$3<>'Coûts de production'!P$3),IF($P$3=0,"",$P$3*'Coûts de production'!Q39),'Coûts de production'!O39)) ->  | AS40: =IF($AM$3<>$AS$3,"",IF(AND($R$5="Rdt. (tm/ha)",$S$3<>'Coûts de production'!U$3),IF($T$3=0,"",$T$3*'Coûts de production'!V39),'Coûts de production'!T39)) ->  | AT40: =IF($AN$3<>$AT$3,"",IF(AND($V$5="Rdt. (tm/ha)",$W$3<>'Coûts de production'!Y$3),IF($X$3=0,"",$X$3*'Coûts de production'!Z39),'Coûts de production'!X39)) -> 0 | AU40: =IF($AO$3<>$AU$3,"",IF(AND($Z$5="Rdt. (tm/ha)",$AA$3<>'Coûts de production'!AC$3),IF($AB$3=0,"",$AB$3*'Coûts de production'!AD39),'Coûts de production'!AB39)) -> 0 | AW40: 0 | AZ40: 0 | BA40: 0
A41: 1 | C41: ='Coûts de production'!C40 -> Litière | F41: 0 | J41: 0 | K41: =IF($K$3=0,"",IF(AND($K$3='Coûts de production'!$K$3,'Coûts de production'!J40=J41),'Coûts de production'!K40,J41/($K$3+$K$12))) -> 0 | L41: =IF($L$3=0,"",IF(AND($L$3='Coûts de production'!$L$3,'Coûts de production'!J40=J41),'Coûts de production'!L40,J41/($L$3+$L$12))) -> 0 | O41: =IF($O$3=0,"",IF(AND($O$3='Coûts de production'!$P$3,'Coûts de production'!O40=N41),'Coûts de production'!P40,N41/($O$3+$O$12))) ->  | P41: =IF($P$3=0,"",IF(AND($P$3='Coûts de production'!$Q$3,'Coûts de production'!O40=N41),'Coûts de production'!Q40,N41/($P$3+$P$12))) ->  | S41: =IF($S$3=0,"",IF(AND($S$3='Coûts de production'!$U$3,'Coûts de production'!T40=R41),'Coûts de production'!U40,R41/($S$3+$S$12))) ->  | T41: =IF($T$3=0,"",IF(AND($T$3='Coûts de production'!$V$3,'Coûts de production'!T40=R41),'Coûts de production'!V40,R41/($T$3+$T$12))) ->  | V41: 0 | W41: =IF($W$3=0,"",IF(AND($W$3='Coûts de production'!$Y$3,'Coûts de production'!X40=V41),'Coûts de production'!Y40,V41/($W$3+$W$12))) ->  | X41: =IF($X$3=0,"",IF(AND($T$3='Coûts de production'!$V$3,'Coûts de production'!X40=V41),'Coûts de production'!Z40,V41/($X$3+$X$12))) ->  | Z41: 0 | AA41: =IF($AA$3=0,"",IF(AND($AA$3='Coûts de production'!$AC$3,'Coûts de production'!AB40=Z41),'Coûts de production'!AC40,Z41/($AA$3+$AA$12))) ->  | AB41: =IF($AB$3=0,"",IF(AND($AB$3='Coûts de production'!$AD$3,'Coûts de production'!AB40=Z41),'Coûts de production'!AD40,Z41/($AB$3+$AB$12))) ->  | AK41: =IF($AK$3="VIDER","",IF(AND(J41=AQ41,$AK$4<>$AQ$4),($AK$4+$AK$12)*'Coûts de production'!K40,IF(AND(J41<>AQ41,J41<>AW41,J41<>""),J41,AQ41))) -> 0 | AL41: =IF($AL$3="VIDER","",IF(AND(N41=AR41,$AL$4<>$AR$4),($AL$4+$AL$12)*'Coûts de production'!P40,IF(AND(N41<>AR41,N41<>AX41,N41<>""),N41,AR41))) ->  | AM41: =IF($AM$3="VIDER","",IF(AND(R41=AS41,$AM$4<>$AS$4),($AM$4+$AM$12)*'Coûts de production'!U40,IF(AND(R41<>AS41,R41<>AY41,R41<>""),R41,AS41))) ->  | AN41: =IF($AN$3="VIDER","",IF(AND(V41=AT41,$AN$4<>$AT$4),($AN$4+$AN$12)*'Coûts de production'!Y40,IF(AND(V41<>AT41,V41<>AZ41,V41<>""),V41,AT41))) -> 0 | AO41: =IF($AO$3="VIDER","",IF(AND(Z41=AU41,$AO$4<>$AU$4),($AO$4+$AO$12)*'Coûts de production'!AC40,IF(AND(Z41<>AU41,Z41<>BA41,Z41<>""),Z41,AU41))) -> 0 | AQ41: =IF($AK$3<>$AQ$3,"",IF(AND($J$5="Rdt. (tm/ha)",$K$3<>'Coûts de production'!K$3),IF($L$3=0,"",$L$3* 'Coûts de production'!L40),'Coûts de production'!J40)) -> 0 | AR41: =IF($AL$3<>$AR$3,"",IF(AND($N$5="Rdt. (tm/ha)",$O$3<>'Coûts de production'!P$3),IF($P$3=0,"",$P$3*'Coûts de production'!Q40),'Coûts de production'!O40)) ->  | AS41: =IF($AM$3<>$AS$3,"",IF(AND($R$5="Rdt. (tm/ha)",$S$3<>'Coûts de production'!U$3),IF($T$3=0,"",$T$3*'Coûts de production'!V40),'Coûts de production'!T40)) ->  | AT41: =IF($AN$3<>$AT$3,"",IF(AND($V$5="Rdt. (tm/ha)",$W$3<>'Coûts de production'!Y$3),IF($X$3=0,"",$X$3*'Coûts de production'!Z40),'Coûts de production'!X40)) -> 0 | AU41: =IF($AO$3<>$AU$3,"",IF(AND($Z$5="Rdt. (tm/ha)",$AA$3<>'Coûts de production'!AC$3),IF($AB$3=0,"",$AB$3*'Coûts de production'!AD40),'Coûts de production'!AB40)) -> 0 | AW41: 0 | AZ41: 0 | BA41: 0
A42: 1 | C42: ='Coûts de production'!C41 -> Intérêt sur emprunt à court terme | F42: 18 | H42: 1 | J42: 18 | K42: =IF($K$3=0,"",IF(AND($K$3='Coûts de production'!$K$3,'Coûts de production'!J41=J42),'Coûts de production'!K41,J42/($K$3+$K$12))) -> 18 | L42: =IF($L$3=0,"",IF(AND($L$3='Coûts de production'!$L$3,'Coûts de production'!J41=J42),'Coûts de production'!L41,J42/($L$3+$L$12))) -> 1.8 | M42: 0 | O42: =IF($O$3=0,"",IF(AND($O$3='Coûts de production'!$P$3,'Coûts de production'!O41=N42),'Coûts de production'!P41,N42/($O$3+$O$12))) ->  | P42: =IF($P$3=0,"",IF(AND($P$3='Coûts de production'!$Q$3,'Coûts de production'!O41=N42),'Coûts de production'!Q41,N42/($P$3+$P$12))) ->  | Q42: 0 | S42: =IF($S$3=0,"",IF(AND($S$3='Coûts de production'!$U$3,'Coûts de production'!T41=R42),'Coûts de production'!U41,R42/($S$3+$S$12))) ->  | T42: =IF($T$3=0,"",IF(AND($T$3='Coûts de production'!$V$3,'Coûts de production'!T41=R42),'Coûts de production'!V41,R42/($T$3+$T$12))) ->  | U42: 0 | V42: 0 | W42: =IF($W$3=0,"",IF(AND($W$3='Coûts de production'!$Y$3,'Coûts de production'!X41=V42),'Coûts de production'!Y41,V42/($W$3+$W$12))) ->  | X42: =IF($X$3=0,"",IF(AND($T$3='Coûts de production'!$V$3,'Coûts de production'!X41=V42),'Coûts de production'!Z41,V42/($X$3+$X$12))) ->  | Y42: 0 | Z42: 0 | AA42: =IF($AA$3=0,"",IF(AND($AA$3='Coûts de production'!$AC$3,'Coûts de production'!AB41=Z42),'Coûts de production'!AC41,Z42/($AA$3+$AA$12))) ->  | AB42: =IF($AB$3=0,"",IF(AND($AB$3='Coûts de production'!$AD$3,'Coûts de production'!AB41=Z42),'Coûts de production'!AD41,Z42/($AB$3+$AB$12))) ->  | AK42: =IF($AK$3="VIDER","",IF(AND(J42=AQ42,$AK$4<>$AQ$4),($AK$4+$AK$12)*'Coûts de production'!K41,IF(AND(J42<>AQ42,J42<>AW42,J42<>""),J42,AQ42))) -> 0 | AL42: =IF($AL$3="VIDER","",IF(AND(N42=AR42,$AL$4<>$AR$4),($AL$4+$AL$12)*'Coûts de production'!P41,IF(AND(N42<>AR42,N42<>AX42,N42<>""),N42,AR42))) ->  | AM42: =IF($AM$3="VIDER","",IF(AND(R42=AS42,$AM$4<>$AS$4),($AM$4+$AM$12)*'Coûts de production'!U41,IF(AND(R42<>AS42,R42<>AY42,R42<>""),R42,AS42))) ->  | AN42: =IF($AN$3="VIDER","",IF(AND(V42=AT42,$AN$4<>$AT$4),($AN$4+$AN$12)*'Coûts de production'!Y41,IF(AND(V42<>AT42,V42<>AZ42,V42<>""),V42,AT42))) -> 0 | AO42: =IF($AO$3="VIDER","",IF(AND(Z42=AU42,$AO$4<>$AU$4),($AO$4+$AO$12)*'Coûts de production'!AC41,IF(AND(Z42<>AU42,Z42<>BA42,Z42<>""),Z42,AU42))) -> 0 | AQ42: =IF($AK$3<>$AQ$3,"",IF(AND($J$5="Rdt. (tm/ha)",$K$3<>'Coûts de production'!K$3),IF($L$3=0,"",$L$3* 'Coûts de production'!L41),'Coûts de production'!J41)) -> 0 | AR42: =IF($AL$3<>$AR$3,"",IF(AND($N$5="Rdt. (tm/ha)",$O$3<>'Coûts de production'!P$3),IF($P$3=0,"",$P$3*'Coûts de production'!Q41),'Coûts de production'!O41)) ->  | AS42: =IF($AM$3<>$AS$3,"",IF(AND($R$5="Rdt. (tm/ha)",$S$3<>'Coûts de production'!U$3),IF($T$3=0,"",$T$3*'Coûts de production'!V41),'Coûts de production'!T41)) ->  | AT42: =IF($AN$3<>$AT$3,"",IF(AND($V$5="Rdt. (tm/ha)",$W$3<>'Coûts de production'!Y$3),IF($X$3=0,"",$X$3*'Coûts de production'!Z41),'Coûts de production'!X41)) -> 0 | AU42: =IF($AO$3<>$AU$3,"",IF(AND($Z$5="Rdt. (tm/ha)",$AA$3<>'Coûts de production'!AC$3),IF($AB$3=0,"",$AB$3*'Coûts de production'!AD41),'Coûts de production'!AB41)) -> 0 | AW42: 18 | AZ42: 0 | BA42: 0
A43: 1 | C43: ='Coûts de production'!C42 -> Autres frais variables | J43: 0 | K43: =IF($K$3=0,"",IF(AND($K$3='Coûts de production'!$K$3,'Coûts de production'!J42=J43),'Coûts de production'!K42,J43/($K$3+$K$12))) -> 0 | L43: =IF($L$3=0,"",IF(AND($L$3='Coûts de production'!$L$3,'Coûts de production'!J42=J43),'Coûts de production'!L42,J43/($L$3+$L$12))) -> 0 | O43: =IF($O$3=0,"",IF(AND($O$3='Coûts de production'!$P$3,'Coûts de production'!O42=N43),'Coûts de production'!P42,N43/($O$3+$O$12))) ->  | P43: =IF($P$3=0,"",IF(AND($P$3='Coûts de production'!$Q$3,'Coûts de production'!O42=N43),'Coûts de production'!Q42,N43/($P$3+$P$12))) ->  | S43: =IF($S$3=0,"",IF(AND($S$3='Coûts de production'!$U$3,'Coûts de production'!T42=R43),'Coûts de production'!U42,R43/($S$3+$S$12))) ->  | T43: =IF($T$3=0,"",IF(AND($T$3='Coûts de production'!$V$3,'Coûts de production'!T42=R43),'Coûts de production'!V42,R43/($T$3+$T$12))) ->  | V43: 0 | W43: =IF($W$3=0,"",IF(AND($W$3='Coûts de production'!$Y$3,'Coûts de production'!X42=V43),'Coûts de production'!Y42,V43/($W$3+$W$12))) ->  | X43: =IF($X$3=0,"",IF(AND($T$3='Coûts de production'!$V$3,'Coûts de production'!X42=V43),'Coûts de production'!Z42,V43/($X$3+$X$12))) ->  | Z43: 0 | AA43: =IF($AA$3=0,"",IF(AND($AA$3='Coûts de production'!$AC$3,'Coûts de production'!AB42=Z43),'Coûts de production'!AC42,Z43/($AA$3+$AA$12))) ->  | AB43: =IF($AB$3=0,"",IF(AND($AB$3='Coûts de production'!$AD$3,'Coûts de production'!AB42=Z43),'Coûts de production'!AD42,Z43/($AB$3+$AB$12))) ->  | AK43: =IF($AK$3="VIDER","",IF(AND(J43=AQ43,$AK$4<>$AQ$4),($AK$4+$AK$12)*'Coûts de production'!K42,IF(AND(J43<>AQ43,J43<>AW43,J43<>""),J43,AQ43))) -> 0 | AL43: =IF($AL$3="VIDER","",IF(AND(N43=AR43,$AL$4<>$AR$4),($AL$4+$AL$12)*'Coûts de production'!P42,IF(AND(N43<>AR43,N43<>AX43,N43<>""),N43,AR43))) ->  | AM43: =IF($AM$3="VIDER","",IF(AND(R43=AS43,$AM$4<>$AS$4),($AM$4+$AM$12)*'Coûts de production'!U42,IF(AND(R43<>AS43,R43<>AY43,R43<>""),R43,AS43))) ->  | AN43: =IF($AN$3="VIDER","",IF(AND(V43=AT43,$AN$4<>$AT$4),($AN$4+$AN$12)*'Coûts de production'!Y42,IF(AND(V43<>AT43,V43<>AZ43,V43<>""),V43,AT43))) -> 0 | AO43: =IF($AO$3="VIDER","",IF(AND(Z43=AU43,$AO$4<>$AU$4),($AO$4+$AO$12)*'Coûts de production'!AC42,IF(AND(Z43<>AU43,Z43<>BA43,Z43<>""),Z43,AU43))) -> 0 | AQ43: =IF($AK$3<>$AQ$3,"",IF(AND($J$5="Rdt. (tm/ha)",$K$3<>'Coûts de production'!K$3),IF($L$3=0,"",$L$3* 'Coûts de production'!L42),'Coûts de production'!J42)) -> 0 | AR43: =IF($AL$3<>$AR$3,"",IF(AND($N$5="Rdt. (tm/ha)",$O$3<>'Coûts de production'!P$3),IF($P$3=0,"",$P$3*'Coûts de production'!Q42),'Coûts de production'!O42)) ->  | AS43: =IF($AM$3<>$AS$3,"",IF(AND($R$5="Rdt. (tm/ha)",$S$3<>'Coûts de production'!U$3),IF($T$3=0,"",$T$3*'Coûts de production'!V42),'Coûts de production'!T42)) ->  | AT43: =IF($AN$3<>$AT$3,"",IF(AND($V$5="Rdt. (tm/ha)",$W$3<>'Coûts de production'!Y$3),IF($X$3=0,"",$X$3*'Coûts de production'!Z42),'Coûts de production'!X42)) -> 0 | AU43: =IF($AO$3<>$AU$3,"",IF(AND($Z$5="Rdt. (tm/ha)",$AA$3<>'Coûts de production'!AC$3),IF($AB$3=0,"",$AB$3*'Coûts de production'!AD42),'Coûts de production'!AB42)) -> 0 | AW43: 0 | AZ43: 0 | BA43: 0
A44: 1 | C44: ='Coûts de production'!#REF! ->  | J44: 0 | K44: =IF($K$3=0,"",IF(AND($K$3='Coûts de production'!$K$3,'Coûts de production'!#REF!=J44),'Coûts de production'!#REF!,J44/($K$3+$K$12))) ->  | L44: =IF($L$3=0,"",IF(AND($L$3='Coûts de production'!$L$3,'Coûts de production'!#REF!=J44),'Coûts de production'!#REF!,J44/($L$3+$L$12))) ->  | O44: =IF($O$3=0,"",IF(AND($O$3='Coûts de production'!$P$3,'Coûts de production'!#REF!=N44),'Coûts de production'!#REF!,N44/($O$3+$O$12))) ->  | P44: =IF($P$3=0,"",IF(AND($P$3='Coûts de production'!$Q$3,'Coûts de production'!#REF!=N44),'Coûts de production'!#REF!,N44/($P$3+$P$12))) ->  | S44: =IF($S$3=0,"",IF(AND($S$3='Coûts de production'!$U$3,'Coûts de production'!#REF!=R44),'Coûts de production'!#REF!,R44/($S$3+$S$12))) ->  | T44: =IF($T$3=0,"",IF(AND($T$3='Coûts de production'!$V$3,'Coûts de production'!#REF!=R44),'Coûts de production'!#REF!,R44/($T$3+$T$12))) ->  | V44: 0 | W44: =IF($W$3=0,"",IF(AND($W$3='Coûts de production'!$Y$3,'Coûts de production'!#REF!=V44),'Coûts de production'!#REF!,V44/($W$3+$W$12))) ->  | X44: =IF($X$3=0,"",IF(AND($T$3='Coûts de production'!$V$3,'Coûts de production'!#REF!=V44),'Coûts de production'!#REF!,V44/($X$3+$X$12))) ->  | Z44: 0 | AA44: =IF($AA$3=0,"",IF(AND($AA$3='Coûts de production'!$AC$3,'Coûts de production'!#REF!=Z44),'Coûts de production'!#REF!,Z44/($AA$3+$AA$12))) ->  | AB44: =IF($AB$3=0,"",IF(AND($AB$3='Coûts de production'!$AD$3,'Coûts de production'!#REF!=Z44),'Coûts de production'!#REF!,Z44/($AB$3+$AB$12))) ->  | AK44: =IF($AK$3="VIDER","",IF(AND(J44=AQ44,$AK$4<>$AQ$4),($AK$4+$AK$12)*'Coûts de production'!#REF!,IF(AND(J44<>AQ44,J44<>AW44,J44<>""),J44,AQ44))) ->  | AL44: =IF($AL$3="VIDER","",IF(AND(N44=AR44,$AL$4<>$AR$4),($AL$4+$AL$12)*'Coûts de production'!#REF!,IF(AND(N44<>AR44,N44<>AX44,N44<>""),N44,AR44))) ->  | AM44: =IF($AM$3="VIDER","",IF(AND(R44=AS44,$AM$4<>$AS$4),($AM$4+$AM$12)*'Coûts de production'!#REF!,IF(AND(R44<>AS44,R44<>AY44,R44<>""),R44,AS44))) ->  | AN44: =IF($AN$3="VIDER","",IF(AND(V44=AT44,$AN$4<>$AT$4),($AN$4+$AN$12)*'Coûts de production'!#REF!,IF(AND(V44<>AT44,V44<>AZ44,V44<>""),V44,AT44))) ->  | AO44: =IF($AO$3="VIDER","",IF(AND(Z44=AU44,$AO$4<>$AU$4),($AO$4+$AO$12)*'Coûts de production'!#REF!,IF(AND(Z44<>AU44,Z44<>BA44,Z44<>""),Z44,AU44))) ->  | AQ44: =IF($AK$3<>$AQ$3,"",IF(AND($J$5="Rdt. (tm/ha)",$K$3<>'Coûts de production'!K$3),IF($L$3=0,"",$L$3* 'Coûts de production'!#REF!),'Coûts de production'!#REF!)) ->  | AR44: =IF($AL$3<>$AR$3,"",IF(AND($N$5="Rdt. (tm/ha)",$O$3<>'Coûts de production'!P$3),IF($P$3=0,"",$P$3*'Coûts de production'!#REF!),'Coûts de production'!#REF!)) ->  | AS44: =IF($AM$3<>$AS$3,"",IF(AND($R$5="Rdt. (tm/ha)",$S$3<>'Coûts de production'!U$3),IF($T$3=0,"",$T$3*'Coûts de production'!#REF!),'Coûts de production'!#REF!)) ->  | AT44: =IF($AN$3<>$AT$3,"",IF(AND($V$5="Rdt. (tm/ha)",$W$3<>'Coûts de production'!Y$3),IF($X$3=0,"",$X$3*'Coûts de production'!#REF!),'Coûts de production'!#REF!)) ->  | AU44: =IF($AO$3<>$AU$3,"",IF(AND($Z$5="Rdt. (tm/ha)",$AA$3<>'Coûts de production'!AC$3),IF($AB$3=0,"",$AB$3*'Coûts de production'!#REF!),'Coûts de production'!#REF!)) ->  | AW44: 0 | AZ44: 0 | BA44: 0
A45: 1 | C45: ='Coûts de production'!C43 -> Total des charges variables | F45: =SUM(F22:F43) -> 805.24 | J45: =SUM(J22:J44) -> 805.24 | K45: =SUM(K22:K44) ->  | L45: =SUM(L22:L44) ->  | N45: =SUM(N22:N44) -> 0 | O45: 0 | P45: 0 | R45: =SUM(R22:R44) -> 0 | S45: 0 | T45: 0 | V45: =SUM(V22:V44) -> 0 | W45: 0 | X45: 0 | Z45: =SUM(Z22:Z44) -> 0 | AA45: 0 | AB45: 0
A46: 1 | C46: ='Coûts de production'!C44 -> Marge avant ch. Fixes | F46: =F20-F45 -> 2096.76 | J46: =IFERROR(J20-J45,0) -> 2096.76 | K46: =IFERROR(K20-K45,0) -> 0 | L46: =IFERROR(L20-L45,0) -> 0 | N46: =IFERROR(N20-N45,0) -> 0 | O46: =IFERROR(O20-O45,0) -> 0 | P46: =IFERROR(P20-P45,0) -> 0 | R46: =IFERROR(R20-R45,0) -> 0 | S46: =IFERROR(S20-S45,0) -> 0 | T46: =IFERROR(T20-T45,0) -> 0 | V46: =IFERROR(V20-V45,0) -> 0 | W46: =IFERROR(W20-W45,0) -> 0 | X46: =IFERROR(X20-X45,0) -> 0 | Z46: =IFERROR(Z20-Z45,0) -> 0 | AA46: =IFERROR(AA20-AA45,0) -> 0 | AB46: =IFERROR(AB20-AB45,0) -> 0
A47: 1 | C47: ='Coûts de production'!C45 -> CHARGES FIXES | AG47: TRUE
A48: =IF(($AG$47),1,) -> 1 | C48: ='Coûts de production'!C46 -> Entretien des bâtiments et fonds de terre | F48: =J48+N48+R48+V48+Z48 -> 39 | H48: =IF($F48=0,"",J48/$F48) -> 1 | J48: 39 | K48: =IF($K$3=0,"",IF(AND($K$3='Coûts de production'!$K$3,'Coûts de production'!J46=J48),'Coûts de production'!K46,J48/($K$3+$K$12))) -> 39 | L48: =IF($L$3=0,"",IF(AND($L$3='Coûts de production'!$L$3,'Coûts de production'!J46=J48),'Coûts de production'!L46,J48/($L$3+$L$12))) -> 3.9 | M48: =IF($F48=0,"",N48/$F48) -> 0 | O48: =IF($O$3=0,"",IF(AND($O$3='Coûts de production'!$P$3,'Coûts de production'!O46=N48),'Coûts de production'!P46,N48/($O$3+$O$12))) ->  | P48: =IF($P$3=0,"",IF(AND($P$3='Coûts de production'!$Q$3,'Coûts de production'!O46=N48),'Coûts de production'!Q46,N48/($P$3+$P$12))) ->  | Q48: =IF($F48=0,"",R48/$F48) -> 0 | S48: =IF($S$3=0,"",IF(AND($S$3='Coûts de production'!$U$3,'Coûts de production'!T46=R48),'Coûts de production'!U46,R48/($S$3+$S$12))) ->  | T48: =IF($T$3=0,"",IF(AND($T$3='Coûts de production'!$V$3,'Coûts de production'!T46=R48),'Coûts de production'!V46,R48/($T$3+$T$12))) ->  | U48: =IF($F48=0,"",V48/$F48) -> 0 | W48: =IF($W$3=0,"",IF(AND($W$3='Coûts de production'!$Y$3,'Coûts de production'!X46=V48),'Coûts de production'!Y46,V48/($W$3+$W$12))) ->  | X48: =IF($X$3=0,"",IF(AND($T$3='Coûts de production'!$V$3,'Coûts de production'!X46=V48),'Coûts de production'!Z46,V48/($X$3+$X$12))) ->  | Y48: =IF($F48=0,"",Z48/$F48) -> 0 | AA48: =IF($AA$3=0,"",IF(AND($AA$3='Coûts de production'!$AC$3,'Coûts de production'!AB46=Z48),'Coûts de production'!AC46,Z48/($AA$3+$AA$12))) ->  | AB48: =IF($AB$3=0,"",IF(AND($AB$3='Coûts de production'!$AD$3,'Coûts de production'!AB46=Z48),'Coûts de production'!AD46,Z48/($AB$3+$AB$12))) ->  | AK48: =IF($AK$3="VIDER","",IF(AND(J48=AQ48,$AK$4<>$AQ$4),($AK$4+$AK$12)*'Coûts de production'!K46,IF(AND(J48<>AQ48,J48<>AW48,J48<>""),J48,AQ48))) -> 0 | AL48: =IF($AL$3="VIDER","",IF(AND(N48=AR48,$AL$4<>$AR$4),($AL$4+$AL$12)*'Coûts de production'!P46,IF(AND(N48<>AR48,N48<>AX48,N48<>""),N48,AR48))) ->  | AM48: =IF($AM$3="VIDER","",IF(AND(R48=AS48,$AM$4<>$AS$4),($AM$4+$AM$12)*'Coûts de production'!U46,IF(AND(R48<>AS48,R48<>AY48,R48<>""),R48,AS48))) ->  | AN48: =IF($AN$3="VIDER","",IF(AND(V48=AT48,$AN$4<>$AT$4),($AN$4+$AN$12)*'Coûts de production'!Y46,IF(AND(V48<>AT48,V48<>AZ48,V48<>""),V48,AT48))) ->  | AO48: =IF($AO$3="VIDER","",IF(AND(Z48=AU48,$AO$4<>$AU$4),($AO$4+$AO$12)*'Coûts de production'!AC46,IF(AND(Z48<>AU48,Z48<>BA48,Z48<>""),Z48,AU48))) ->  | AQ48: =IF(AK3<>AQ3,"",IF($L$3=0,"",'Coûts de production'!J46)) -> 0 | AR48: =IF($AL$3<>$AR$3,"",IF($P$3=0,"",'Coûts de production'!O46)) ->  | AS48: =IF($AM$3<>$AS$3,"",IF($T$3=0,"",'Coûts de production'!T46)) ->  | AT48: =IF($AN$3<>$AT$3,"",IF($X$3=0,"",'Coûts de production'!X46)) ->  | AU48: =IF($AO$3<>$AU$3,"",IF($AB$3=0,"",'Coûts de production'!AB46)) ->  | AW48: 39
A49: =IF(($AG$47),1,) -> 1 | C49: ='Coûts de production'!C47 -> Assurances diverses | F49: =J49+N49+R49+V49+Z49 -> 31 | H49: 1 | J49: 31 | K49: =IF($K$3=0,"",IF(AND($K$3='Coûts de production'!$K$3,'Coûts de production'!J47=J49),'Coûts de production'!K47,J49/($K$3+$K$12))) -> 31 | L49: =IF($L$3=0,"",IF(AND($L$3='Coûts de production'!$L$3,'Coûts de production'!J47=J49),'Coûts de production'!L47,J49/($L$3+$L$12))) -> 3.1 | M49: 0 | O49: =IF($O$3=0,"",IF(AND($O$3='Coûts de production'!$P$3,'Coûts de production'!O47=N49),'Coûts de production'!P47,N49/($O$3+$O$12))) ->  | P49: =IF($P$3=0,"",IF(AND($P$3='Coûts de production'!$Q$3,'Coûts de production'!O47=N49),'Coûts de production'!Q47,N49/($P$3+$P$12))) ->  | Q49: 0 | S49: =IF($S$3=0,"",IF(AND($S$3='Coûts de production'!$U$3,'Coûts de production'!T47=R49),'Coûts de production'!U47,R49/($S$3+$S$12))) ->  | T49: =IF($T$3=0,"",IF(AND($T$3='Coûts de production'!$V$3,'Coûts de production'!T47=R49),'Coûts de production'!V47,R49/($T$3+$T$12))) ->  | U49: 0 | W49: =IF($W$3=0,"",IF(AND($W$3='Coûts de production'!$Y$3,'Coûts de production'!X47=V49),'Coûts de production'!Y47,V49/($W$3+$W$12))) ->  | X49: =IF($X$3=0,"",IF(AND($T$3='Coûts de production'!$V$3,'Coûts de production'!X47=V49),'Coûts de production'!Z47,V49/($X$3+$X$12))) ->  | Y49: 0 | AA49: =IF($AA$3=0,"",IF(AND($AA$3='Coûts de production'!$AC$3,'Coûts de production'!AB47=Z49),'Coûts de production'!AC47,Z49/($AA$3+$AA$12))) ->  | AB49: =IF($AB$3=0,"",IF(AND($AB$3='Coûts de production'!$AD$3,'Coûts de production'!AB47=Z49),'Coûts de production'!AD47,Z49/($AB$3+$AB$12))) ->  | AK49: =IF($AK$3="VIDER","",IF(AND(J49=AQ49,$AK$4<>$AQ$4),($AK$4+$AK$12)*'Coûts de production'!K47,IF(AND(J49<>AQ49,J49<>AW49,J49<>""),J49,AQ49))) -> 0 | AL49: =IF($AL$3="VIDER","",IF(AND(N49=AR49,$AL$4<>$AR$4),($AL$4+$AL$12)*'Coûts de production'!P47,IF(AND(N49<>AR49,N49<>AX49,N49<>""),N49,AR49))) ->  | AM49: =IF($AM$3="VIDER","",IF(AND(R49=AS49,$AM$4<>$AS$4),($AM$4+$AM$12)*'Coûts de production'!U47,IF(AND(R49<>AS49,R49<>AY49,R49<>""),R49,AS49))) ->  | AN49: =IF($AN$3="VIDER","",IF(AND(V49=AT49,$AN$4<>$AT$4),($AN$4+$AN$12)*'Coûts de production'!Y47,IF(AND(V49<>AT49,V49<>AZ49,V49<>""),V49,AT49))) ->  | AO49: =IF($AO$3="VIDER","",IF(AND(Z49=AU49,$AO$4<>$AU$4),($AO$4+$AO$12)*'Coûts de production'!AC47,IF(AND(Z49<>AU49,Z49<>BA49,Z49<>""),Z49,AU49))) ->  | AQ49: =IF(AK3<>AQ3,"",IF($L$3=0,"",'Coûts de production'!J47)) -> 0 | AR49: =IF($AL$3<>$AR$3,"",IF($P$3=0,"",'Coûts de production'!O47)) ->  | AS49: =IF($AM$3<>$AS$3,"",IF($T$3=0,"",'Coûts de production'!T47)) ->  | AT49: =IF($AN$3<>$AT$3,"",IF($X$3=0,"",'Coûts de production'!X47)) ->  | AU49: =IF($AO$3<>$AU$3,"",IF($AB$3=0,"",'Coûts de production'!AB47)) ->  | AW49: 31
A50: =IF(($AG$47),1,) -> 1 | C50: ='Coûts de production'!C48 -> Taxes foncières | F50: =J50+N50+R50+V50+Z50 -> 19 | H50: 1 | J50: 19 | K50: =IF($K$3=0,"",IF(AND($K$3='Coûts de production'!$K$3,'Coûts de production'!J48=J50),'Coûts de production'!K48,J50/($K$3+$K$12))) -> 19 | L50: =IF($L$3=0,"",IF(AND($L$3='Coûts de production'!$L$3,'Coûts de production'!J48=J50),'Coûts de production'!L48,J50/($L$3+$L$12))) -> 1.9 | M50: 0 | O50: =IF($O$3=0,"",IF(AND($O$3='Coûts de production'!$P$3,'Coûts de production'!O48=N50),'Coûts de production'!P48,N50/($O$3+$O$12))) ->  | P50: =IF($P$3=0,"",IF(AND($P$3='Coûts de production'!$Q$3,'Coûts de production'!O48=N50),'Coûts de production'!Q48,N50/($P$3+$P$12))) ->  | Q50: 0 | S50: =IF($S$3=0,"",IF(AND($S$3='Coûts de production'!$U$3,'Coûts de production'!T48=R50),'Coûts de production'!U48,R50/($S$3+$S$12))) ->  | T50: =IF($T$3=0,"",IF(AND($T$3='Coûts de production'!$V$3,'Coûts de production'!T48=R50),'Coûts de production'!V48,R50/($T$3+$T$12))) ->  | U50: 0 | W50: =IF($W$3=0,"",IF(AND($W$3='Coûts de production'!$Y$3,'Coûts de production'!X48=V50),'Coûts de production'!Y48,V50/($W$3+$W$12))) ->  | X50: =IF($X$3=0,"",IF(AND($T$3='Coûts de production'!$V$3,'Coûts de production'!X48=V50),'Coûts de production'!Z48,V50/($X$3+$X$12))) ->  | Y50: 0 | AA50: =IF($AA$3=0,"",IF(AND($AA$3='Coûts de production'!$AC$3,'Coûts de production'!AB48=Z50),'Coûts de production'!AC48,Z50/($AA$3+$AA$12))) ->  | AB50: =IF($AB$3=0,"",IF(AND($AB$3='Coûts de production'!$AD$3,'Coûts de production'!AB48=Z50),'Coûts de production'!AD48,Z50/($AB$3+$AB$12))) ->  | AK50: =IF($AK$3="VIDER","",IF(AND(J50=AQ50,$AK$4<>$AQ$4),($AK$4+$AK$12)*'Coûts de production'!K48,IF(AND(J50<>AQ50,J50<>AW50,J50<>""),J50,AQ50))) -> 0 | AL50: =IF($AL$3="VIDER","",IF(AND(N50=AR50,$AL$4<>$AR$4),($AL$4+$AL$12)*'Coûts de production'!P48,IF(AND(N50<>AR50,N50<>AX50,N50<>""),N50,AR50))) ->  | AM50: =IF($AM$3="VIDER","",IF(AND(R50=AS50,$AM$4<>$AS$4),($AM$4+$AM$12)*'Coûts de production'!U48,IF(AND(R50<>AS50,R50<>AY50,R50<>""),R50,AS50))) ->  | AN50: =IF($AN$3="VIDER","",IF(AND(V50=AT50,$AN$4<>$AT$4),($AN$4+$AN$12)*'Coûts de production'!Y48,IF(AND(V50<>AT50,V50<>AZ50,V50<>""),V50,AT50))) ->  | AO50: =IF($AO$3="VIDER","",IF(AND(Z50=AU50,$AO$4<>$AU$4),($AO$4+$AO$12)*'Coûts de production'!AC48,IF(AND(Z50<>AU50,Z50<>BA50,Z50<>""),Z50,AU50))) ->  | AQ50: =IF(AK3<>AQ3,"",IF($L$3=0,"",'Coûts de production'!J48)) -> 0 | AR50: =IF($AL$3<>$AR$3,"",IF($P$3=0,"",'Coûts de production'!O48)) ->  | AS50: =IF($AM$3<>$AS$3,"",IF($T$3=0,"",'Coûts de production'!T48)) ->  | AT50: =IF($AN$3<>$AT$3,"",IF($X$3=0,"",'Coûts de production'!X48)) ->  | AU50: =IF($AO$3<>$AU$3,"",IF($AB$3=0,"",'Coûts de production'!AB48)) ->  | AW50: 19
A51: =IF(($AG$47),1,) -> 1 | C51: ='Coûts de production'!C49 -> Intérêt sur emprunt MLT | F51: =J51+N51+R51+V51+Z51 -> 86 | H51: 1 | J51: 86 | K51: =IF($K$3=0,"",IF(AND($K$3='Coûts de production'!$K$3,'Coûts de production'!J49=J51),'Coûts de production'!K49,J51/($K$3+$K$12))) -> 86 | L51: =IF($L$3=0,"",IF(AND($L$3='Coûts de production'!$L$3,'Coûts de production'!J49=J51),'Coûts de production'!L49,J51/($L$3+$L$12))) -> 8.6 | M51: 0 | O51: =IF($O$3=0,"",IF(AND($O$3='Coûts de production'!$P$3,'Coûts de production'!O49=N51),'Coûts de production'!P49,N51/($O$3+$O$12))) ->  | P51: =IF($P$3=0,"",IF(AND($P$3='Coûts de production'!$Q$3,'Coûts de production'!O49=N51),'Coûts de production'!Q49,N51/($P$3+$P$12))) ->  | Q51: 0 | S51: =IF($S$3=0,"",IF(AND($S$3='Coûts de production'!$U$3,'Coûts de production'!T49=R51),'Coûts de production'!U49,R51/($S$3+$S$12))) ->  | T51: =IF($T$3=0,"",IF(AND($T$3='Coûts de production'!$V$3,'Coûts de production'!T49=R51),'Coûts de production'!V49,R51/($T$3+$T$12))) ->  | U51: 0 | W51: =IF($W$3=0,"",IF(AND($W$3='Coûts de production'!$Y$3,'Coûts de production'!X49=V51),'Coûts de production'!Y49,V51/($W$3+$W$12))) ->  | X51: =IF($X$3=0,"",IF(AND($T$3='Coûts de production'!$V$3,'Coûts de production'!X49=V51),'Coûts de production'!Z49,V51/($X$3+$X$12))) ->  | Y51: 0 | AA51: =IF($AA$3=0,"",IF(AND($AA$3='Coûts de production'!$AC$3,'Coûts de production'!AB49=Z51),'Coûts de production'!AC49,Z51/($AA$3+$AA$12))) ->  | AB51: =IF($AB$3=0,"",IF(AND($AB$3='Coûts de production'!$AD$3,'Coûts de production'!AB49=Z51),'Coûts de production'!AD49,Z51/($AB$3+$AB$12))) ->  | AK51: =IF($AK$3="VIDER","",IF(AND(J51=AQ51,$AK$4<>$AQ$4),($AK$4+$AK$12)*'Coûts de production'!K49,IF(AND(J51<>AQ51,J51<>AW51,J51<>""),J51,AQ51))) -> 0 | AL51: =IF($AL$3="VIDER","",IF(AND(N51=AR51,$AL$4<>$AR$4),($AL$4+$AL$12)*'Coûts de production'!P49,IF(AND(N51<>AR51,N51<>AX51,N51<>""),N51,AR51))) ->  | AM51: =IF($AM$3="VIDER","",IF(AND(R51=AS51,$AM$4<>$AS$4),($AM$4+$AM$12)*'Coûts de production'!U49,IF(AND(R51<>AS51,R51<>AY51,R51<>""),R51,AS51))) ->  | AN51: =IF($AN$3="VIDER","",IF(AND(V51=AT51,$AN$4<>$AT$4),($AN$4+$AN$12)*'Coûts de production'!Y49,IF(AND(V51<>AT51,V51<>AZ51,V51<>""),V51,AT51))) ->  | AO51: =IF($AO$3="VIDER","",IF(AND(Z51=AU51,$AO$4<>$AU$4),($AO$4+$AO$12)*'Coûts de production'!AC49,IF(AND(Z51<>AU51,Z51<>BA51,Z51<>""),Z51,AU51))) ->  | AQ51: =IF(AK3<>AQ3,"",IF($L$3=0,"",'Coûts de production'!J49)) -> 0 | AR51: =IF($AL$3<>$AR$3,"",IF($P$3=0,"",'Coûts de production'!O49)) ->  | AS51: =IF($AM$3<>$AS$3,"",IF($T$3=0,"",'Coûts de production'!T49)) ->  | AT51: =IF($AN$3<>$AT$3,"",IF($X$3=0,"",'Coûts de production'!X49)) ->  | AU51: =IF($AO$3<>$AU$3,"",IF($AB$3=0,"",'Coûts de production'!AB49)) ->  | AW51: 86
A52: =IF(($AG$47),1,) -> 1 | C52: ='Coûts de production'!C50 -> Autres frais fixes | F52: =J52+N52+R52+V52+Z52 -> 37 | H52: 1 | J52: 37 | K52: =IF($K$3=0,"",IF(AND($K$3='Coûts de production'!$K$3,'Coûts de production'!J50=J52),'Coûts de production'!K50,J52/($K$3+$K$12))) -> 37 | L52: =IF($L$3=0,"",IF(AND($L$3='Coûts de production'!$L$3,'Coûts de production'!J50=J52),'Coûts de production'!L50,J52/($L$3+$L$12))) -> 3.7 | M52: 0 | O52: =IF($O$3=0,"",IF(AND($O$3='Coûts de production'!$P$3,'Coûts de production'!O50=N52),'Coûts de production'!P50,N52/($O$3+$O$12))) ->  | P52: =IF($P$3=0,"",IF(AND($P$3='Coûts de production'!$Q$3,'Coûts de production'!O50=N52),'Coûts de production'!Q50,N52/($P$3+$P$12))) ->  | Q52: 0 | S52: =IF($S$3=0,"",IF(AND($S$3='Coûts de production'!$U$3,'Coûts de production'!T50=R52),'Coûts de production'!U50,R52/($S$3+$S$12))) ->  | T52: =IF($T$3=0,"",IF(AND($T$3='Coûts de production'!$V$3,'Coûts de production'!T50=R52),'Coûts de production'!V50,R52/($T$3+$T$12))) ->  | U52: 0 | W52: =IF($W$3=0,"",IF(AND($W$3='Coûts de production'!$Y$3,'Coûts de production'!X50=V52),'Coûts de production'!Y50,V52/($W$3+$W$12))) ->  | X52: =IF($X$3=0,"",IF(AND($T$3='Coûts de production'!$V$3,'Coûts de production'!X50=V52),'Coûts de production'!Z50,V52/($X$3+$X$12))) ->  | Y52: 0 | AA52: =IF($AA$3=0,"",IF(AND($AA$3='Coûts de production'!$AC$3,'Coûts de production'!AB50=Z52),'Coûts de production'!AC50,Z52/($AA$3+$AA$12))) ->  | AB52: =IF($AB$3=0,"",IF(AND($AB$3='Coûts de production'!$AD$3,'Coûts de production'!AB50=Z52),'Coûts de production'!AD50,Z52/($AB$3+$AB$12))) ->  | AK52: =IF($AK$3="VIDER","",IF(AND(J52=AQ52,$AK$4<>$AQ$4),($AK$4+$AK$12)*'Coûts de production'!K50,IF(AND(J52<>AQ52,J52<>AW52,J52<>""),J52,AQ52))) -> 0 | AL52: =IF($AL$3="VIDER","",IF(AND(N52=AR52,$AL$4<>$AR$4),($AL$4+$AL$12)*'Coûts de production'!P50,IF(AND(N52<>AR52,N52<>AX52,N52<>""),N52,AR52))) ->  | AM52: =IF($AM$3="VIDER","",IF(AND(R52=AS52,$AM$4<>$AS$4),($AM$4+$AM$12)*'Coûts de production'!U50,IF(AND(R52<>AS52,R52<>AY52,R52<>""),R52,AS52))) ->  | AN52: =IF($AN$3="VIDER","",IF(AND(V52=AT52,$AN$4<>$AT$4),($AN$4+$AN$12)*'Coûts de production'!Y50,IF(AND(V52<>AT52,V52<>AZ52,V52<>""),V52,AT52))) ->  | AO52: =IF($AO$3="VIDER","",IF(AND(Z52=AU52,$AO$4<>$AU$4),($AO$4+$AO$12)*'Coûts de production'!AC50,IF(AND(Z52<>AU52,Z52<>BA52,Z52<>""),Z52,AU52))) ->  | AQ52: =IF($AK$3<>$AQ$3,"",IF($L$3=0,"",'Coûts de production'!J50)) -> 0 | AR52: =IF($AL$3<>$AR$3,"",IF($P$3=0,"",'Coûts de production'!O50)) ->  | AS52: =IF($AM$3<>$AS$3,"",IF($T$3=0,"",'Coûts de production'!T50)) ->  | AT52: =IF($AN$3<>$AT$3,"",IF($X$3=0,"",'Coûts de production'!X50)) ->  | AU52: =IF($AO$3<>$AU$3,"",IF($AB$3=0,"",'Coûts de production'!AB50)) ->  | AW52: 37
C53: =IF('Coûts de production'!#REF!="","",'Coûts de production'!#REF!) ->  | J53: 0 | K53: =IF($K$3=0,"",IF(AND($K$3='Coûts de production'!$K$3,'Coûts de production'!#REF!=J53),'Coûts de production'!#REF!,J53/($K$3+$K$12))) ->  | L53: =IF($L$3=0,"",IF(AND($L$3='Coûts de production'!$L$3,'Coûts de production'!#REF!=J53),'Coûts de production'!#REF!,J53/($L$3+$L$12))) ->  | O53: =IF($O$3=0,"",IF(AND($O$3='Coûts de production'!$P$3,'Coûts de production'!#REF!=N53),'Coûts de production'!#REF!,N53/($O$3+$O$12))) ->  | P53: =IF($P$3=0,"",IF(AND($P$3='Coûts de production'!$Q$3,'Coûts de production'!#REF!=N53),'Coûts de production'!#REF!,N53/($P$3+$P$12))) ->  | S53: =IF($S$3=0,"",IF(AND($S$3='Coûts de production'!$U$3,'Coûts de production'!#REF!=R53),'Coûts de production'!#REF!,R53/($S$3+$S$12))) ->  | T53: =IF($T$3=0,"",IF(AND($T$3='Coûts de production'!$V$3,'Coûts de production'!#REF!=R53),'Coûts de production'!#REF!,R53/($T$3+$T$12))) ->  | W53: =IF($W$3=0,"",IF(AND($W$3='Coûts de production'!$Y$3,'Coûts de production'!#REF!=V53),'Coûts de production'!#REF!,V53/($W$3+$W$12))) ->  | X53: =IF($X$3=0,"",IF(AND($T$3='Coûts de production'!$V$3,'Coûts de production'!#REF!=V53),'Coûts de production'!#REF!,V53/($X$3+$X$12))) ->  | AA53: =IF($AA$3=0,"",IF(AND($AA$3='Coûts de production'!$AC$3,'Coûts de production'!#REF!=Z53),'Coûts de production'!#REF!,Z53/($AA$3+$AA$12))) ->  | AB53: =IF($AB$3=0,"",IF(AND($AB$3='Coûts de production'!$AD$3,'Coûts de production'!#REF!=Z53),'Coûts de production'!#REF!,Z53/($AB$3+$AB$12))) ->  | AK53: =IF($AK$3="VIDER","",IF(AND(J53=AQ53,$AK$4<>$AQ$4),($AK$4+$AK$12)*'Coûts de production'!#REF!,IF(AND(J53<>AQ53,J53<>AW53,J53<>""),J53,AQ53))) ->  | AL53: =IF($AL$3="VIDER","",IF(AND(N53=AR53,$AL$4<>$AR$4),($AL$4+$AL$12)*'Coûts de production'!#REF!,IF(AND(N53<>AR53,N53<>AX53,N53<>""),N53,AR53))) ->  | AM53: =IF($AM$3="VIDER","",IF(AND(R53=AS53,$AM$4<>$AS$4),($AM$4+$AM$12)*'Coûts de production'!#REF!,IF(AND(R53<>AS53,R53<>AY53,R53<>""),R53,AS53))) ->  | AN53: =IF($AN$3="VIDER","",IF(AND(V53=AT53,$AN$4<>$AT$4),($AN$4+$AN$12)*'Coûts de production'!#REF!,IF(AND(V53<>AT53,V53<>AZ53,V53<>""),V53,AT53))) ->  | AO53: =IF($AO$3="VIDER","",IF(AND(Z53=AU53,$AO$4<>$AU$4),($AO$4+$AO$12)*'Coûts de production'!#REF!,IF(AND(Z53<>AU53,Z53<>BA53,Z53<>""),Z53,AU53))) ->  | AQ53: =IF($AK$3<>$AQ$3,"",IF($L$3=0,"",'Coûts de production'!#REF!)) ->  | AR53: =IF($AL$3<>$AR$3,"",IF($P$3=0,"",'Coûts de production'!#REF!)) ->  | AS53: =IF($AM$3<>$AS$3,"",IF($T$3=0,"",'Coûts de production'!#REF!)) ->  | AT53: =IF($AN$3<>$AT$3,"",IF($X$3=0,"",'Coûts de production'!#REF!)) ->  | AU53: =IF($AO$3<>$AU$3,"",IF($AB$3=0,"",'Coûts de production'!#REF!)) ->  | AW53: 0
C54: =IF('Coûts de production'!#REF!="","",'Coûts de production'!#REF!) ->  | J54: 0 | K54: =IF($K$3=0,"",IF(AND($K$3='Coûts de production'!$K$3,'Coûts de production'!#REF!=J54),'Coûts de production'!#REF!,J54/($K$3+$K$12))) ->  | L54: =IF($L$3=0,"",IF(AND($L$3='Coûts de production'!$L$3,'Coûts de production'!#REF!=J54),'Coûts de production'!#REF!,J54/($L$3+$L$12))) ->  | O54: =IF($O$3=0,"",IF(AND($O$3='Coûts de production'!$P$3,'Coûts de production'!#REF!=N54),'Coûts de production'!#REF!,N54/($O$3+$O$12))) ->  | P54: =IF($P$3=0,"",IF(AND($P$3='Coûts de production'!$Q$3,'Coûts de production'!#REF!=N54),'Coûts de production'!#REF!,N54/($P$3+$P$12))) ->  | S54: =IF($S$3=0,"",IF(AND($S$3='Coûts de production'!$U$3,'Coûts de production'!#REF!=R54),'Coûts de production'!#REF!,R54/($S$3+$S$12))) ->  | T54: =IF($T$3=0,"",IF(AND($T$3='Coûts de production'!$V$3,'Coûts de production'!#REF!=R54),'Coûts de production'!#REF!,R54/($T$3+$T$12))) ->  | W54: =IF($W$3=0,"",IF(AND($W$3='Coûts de production'!$Y$3,'Coûts de production'!#REF!=V54),'Coûts de production'!#REF!,V54/($W$3+$W$12))) ->  | X54: =IF($X$3=0,"",IF(AND($T$3='Coûts de production'!$V$3,'Coûts de production'!#REF!=V54),'Coûts de production'!#REF!,V54/($X$3+$X$12))) ->  | AA54: =IF($AA$3=0,"",IF(AND($AA$3='Coûts de production'!$AC$3,'Coûts de production'!#REF!=Z54),'Coûts de production'!#REF!,Z54/($AA$3+$AA$12))) ->  | AB54: =IF($AB$3=0,"",IF(AND($AB$3='Coûts de production'!$AD$3,'Coûts de production'!#REF!=Z54),'Coûts de production'!#REF!,Z54/($AB$3+$AB$12))) ->  | AK54: =IF($AK$3="VIDER","",IF(AND(J54=AQ54,$AK$4<>$AQ$4),($AK$4+$AK$12)*'Coûts de production'!#REF!,IF(AND(J54<>AQ54,J54<>AW54,J54<>""),J54,AQ54))) ->  | AL54: =IF($AL$3="VIDER","",IF(AND(N54=AR54,$AL$4<>$AR$4),($AL$4+$AL$12)*'Coûts de production'!#REF!,IF(AND(N54<>AR54,N54<>AX54,N54<>""),N54,AR54))) ->  | AM54: =IF($AM$3="VIDER","",IF(AND(R54=AS54,$AM$4<>$AS$4),($AM$4+$AM$12)*'Coûts de production'!#REF!,IF(AND(R54<>AS54,R54<>AY54,R54<>""),R54,AS54))) ->  | AN54: =IF($AN$3="VIDER","",IF(AND(V54=AT54,$AN$4<>$AT$4),($AN$4+$AN$12)*'Coûts de production'!#REF!,IF(AND(V54<>AT54,V54<>AZ54,V54<>""),V54,AT54))) ->  | AO54: =IF($AO$3="VIDER","",IF(AND(Z54=AU54,$AO$4<>$AU$4),($AO$4+$AO$12)*'Coûts de production'!#REF!,IF(AND(Z54<>AU54,Z54<>BA54,Z54<>""),Z54,AU54))) ->  | AQ54: =IF($AK$3<>$AQ$3,"",IF($L$3=0,"",'Coûts de production'!#REF!)) ->  | AR54: =IF($AL$3<>$AR$3,"",IF($P$3=0,"",'Coûts de production'!#REF!)) ->  | AS54: =IF($AM$3<>$AS$3,"",IF($T$3=0,"",'Coûts de production'!#REF!)) ->  | AT54: =IF($AN$3<>$AT$3,"",IF($X$3=0,"",'Coûts de production'!#REF!)) ->  | AU54: =IF($AO$3<>$AU$3,"",IF($AB$3=0,"",'Coûts de production'!#REF!)) ->  | AW54: 0
C55: =IF('Coûts de production'!#REF!="","",'Coûts de production'!#REF!) ->  | J55: 0 | K55: =IF($K$3=0,"",IF(AND($K$3='Coûts de production'!$K$3,'Coûts de production'!#REF!=J55),'Coûts de production'!#REF!,J55/($K$3+$K$12))) ->  | L55: =IF($L$3=0,"",IF(AND($L$3='Coûts de production'!$L$3,'Coûts de production'!#REF!=J55),'Coûts de production'!#REF!,J55/($L$3+$L$12))) ->  | O55: =IF($O$3=0,"",IF(AND($O$3='Coûts de production'!$P$3,'Coûts de production'!#REF!=N55),'Coûts de production'!#REF!,N55/($O$3+$O$12))) ->  | P55: =IF($P$3=0,"",IF(AND($P$3='Coûts de production'!$Q$3,'Coûts de production'!#REF!=N55),'Coûts de production'!#REF!,N55/($P$3+$P$12))) ->  | S55: =IF($S$3=0,"",IF(AND($S$3='Coûts de production'!$U$3,'Coûts de production'!#REF!=R55),'Coûts de production'!#REF!,R55/($S$3+$S$12))) ->  | T55: =IF($T$3=0,"",IF(AND($T$3='Coûts de production'!$V$3,'Coûts de production'!#REF!=R55),'Coûts de production'!#REF!,R55/($T$3+$T$12))) ->  | W55: =IF($W$3=0,"",IF(AND($W$3='Coûts de production'!$Y$3,'Coûts de production'!#REF!=V55),'Coûts de production'!#REF!,V55/($W$3+$W$12))) ->  | X55: =IF($X$3=0,"",IF(AND($T$3='Coûts de production'!$V$3,'Coûts de production'!#REF!=V55),'Coûts de production'!#REF!,V55/($X$3+$X$12))) ->  | AA55: =IF($AA$3=0,"",IF(AND($AA$3='Coûts de production'!$AC$3,'Coûts de production'!#REF!=Z55),'Coûts de production'!#REF!,Z55/($AA$3+$AA$12))) ->  | AB55: =IF($AB$3=0,"",IF(AND($AB$3='Coûts de production'!$AD$3,'Coûts de production'!#REF!=Z55),'Coûts de production'!#REF!,Z55/($AB$3+$AB$12))) ->  | AK55: =IF($AK$3="VIDER","",IF(AND(J55=AQ55,$AK$4<>$AQ$4),($AK$4+$AK$12)*'Coûts de production'!#REF!,IF(AND(J55<>AQ55,J55<>AW55,J55<>""),J55,AQ55))) ->  | AL55: =IF($AL$3="VIDER","",IF(AND(N55=AR55,$AL$4<>$AR$4),($AL$4+$AL$12)*'Coûts de production'!#REF!,IF(AND(N55<>AR55,N55<>AX55,N55<>""),N55,AR55))) ->  | AM55: =IF($AM$3="VIDER","",IF(AND(R55=AS55,$AM$4<>$AS$4),($AM$4+$AM$12)*'Coûts de production'!#REF!,IF(AND(R55<>AS55,R55<>AY55,R55<>""),R55,AS55))) ->  | AN55: =IF($AN$3="VIDER","",IF(AND(V55=AT55,$AN$4<>$AT$4),($AN$4+$AN$12)*'Coûts de production'!#REF!,IF(AND(V55<>AT55,V55<>AZ55,V55<>""),V55,AT55))) ->  | AO55: =IF($AO$3="VIDER","",IF(AND(Z55=AU55,$AO$4<>$AU$4),($AO$4+$AO$12)*'Coûts de production'!#REF!,IF(AND(Z55<>AU55,Z55<>BA55,Z55<>""),Z55,AU55))) ->  | AQ55: =IF($AK$3<>$AQ$3,"",IF($L$3=0,"",'Coûts de production'!#REF!)) ->  | AR55: =IF($AL$3<>$AR$3,"",IF($P$3=0,"",'Coûts de production'!#REF!)) ->  | AS55: =IF($AM$3<>$AS$3,"",IF($T$3=0,"",'Coûts de production'!#REF!)) ->  | AT55: =IF($AN$3<>$AT$3,"",IF($X$3=0,"",'Coûts de production'!#REF!)) ->  | AU55: =IF($AO$3<>$AU$3,"",IF($AB$3=0,"",'Coûts de production'!#REF!)) ->  | AW55: 0
C56: =IF('Coûts de production'!#REF!="","",'Coûts de production'!#REF!) ->  | J56: 0 | K56: =IF($K$3=0,"",IF(AND($K$3='Coûts de production'!$K$3,'Coûts de production'!#REF!=J56),'Coûts de production'!#REF!,J56/($K$3+$K$12))) ->  | L56: =IF($L$3=0,"",IF(AND($L$3='Coûts de production'!$L$3,'Coûts de production'!#REF!=J56),'Coûts de production'!#REF!,J56/($L$3+$L$12))) ->  | O56: =IF($O$3=0,"",IF(AND($O$3='Coûts de production'!$P$3,'Coûts de production'!#REF!=N56),'Coûts de production'!#REF!,N56/($O$3+$O$12))) ->  | P56: =IF($P$3=0,"",IF(AND($P$3='Coûts de production'!$Q$3,'Coûts de production'!#REF!=N56),'Coûts de production'!#REF!,N56/($P$3+$P$12))) ->  | S56: =IF($S$3=0,"",IF(AND($S$3='Coûts de production'!$U$3,'Coûts de production'!#REF!=R56),'Coûts de production'!#REF!,R56/($S$3+$S$12))) ->  | T56: =IF($T$3=0,"",IF(AND($T$3='Coûts de production'!$V$3,'Coûts de production'!#REF!=R56),'Coûts de production'!#REF!,R56/($T$3+$T$12))) ->  | W56: =IF($W$3=0,"",IF(AND($W$3='Coûts de production'!$Y$3,'Coûts de production'!#REF!=V56),'Coûts de production'!#REF!,V56/($W$3+$W$12))) ->  | X56: =IF($X$3=0,"",IF(AND($T$3='Coûts de production'!$V$3,'Coûts de production'!#REF!=V56),'Coûts de production'!#REF!,V56/($X$3+$X$12))) ->  | AA56: =IF($AA$3=0,"",IF(AND($AA$3='Coûts de production'!$AC$3,'Coûts de production'!#REF!=Z56),'Coûts de production'!#REF!,Z56/($AA$3+$AA$12))) ->  | AB56: =IF($AB$3=0,"",IF(AND($AB$3='Coûts de production'!$AD$3,'Coûts de production'!#REF!=Z56),'Coûts de production'!#REF!,Z56/($AB$3+$AB$12))) ->  | AK56: =IF($AK$3="VIDER","",IF(AND(J56=AQ56,$AK$4<>$AQ$4),($AK$4+$AK$12)*'Coûts de production'!#REF!,IF(AND(J56<>AQ56,J56<>AW56,J56<>""),J56,AQ56))) ->  | AL56: =IF($AL$3="VIDER","",IF(AND(N56=AR56,$AL$4<>$AR$4),($AL$4+$AL$12)*'Coûts de production'!#REF!,IF(AND(N56<>AR56,N56<>AX56,N56<>""),N56,AR56))) ->  | AM56: =IF($AM$3="VIDER","",IF(AND(R56=AS56,$AM$4<>$AS$4),($AM$4+$AM$12)*'Coûts de production'!#REF!,IF(AND(R56<>AS56,R56<>AY56,R56<>""),R56,AS56))) ->  | AN56: =IF($AN$3="VIDER","",IF(AND(V56=AT56,$AN$4<>$AT$4),($AN$4+$AN$12)*'Coûts de production'!#REF!,IF(AND(V56<>AT56,V56<>AZ56,V56<>""),V56,AT56))) ->  | AO56: =IF($AO$3="VIDER","",IF(AND(Z56=AU56,$AO$4<>$AU$4),($AO$4+$AO$12)*'Coûts de production'!#REF!,IF(AND(Z56<>AU56,Z56<>BA56,Z56<>""),Z56,AU56))) ->  | AQ56: =IF($AK$3<>$AQ$3,"",IF($L$3=0,"",'Coûts de production'!#REF!)) ->  | AR56: =IF($AL$3<>$AR$3,"",IF($P$3=0,"",'Coûts de production'!#REF!)) ->  | AS56: =IF($AM$3<>$AS$3,"",IF($T$3=0,"",'Coûts de production'!#REF!)) ->  | AT56: =IF($AN$3<>$AT$3,"",IF($X$3=0,"",'Coûts de production'!#REF!)) ->  | AU56: =IF($AO$3<>$AU$3,"",IF($AB$3=0,"",'Coûts de production'!#REF!)) ->  | AW56: 0
A57: 1 | C57: ='Coûts de production'!C51 -> Total des charges fixes | F57: =SUM(F48:F52) -> 212 | J57: =SUM(J48:J56) -> 212 | K57: =SUM(K48:K56) ->  | L57: =SUM(L48:L56) ->  | N57: =SUM(N48:N56) -> 0 | O57: =SUM(O48:O56) -> 0 | P57: =SUM(P48:P56) -> 0 | R57: =SUM(R48:R56) -> 0 | S57: =SUM(S48:S56) -> 0 | T57: =SUM(T48:T56) -> 0 | V57: =SUM(V48:V56) -> 0 | W57: =SUM(W48:W56) -> 0 | X57: =SUM(X48:X56) -> 0 | Z57: =SUM(Z48:Z56) -> 0 | AA57: =SUM(AA48:AA56) -> 0 | AB57: =SUM(AB48:AB56) -> 0
A58: 1 | C58: ='Coûts de production'!C52 -> CHARGES TOTALES | F58: =F45+F57 -> 1017.24 | J58: =J45+J57 -> 1017.24 | N58: =N45+N57 -> 0 | O58: 0 | P58: 0 | R58: =R45+R57 -> 0 | S58: 0 | T58: 0 | V58: =V45+V57 -> 0 | W58: 0 | X58: 0 | Z58: =Z45+Z57 -> 0 | AA58: 0 | AB58: 0 | AG58: TRUE
A59: =IF(($AG$58),1,) -> 1 | C59: ='Coûts de production'!C54 -> BÉNÉFICE D'EXPLOITATION | F59: =F20-F58 -> 1884.76 | J59: =IFERROR(J20-J58,0) -> 1884.76 | K59: =IFERROR(K20-K58,0) -> 0 | L59: =IFERROR(L20-L58,0) -> 0 | N59: =IFERROR(N20-N58,0) -> 0 | O59: =IFERROR(O20-O58,0) -> 0 | P59: =IFERROR(P20-P58,0) -> 0 | R59: =IFERROR(R20-R58,0) -> 0 | S59: =IFERROR(S20-S58,0) -> 0 | T59: =IFERROR(T20-T58,0) -> 0 | V59: =IFERROR(V20-V58,0) -> 0 | W59: =IFERROR(W20-W58,0) -> 0 | X59: =IFERROR(X20-X58,0) -> 0 | Z59: =IFERROR(Z20-Z58,0) -> 0 | AA59: =IFERROR(AA20-AA58,0) -> 0 | AB59: =IFERROR(AB20-AB58,0) -> 0
A60: =IF(($AG$58),1,) -> 1 | C60: ='Coûts de production'!C55 -> Retrait des propriétaires | F60: =J60+N60+R60+V60+Z60 -> 4500 | H60: =IF($F60=0,"",J60/$F60) -> 1 | J60: 4500 | K60: =IF($K$3=0,"",IF(AND($K$3='Coûts de production'!$K$3,'Coûts de production'!J55=J60),'Coûts de production'!K55,J60/($K$3+$K$12))) -> 4500 | L60: =IF($L$3=0,"",IF(AND($L$3='Coûts de production'!$L$3,'Coûts de production'!J55=J60),'Coûts de production'!L55,J60/($L$3+$L$12))) -> 450 | M60: =IF($F60=0,"",N60/$F60) -> 0 | O60: =IF($O$3=0,"",IF(AND($O$3='Coûts de production'!$P$3,'Coûts de production'!O55=N60),'Coûts de production'!P55,N60/($O$3+$O$12))) ->  | P60: =IF($P$3=0,"",IF(AND($P$3='Coûts de production'!$Q$3,'Coûts de production'!O55=N60),'Coûts de production'!Q55,N60/($P$3+$P$12))) ->  | Q60: =IF($F60=0,"",R60/$F60) -> 0 | S60: =IF($S$3=0,"",IF(AND($S$3='Coûts de production'!$U$3,'Coûts de production'!T55=R60),'Coûts de production'!U55,R60/($S$3+$S$12))) ->  | T60: =IF($T$3=0,"",IF(AND($T$3='Coûts de production'!$V$3,'Coûts de production'!T55=R60),'Coûts de production'!V55,R60/($T$3+$T$12))) ->  | U60: =IF($F60=0,"",V60/$F60) -> 0 | W60: =IF($W$3=0,"",IF(AND($W$3='Coûts de production'!$Y$3,'Coûts de production'!X55=V60),'Coûts de production'!Y55,V60/($W$3+$W$12))) ->  | X60: =IF($X$3=0,"",IF(AND($T$3='Coûts de production'!$V$3,'Coûts de production'!X55=V60),'Coûts de production'!Z55,V60/($X$3+$X$12))) ->  | Y60: =IF($F60=0,"",Z60/$F60) -> 0 | AA60: =IF($AA$3=0,"",IF(AND($AA$3='Coûts de production'!$AC$3,'Coûts de production'!AB55=Z60),'Coûts de production'!AC55,Z60/($AA$3+$AA$12))) ->  | AB60: =IF($AB$3=0,"",IF(AND($AB$3='Coûts de production'!$AD$3,'Coûts de production'!AB55=Z60),'Coûts de production'!AD55,Z60/($AB$3+$AB$12))) ->  | AK60: =IF($AK$3="VIDER","",IF(AND(J60=AQ60,$AK$4<>$AQ$4),($AK$4+$AK$12)*'Coûts de production'!K55,IF(AND(J60<>AQ60,J60<>AW60,J60<>""),J60,AQ60))) -> 4500 | AL60: =IF($AL$3="VIDER","",IF(AND(N60=AR60,$AL$4<>$AR$4),($AL$4+$AL$12)*'Coûts de production'!P55,IF(AND(N60<>AR60,N60<>AX60,N60<>""),N60,AR60))) ->  | AM60: =IF($AM$3="VIDER","",IF(AND(R60=AS60,$AM$4<>$AS$4),($AM$4+$AM$12)*'Coûts de production'!U55,IF(AND(R60<>AS60,R60<>AY60,R60<>""),R60,AS60))) ->  | AN60: =IF($AN$3="VIDER","",IF(AND(V60=AT60,$AN$4<>$AT$4),($AN$4+$AN$12)*'Coûts de production'!Y55,IF(AND(V60<>AT60,V60<>AZ60,V60<>""),V60,AT60))) ->  | AO60: =IF($AO$3="VIDER","",IF(AND(Z60=AU60,$AO$4<>$AU$4),($AO$4+$AO$12)*'Coûts de production'!AC55,IF(AND(Z60<>AU60,Z60<>BA60,Z60<>""),Z60,AU60))) ->  | AQ60: =IF(AK3<>AQ3,"",IF($L$3=0,"",'Coûts de production'!J55)) -> 0 | AR60: =IF(AL3<>AR3,"",IF($P$3=0,"",'Coûts de production'!O55)) ->  | AS60: =IF(AM3<>AS3,"",IF($T$3=0,"",'Coûts de production'!T55)) ->  | AT60: =IF(AN3<>AT3,"",IF($X$3=0,"",'Coûts de production'!X55)) ->  | AU60: =IF(AO3<>AU3,"",IF($AB$3=0,"",'Coûts de production'!AB55)) ->  | AW60: 0
A61: 1 | C61: ='Coûts de production'!C56 -> BÉNÉFICE NET | F61: =F59-F60 -> -2615.24 | J61: =IFERROR(J59-J60,0) -> -2615.24 | K61: =IFERROR(K59-K60,0) -> -4500 | L61: =IFERROR(L59-L60,0) -> -450 | N61: =IFERROR(N59-N60,0) -> 0 | O61: =IFERROR(O59-O60,0) -> 0 | P61: =IFERROR(P59-P60,0) -> 0 | R61: =IFERROR(R59-R60,0) -> 0 | S61: =IFERROR(S59-S60,0) -> 0 | T61: =IFERROR(T59-T60,0) -> 0 | V61: =IFERROR(V59-V60,0) -> 0 | W61: =IFERROR(W59-W60,0) -> 0 | X61: =IFERROR(X59-X60,0) -> 0 | Z61: =IFERROR(Z59-Z60,0) -> 0 | AA61: =IFERROR(AA59-AA60,0) -> 0 | AB61: =IFERROR(AB59-AB60,0) -> 0
C62: 0 | AK62: =IF(OR(F45=0,F45=""),"",IF(AND(C62<>AQ62,C62<>""),C62,AQ62)) -> 0 | AQ62: ='Coûts de production'!F57 -> 0 | AW62: 0
A63: 1 | C63: ='Coûts de production'!C63 -> (+) Rémunération de l'exploitant-propriétaire | F63: =59100*C62 -> 0 | H63: 0.3562477505 | J63: =$F$63*H63 -> 0 | K63: =IF(OR(K3=0,K3=""),"",J63/(K3+K12)) -> 0 | L63: =IF(OR(L3=0,L3=""),"",J63/($L$3+$L$12)) -> 0 | N63: =$F$63*M63 -> 0 | O63: =IF(OR(O3=0,O3=""),"",N63/(O3+O12)) ->  | P63: =IF(OR(P3=0,P3=""),"",N63/(P3+P12)) ->  | R63: =$F$63*Q63 -> 0 | S63: =IF(OR(S3=0,S3=""),"",R63/(S3+S12)) ->  | T63: =IF(OR(T3=0,T3=""),"",R63/(T3+T12)) ->  | V63: =$F$63*U63 -> 0 | W63: =IF(OR(W3=0,W3=""),"",V63/(W3+W12)) ->  | X63: =IF(OR(X3=0,X3=""),"",V63/(X3+X12)) ->  | Z63: =$F$63*Y63 -> 0 | AA63: =IF(OR(AA3=0,AA3=""),"",Z63/(AA3+AA12)) ->  | AB63: =IF(OR(AB3=0,AB3=""),"",Z63/AB3) ->  | AK63: =IF($AK$3="VIDER","",IF(AND(H63<>AQ63,H63<>AW63,H63<>""),H63,AQ63)) -> 0.3562477505 | AL63: =IF($AL$3="VIDER","",IF(AND(M63<>AR63,M63<>AX63,M63<>""),M63,AR63)) ->  | AM63: =IF($AM$3="VIDER","",IF(AND(Q63<>AS63,Q63<>AY63,Q63<>""),Q63,AS63)) ->  | AN63: =IF($AN$3="VIDER","",IF(AND(U63<>AT63,U63<>AZ63,U63<>""),U63,AT63)) ->  | AO63: =IF($AO$3="VIDER","",IF(AND(Y63<>AU63,Y63<>BA63,Y63<>""),Y63,AU63)) ->  | AQ63: =IF(AK3<>AQ3,"",IF($L$3=0,"",'Coûts de production'!H63)) -> 0 | AR63: =IF(AL3<>AR3,"",IF($P$3=0,"",'Coûts de production'!M63)) ->  | AS63: =IF(AM3<>AS3,"",IF($T$3=0,"",'Coûts de production'!R63)) ->  | AT63: =IF(AN3<>AT3,"",IF($X$3=0,"",'Coûts de production'!W63)) ->  | AU63: =IF(AO3<>AU3,"",IF($AB$3=0,"",'Coûts de production'!AA63)) ->  | AW63: 0.6592853839
A64: 1 | C64: ='Coûts de production'!C73 -> (+) Versement capital emprunts MLT | F64: =J64+N64+R64+V64+Z64 -> 27.25 | H64: =IF($F64=0,"",J64/$F64) -> 1 | J64: 27.25 | K64: =IF($K$3=0,"",IF(AND($K$3='Coûts de production'!$K$3,'Coûts de production'!J73=J64),'Coûts de production'!K73,J64/($K$3+$K$12))) -> 27.25 | L64: =IF($L$3=0,"",IF(AND($L$3='Coûts de production'!$L$3,'Coûts de production'!J73=J64),'Coûts de production'!L73,J64/($L$3+$L$12))) -> 2.725 | M64: =IF($F64=0,"",N64/$F64) -> 0 | O64: =IF($O$3=0,"",IF(AND($O$3='Coûts de production'!$P$3,'Coûts de production'!O73=N64),'Coûts de production'!P73,N64/($O$3+$O$12))) ->  | P64: =IF($P$3=0,"",IF(AND($P$3='Coûts de production'!$Q$3,'Coûts de production'!O73=N64),'Coûts de production'!Q73,N64/($P$3+$P$12))) ->  | Q64: =IF($F64=0,"",R64/$F64) -> 0 | S64: =IF($S$3=0,"",IF(AND($S$3='Coûts de production'!$U$3,'Coûts de production'!T73=R64),'Coûts de production'!U73,R64/($S$3+$S$12))) ->  | T64: =IF($T$3=0,"",IF(AND($T$3='Coûts de production'!$V$3,'Coûts de production'!T73=R64),'Coûts de production'!V73,R64/($T$3+$T$12))) ->  | U64: =IF($F64=0,"",V64/$F64) -> 0 | W64: =IF($W$3=0,"",IF(AND($W$3='Coûts de production'!$Y$3,'Coûts de production'!X73=V64),'Coûts de production'!Y73,V64/($W$3+$W$12))) ->  | X64: =IF($X$3=0,"",IF(AND($T$3='Coûts de production'!$V$3,'Coûts de production'!X73=V64),'Coûts de production'!Z73,V64/($X$3+$X$12))) ->  | Y64: =IF($F64=0,"",Z64/$F64) -> 0 | AA64: =IF($AA$3=0,"",IF(AND($AA$3='Coûts de production'!$AC$3,'Coûts de production'!AB73=Z64),'Coûts de production'!AC73,Z64/($AA$3+$AA$12))) ->  | AB64: =IF($AB$3=0,"",IF(AND($AB$3='Coûts de production'!$AD$3,'Coûts de production'!AB73=Z64),'Coûts de production'!AD73,Z64/($AB$3+$AB$12))) ->  | AK64: =IF($AK$3="VIDER","",IF(AND(J64=AQ64,$AK$4<>$AQ$4),($AK$4+$AK$12)*'Coûts de production'!K73,IF(AND(J64<>AQ64,J64<>AW64,J64<>""),J64,AQ64))) -> 27.25 | AL64: =IF($AL$3="VIDER","",IF(AND(N64=AR64,$AL$4<>$AR$4),($AL$4+$AL$12)*'Coûts de production'!P73,IF(AND(N64<>AR64,N64<>AX64,N64<>""),N64,AR64))) ->  | AM64: =IF($AM$3="VIDER","",IF(AND(R64=AS64,$AM$4<>$AS$4),($AM$4+$AM$12)*'Coûts de production'!U73,IF(AND(R64<>AS64,R64<>AY64,R64<>""),R64,AS64))) ->  | AN64: =IF($AN$3="VIDER","",IF(AND(V64=AT64,$AN$4<>$AT$4),($AN$4+$AN$12)*'Coûts de production'!Y73,IF(AND(V64<>AT64,V64<>AZ64,V64<>""),V64,AT64))) ->  | AO64: =IF($AO$3="VIDER","",IF(AND(Z64=AU64,$AO$4<>$AU$4),($AO$4+$AO$12)*'Coûts de production'!AC73,IF(AND(Z64<>AU64,Z64<>BA64,Z64<>""),Z64,AU64))) ->  | AQ64: =IF(AK3<>AQ3,"",IF($L$3=0,"",'Coûts de production'!J73)) -> 0 | AR64: =IF(AL3<>AR3,"",IF($P$3=0,"",'Coûts de production'!O73)) ->  | AS64: =IF(AM3<>AS3,"",IF($T$3=0,"",'Coûts de production'!T73)) ->  | AT64: =IF(AN3<>AT3,"",IF($X$3=0,"",'Coûts de production'!X73)) ->  | AU64: =IF(AO3<>AU3,"",IF($AB$3=0,"",'Coûts de production'!AB73)) ->  | AW64: 0
A65: 1 | C65: ='Coûts de production'!C64 -> (+) Rémunération de l'ADP | F65: 30000 | H65: 0.1842494527 | J65: =$F$65*H65 -> 5527.483581 | K65: =IF($K$3=0,"",IF(AND($K$3='Coûts de production'!$K$3,'Coûts de production'!J64=J65),'Coûts de production'!K64,J65/($K$3+$K$12))) -> 5527.483581 | L65: =IF($L$3=0,"",IF(AND($L$3='Coûts de production'!$L$3,'Coûts de production'!J64=J65),'Coûts de production'!L64,J65/($L$3+$L$12))) -> 552.7483581 | N65: =$F$65*M65 -> 0 | O65: =IF($O$3=0,"",IF(AND($O$3='Coûts de production'!$P$3,'Coûts de production'!O64=N65),'Coûts de production'!P64,N65/($O$3+$O$12))) ->  | P65: =IF($P$3=0,"",IF(AND($P$3='Coûts de production'!$Q$3,'Coûts de production'!O64=N65),'Coûts de production'!Q64,N65/($P$3+$P$12))) ->  | R65: =$F$65*Q65 -> 0 | S65: =IF($S$3=0,"",IF(AND($S$3='Coûts de production'!$U$3,'Coûts de production'!T64=R65),'Coûts de production'!U64,R65/($S$3+$S$12))) ->  | T65: =IF($T$3=0,"",IF(AND($T$3='Coûts de production'!$V$3,'Coûts de production'!T64=R65),'Coûts de production'!V64,R65/($T$3+$T$12))) ->  | V65: =$F$65*U65 -> 0 | W65: =IF($W$3=0,"",IF(AND($W$3='Coûts de production'!$Y$3,'Coûts de production'!X64=V65),'Coûts de production'!Y64,V65/($W$3+$W$12))) ->  | X65: =IF($X$3=0,"",IF(AND($T$3='Coûts de production'!$V$3,'Coûts de production'!X64=V65),'Coûts de production'!Z64,V65/($X$3+$X$12))) ->  | AA65: =IF($AA$3=0,"",IF(AND($AA$3='Coûts de production'!$AC$3,'Coûts de production'!AB64=Z65),'Coûts de production'!AC64,Z65/($AA$3+$AA$12))) ->  | AB65: =IF($AB$3=0,"",IF(AND($AB$3='Coûts de production'!$AD$3,'Coûts de production'!AB64=Z65),'Coûts de production'!AD64,Z65/($AB$3+$AB$12))) ->  | AK65: =IF($AK$3="VIDER","",IF(AND(H65<>AQ65,H65<>AW65,H65<>""),H65,AQ65)) -> 0.1842494527 | AL65: =IF($AL$3="VIDER","",IF(AND(M65<>AR65,M65<>AX65,M65<>""),M65,AR65)) ->  | AM65: =IF($AM$3="VIDER","",IF(AND(Q65<>AS65,Q65<>AY65,Q65<>""),Q65,AS65)) ->  | AN65: =IF($AN$3="VIDER","",IF(AND(U65<>AT65,U65<>AZ65,U65<>""),U65,AT65)) ->  | AO65: =IF($AO$3="VIDER","",IF(AND(Y65<>AU65,Y65<>BA65,Y65<>""),Y65,AU65)) ->  | AQ65: =IF(AK5<>AQ5,"",IF($L$3=0,"",'Coûts de production'!H64)) -> 0 | AR65: =IF(AL5<>AR5,"",IF($P$3=0,"",'Coûts de production'!M64)) ->  | AS65: =IF(AM5<>AS5,"",IF($T$3=0,"",'Coûts de production'!R64)) ->  | AT65: =IF(AN5<>AT5,"",IF($X$3=0,"",'Coûts de production'!W64)) ->  | AU65: =IF(AO5<>AU5,"",IF($AB$3=0,"",'Coûts de production'!AA64)) ->  | AW65: 0.5884615385
AK66: =IF(OR(F45=0,F45=""),"",AQ66) -> 0 | AQ66: ='Coûts de production'!F64 -> 0 | AW66: 30000
A67: 1 | C67: Prix cible sans les programmes | AG67: TRUE
A68: =IF(($AG$67),1,) -> 1 | C68: ='Coûts de production'!C60 -> Charges variables | F68: =F45 -> 805.24 | J68: =J45 -> 805.24 | K68: =K45 ->  | L68: =L45 ->  | N68: =N45 -> 0 | O68: =O45 -> 0 | P68: =P45 -> 0 | R68: =R45 -> 0 | S68: =S45 -> 0 | T68: =T45 -> 0 | V68: =V45 -> 0 | W68: =W45 -> 0 | X68: =X45 -> 0 | Z68: =Z45 -> 0 | AA68: =AA45 -> 0 | AB68: =AB45 -> 0
A69: 1 | C69: ='Coûts de production'!C61 -> (+)Charges fixes | F69: =F57 -> 212 | J69: =J57 -> 212 | K69: =K57 ->  | L69: =L57 ->  | N69: =N57 -> 0 | O69: =O57 -> 0 | P69: =P57 -> 0 | R69: =R57 -> 0 | S69: =S57 -> 0 | T69: =T57 -> 0 | V69: =V57 -> 0 | W69: =W57 -> 0 | X69: =X57 -> 0 | Z69: =Z57 -> 0 | AA69: =AA57 -> 0 | AB69: =AB57 -> 0
A70: 1 | C70: ='Coûts de production'!C62 -> (+) Amortissement bâtiment et machinerie | F70: =J70+N70+R70+V70+Z70 -> 260 | H70: =IF($F70=0,"",J70/$F70) -> 1 | J70: 260 | K70: =IF($K$3=0,"",IF(AND($K$3='Coûts de production'!$K$3,'Coûts de production'!J62=J70),'Coûts de production'!K62,J70/($K$3+$K$12))) -> 260 | L70: =IF($L$3=0,"",IF(AND($L$3='Coûts de production'!$L$3,'Coûts de production'!J62=J70),'Coûts de production'!L62,J70/($L$3+$L$12))) -> 26 | M70: =IF($F70=0,"",N70/$F70) -> 0 | O70: =IF($O$3=0,"",IF(AND($O$3='Coûts de production'!$P$3,'Coûts de production'!O62=N70),'Coûts de production'!P62,N70/($O$3+$O$12))) ->  | P70: =IF($P$3=0,"",IF(AND($P$3='Coûts de production'!$Q$3,'Coûts de production'!O62=N70),'Coûts de production'!Q62,N70/($P$3+$P$12))) ->  | Q70: =IF($F70=0,"",R70/$F70) -> 0 | S70: =IF($S$3=0,"",IF(AND($S$3='Coûts de production'!$U$3,'Coûts de production'!T62=R70),'Coûts de production'!U62,R70/($S$3+$S$12))) ->  | T70: =IF($T$3=0,"",IF(AND($T$3='Coûts de production'!$V$3,'Coûts de production'!T62=R70),'Coûts de production'!V62,R70/($T$3+$T$12))) ->  | U70: =IF($F70=0,"",V70/$F70) -> 0 | W70: =IF($W$3=0,"",IF(AND($W$3='Coûts de production'!$Y$3,'Coûts de production'!X62=V70),'Coûts de production'!Y62,V70/($W$3+$W$12))) ->  | X70: =IF($X$3=0,"",IF(AND($T$3='Coûts de production'!$V$3,'Coûts de production'!X62=V70),'Coûts de production'!Z62,V70/($X$3+$X$12))) ->  | Y70: =IF($F70=0,"",Z70/$F70) -> 0 | AA70: =IF($AA$3=0,"",IF(AND($AA$3='Coûts de production'!$AC$3,'Coûts de production'!AB62=Z70),'Coûts de production'!AC62,Z70/($AA$3+$AA$12))) ->  | AB70: =IF($AB$3=0,"",IF(AND($AB$3='Coûts de production'!$AD$3,'Coûts de production'!AB62=Z70),'Coûts de production'!AD62,Z70/($AB$3+$AB$12))) ->  | AK70: =IF($AK$3="VIDER","",IF(AND(J70=AQ70,$AK$4<>$AQ$4),($AK$4+$AK$12)*'Coûts de production'!K62,IF(AND(J70<>AQ70,J70<>AW70,J70<>""),J70,AQ70))) -> 0 | AL70: =IF($AL$3="VIDER","",IF(AND(N70=AR70,$AL$4<>$AR$4),($AL$4+$AL$12)*'Coûts de production'!P62,IF(AND(N70<>AR70,N70<>AX70,N70<>""),N70,AR70))) ->  | AM70: =IF($AM$3="VIDER","",IF(AND(R70=AS70,$AM$4<>$AS$4),($AM$4+$AM$12)*'Coûts de production'!U62,IF(AND(R70<>AS70,R70<>AY70,R70<>""),R70,AS70))) ->  | AN70: =IF($AN$3="VIDER","",IF(AND(V70=AT70,$AN$4<>$AT$4),($AN$4+$AN$12)*'Coûts de production'!Y62,IF(AND(V70<>AT70,V70<>AZ70,V70<>""),V70,AT70))) ->  | AO70: =IF($AO$3="VIDER","",IF(AND(Z70=AU70,$AO$4<>$AU$4),($AO$4+$AO$12)*'Coûts de production'!AC62,IF(AND(Z70<>AU70,Z70<>BA70,Z70<>""),Z70,AU70))) ->  | AQ70: =IF(AK3<>AQ3,"",IF($L$3=0,"",'Coûts de production'!J62)) -> 0 | AR70: =IF(AL3<>AR3,"",IF($P$3=0,"",'Coûts de production'!O62)) ->  | AS70: =IF(AM3<>AS3,"",IF($T$3=0,"",'Coûts de production'!T62)) ->  | AT70: =IF(AN3<>AT3,"",IF($X$3=0,"",'Coûts de production'!X62)) ->  | AU70: =IF(AO3<>AU3,"",IF($AB$3=0,"",'Coûts de production'!AB62)) ->  | AW70: 260
A71: 1 | C71: ='Coûts de production'!#REF! ->  | F71: =F63 -> 0 | J71: =J63 -> 0 | K71: =K63 -> 0 | L71: =L63 -> 0 | N71: =N63 -> 0 | O71: =O63 ->  | P71: =P63 ->  | R71: =R63 -> 0 | S71: =S63 ->  | T71: =T63 ->  | V71: =V63 -> 0 | W71: =W63 ->  | X71: =X63 ->  | Z71: =Z63 -> 0 | AA71: =AA63 ->  | AB71: =AB63 -> 
A72: 1 | C72: ='Coûts de production'!#REF! ->  | F72: =F65 -> 30000 | J72: =J65 -> 5527.483581 | K72: =K65 -> 5527.483581 | L72: =L65 -> 552.7483581 | N72: =N65 -> 0 | O72: =O65 ->  | P72: =P65 ->  | R72: =R65 -> 0 | S72: =S65 ->  | T72: =T65 ->  | V72: =V65 -> 0 | W72: =W65 ->  | X72: =X65 ->  | Z72: =Z65 -> 0 | AA72: =AA65 ->  | AB72: =AB65 -> 
A73: 1 | C73: ='Coûts de production'!C65 -> (-) Revenus à déduire | F73: =F16 -> -98 | J73: =IF($L$3=0,0,J13+J15+J16) -> -98 | K73: =IF($K$3=0,0,K13+K15+K16) -> -98 | L73: =IF(L$3=0,0,L13+L15+L16) -> -9.8 | N73: =IF($P$3=0,0,N13+N15+N16) -> 0 | O73: =IF($O$3=0,0,O13+O15+O16) -> 0 | P73: =IF(P$3=0,0,P13+P15+P16) -> 0 | R73: =IF($T$3=0,0,R13+R15+R16) -> 0 | S73: =IF($S$3=0,0,S13+S15+S16) -> 0 | T73: =IF($T$3=0,0,T13+T15+T16) -> 0 | V73: =IF($X$3=0,0,V13+V15+V16) -> 0 | W73: =IF($W$3=0,0,W13+W15+W16) -> 0 | X73: =IF($X$3=0,0,X13+X15+X16) -> 0 | Z73: =IF($AB$3=0,0,Z13+Z15+Z16) -> 0 | AA73: =IF($AA$3=0,0,AA13+AA15+AA16) -> 0 | AB73: =IF($AB$3=0,0,AB13+AB15+AB16) -> 0
A74: 1 | C74: ='Coûts de production'!C66 -> PRIX CIBLE | F74: =F68+F69+F70+F71+F72-F73 -> 31375.24 | J74: =IF($L$3=0,"",J68+J69+J70+J71+J72-J73) -> 6902.723581 | K74: =IF($K$3=0,"",K68+K69+K70+K71+K72-K73) ->  | L74: =IF(L$3=0,"",L68+L69+L70+L71+L72-L73) ->  | N74: =IF($P$3=0,"",N68+N69+N70+N71+N72-N73) ->  | O74: =IF($O$3=0,"",O68+O69+O70+O71+O72-O73) ->  | P74: =IF(P$3=0,"",P68+P69+P70+P71+P72-P73) ->  | R74: =IF($T$3=0,"",R68+R69+R70+R71+R72-R73) ->  | S74: =IF($S$3=0,"",S68+S69+S70+S71+S72-S73) ->  | T74: =IF($T$3=0,"",T68+T69+T70+T71+T72-T73) ->  | V74: =IF($X$3=0,"",V68+V69+V70+V71+V72-V73) ->  | W74: =IF($W$3=0,"",W68+W69+W70+W71+W72-W73) ->  | X74: =IF($X$3=0,"",X68+X69+X70+X71+X72-X73) ->  | Z74: =IF($AB$3=0,"",Z68+Z69+Z70+Z71+Z72-Z73) ->  | AA74: =IF($AA$3=0,"",AA68+AA69+AA70+AA71+AA72-AA73) ->  | AB74: =IF($AB$3=0,"",AB68+AB69+AB70+AB71+AB72-AB73) ->  | AG74: TRUE
A77: =IF(($AG$74),1,) -> 1 | C77: ='Coûts de production'!C69 -> Prix cible total | F77: =F74 -> 31375.24 | J77: =J74 -> 6902.723581 | K77: =K74 ->  | L77: =L74 ->  | N77: =N74 ->  | O77: =O74 ->  | P77: =P74 ->  | R77: =R74 ->  | S77: =S74 ->  | T77: =T74 ->  | V77: =V74 ->  | W77: =W74 ->  | X77: =X74 ->  | Z77: =Z74 ->  | AA77: =AA74 ->  | AB77: =AB74 -> 
A78: 1 | C78: ='Coûts de production'!C70 -> (-) Amortissement bâtiment et machinerie | F78: =F70 -> 260 | J78: =J70 -> 260 | K78: =K70 -> 260 | L78: =L70 -> 26 | N78: =N70 -> 0 | O78: =O70 ->  | P78: =P70 ->  | R78: =R70 -> 0 | S78: =S70 ->  | T78: =T70 ->  | V78: =V70 -> 0 | W78: =W70 ->  | X78: =X70 ->  | Z78: =Z70 -> 0 | AA78: =AA70 ->  | AB78: =AB70 -> 
A79: 1 | C79: ='Coûts de production'!C71 -> (-)Rémunération de l'exploitant-propriétaire | F79: =F63 -> 0 | J79: =J71 -> 0 | K79: =K63 -> 0 | L79: =L63 -> 0 | N79: =N71 -> 0 | O79: =O63 ->  | P79: =P63 ->  | R79: =R71 -> 0 | S79: =S63 ->  | T79: =T63 ->  | V79: =V71 -> 0 | W79: =W63 ->  | X79: =X63 ->  | Z79: =Z71 -> 0 | AA79: =AA63 ->  | AB79: =AB63 -> 
A80: 1 | C80: ='Coûts de production'!C72 -> (-) Rémunération de l'ADP | F80: =F65 -> 30000 | J80: =J72 -> 5527.483581 | K80: =K65 -> 5527.483581 | L80: =L65 -> 552.7483581 | N80: =N72 -> 0 | O80: =O65 ->  | P80: =P65 ->  | R80: =R72 -> 0 | S80: =S65 ->  | T80: =T65 ->  | V80: =V72 -> 0 | W80: =W65 ->  | X80: =X65 ->  | Z80: =Z72 -> 0 | AA80: =AA65 ->  | AB80: =AB65 -> 
A81: 1 | C81: ='Coûts de production'!#REF! ->  | F81: =F64 -> 27.25 | J81: =J64 -> 27.25 | K81: =K64 -> 27.25 | L81: =L64 -> 2.725 | N81: =N64 -> 0 | O81: =O64 ->  | P81: =P64 ->  | R81: =R64 -> 0 | S81: =S64 ->  | T81: =T64 ->  | V81: =V64 -> 0 | W81: =W64 ->  | X81: =X64 ->  | Z81: =Z64 -> 0 | AA81: =AA64 ->  | AB81: =AB64 -> 
A82: 1 | C82: ='Coûts de production'!C74 -> (+) Retrait du propriétaire | F82: =F60 -> 4500 | J82: =J60 -> 4500 | K82: =K60 -> 4500 | L82: =L60 -> 450 | N82: =N60 -> 0 | O82: =O60 ->  | P82: =P60 ->  | R82: =R60 -> 0 | S82: =S60 ->  | T82: =T60 ->  | V82: =V60 -> 0 | W82: =W60 ->  | X82: =X60 ->  | Z82: =Z60 -> 0 | AA82: =AA60 ->  | AB82: =AB60 -> 
A83: 1 | C83: ='Coûts de production'!C75 -> PRIX MINIMUM | F83: =F77-F78-F79-F80+F81+F82 -> 5642.49 | J83: =IF($L$3=0,"",J77-J78-J79-J80+J81+J82) -> 5642.49 | K83: =IF($K$3=0,"",K77-K78-K79-K80+K81+K82) ->  | L83: =IF($L$3=0,"",L77-L78-L79-L80+L81+L82) ->  | N83: =IF($P$3=0,"",N77-N78-N79-N80+N81+N82) ->  | O83: =IF($O$3=0,"",O77-O78-O79-O80+O81+O82) ->  | P83: =IF($P$3=0,"",P77-P78-P79-P80+P81+P82) ->  | R83: =IF($T$3=0,"",R77-R78-R79-R80+R81+R82) ->  | S83: =IF($S$3=0,"",S77-S78-S79-S80+S81+S82) ->  | T83: =IF($T$3=0,"",T77-T78-T79-T80+T81+T82) ->  | V83: =IF($X$3=0,"",V77-V78-V79-V80+V81+V82) ->  | W83: =IF($W$3=0,"",W77-W78-W79-W80+W81+W82) ->  | X83: =IF($X$3=0,"",X77-X78-X79-X80+X81+X82) ->  | Z83: =IF($AB$3=0,"",Z77-Z78-Z79-Z80+Z81+Z82) ->  | AA83: =IF($AA$3=0,"",AA77-AA78-AA79-AA80+AA81+AA82) ->  | AB83: =IF($AB$3=0,"",AB77-AB78-AB79-AB80+AB81+AB82) -> 
A84: 1 | C84: =C74 -> PRIX CIBLE | J84: =J74 -> 6902.723581 | K84: =K74 ->  | L84: =L74 ->  | N84: =N74 ->  | O84: =O74 ->  | P84: =P74 ->  | R84: =R74 ->  | S84: =S74 ->  | T84: =T74 ->  | V84: =V74 ->  | W84: =W74 ->  | X84: =X74 ->  | Z84: =Z74 ->  | AA84: =AA74 ->  | AB84: =AB74 -> 
A85: 1 | D85: =#REF! ->  | E85: =#REF! -> 
A86: 1 | C86: Prix cible avec les programmes | F86: =F74-F14 -> 31375.24 | J86: =IF($L$3=0,"",J74-J14) -> 6902.723581 | K86: =IF($K$3=0,"",K74-K14) ->  | L86: =IF($L$3=0,"",L74-L14) ->  | N86: =IF($P$3=0,"",N74-N14) ->  | O86: =IF($O$3=0,"",O74-O14) ->  | P86: =IF($P$3=0,"",P74-P14) ->  | R86: =IF($T$3=0,"",R74-R14) ->  | S86: =IF($S$3=0,"",S74-S14) ->  | T86: =IF($T$3=0,"",T74-T14) ->  | V86: =IF($X$3=0,"",V74-V14) ->  | W86: =IF($W$3=0,"",W74-W14) ->  | X86: =IF($X$3=0,"",X74-X14) ->  | Z86: =IF($AB$3=0,"",Z74-Z14) ->  | AA86: =IF($AA$3=0,"",AA74-AA14) ->  | AB86: =IF($AB$3=0,"",AB74-AB14) -> 
A87: 1 | C87: Prix minimum avec les programmes | F87: =F83-F14 -> 5642.49 | J87: =IF($L$3=0,"",J83-J14) -> 5642.49 | K87: =IF($K$3=0,"",K83-K14) ->  | L87: =IF($L$3=0,"",L83-L14) ->  | N87: =IF($P$3=0,"",N83-N14) ->  | O87: =IF($O$3=0,"",O83-O14) ->  | P87: =IF($P$3=0,"",P83-P14) ->  | R87: =IF($T$3=0,"",R83-R14) ->  | S87: =IF($S$3=0,"",S83-S14) ->  | T87: =IF($T$3=0,"",T83-T14) ->  | V87: =IF($X$3=0,"",V83-V14) ->  | W87: =IF($W$3=0,"",W83-W14) ->  | X87: =IF($X$3=0,"",X83-X14) ->  | Z87: =IF($AB$3=0,"",Z83-Z14) ->  | AA87: =IF($AA$3=0,"",AA83-AA14) ->  | AB87: =IF($AB$3=0,"",AB83-AB14) -> 

Sheet CECPA (hidden)
B1: Avoine | C1: Agneaux | D1: Blé animale | E1: Blé humain | F1: Bouvillons | G1: Canola | H1: Chanvre | I1: Foin | J1: Lin | K1: Maïs-grain | L1: Orge | M1: Pois | N1: Pommes | O1: Porcelets et porcs | P1: Sarrasin | Q1: Seigle | R1: Soya | S1: Veaux de grain | T1: Veaux d'embouche
A2: Année | B2: 2019 | C2: 2020 | D2: 2019 | E2: 2019 | F2: 2020 | G2: 2019 | H2: 2019 | I2: 2016 | J2: 2019 | K2: 2019 | L2: 2019 | M2: 2019 | N2: 2017 | O2: 2020 | P2: 2019 | Q2: 2019 | R2: 2019 | S2: 2020 | T2: 2020
A3: A) Données techniques | B3: CECPA | C3: CECPA | D3: CECPA | E3: CECPA | F3: CECPA | G3: CECPA | H3: CECPA | I3: GMA | J3: CECPA | K3: CECPA | L3: CECPA | M3: CECPA | N3: CECPA | O3: CECPA | P3: CECPA | Q3: CECPA | R3: CECPA | S3: CECPA | T3: CECPA
A4: Grain (tonne)
A5: Unité (par ha ou par tête vendu ou par unité-arbres) | B5: 1 | C5: 1 | D5: 1 | E5: 1 | F5: 1 | G5: 1 | H5: 1 | I5: 1 | J5: 1 | K5: 1 | L5: 1 | M5: 1 | N5: 1 | O5: 1 | P5: 1 | Q5: 1 | R5: 1 | S5: 1 | T5: 1
A6: Rdt (kg/ha ou kg/tête vendu ou kg/unité-arbre) | B6: 2622.855915 | C6: 40.8907563 | D6: 3359.030837 | E6: 3359.030837 | F6: 334.5 | G6: 2187.682417 | H6: 867.8735383 | I6: 4000 | J6: 1800 | K6: 8976.470588 | L6: 3242.084941 | M6: 2270.08547 | N6: 28878 | O6: 107.6000264 | P6: 1826.319601 | Q6: 3200 | R6: 2894.902454 | S6: 169.0747589 | T6: 312.157787
A7: Nombre d'animaux vendus | C7: 833 | F7: 2202.8 | O7: 7436.29 | S7: 806.5954182 | T7: 97.2
A9: Paille ou fourrage (tonne)
A10: Superficie (ha)
A11: rendement (kg/ha) | B11: 1700 | D11: 1700 | E11: 1700 | I11: 4000 | L11: 1700
A13: B) Frais variables | B13: 729.0367388 | C13: 259.5374925 | D13: 980.4118753 | E13: 980.4118753 | F13: 2275.588501 | G13: 878.39003 | H13: 830.9753075 | I13: 434 | J13: 638.9122946 | K13: 1416 | L13: 791.7765756 | M13: 728.975583 | N13: 11676 | O13: 212.3482934 | P13: 413.2281584 | Q13: 730.2591374 | R13: 719.22 | S13: 847.7378926 | T13: 1740.961829
A14: Semences/Frais cultures /Remplacement pommiers | B14: 126.7681291 | C14: 28.24816861 | D14: 177.5611299 | E14: 177.5611299 | F14: 61.17406937 | G14: 169.6164699 | H14: 313.4489011 | I14: 37 | J14: 88.95688732 | K14: 288 | L14: 154.7738567 | M14: 230.9166538 | N14: 364 | O14: 5.090503251 | P14: 60.25967635 | Q14: 172.7062377 | R14: 186 | S14: 55.09568973 | T14: 167.5866147
A15: Fertilisants | B15: 115.9453713 | D15: 156.7977475 | E15: 156.7977475 | G15: 247.629707 | H15: 50.51669201 | I15: 28 | J15: 141.8273596 | K15: 357.2 | L15: 113.19 | M15: 47.27578654 | N15: 256 | P15: 78.8896591 | Q15: 141.8273596 | R15: 40.85
A16: Chaux et amendements | B16: 6.102387964 | D16: 8.710985975 | E16: 8.710985975 | G16: 13.03314248 | H16: 2.658773264 | I16: 42 | J16: 7.464597875 | K16: 18.8 | L16: 4.09 | M16: 2.488199292 | P16: 4.152087321 | Q16: 7.464597875 | R16: 2.15
A17: Pesticides | B17: 28.30640347 | D17: 56.96276543 | E17: 56.96276543 | G17: 69.38072798 | H17: 0.5836637374 | I17: 2 | J17: 30.54841948 | K17: 58 | L17: 61.94968629 | M17: 130.2520738 | N17: 1631 | P17: 0 | Q17: 3.442857143 | R17: 93
A18: Frais de mise en marché | B18: 28.47395898 | C18: 16.62968656 | D18: 18.09321159 | E18: 18.09321159 | F18: 11.93580897 | G18: 31.55550384 | H18: 102.5222355 | J18: 159.4320258 | K18: 62 | L18: 31.9152113 | M18: 41.4251679 | N18: 2177 | O18: 5.238837141 | P18: 1.549380743 | Q18: 18.20271886 | R18: 21 | S18: 31.07850011 | T18: 63.60782919
A19: Carburants | B19: 70.05716255 | C19: 10.93911373 | D19: 66.56804688 | E19: 66.56804688 | F19: 23.83451516 | G19: 64.03907761 | H19: 163.789022 | I19: 68 | J19: 13.22698452 | K19: 92 | L19: 62.59546585 | M19: 79.16168165 | N19: 358 | O19: 2.122643065 | P19: 70.92133499 | Q19: 97.78732065 | R19: 77 | S19: 11.53863905 | T19: 104.1311477
A20: Entretien de la machinerie et des équipements | B20: 78.01786504 | C20: 15.09307073 | D20: 82.21124352 | E20: 82.21124352 | F20: 36.10366806 | G20: 69.01678797 | H20: 0 | I20: 148 | J20: 0 | K20: 114 | L20: 69.66172798 | M20: 0 | N20: 458 | O20: 3.659180988 | P20: 0 | Q20: 0 | R20: 88 | S20: 20.17282061 | T20: 168.8433714
A21: Électricité et chauffage | B21: 23.56201597 | C21: 6.454941756 | D21: 33.57635013 | E21: 33.57635013 | F21: 3.965811694 | G21: 24.83606759 | H21: 35.56688859 | J21: 35.56688859 | K21: 125 | L21: 22.74 | M21: 35.56688859 | N21: 236 | O21: 5.968212687 | P21: 35.56688859 | Q21: 31.10248893 | R21: 5 | S21: 19.03042844 | T21: 19.51125326
A22: Travaux à forfait | B22: 15.06473642 | C22: 13.02985469 | D22: 32.90252743 | E22: 32.90252743 | F22: 124.1265707 | G22: 19.35015123 | H22: 67.88008604 | J22: 67.88008604 | K22: 83 | L22: 37.42393077 | M22: 67.88008604 | N22: 302 | O22: 8.417844914 | P22: 67.88008604 | Q22: 172.68893 | R22: 18 | S22: 27.42790303 | T22: 52.85227295
A23: Location | B23: 64.8062535 | C23: 8.888435211 | D23: 184.0458995 | E23: 184.0458995 | F23: 14.7199882 | G23: 67.64540682 | H23: 0 | I23: 41 | J23: 0 | K23: 121 | L23: 95.26394851 | M23: 0 | N23: 226 | O23: 1.902568641 | P23: 0 | Q23: 0 | R23: 114 | S23: 15.65746558 | T23: 84.89163264
A24: Intérêts sur emprunts à court terme | B24: 16.90811854 | C24: 2.633025099 | D24: 18.23826047 | E24: 18.23826047 | F24: 37.98446523 | G24: 22.88014478 | H24: 94.00904531 | J24: 94.00904531 | K24: 10 | L24: 22.50371089 | M24: 94.00904531 | N24: 152 | O24: 1.538045416 | P24: 94.00904531 | Q24: 85.03662656 | R24: 11 | S24: 10.61759737 | T24: 45.01403739
A25: Achat et frais d'achat d'animaux | C25: 16.58765462 | F25: 1422.146105 | O25: 6.306912841 | S25: 284.7237124 | T25: 207.0705832
A26: Aliments achetés | C26: 62.66698691 | F26: 355.7793445 | O26: 141.4500963 | S26: 283.0798097 | T26: 225.8949279
A27: Médicaments et vétérinaire | C27: 7.970829831 | F27: 29.71038224 | O27: 9.314305924 | S27: 38.97390103 | T27: 52.53798327
A28: Litière | C28: 6.318674192 | F28: 43.83716179 | S28: 11.04592989 | T28: 31.11392644
A29: Contributions ASRA | B29: 97.42106846 | C29: 38.87843161 | D29: 67.31511371 | E29: 67.31511371 | F29: 44.44196477 | G29: 37.55899709 | H29: 0 | J29: 0 | K29: 0 | L29: 57.72512467 | M29: 0 | N29: 38 | O29: 7.806478768 | P29: 0 | Q29: 0 | R29: 0 | S29: 4.550906089 | T29: 282.3829788
A30: Contributions autres programmes FADQ | B30: 4.819209869 | C30: 3.065161523 | D30: 4.858593268 | E30: 4.858593268 | F30: 2.879417106 | G30: 6.779248959 | H30: 0 | J30: 0 | K30: 0 | L30: 7.122625913 | M30: 0 | N30: 301 | O30: 0.3516761329 | P30: 0 | Q30: 0 | R30: 0 | S30: 1.96992876 | T30: 19.00830506
A31: Main d'œuvre salariée | B31: 52.78405756 | C31: 22.13345743 | D31: 72.57 | E31: 72.57 | F31: 62.94922825 | G31: 35.06859675 | I31: 68 | K31: 87 | L31: 50.8212867 | N31: 5177 | O31: 13.18098736 | R31: 63.22 | S31: 32.77466079 | T31: 216.5149648
A32: Autres frais
A33: C) Frais fixes | B33: 125.6751525 | C33: 41.89032064 | D33: 144.2230236 | E33: 144.2230236 | F33: 67.46858544 | G33: 118.7647609 | H33: 76.34813075 | I33: 118 | J33: 76.34813075 | K33: 254 | L33: 139.3662062 | M33: 76.34813075 | N33: 1411 | O33: 15.73968008 | P33: 76.34813075 | Q33: 74.30391775 | R33: 194 | S33: 71.75713718 | T33: 255.3514501
A34: Entretien des bâtiments et du fonds de terre | B34: 12.39135169 | C34: 6.66409271 | D34: 13.43435409 | E34: 13.43435409 | F34: 13.36135373 | G34: 8.406808214 | H34: 10.54611889 | I34: 44 | J34: 10.54611889 | K34: 29 | L34: 14.25537029 | M34: 10.54611889 | N34: 369 | O34: 5.294954222 | P34: 10.54611889 | Q34: 10.73125161 | R34: 17 | S34: 17.75431473 | T34: 51.27976084
A35: Assurances | B35: 20.50978946 | C35: 10.49122133 | D35: 24.43325883 | E35: 24.43325883 | F35: 11.90630561 | G35: 18.0824992 | H35: 0 | J35: 0 | K35: 44 | L35: 21.53932524 | M35: 0 | N35: 212 | O35: 3.632694529 | P35: 0 | Q35: 0 | R35: 27 | S35: 12.1148345 | T35: 48.3769581
A36: Taxes foncières | B36: 9.358440446 | C36: 2.458220247 | D36: 10.30214461 | E36: 10.30214461 | F36: 4.499237334 | G36: 8.375344803 | H36: 0 | J36: 0 | K36: 29 | L36: 10.69480122 | M36: 0 | N36: 49 | O36: 0.9480931366 | P36: 0 | Q36: 0 | R36: 24 | S36: 2.988139275 | T36: 19.36224222
A37: Intérêts sur emprunts à long terme | B37: 57.77860399 | C37: 13.32281734 | D37: 59.81444597 | E37: 59.81444597 | F37: 22.59919194 | G37: 55.31552993 | H37: 0 | I37: 27 | J37: 0 | K37: 109 | L37: 64.89229191 | M37: 0 | N37: 321 | O37: 2.823036756 | P37: 0 | Q37: 0 | R37: 95 | S37: 23.42649077 | T37: 74.08987364
A38: Autres frais | B38: 25.6369669 | C38: 8.953969016 | D38: 36.23882006 | E38: 36.23882006 | F38: 15.10249682 | G38: 28.58457872 | H38: 65.80201186 | I38: 47 | J38: 65.80201186 | K38: 43 | L38: 27.98441757 | M38: 65.80201186 | N38: 460 | O38: 3.040901436 | P38: 65.80201186 | Q38: 63.57266614 | R38: 31 | S38: 15.47335791 | T38: 62.24261526
A40: D) Moins Revenus de sous-produits | B40: 164.6415315 | C40: 60.85317641 | D40: 281.45 | E40: 281.45 | F40: 98.9230207 | G40: 51.97352302 | H40: 61.25059291 | I40: 64 | J40: 61.25059291 | K40: 81 | L40: 225.8481733 | M40: 61.25059291 | N40: 671 | O40: 20.09720441 | P40: 61.25059291 | Q40: 438.8230404 | R40: 124 | S40: 115.894824 | T40: 421.4733728
A42: Amortissements | B42: 147.5475336 | C42: 33.33871743 | D42: 178.2771907 | E42: 178.2771907 | F42: 47.99907168 | G42: 134.3424994 | H42: 148.0301717 | I42: 130 | J42: 148.0301717 | K42: 257 | L42: 178.0234024 | M42: 148.0301717 | N42: 910 | O42: 11.26830646 | P42: 148.0301717 | Q42: 165.9289073 | R42: 177 | S42: 59.79815288 | T42: 227.3614774
A43: Rémunération exploitant-propriétaire | B43: 133.298705 | C43: 131.1737961 | D43: 153.7 | E43: 153.7 | F43: 55.9904349 | G43: 120.3655279 | H43: 160.9225093 | I43: 71 | J43: 160.9225093 | K43: 154 | L43: 114.7632728 | M43: 160.9225093 | N43: 2853 | O43: 13.45898977 | P43: 160.9225093 | Q43: 178.9632237 | R43: 154.78 | S43: 89.0937443 | T43: 688.2888905
A44: Rémunération de l'avoir du propriétaire | B44: 35.69032186 | C44: 6.524774829 | D44: 81.81 | E44: 81.81 | F44: 18.43116488 | G44: 25.7375984 | H44: 27.21963384 | I44: 4 | J44: 27.21963384 | K44: 175 | L44: 35.5422952 | M44: 27.21963384 | N44: 468 | O44: 2.635032468 | P44: 27.21963384 | Q44: 29.26125691 | R44: 134 | S44: 10.41893562 | T44: 87.91291381
A46: Prix cible | B46: 1006.60692 | C46: 533.3182779 | D46: 1256.97209 | E46: 1256.97209 | F46: 2366.554737 | G46: 1225.626894 | H46: 1182.24516 | I46: 693 | J46: 990.1821472 | K46: 2175 | L46: 1033.623579 | M46: 1080.245436 | N46: 16647 | O46: 235.3530978 | P46: 764.4980111 | Q46: 739.8934026 | R46: 1255 | S46: 962.9110386 | T46: 2578.403188
A48: Temps de travail (heures) | B48: 7.9 | C48: 11.4 | D48: 8.8 | E48: 8.8 | F48: 5.28 | G48: 8.35 | K48: 9.8 | L48: 7.1 | N48: 4.67 | O48: 1.13 | R48: 9 | S48: 6.6 | T48: 37
B49: Par ha | C49: Par brebis | D49: Par ha | E49: Par ha | F49: Par bouvillon | G49: Par ha | H49: Par ha | I49: Par ha | J49: Par ha | K49: Par ha | L49: Par ha | M49: Par ha | N49: Par ha | O49: par porc | P49: Par ha | Q49: Par ha | R49: Par ha | S49: par veau | T49: par vache
A50: Nombre d'exploitants par unité de production | E50: =0.05/19.7 -> 0.002538071066 | N50: =1.08/22.7 -> 0.04757709251
A51: Mesure de l'unité de production | B51: Superficie (ha) | C51: Nbre. vendu | D51: Superficie (ha) | E51: Superficie (ha) | F51: Nbre. vendu | G51: Superficie (ha) | H51: Superficie (ha) | I51: Superficie (ha) | J51: Superficie (ha) | K51: Superficie (ha) | L51: Superficie (ha) | M51: Superficie (ha) | N51: Superficie (ha) | O51: Nbre. vendu | P51: Superficie (ha) | Q51: Superficie (ha) | R51: Superficie (ha) | S51: Nbre. vendu | T51: Nbre. vendu
A52: Mesure du rendement | B52: Rdt. (tm/ha) | C52: Poids moy. (kg) | D52: Rdt. (tm/ha) | E52: Rdt. (tm/ha) | F52: Poids moy. (kg) | G52: Rdt. (tm/ha) | H52: Rdt. (tm/ha) | I52: Rdt. (tm/ha) | J52: Rdt. (tm/ha) | K52: Rdt. (tm/ha) | L52: Rdt. (tm/ha) | M52: Rdt. (tm/ha) | N52: Rdt. (tm/ha) | O52: Poids moy. (kg) | P52: Rdt. (tm/ha) | Q52: Rdt. (tm/ha) | R52: Rdt. (tm/ha) | S52: Poids moy. (kg) | T52: Poids moy. (kg)
B53: Rdt. (tm/ha) | C53: Poids moy. (lb) | D53: Rdt. (tm/ha) | E53: Rdt. (tm/ha) | F53: Poids moy. (lb) | G53: Rdt. (tm/ha) | H53: Rdt. (tm/ha) | I53: Rdt. (tm/ha) | J53: Rdt. (tm/ha) | K53: Rdt. (tm/ha) | L53: Rdt. (tm/ha) | M53: Rdt. (tm/ha) | N53: Rdt. (tm/ha) | O53: Poids moy. (lb) | P53: Rdt. (tm/ha) | Q53: Rdt. (tm/ha) | R53: Rdt. (tm/ha) | S53: Poids moy. (lb) | T53: Poids moy. (lb)
C56: Lb | F56: Kg | I56: =I46/I6*1000 -> 173.25 | N56: 576.4595886
I57: =I33/I6*1000 -> 29.5 | N57: 48.86072443
A58: Les étalons: 1 exploitants propriétaire corespond à | I58: =I13/I6*1000 -> 108.5 | N58: 404.3216289
C63: ü Répartition Manuelle
C64: ü Répartition basée sur la superficie
C65: ü Répartition basée sur le nombre de tête | E65: Mais | I65: Blés
C66: ü Répartition basée sur le temps de travail | E66: 165.2 | I66: 19.7
C67: ü Répartition basée sur la quantité produite | E67: 9.46 | I67: 3.18
E68: 0.52 | I68: 0.05
E69: 1273.9 | I69: 115
E70: 7.71125908 | I70: 5.837563452
E71: 30085.64 | I71: 2892.85
E72: 182.1164649 | I72: 146.8451777
E73: 19.25121193 | I73: 46.17772883
E75: =E68/E66 -> 0.003147699758 | I75: =I68/I66 -> 0.002538071066
E77: =E75*$C$65 ->  | I77: =I75*$C$65 -> 
E78: =E77/E67 ->  | I78: =I77/I67 -> 
E79: 19.81 | I79: 45.45
E80: =E79/E75 -> 6293.484615 | I80: =I79/I75 -> 17907.3
E86: ='Avoir Proprio'!D5 -> 0

Sheet Synthèse
B1: Synthèse des coûts de production | Y1: FORMULES | AJ1: CHANGEMENTS
B2: Nom de la ferme: | C2: =IF('Formulaire de saisie'!D1=0,"",'Formulaire de saisie'!D1) ->  | H2: Date | I2: =IF('Formulaire de saisie'!G1=0,"",'Formulaire de saisie'!G1) ->  | K2: =IF('Formulaire de saisie'!G1=0,"",'Formulaire de saisie'!G1) -> 
B4: Municipalité | C4: =IF('Formulaire de saisie'!E37=0,"",'Formulaire de saisie'!E37) -> 
B5: Station météo | C5: =IF('Formulaire de saisie'!F38="","",'Formulaire de saisie'!F38) ->  | R5: Critères
C6: ='Coûts de production'!H1 -> 0 | E6: ='Coûts de production'!M1 -> 0 | G6: ='Coûts de production'!R1 -> 0 | I6: ='Coûts de production'!W1 -> 0 | K6: ='Coûts de production'!AA1 -> 0 | R6: Municipalité | T6: Station météo
C7: =IF(OR(C6="VIDER",C6=0),"","Producteur") ->  | D7: =IF(OR(C6="VIDER",C6=0),"",HLOOKUP(C6,CECPA!$B$1:$T$53,3,FALSE)) ->  | E7: =IF(OR(E6="VIDER",E6=0),"","Producteur") ->  | F7: =IF(OR(E6="VIDER",E6=0),"",HLOOKUP(E6,CECPA!$B$1:$T$53,3,FALSE)) ->  | G7: =IF(OR(G6="VIDER",G6=0),"","Producteur") ->  | H7: =IF(OR(G6="VIDER",G6=0),"",HLOOKUP(G6,CECPA!$B$1:$T$53,3,FALSE)) ->  | I7: =IF(OR(I6="VIDER",I6=0),"","Producteur") ->  | J7: =IF(OR(I6="VIDER",I6=0),"",HLOOKUP(I6,CECPA!$B$1:$T$53,3,FALSE)) ->  | K7: =IF(OR(K6="VIDER",K6=0),"","Producteur") ->  | L7: =IF(OR(K6="VIDER",K6=0),"",HLOOKUP(K6,CECPA!$B$1:$T$53,3,FALSE)) ->  | R7: =C4 ->  | T7: =C5 -> 
C8: =IF(OR(C6="VIDER",C6=0)," ",IF('Coûts de production'!K4="Poids moy. (kg)","$/kg",IF('Coûts de production'!K4="Poids moy. (lb)","$/lb","$/tonne"))) ->  | D8: =IF(OR(C6="VIDER",C6=0),"",HLOOKUP(C6,CECPA!$B$1:$T$53,2,FALSE)) ->  | E8: =IF(OR(E6="VIDER",E6=0)," ",IF('Coûts de production'!P4="Poids moy. (kg)","$/kg",IF('Coûts de production'!P4="Poids moy. (lb)","$/lb","$/tonne"))) ->  | F8: =IF(OR(E6="VIDER",E6=0),"",HLOOKUP(E6,CECPA!$B$1:$T$53,2,FALSE)) ->  | G8: =IF(OR(G6="VIDER",G6=0)," ",IF('Coûts de production'!U4="Poids moy. (kg)","$/kg",IF('Coûts de production'!U4="Poids moy. (lb)","$/lb","$/tonne"))) ->  | H8: =IF(OR(G6="VIDER",G6=0),"",HLOOKUP(G6,CECPA!$B$1:$T$53,2,FALSE)) ->  | I8: =IF(OR(I6="VIDER",I6=0)," ",IF('Coûts de production'!Y4="Poids moy. (kg)","$/kg",IF('Coûts de production'!Y4="Poids moy. (lb)","$/lb","$/tonne"))) ->  | J8: =IF(OR(I6="VIDER",I6=0),"",HLOOKUP(I6,CECPA!$B$1:$T$53,2,FALSE)) ->  | K8: =IF(OR(K6="VIDER",K6=0)," ",IF('Coûts de production'!AC4="Poids moy. (kg)","$/kg",IF('Coûts de production'!AC4="Poids moy. (lb)","$/lb","$/tonne"))) ->  | L8: =IF(OR(K6="VIDER",K6=0),"",HLOOKUP(K6,CECPA!$B$1:$T$53,2,FALSE)) -> 
B10: Quantité | C10: =IF(OR(C6="VIDER",C6=0),"",C14*C11) ->  | D10: =IF(OR(C6="VIDER",C6=0),"",D14*D11) ->  | E10: =IF(OR(E6="VIDER",E6=0),"",E14*E11) ->  | F10: =IF(OR(E6="VIDER",E6=0),"",F14*F11) ->  | G10: =IF(OR(G6="VIDER",G6=0),"",G14*G11) ->  | H10: =IF(OR(G6="VIDER",G6=0),"",H14*H11) ->  | I10: =IF(OR(I6="VIDER",I6=0),"",I14*I11) ->  | J10: =IF(OR(I6="VIDER",I6=0),"",J14*J11) ->  | K10: =IF(OR(K6="VIDER",K6=0)," ",K14*K11) ->  | L10: =IF(OR(K6="VIDER",K6=0),"",L14*L11) -> 
B11: Unité (ha ou tête vendu) | C11: 1 | D11: 1 | E11: 1 | F11: 1 | G11: 1 | H11: 1 | I11: 1 | J11: 1 | K11: 1 | L11: 1 | Y11: Revenus secondaires
B12: Rendement de référence (tm/ha) (FADQ, 2019) | C12: =IF(OR(C6="VIDER",C6=0)," ",IFERROR(IF(OR($C$4="",C6=0),0,IF(C6="Foin",DGET(Station_météo,C6,$T$6:$T$7),DGET(Municipalité,C6,$R$6:$R$7)))*IF(C8="$/tonne",0.001,1),"")) ->  | E12: =IF(OR(E6="VIDER",E6=0)," ",IFERROR(IF(OR($C$4="",E6=0),0,IF(E6="Foin",DGET(Station_météo,E6,$T$6:$T$7),DGET(Municipalité,E6,$R$6:$R$7)))*IF(E8="$/tonne",0.001,1),"")) ->  | G12: =IF(OR(G6="VIDER",G6=0)," ",IFERROR(IF(OR($C$4="",G6=0),0,IF(G6="Foin",DGET(Station_météo,G6,$T$6:$T$7),DGET(Municipalité,G6,$R$6:$R$7)))*IF(G8="$/tonne",0.001,1),"")) ->  | I12: =IF(OR(I6="VIDER",I6=0)," ",IFERROR(IF(OR($C$4="",I6=0),0,IF(I6="Foin",DGET(Station_météo,I6,$T$6:$T$7),DGET(Municipalité,I6,$R$6:$R$7)))*IF(I8="$/tonne",0.001,1),"")) ->  | K12: =IF(OR(K6="VIDER",K6=0)," ",IFERROR(IF(OR($C$4="",K6=0),0,IF(K6="Foin",DGET(Station_météo,K6,$T$6:$T$7),DGET(Municipalité,K6,$R$6:$R$7)))*IF(K8="$/tonne",0.001,1),"")) -> 
B13: Poids ou rendement moyen 5 ans
B14: Rendement (tm/ha) ou poids moy. (lb ou kg) | C14: =IF(OR(C6="VIDER",C6=0)," ",'Coûts de production'!K5) ->  | D14: =IF(OR(C6="VIDER",C6=0)," ",HLOOKUP(C6,CECPA!$B$1:$T$53,6,FALSE)*IF(C8="$/lb",2.2,IF(C8="$/tonne",0.001,1))) ->  | E14: =IF(OR(E6="VIDER",E6=0)," ",'Coûts de production'!P5) ->  | F14: =IF(OR(E6="VIDER",E6=0)," ",HLOOKUP(E6,CECPA!$B$1:$T$53,6,FALSE)*IF(E8="$/lb",2.2,IF(E8="$/tonne",0.001,1))) ->  | G14: =IF(OR(G6="VIDER",G6=0)," ",'Coûts de production'!U5) ->  | H14: =IF(OR(G6="VIDER",G6=0)," ",HLOOKUP(G6,CECPA!$B$1:$T$53,6,FALSE)*IF(G8="$/lb",2.2,IF(G8="$/tonne",0.001,1))) ->  | I14: =IF(OR(I6="VIDER",I6=0)," ",'Coûts de production'!Y5) ->  | J14: =IF(OR(I6="VIDER",I6=0)," ",HLOOKUP(I6,CECPA!$B$1:$T$53,6,FALSE)*IF(I8="$/lb",2.2,IF(I8="$/tonne",0.001,1))) ->  | K14: =IF(OR(K6="VIDER",K6=0)," ",'Coûts de production'!AC5) ->  | L14: =IF(OR(K6="VIDER",K6=0)," ",HLOOKUP(K6,CECPA!$B$1:$T$53,6,FALSE)*IF(K8="$/lb",2.2,IF(K8="$/tonne",0.001,1))) -> 
B15: Paille ou fourrage (tonne)
B16: Superficie (ha) | C16: =C11 -> 1 | D16: 1 | E16: 1 | F16: 1 | G16: 1 | H16: 1 | I16: 1 | J16: 1 | K16: 1 | L16: 1
C17: =IF(OR(C6="VIDER",C6=0)," ",IF('Coûts de production'!K4="Poids moy. (kg)","$/kg",IF('Coûts de production'!K4="Poids moy. (lb)","$/lb","$/tonne"))) ->  | E17: =IF(OR(E6="VIDER",E6=0)," ",IF('Coûts de production'!P4="Poids moy. (kg)","$/kg",IF('Coûts de production'!P4="Poids moy. (lb)","$/lb","$/tonne"))) ->  | G17: =IF(OR(G6="VIDER",G6=0)," ",IF('Coûts de production'!U4="Poids moy. (kg)","$/kg",IF('Coûts de production'!U4="Poids moy. (lb)","$/lb","$/tonne"))) ->  | I17: =IF(OR(I6="VIDER",I6=0)," ",IF('Coûts de production'!Y4="Poids moy. (kg)","$/kg",IF('Coûts de production'!Y4="Poids moy. (lb)","$/lb","$/tonne"))) ->  | K17: =IF(OR(K6="VIDER",K6=0)," ",IF('Coûts de production'!AC4="Poids moy. (kg)","$/kg",IF('Coûts de production'!AC4="Poids moy. (lb)","$/lb","$/tonne"))) -> 
B18: CHARGES VARIABLES ($/tonne ou $/lb ou $/kg) | C18: =IF(OR(C6="VIDER",C6=0)," ",IF(C8="$/tonne",ROUND('Coûts de production'!L60,0),ROUND('Coûts de production'!L60,2))) ->  | D18: =IF(OR(C6="VIDER",C6=0)," ",IF(C8="$/tonne",ROUND(IFERROR(IF(OR(C6="VIDER",C6=0)," ",HLOOKUP(C6,CECPA!$B$1:$T$53,13,FALSE)/IF(C8="$/lb",1,IF(C8="$/kg",1,1)))/D14,""),0),ROUND(IFERROR(IF(OR(C6="VIDER",C6=0)," ",HLOOKUP(C6,CECPA!$B$1:$T$53,13,FALSE)/IF(C8="$/lb",1,IF(C8="$/kg",1,1)))/D14,""),2))) ->  | E18: =IF(OR(E6="VIDER",E6=0)," ",IF(E8="$/tonne",ROUND('Coûts de production'!Q60,0),ROUND('Coûts de production'!Q60,2))) ->  | F18: =IF(OR(E6="VIDER",E6=0)," ",IF(E8="$/tonne",ROUND(IFERROR(IF(OR(E6="VIDER",E6=0)," ",HLOOKUP(E6,CECPA!$B$1:$T$53,13,FALSE)/IF(E8="$/lb",1,IF(E8="$/kg",1,1)))/F14,""),0),ROUND(IFERROR(IF(OR(E6="VIDER",E6=0)," ",HLOOKUP(E6,CECPA!$B$1:$T$53,13,FALSE)/IF(E8="$/lb",1,IF(E8="$/kg",1,1)))/F14,""),2))) ->  | G18: =IF(OR(G6="VIDER",G6=0)," ",IF(G8="$/tonne",ROUND('Coûts de production'!V60,0),ROUND('Coûts de production'!V60,2))) ->  | H18: =IF(OR(G6="VIDER",G6=0)," ",IF(G8="$/tonne",ROUND(IFERROR(IF(OR(G6="VIDER",G6=0)," ",HLOOKUP(G6,CECPA!$B$1:$T$53,13,FALSE)/IF(G8="$/lb",1,IF(G8="$/kg",1,1)))/H14,""),0),ROUND(IFERROR(IF(OR(G6="VIDER",G6=0)," ",HLOOKUP(G6,CECPA!$B$1:$T$53,13,FALSE)/IF(G8="$/lb",1,IF(G8="$/kg",1,1)))/H14,""),2))) ->  | I18: =IF(OR(I6="VIDER",I6=0)," ",IF(I8="$/tonne",ROUND('Coûts de production'!Z60,0),ROUND('Coûts de production'!Z60,2))) ->  | J18: =IF(OR(I6="VIDER",I6=0)," ",IF(I8="$/tonne",ROUND(IFERROR(IF(OR(I6="VIDER",I6=0)," ",HLOOKUP(I6,CECPA!$B$1:$T$53,13,FALSE)/IF(I8="$/lb",1,IF(I8="$/kg",1,1)))/J14,""),0),ROUND(IFERROR(IF(OR(I6="VIDER",I6=0)," ",HLOOKUP(I6,CECPA!$B$1:$T$53,13,FALSE)/IF(I8="$/lb",1,IF(I8="$/kg",1,1)))/J14,""),2))) ->  | K18: =IF(OR(K6="VIDER",K6=0)," ",IF(K8="$/tonne",ROUND('Coûts de production'!AD60,0),ROUND('Coûts de production'!AD60,2))) ->  | L18: =IF(OR(K6="VIDER",K6=0)," ",IF(K8="$/tonne",ROUND(IFERROR(IF(OR(K6="VIDER",K6=0)," ",HLOOKUP(K6,CECPA!$B$1:$T$53,13,FALSE)/IF(K8="$/lb",1,IF(K8="$/kg",1,1)))/L14,""),0),ROUND(IFERROR(IF(OR(K6="VIDER",K6=0)," ",HLOOKUP(K6,CECPA!$B$1:$T$53,13,FALSE)/IF(K8="$/lb",1,IF(K8="$/kg",1,1)))/L14,""),2))) -> 
B19: Semences | C19: =#REF! ->  | D19: =HLOOKUP($C$6,ASRA!$B$1:$Y$57,13,FALSE) ->  | E19: =#REF! ->  | F19: =HLOOKUP($C$6,ASRA!$B$1:$Y$57,13,FALSE) ->  | G19: =#REF! ->  | H19: =HLOOKUP($C$6,ASRA!$B$1:$Y$57,13,FALSE) ->  | I19: =#REF! ->  | J19: =HLOOKUP($C$6,ASRA!$B$1:$Y$57,13,FALSE) ->  | K19: =#REF! ->  | L19: =HLOOKUP($C$6,ASRA!$B$1:$Y$57,13,FALSE) -> 
B20: Fertilisants | C20: =#REF! ->  | D20: =HLOOKUP($C$6,ASRA!$B$1:$Y$57,14,FALSE) ->  | E20: =#REF! ->  | F20: =HLOOKUP($C$6,ASRA!$B$1:$Y$57,14,FALSE) ->  | G20: =#REF! ->  | H20: =HLOOKUP($C$6,ASRA!$B$1:$Y$57,14,FALSE) ->  | I20: =#REF! ->  | J20: =HLOOKUP($C$6,ASRA!$B$1:$Y$57,14,FALSE) ->  | K20: =#REF! ->  | L20: =HLOOKUP($C$6,ASRA!$B$1:$Y$57,14,FALSE) -> 
B21: Chaulage | C21: =#REF! ->  | D21: =HLOOKUP($C$6,ASRA!$B$1:$Y$57,15,FALSE) ->  | E21: =#REF! ->  | F21: =HLOOKUP($C$6,ASRA!$B$1:$Y$57,15,FALSE) ->  | G21: =#REF! ->  | H21: =HLOOKUP($C$6,ASRA!$B$1:$Y$57,15,FALSE) ->  | I21: =#REF! ->  | J21: =HLOOKUP($C$6,ASRA!$B$1:$Y$57,15,FALSE) ->  | K21: =#REF! ->  | L21: =HLOOKUP($C$6,ASRA!$B$1:$Y$57,15,FALSE) -> 
B22: Pesticides | C22: =#REF! ->  | D22: =HLOOKUP($C$6,ASRA!$B$1:$Y$57,16,FALSE) ->  | E22: =#REF! ->  | F22: =HLOOKUP($C$6,ASRA!$B$1:$Y$57,16,FALSE) ->  | G22: =#REF! ->  | H22: =HLOOKUP($C$6,ASRA!$B$1:$Y$57,16,FALSE) ->  | I22: =#REF! ->  | J22: =HLOOKUP($C$6,ASRA!$B$1:$Y$57,16,FALSE) ->  | K22: =#REF! ->  | L22: =HLOOKUP($C$6,ASRA!$B$1:$Y$57,16,FALSE) -> 
B23: Location de machineries, bâtiments | C23: =#REF! ->  | D23: =HLOOKUP($C$6,ASRA!$B$1:$Y$57,17,FALSE) ->  | E23: =#REF! ->  | F23: =HLOOKUP($C$6,ASRA!$B$1:$Y$57,17,FALSE) ->  | G23: =#REF! ->  | H23: =HLOOKUP($C$6,ASRA!$B$1:$Y$57,17,FALSE) ->  | I23: =#REF! ->  | J23: =HLOOKUP($C$6,ASRA!$B$1:$Y$57,17,FALSE) ->  | K23: =#REF! ->  | L23: =HLOOKUP($C$6,ASRA!$B$1:$Y$57,17,FALSE) -> 
B24: Location de fonds de terre | C24: =#REF! ->  | D24: =HLOOKUP($C$6,ASRA!$B$1:$Y$57,18,FALSE) ->  | E24: =#REF! ->  | F24: =HLOOKUP($C$6,ASRA!$B$1:$Y$57,18,FALSE) ->  | G24: =#REF! ->  | H24: =HLOOKUP($C$6,ASRA!$B$1:$Y$57,18,FALSE) ->  | I24: =#REF! ->  | J24: =HLOOKUP($C$6,ASRA!$B$1:$Y$57,18,FALSE) ->  | K24: =#REF! ->  | L24: =HLOOKUP($C$6,ASRA!$B$1:$Y$57,18,FALSE) -> 
B25: Travaux à forfait | C25: =#REF! ->  | D25: =HLOOKUP($C$6,ASRA!$B$1:$Y$57,19,FALSE) ->  | E25: =#REF! ->  | F25: =HLOOKUP($C$6,ASRA!$B$1:$Y$57,19,FALSE) ->  | G25: =#REF! ->  | H25: =HLOOKUP($C$6,ASRA!$B$1:$Y$57,19,FALSE) ->  | I25: =#REF! ->  | J25: =HLOOKUP($C$6,ASRA!$B$1:$Y$57,19,FALSE) ->  | K25: =#REF! ->  | L25: =HLOOKUP($C$6,ASRA!$B$1:$Y$57,19,FALSE) -> 
B26: Main d'œuvre salariée | C26: =#REF! ->  | D26: =HLOOKUP($C$6,ASRA!$B$1:$Y$57,20,FALSE) ->  | E26: =#REF! ->  | F26: =HLOOKUP($C$6,ASRA!$B$1:$Y$57,20,FALSE) ->  | G26: =#REF! ->  | H26: =HLOOKUP($C$6,ASRA!$B$1:$Y$57,20,FALSE) ->  | I26: =#REF! ->  | J26: =HLOOKUP($C$6,ASRA!$B$1:$Y$57,20,FALSE) ->  | K26: =#REF! ->  | L26: =HLOOKUP($C$6,ASRA!$B$1:$Y$57,20,FALSE) -> 
B27: Entretien et reparation machinerie | C27: =#REF! ->  | D27: =HLOOKUP($C$6,ASRA!$B$1:$Y$57,21,FALSE) ->  | E27: =#REF! ->  | F27: =HLOOKUP($C$6,ASRA!$B$1:$Y$57,21,FALSE) ->  | G27: =#REF! ->  | H27: =HLOOKUP($C$6,ASRA!$B$1:$Y$57,21,FALSE) ->  | I27: =#REF! ->  | J27: =HLOOKUP($C$6,ASRA!$B$1:$Y$57,21,FALSE) ->  | K27: =#REF! ->  | L27: =HLOOKUP($C$6,ASRA!$B$1:$Y$57,21,FALSE) -> 
B28: Carburants | C28: =#REF! ->  | D28: =HLOOKUP($C$6,ASRA!$B$1:$Y$57,22,FALSE) ->  | E28: =#REF! ->  | F28: =HLOOKUP($C$6,ASRA!$B$1:$Y$57,22,FALSE) ->  | G28: =#REF! ->  | H28: =HLOOKUP($C$6,ASRA!$B$1:$Y$57,22,FALSE) ->  | I28: =#REF! ->  | J28: =HLOOKUP($C$6,ASRA!$B$1:$Y$57,22,FALSE) ->  | K28: =#REF! ->  | L28: =HLOOKUP($C$6,ASRA!$B$1:$Y$57,22,FALSE) -> 
B29: Gaz propane | C29: =#REF! ->  | D29: =HLOOKUP($C$6,ASRA!$B$1:$Y$57,23,FALSE) ->  | E29: =#REF! ->  | F29: =HLOOKUP($C$6,ASRA!$B$1:$Y$57,23,FALSE) ->  | G29: =#REF! ->  | H29: =HLOOKUP($C$6,ASRA!$B$1:$Y$57,23,FALSE) ->  | I29: =#REF! ->  | J29: =HLOOKUP($C$6,ASRA!$B$1:$Y$57,23,FALSE) ->  | K29: =#REF! ->  | L29: =HLOOKUP($C$6,ASRA!$B$1:$Y$57,23,FALSE) -> 
B30: Électricité | C30: =#REF! ->  | D30: =HLOOKUP($C$6,ASRA!$B$1:$Y$57,24,FALSE) ->  | E30: =#REF! ->  | F30: =HLOOKUP($C$6,ASRA!$B$1:$Y$57,24,FALSE) ->  | G30: =#REF! ->  | H30: =HLOOKUP($C$6,ASRA!$B$1:$Y$57,24,FALSE) ->  | I30: =#REF! ->  | J30: =HLOOKUP($C$6,ASRA!$B$1:$Y$57,24,FALSE) ->  | K30: =#REF! ->  | L30: =HLOOKUP($C$6,ASRA!$B$1:$Y$57,24,FALSE) -> 
B31: Frais de mise en marché | C31: =#REF! ->  | D31: =HLOOKUP($C$6,ASRA!$B$1:$Y$57,25,FALSE) ->  | E31: =#REF! ->  | F31: =HLOOKUP($C$6,ASRA!$B$1:$Y$57,25,FALSE) ->  | G31: =#REF! ->  | H31: =HLOOKUP($C$6,ASRA!$B$1:$Y$57,25,FALSE) ->  | I31: =#REF! ->  | J31: =HLOOKUP($C$6,ASRA!$B$1:$Y$57,25,FALSE) ->  | K31: =#REF! ->  | L31: =HLOOKUP($C$6,ASRA!$B$1:$Y$57,25,FALSE) -> 
B32: Intérêt sur emprunt à court terme | C32: =#REF! ->  | D32: =HLOOKUP($C$6,ASRA!$B$1:$Y$57,26,FALSE) ->  | E32: =#REF! ->  | F32: =HLOOKUP($C$6,ASRA!$B$1:$Y$57,26,FALSE) ->  | G32: =#REF! ->  | H32: =HLOOKUP($C$6,ASRA!$B$1:$Y$57,26,FALSE) ->  | I32: =#REF! ->  | J32: =HLOOKUP($C$6,ASRA!$B$1:$Y$57,26,FALSE) ->  | K32: =#REF! ->  | L32: =HLOOKUP($C$6,ASRA!$B$1:$Y$57,26,FALSE) -> 
B33: Achat d'animaux | C33: =#REF! ->  | D33: =HLOOKUP($C$6,ASRA!$B$1:$Y$57,27,FALSE) ->  | E33: =#REF! ->  | F33: =HLOOKUP($C$6,ASRA!$B$1:$Y$57,27,FALSE) ->  | G33: =#REF! ->  | H33: =HLOOKUP($C$6,ASRA!$B$1:$Y$57,27,FALSE) ->  | I33: =#REF! ->  | J33: =HLOOKUP($C$6,ASRA!$B$1:$Y$57,27,FALSE) ->  | K33: =#REF! ->  | L33: =HLOOKUP($C$6,ASRA!$B$1:$Y$57,27,FALSE) -> 
B34: Achat de foin | C34: =#REF! ->  | D34: =HLOOKUP($C$6,ASRA!$B$1:$Y$57,28,FALSE) ->  | E34: =#REF! ->  | F34: =HLOOKUP($C$6,ASRA!$B$1:$Y$57,28,FALSE) ->  | G34: =#REF! ->  | H34: =HLOOKUP($C$6,ASRA!$B$1:$Y$57,28,FALSE) ->  | I34: =#REF! ->  | J34: =HLOOKUP($C$6,ASRA!$B$1:$Y$57,28,FALSE) ->  | K34: =#REF! ->  | L34: =HLOOKUP($C$6,ASRA!$B$1:$Y$57,28,FALSE) -> 
B35: Achat autres aliments | C35: =#REF! ->  | D35: =HLOOKUP($C$6,ASRA!$B$1:$Y$57,29,FALSE) ->  | E35: =#REF! ->  | F35: =HLOOKUP($C$6,ASRA!$B$1:$Y$57,29,FALSE) ->  | G35: =#REF! ->  | H35: =HLOOKUP($C$6,ASRA!$B$1:$Y$57,29,FALSE) ->  | I35: =#REF! ->  | J35: =HLOOKUP($C$6,ASRA!$B$1:$Y$57,29,FALSE) ->  | K35: =#REF! ->  | L35: =HLOOKUP($C$6,ASRA!$B$1:$Y$57,29,FALSE) -> 
B36: Médicament, vétérinaire, insémination | C36: =#REF! ->  | D36: =HLOOKUP($C$6,ASRA!$B$1:$Y$57,30,FALSE) ->  | E36: =#REF! ->  | F36: =HLOOKUP($C$6,ASRA!$B$1:$Y$57,30,FALSE) ->  | G36: =#REF! ->  | H36: =HLOOKUP($C$6,ASRA!$B$1:$Y$57,30,FALSE) ->  | I36: =#REF! ->  | J36: =HLOOKUP($C$6,ASRA!$B$1:$Y$57,30,FALSE) ->  | K36: =#REF! ->  | L36: =HLOOKUP($C$6,ASRA!$B$1:$Y$57,30,FALSE) -> 
B37: Litière | C37: =#REF! ->  | D37: =HLOOKUP($C$6,ASRA!$B$1:$Y$57,31,FALSE) ->  | E37: =#REF! ->  | F37: =HLOOKUP($C$6,ASRA!$B$1:$Y$57,31,FALSE) ->  | G37: =#REF! ->  | H37: =HLOOKUP($C$6,ASRA!$B$1:$Y$57,31,FALSE) ->  | I37: =#REF! ->  | J37: =HLOOKUP($C$6,ASRA!$B$1:$Y$57,31,FALSE) ->  | K37: =#REF! ->  | L37: =HLOOKUP($C$6,ASRA!$B$1:$Y$57,31,FALSE) -> 
B38: Contribution ASRA | C38: =#REF! ->  | D38: =HLOOKUP($C$6,ASRA!$B$1:$Y$57,32,FALSE) ->  | E38: =#REF! ->  | F38: =HLOOKUP($C$6,ASRA!$B$1:$Y$57,32,FALSE) ->  | G38: =#REF! ->  | H38: =HLOOKUP($C$6,ASRA!$B$1:$Y$57,32,FALSE) ->  | I38: =#REF! ->  | J38: =HLOOKUP($C$6,ASRA!$B$1:$Y$57,32,FALSE) ->  | K38: =#REF! ->  | L38: =HLOOKUP($C$6,ASRA!$B$1:$Y$57,32,FALSE) -> 
B39: Contribution autres programmes | C39: =#REF! ->  | D39: =HLOOKUP($C$6,ASRA!$B$1:$Y$57,33,FALSE) ->  | E39: =#REF! ->  | F39: =HLOOKUP($C$6,ASRA!$B$1:$Y$57,33,FALSE) ->  | G39: =#REF! ->  | H39: =HLOOKUP($C$6,ASRA!$B$1:$Y$57,33,FALSE) ->  | I39: =#REF! ->  | J39: =HLOOKUP($C$6,ASRA!$B$1:$Y$57,33,FALSE) ->  | K39: =#REF! ->  | L39: =HLOOKUP($C$6,ASRA!$B$1:$Y$57,33,FALSE) -> 
B41: CHARGES FIXES ($/tonne ou $/lb ou $/kg) | C41: =IF(OR(C6="VIDER",C6=0)," ",IF(C8="$/tonne",ROUND('Coûts de production'!L51,0),ROUND('Coûts de production'!L51,2))) ->  | D41: =IF(OR(C6="VIDER",C6=0)," ",IF(C8="$/tonne",ROUND(IFERROR(IF(OR(C6="VIDER",C6=0)," ",HLOOKUP(C6,CECPA!$B$1:$T$53,33,FALSE)/IF(C8="$/lb",1,IF(C8="$/kg",1,1)))/D14,""),0),ROUND(IFERROR(IF(OR(C6="VIDER",C6=0)," ",HLOOKUP(C6,CECPA!$B$1:$T$53,33,FALSE)/IF(C8="$/lb",1,IF(C8="$/kg",1,1)))/D14,""),2))) ->  | E41: =IF(OR(E6="VIDER",E6=0)," ",IF(E8="$/tonne",ROUND('Coûts de production'!Q51,0),ROUND('Coûts de production'!Q51,2))) ->  | F41: =IF(OR(E6="VIDER",E6=0)," ",IF(E8="$/tonne",ROUND(IFERROR(IF(OR(E6="VIDER",E6=0)," ",HLOOKUP(E6,CECPA!$B$1:$T$53,33,FALSE)/IF(E8="$/lb",1,IF(E8="$/kg",1,1)))/F14,""),0),ROUND(IFERROR(IF(OR(E6="VIDER",E6=0)," ",HLOOKUP(E6,CECPA!$B$1:$T$53,33,FALSE)/IF(E8="$/lb",1,IF(E8="$/kg",1,1)))/F14,""),2))) ->  | G41: =IF(OR(G6="VIDER",G6=0)," ",IF(G8="$/tonne",ROUND('Coûts de production'!V51,0),ROUND('Coûts de production'!V51,2))) ->  | H41: =IF(OR(G6="VIDER",G6=0)," ",IF(G8="$/tonne",ROUND(IFERROR(IF(OR(G6="VIDER",G6=0)," ",HLOOKUP(G6,CECPA!$B$1:$T$53,33,FALSE)/IF(G8="$/lb",1,IF(G8="$/kg",1,1)))/H14,""),0),ROUND(IFERROR(IF(OR(G6="VIDER",G6=0)," ",HLOOKUP(G6,CECPA!$B$1:$T$53,33,FALSE)/IF(G8="$/lb",1,IF(G8="$/kg",1,1)))/H14,""),2))) ->  | I41: =IF(OR(I6="VIDER",I6=0)," ",IF(I8="$/tonne",ROUND('Coûts de production'!Z51,0),ROUND('Coûts de production'!Z51,2))) ->  | J41: =IF(OR(I6="VIDER",I6=0)," ",IF(I8="$/tonne",ROUND(IFERROR(IF(OR(I6="VIDER",I6=0)," ",HLOOKUP(I6,CECPA!$B$1:$T$53,33,FALSE)/IF(I8="$/lb",1,IF(I8="$/kg",1,1)))/J14,""),0),ROUND(IFERROR(IF(OR(I6="VIDER",I6=0)," ",HLOOKUP(I6,CECPA!$B$1:$T$53,33,FALSE)/IF(I8="$/lb",1,IF(I8="$/kg",1,1)))/J14,""),2))) ->  | K41: =IF(OR(K6="VIDER",K6=0)," ",IF(K8="$/tonne",ROUND('Coûts de production'!AD51,0),ROUND('Coûts de production'!AD51,2))) ->  | L41: =IF(OR(K6="VIDER",K6=0)," ",IF(K8="$/tonne",ROUND(IFERROR(IF(OR(K6="VIDER",K6=0)," ",HLOOKUP(K6,CECPA!$B$1:$T$53,33,FALSE)/IF(K8="$/lb",1,IF(K8="$/kg",1,1)))/L14,""),0),ROUND(IFERROR(IF(OR(K6="VIDER",K6=0)," ",HLOOKUP(K6,CECPA!$B$1:$T$53,33,FALSE)/IF(K8="$/lb",1,IF(K8="$/kg",1,1)))/L14,""),2))) -> 
B42: Entretien bâtiments et fonds de terre | C42: =#REF! ->  | D42: =HLOOKUP($C$6,ASRA!$B$1:$Y$57,36,FALSE) ->  | E42: =#REF! ->  | F42: =HLOOKUP($C$6,ASRA!$B$1:$Y$57,36,FALSE) ->  | G42: =#REF! ->  | H42: =HLOOKUP($C$6,ASRA!$B$1:$Y$57,36,FALSE) ->  | I42: =#REF! ->  | J42: =HLOOKUP($C$6,ASRA!$B$1:$Y$57,36,FALSE) ->  | K42: =#REF! ->  | L42: =HLOOKUP($C$6,ASRA!$B$1:$Y$57,36,FALSE) -> 
B43: Assurances diverses | C43: =#REF! ->  | D43: =HLOOKUP($C$6,ASRA!$B$1:$Y$57,37,FALSE) ->  | E43: =#REF! ->  | F43: =HLOOKUP($C$6,ASRA!$B$1:$Y$57,37,FALSE) ->  | G43: =#REF! ->  | H43: =HLOOKUP($C$6,ASRA!$B$1:$Y$57,37,FALSE) ->  | I43: =#REF! ->  | J43: =HLOOKUP($C$6,ASRA!$B$1:$Y$57,37,FALSE) ->  | K43: =#REF! ->  | L43: =HLOOKUP($C$6,ASRA!$B$1:$Y$57,37,FALSE) -> 
B44: Taxes foncières | C44: =#REF! ->  | D44: =HLOOKUP($C$6,ASRA!$B$1:$Y$57,38,FALSE) ->  | E44: =#REF! ->  | F44: =HLOOKUP($C$6,ASRA!$B$1:$Y$57,38,FALSE) ->  | G44: =#REF! ->  | H44: =HLOOKUP($C$6,ASRA!$B$1:$Y$57,38,FALSE) ->  | I44: =#REF! ->  | J44: =HLOOKUP($C$6,ASRA!$B$1:$Y$57,38,FALSE) ->  | K44: =#REF! ->  | L44: =HLOOKUP($C$6,ASRA!$B$1:$Y$57,38,FALSE) -> 
B45: Intérêt sur emprunt MLT | C45: =#REF! ->  | D45: =HLOOKUP($C$6,ASRA!$B$1:$Y$57,39,FALSE) ->  | E45: =#REF! ->  | F45: =HLOOKUP($C$6,ASRA!$B$1:$Y$57,39,FALSE) ->  | G45: =#REF! ->  | H45: =HLOOKUP($C$6,ASRA!$B$1:$Y$57,39,FALSE) ->  | I45: =#REF! ->  | J45: =HLOOKUP($C$6,ASRA!$B$1:$Y$57,39,FALSE) ->  | K45: =#REF! ->  | L45: =HLOOKUP($C$6,ASRA!$B$1:$Y$57,39,FALSE) -> 
B46: Autres frais | C46: =#REF! ->  | D46: =HLOOKUP($C$6,ASRA!$B$1:$Y$57,40,FALSE) ->  | E46: =#REF! ->  | F46: =HLOOKUP($C$6,ASRA!$B$1:$Y$57,40,FALSE) ->  | G46: =#REF! ->  | H46: =HLOOKUP($C$6,ASRA!$B$1:$Y$57,40,FALSE) ->  | I46: =#REF! ->  | J46: =HLOOKUP($C$6,ASRA!$B$1:$Y$57,40,FALSE) ->  | K46: =#REF! ->  | L46: =HLOOKUP($C$6,ASRA!$B$1:$Y$57,40,FALSE) -> 
B47: Frais bur. tel, internet, … | C47: 0 | E47: 0 | G47: 0 | I47: 0 | K47: 0
B48: Permis, immatricultion | C48: 0 | E48: 0 | G48: 0 | I48: 0 | K48: 0
B49: Cotisation UPA, clubs-conseils | C49: 0 | E49: 0 | G49: 0 | I49: 0 | K49: 0
B50: Formation | C50: 0 | E50: 0 | G50: 0 | I50: 0 | K50: 0
B51: Honoraires professionnels | C51: 0 | E51: 0 | G51: 0 | I51: 0 | K51: 0
B52: D) Moins | C52: =-C53 ->  | D52: =HLOOKUP($C$6,ASRA!$B$1:$Y$57,46,FALSE) ->  | E52: =-E53 ->  | F52: =HLOOKUP($C$6,ASRA!$B$1:$Y$57,46,FALSE) ->  | G52: =-G53 ->  | H52: =HLOOKUP($C$6,ASRA!$B$1:$Y$57,46,FALSE) ->  | I52: =-I53 ->  | J52: =HLOOKUP($C$6,ASRA!$B$1:$Y$57,46,FALSE) ->  | K52: =-K53 ->  | L52: =HLOOKUP($C$6,ASRA!$B$1:$Y$57,46,FALSE) -> 
B53: Autres revenus | C53: =#REF! ->  | D53: =HLOOKUP($C$6,ASRA!$B$1:$Y$57,47,FALSE) ->  | E53: =#REF! ->  | F53: =HLOOKUP($C$6,ASRA!$B$1:$Y$57,47,FALSE) ->  | G53: =#REF! ->  | H53: =HLOOKUP($C$6,ASRA!$B$1:$Y$57,47,FALSE) ->  | I53: =#REF! ->  | J53: =HLOOKUP($C$6,ASRA!$B$1:$Y$57,47,FALSE) ->  | K53: =#REF! ->  | L53: =HLOOKUP($C$6,ASRA!$B$1:$Y$57,47,FALSE) -> 
B54: Sous-produits
B55: Location et travaux à forfait
B56: Subventions, ristournes
